Workbook

Sheet Cover
B1: Registered User: | G1: Free Trial Version - Not For Commercial Use | AF1: © 2017 CivilWeb
B2: Your Logo / Company Details Here | G2: Project: | AF2: By:
G3: Calculation: | M3: Portal Frame Analysis
AF4: Approved:
G5: Sheet Number: | M5: Cover Sheet | T5: Date:
H7: Although all care and attention has been taken to ensure that this program is accurate, CivilWeb gives no guarentee that it is error free. In no event will Civil Web accept any responsibility for any errors or omissions from the program or from the user of the program, or for any special, incedental or consequential damages whatsoever arising from use of this program.
H14: This program should only be used by a suitably qualified Civil or Structural Engineer, and suitable efforts should be taken to verify the results.
H18: Reverse-engineering or decompiling of this program is not allowed.
H20: This program is registered to a single user, and should not be used by any other.
H23: Registered User;
H24: Free Trial Version
H26: By using this program you confirm your understanding and agreement with the above terms and conditions.
H29: This program remains the property of CivilWeb.
H30: www.civilweb-spreadsheets.com
H32: Revision Schedule
H34: Rev | J34: Changes | Z34: Date
H35: 0 | J35: Original | Z35: 2017-06-01

Sheet Portal Frame Analysis
B1: Registered User: | G1: Free Trial Version - Not For Commercial Use | AF1: © 2017 CivilWeb | CC1: CALCULATIONS:
B2: Your Logo / Company Details Here | G2: Project: | AF2: By:
G3: Calculation: | M3: Portal Frame Analysis | CD3: Member Direction Cosines: | CI3: Fixed
AF4: Approved: | CE4: Member No. | CF4: lx | CG4: ly | CI4: Pinned
G5: Sheet Number: | M5: 1 | T5: Date: | BT5: Results: | CE5: 1 | CF5: =($FX$13-$FX$12)/$GA$26 -> 0 | CG5: =($FY$13-$FY$12)/$GA$26 -> 1 | CI5: X-Global | FN5: Caution: Do not use "Space Bar" to clear contents of
CE6: 2 | CF6: =($FX$14-$FX$13)/$GA$27 -> 1 | CG6: =($FY$14-$FY$13)/$GA$27 -> 0 | CI6: X-Projected | FN6: unused input cells for loadings. "Highlight" those
H7: Frame Details | BC7: Input Data: | BT7: Support Reactions: | CE7: 3 | CF7: =($FX$14-$FX$15)/$GA$28 -> 0 | CG7: =($FY$14-$FY$15)/$GA$28 -> 1 | CI7: Y-Global | FN7: cells which are to be cleared and click on the | FU7: Convert Metric Units Input Data back to English Units:
BL8: Fixed | BM8: Dead | CI8: Y-Projected | FN8: Right Mouse Button and select "Clear Contents".
H9: Joint Co-ordinates | BC9: Joint Coordinates: | BL9: Pinned | BM9: Imposed | BT9: Joint No. | BU9: Rx (kN) | BV9: Ry (kN) | BW9: Mz (kN-m) | FU9: Joint Coordinates:
L10: X (m) | O10: Y (m) | BD10: =IF(AND($FX$12=$FX$13,$FX$14=$FX$15),"","Columns must be vertical !") ->  | BT10: 1 | BU10: =IF(AND($FX$20="Fixed",$FX$21="Fixed"),$CH$111,IF(AND($FX$20="Pinned",$FX$21="Pinned"),$CH$197,IF(AND($FX$20="Fixed",$FX$21="Pinned"),$CH$284,IF(AND($FX$20="Pinned",$FX$21="Fixed"),$CH$370))))*4.448222 -> -29.17843741 | BV10: =IF(AND($FX$20="Fixed",$FX$21="Fixed"),$CH$112,IF(AND($FX$20="Pinned",$FX$21="Pinned"),$CH$198,IF(AND($FX$20="Fixed",$FX$21="Pinned"),$CH$285,IF(AND($FX$20="Pinned",$FX$21="Fixed"),$CH$371))))*4.448222 -> -81.38054723 | BW10: =IF(AND($FX$20="Fixed",$FX$21="Fixed"),$CH$113/12,IF(AND($FX$20="Pinned",$FX$21="Pinned"),0,IF(AND($FX$20="Fixed",$FX$21="Pinned"),$CH$286/12,IF(AND($FX$20="Pinned",$FX$21="Fixed"),0))))*1.355818 -> 59.81687908 | CB10: Member Loads:
H11: Joint 1 | L11: 0 | O11: 0 | AO11: =($L11/MAX($L$11:$Q$14))*10 -> 0 | AP11: =($O11/MAX($L$11:$Q$14))*10 -> 0 | AR11: =AVERAGE(AO11:AO12) -> 0 | AS11: =AVERAGE(AP11:AP12) -> 3 | BD11: Joint No. | BF11: x (m) | BG11: y (m) | BT11: 4 | BU11: =IF(AND($FX$20="Fixed",$FX$21="Fixed"),$CH$114,IF(AND($FX$20="Pinned",$FX$21="Pinned"),$CH$199,IF(AND($FX$20="Fixed",$FX$21="Pinned"),$CH$287,IF(AND($FX$20="Pinned",$FX$21="Fixed"),$CH$372))))*4.448222 -> 29.17843741 | BV11: =IF(AND($FX$20="Fixed",$FX$21="Fixed"),$CH$115,IF(AND($FX$20="Pinned",$FX$21="Pinned"),$CH$200,IF(AND($FX$20="Fixed",$FX$21="Pinned"),$CH$288,IF(AND($FX$20="Pinned",$FX$21="Fixed"),$CH$373))))*4.448222 -> -93.61953809 | BW11: =IF(AND($FX$20="Fixed",$FX$21="Fixed"),$CH$116/12,IF(AND($FX$20="Pinned",$FX$21="Pinned"),0,IF(AND($FX$20="Fixed",$FX$21="Pinned"),0,IF(AND($FX$20="Pinned",$FX$21="Fixed"),$CH$374/12))))*1.355818 -> -56.95529533 | FV11: Joint No. | FX11: x (ft.) | FY11: y (ft.)
H12: Joint 2 | L12: =L11 -> 0 | O12: 6 | AO12: =($L12/MAX($L$11:$Q$14))*10 -> 0 | AP12: =($O12/MAX($L$11:$Q$14))*10 -> 6 | AR12: =AVERAGE(AO12:AO13) -> 5 | AS12: 6 | BD12: 1 | BF12: =L11 -> 0 | BG12: =O11 -> 0 | CC12: Distributed Loads: | FV12: 1 | FX12: =BF12*3.28083 -> 0 | FY12: 0
H13: Joint 3 | L13: 10 | O13: 6 | AO13: 10 | AP13: 6 | AR13: 10 | AS13: 3 | BD13: 2 | BF13: =L12 -> 0 | BG13: =O12 -> 6 | BT13: Member End Forces: | FV13: 2 | FX13: 0 | FY13: 19.68498
H14: Joint 4 | L14: =L13 -> 10 | O14: =O11 -> 0 | AO14: 10 | AP14: 0 | BD14: 3 | BF14: 10 | BG14: 6 | CC14: Member No. | CD14: Distributed Load #1 | CH14: Distributed Load #2 | CL14: Distributed Load #3 | CP14: Distributed Load #4 | CT14: Distributed Load #5 | FV14: 3 | FX14: 32.8083 | FY14: 19.68498
BD15: 4 | BF15: 10 | BG15: 0 | BT15: Member No. | BU15: Joint No. | BV15: Axial (kN) | BW15: Shear (kN) | BX15: Moment (kN-m) | CD15: b (ft.) | CE15: wb (k/ft.) | CF15: e (ft.) | CG15: we (k/ft.) | CH15: b (ft.) | CI15: wb (k/ft.) | CJ15: e (ft.) | CK15: we (k/ft.) | CL15: b (ft.) | CM15: wb (k/ft.) | CN15: e (ft.) | CO15: we (k/ft.) | CP15: b (ft.) | CQ15: wb (k/ft.) | CR15: e (ft.) | CS15: we (k/ft.) | CT15: b (ft.) | CU15: wb (k/ft.) | CV15: e (ft.) | CW15: we (k/ft.) | FV15: 4 | FX15: 32.8083 | FY15: 0
H16: Supports | BT16: 1 | BU16: 1 | BV16: =IF(AND($FX$20="Fixed",$FX$21="Fixed"),$CP$120,IF(AND($FX$20="Pinned",$FX$21="Pinned"),$CP$208,IF(AND($FX$20="Fixed",$FX$21="Pinned"),$CP$294,IF(AND($FX$20="Pinned",$FX$21="Fixed"),$CP$380))))*4.448222 -> -81.38054723 | BW16: =IF(AND($FX$20="Fixed",$FX$21="Fixed"),$CP$121,IF(AND($FX$20="Pinned",$FX$21="Pinned"),$CP$209,IF(AND($FX$20="Fixed",$FX$21="Pinned"),$CP$295,IF(AND($FX$20="Pinned",$FX$21="Fixed"),$CP$381))))*4.448222 -> 29.17843741 | BX16: =IF(AND($FX$20="Fixed",$FX$21="Fixed"),$CP$122/12,IF(AND($FX$20="Pinned",$FX$21="Pinned"),$CP$210/12,IF(AND($FX$20="Fixed",$FX$21="Pinned"),$CP$296/12,IF(AND($FX$20="Pinned",$FX$21="Fixed"),$CP$382/12))))*1.355818 -> 59.81687908 | CC16: 1 (X) | CD16: =$FX$44*$GA$26 -> 0 | CE16: =$FY$44 -> 0 | CF16: =$FZ$44*$GA$26 -> 0 | CG16: =$GA$44 -> 0 | CH16: =$GB$44*$GA$26 -> 0 | CI16: =$GC$44 -> 0 | CJ16: =$GD$44*$GA$26 -> 0 | CK16: =$GE$44 -> 0 | CL16: =$GF$44*$GA$26 -> 0 | CM16: =$GG$44 -> 0 | CN16: =$GH$44*$GA$26 -> 0 | CO16: =$GI$44 -> 0 | CP16: =$GJ$44*$GA$26 -> 0 | CQ16: =$GK$44 -> 0 | CR16: =$GL$44*$GA$26 -> 0 | CS16: =$GM$44 -> 0 | CT16: =$GN$44*$GA$26 -> 0 | CU16: =$GO$44 -> 0 | CV16: =$GP$44*$GA$26 -> 0 | CW16: =$GQ$44 -> 0
H17: Joint 1 | L17: Fixed | AO17: -5 | AP17: 0 | BC17: Support Constraints: | BU17: 2 | BV17: =IF(AND($FX$20="Fixed",$FX$21="Fixed"),$CP$123,IF(AND($FX$20="Pinned",$FX$21="Pinned"),$CP$211,IF(AND($FX$20="Fixed",$FX$21="Pinned"),$CP$297,IF(AND($FX$20="Pinned",$FX$21="Fixed"),$CP$383))))*4.448222 -> 81.38054723 | BW17: =IF(AND($FX$20="Fixed",$FX$21="Fixed"),$CP$124,IF(AND($FX$20="Pinned",$FX$21="Pinned"),$CP$212,IF(AND($FX$20="Fixed",$FX$21="Pinned"),$CP$298,IF(AND($FX$20="Pinned",$FX$21="Fixed"),$CP$384))))*4.448222 -> -29.17843741 | BX17: =IF(AND($FX$20="Fixed",$FX$21="Fixed"),$CP$125/12,IF(AND($FX$20="Pinned",$FX$21="Pinned"),$CP$213/12,IF(AND($FX$20="Fixed",$FX$21="Pinned"),$CP$299/12,IF(AND($FX$20="Pinned",$FX$21="Fixed"),$CP$385/12))))*1.355818 -> 115.2532089 | CC17: 2 (Y) | CD17: =$FX$45*$GA$27 -> 0 | CE17: =IF($FW$45="Y-Global",(-$FY$45*$CF$6),IF($FW$45="Y-Projected",(-$FY$45*$CF$6)*$CF$6)) -> -0.959308 | CF17: =$FZ$45*$GA$27 -> 32.8083 | CG17: =IF($FW$45="Y-Global",(-$GA$45*$CF$6),IF($FW$45="Y-Projected",(-$GA$45*$CF$6)*$CF$6)) -> -1.438962 | CH17: =$GB$45*$GA$27 -> 0 | CI17: =IF($FW$45="Y-Global",(-$GC$45*$CF$6),IF($FW$45="Y-Projected",(-$GC$45*$CF$6)*$CF$6)) -> 0 | CJ17: =$GD$45*$GA$27 -> 0 | CK17: =IF($FW$45="Y-Global",(-$GE$45*$CF$6),IF($FW$45="Y-Projected",(-$GE$45*$CF$6)*$CF$6)) -> 0 | CL17: =$GF$45*$GA$27 -> 0 | CM17: =IF($FW$45="Y-Global",(-$GG$45*$CF$6),IF($FW$45="Y-Projected",(-$GG$45*$CF$6)*$CF$6)) -> 0 | CN17: =$GH$45*$GA$27 -> 0 | CO17: =IF($FW$45="Y-Global",(-$GI$45*$CF$6),IF($FW$45="Y-Projected",(-$GI$45*$CF$6)*$CF$6)) -> 0 | CP17: =$GJ$45*$GA$27 -> 0 | CQ17: =IF($FW$45="Y-Global",(-$GK$45*$CF$6),IF($FW$45="Y-Projected",(-$GK$45*$CF$6)*$CF$6)) -> 0 | CR17: =$GL$45*$GA$27 -> 0 | CS17: =IF($FW$45="Y-Global",(-$GM$45*$CF$6),IF($FW$45="Y-Projected",(-$GM$45*$CF$6)*$CF$6)) -> 0 | CT17: =$GN$45*$GA$27 -> 0 | CU17: =IF($FW$45="Y-Global",(-$GO$45*$CF$6),IF($FW$45="Y-Projected",(-$GO$45*$CF$6)*$CF$6)) -> 0 | CV17: =$GP$45*$GA$27 -> 0 | CW17: =IF($FW$45="Y-Global",(-$GQ$45*$CF$6),IF($FW$45="Y-Projected",(-$GQ$45*$CF$6)*$CF$6)) -> 0 | FU17: Support Constraints:
H18: Joint 4 | L18: Fixed | AO18: 20 | AP18: 0 | BT18: 2 | BU18: 2 | BV18: =IF(AND($FX$20="Fixed",$FX$21="Fixed"),$CP$128,IF(AND($FX$20="Pinned",$FX$21="Pinned"),$CP$216,IF(AND($FX$20="Fixed",$FX$21="Pinned"),$CP$302,IF(AND($FX$20="Pinned",$FX$21="Fixed"),$CP$388))))*4.448222 -> 2.821559224 | BW18: =IF(AND($FX$20="Fixed",$FX$21="Fixed"),$CP$129,IF(AND($FX$20="Pinned",$FX$21="Pinned"),$CP$217,IF(AND($FX$20="Fixed",$FX$21="Pinned"),$CP$303,IF(AND($FX$20="Pinned",$FX$21="Fixed"),$CP$389))))*4.448222 -> -81.38054723 | BX18: =IF(AND($FX$20="Fixed",$FX$21="Fixed"),$CP$130/12,IF(AND($FX$20="Pinned",$FX$21="Pinned"),$CP$218/12,IF(AND($FX$20="Fixed",$FX$21="Pinned"),$CP$304/12,IF(AND($FX$20="Pinned",$FX$21="Fixed"),$CP$390/12))))*1.355818 -> -115.2532089 | CC18: 2 (Axial) | CD18: =$FX$45*$GA$27 -> 0 | CE18: =IF($FW$45="Y-Global",(-$FY$45*$CG$6),IF($FW$45="Y-Projected",(-$FY$45*$CG$6)*$CF$6)) -> 0 | CF18: =$FZ$45*$GA$27 -> 32.8083 | CG18: =IF($FW$45="Y-Global",(-$GA$45*$CG$6),IF($FW$45="Y-Projected",(-$GA$45*$CG$6)*$CF$6)) -> 0 | CH18: =$GB$45*$GA$27 -> 0 | CI18: =IF($FW$45="Y-Global",(-$GC$45*$CG$6),IF($FW$45="Y-Projected",(-$GC$45*$CG$6)*$CF$6)) -> 0 | CJ18: =$GD$45*$GA$27 -> 0 | CK18: =IF($FW$45="Y-Global",(-$GE$45*$CG$6),IF($FW$45="Y-Projected",(-$GE$45*$CG$6)*$CF$6)) -> 0 | CL18: =$GF$45*$GA$27 -> 0 | CM18: =IF($FW$45="Y-Global",(-$GG$45*$CG$6),IF($FW$45="Y-Projected",(-$GG$45*$CG$6)*$CF$6)) -> 0 | CN18: =$GH$45*$GA$27 -> 0 | CO18: =IF($FW$45="Y-Global",(-$GI$45*$CG$6),IF($FW$45="Y-Projected",(-$GI$45*$CG$6)*$CF$6)) -> 0 | CP18: =$GJ$45*$GA$27 -> 0 | CQ18: =IF($FW$45="Y-Global",(-$GK$45*$CG$6),IF($FW$45="Y-Projected",(-$GK$45*$CG$6)*$CF$6)) -> 0 | CR18: =$GL$45*$GA$27 -> 0 | CS18: =IF($FW$45="Y-Global",(-$GM$45*$CG$6),IF($FW$45="Y-Projected",(-$GM$45*$CG$6)*$CF$6)) -> 0 | CT18: =$GN$45*$GA$27 -> 0 | CU18: =IF($FW$45="Y-Global",(-$GO$45*$CG$6),IF($FW$45="Y-Projected",(-$GO$45*$CG$6)*$CF$6)) -> 0 | CV18: =$GP$45*$GA$27 -> 0 | CW18: =IF($FW$45="Y-Global",(-$GQ$45*$CG$6),IF($FW$45="Y-Projected",(-$GQ$45*$CG$6)*$CF$6)) -> 0
BD19: Joint No. | BF19: Condition | BU19: 3 | BV19: =IF(AND($FX$20="Fixed",$FX$21="Fixed"),$CP$131,IF(AND($FX$20="Pinned",$FX$21="Pinned"),$CP$219,IF(AND($FX$20="Fixed",$FX$21="Pinned"),$CP$305,IF(AND($FX$20="Pinned",$FX$21="Fixed"),$CP$391))))*4.448222 -> -2.821559224 | BW19: =IF(AND($FX$20="Fixed",$FX$21="Fixed"),$CP$132,IF(AND($FX$20="Pinned",$FX$21="Pinned"),$CP$220,IF(AND($FX$20="Fixed",$FX$21="Pinned"),$CP$306,IF(AND($FX$20="Pinned",$FX$21="Fixed"),$CP$392))))*4.448222 -> -93.61953809 | BX19: =IF(AND($FX$20="Fixed",$FX$21="Fixed"),$CP$133/12,IF(AND($FX$20="Pinned",$FX$21="Pinned"),$CP$221/12,IF(AND($FX$20="Fixed",$FX$21="Pinned"),$CP$307/12,IF(AND($FX$20="Pinned",$FX$21="Fixed"),$CP$393/12))))*1.355818 -> 118.1147926 | CC19: 2 (X) | CD19: =$FX$46*$GA$27 -> 0 | CE19: =IF($FW$46="X-Global",($FY$46*$CG$6),IF($FW$46="X-Projected",($FY$46*$CG$6)*ABS($CG$6))) -> 0 | CF19: =$FZ$46*$GA$27 -> 0 | CG19: =IF($FW$46="X-Global",($GA$46*$CG$6),IF($FW$46="X-Projected",($GA$46*$CG$6)*ABS($CG$6))) -> 0 | CH19: =$GB$46*$GA$27 -> 0 | CI19: =IF($FW$46="X-Global",($GC$46*$CG$6),IF($FW$46="X-Projected",($GC$46*$CG$6)*ABS($CG$6))) -> 0 | CJ19: =$GD$46*$GA$27 -> 0 | CK19: =IF($FW$46="X-Global",($GE$46*$CG$6),IF($FW$46="X-Projected",($GE$46*$CG$6)*ABS($CG$6))) -> 0 | CL19: =$GF$46*$GA$27 -> 0 | CM19: =IF($FW$46="X-Global",($GG$46*$CG$6),IF($FW$46="X-Projected",($GG$46*$CG$6)*ABS($CG$6))) -> 0 | CN19: =$GH$46*$GA$27 -> 0 | CO19: =IF($FW$46="X-Global",($GI$46*$CG$6),IF($FW$46="X-Projected",($GI$46*$CG$6)*ABS($CG$6))) -> 0 | CP19: =$GJ$46*$GA$27 -> 0 | CQ19: =IF($FW$46="X-Global",($GK$46*$CG$6),IF($FW$46="X-Projected",($GK$46*$CG$6)*ABS($CG$6))) -> 0 | CR19: =$GL$46*$GA$27 -> 0 | CS19: =IF($FW$46="X-Global",($GM$46*$CG$6),IF($FW$46="X-Projected",($GM$46*$CG$6)*ABS($CG$6))) -> 0 | CT19: =$GN$46*$GA$27 -> 0 | CU19: =IF($FW$46="X-Global",($GO$46*$CG$6),IF($FW$46="X-Projected",($GO$46*$CG$6)*ABS($CG$6))) -> 0 | CV19: =$GP$46*$GA$27 -> 0 | CW19: =IF($FW$46="X-Global",($GQ$46*$CG$6),IF($FW$46="X-Projected",($GQ$46*$CG$6)*ABS($CG$6))) -> 0 | FV19: Joint No. | FX19: Condition
H20: Member Properties | AN20: =MAX(L11:N14)-MIN(L11:N14)&"m" -> 10m | AO20: =AO12 -> 0 | AP20: -0.3 | BD20: 1 | BF20: =L17 -> Fixed | BT20: 3 | BU20: 4 | BV20: =IF(AND($FX$20="Fixed",$FX$21="Fixed"),$CP$136,IF(AND($FX$20="Pinned",$FX$21="Pinned"),$CP$224,IF(AND($FX$20="Fixed",$FX$21="Pinned"),$CP$310,IF(AND($FX$20="Pinned",$FX$21="Fixed"),$CP$396))))*4.448222 -> -93.61953809 | BW20: =IF(AND($FX$20="Fixed",$FX$21="Fixed"),$CP$137,IF(AND($FX$20="Pinned",$FX$21="Pinned"),$CP$225,IF(AND($FX$20="Fixed",$FX$21="Pinned"),$CP$311,IF(AND($FX$20="Pinned",$FX$21="Fixed"),$CP$397))))*4.448222 -> -29.17843741 | BX20: =IF(AND($FX$20="Fixed",$FX$21="Fixed"),$CP$138/12,IF(AND($FX$20="Pinned",$FX$21="Pinned"),$CP$226/12,IF(AND($FX$20="Fixed",$FX$21="Pinned"),$CP$312/12,IF(AND($FX$20="Pinned",$FX$21="Fixed"),$CP$398/12))))*1.355818 -> -56.95529533 | CC20: 2 (Axial) | CD20: =$FX$46*$GA$27 -> 0 | CE20: =IF($FW$46="X-Global",($FY$46*$CF$6),IF($FW$46="X-Projected",($FY$46*$CF$6)*ABS($CG$6))) -> 0 | CF20: =$FZ$46*$GA$27 -> 0 | CG20: =IF($FW$46="X-Global",($GA$46*$CF$6),IF($FW$46="X-Projected",($GA$46*$CF$6)*ABS($CG$6))) -> 0 | CH20: =$GB$46*$GA$27 -> 0 | CI20: =IF($FW$46="X-Global",($GC$46*$CF$6),IF($FW$46="X-Projected",($GC$46*$CF$6)*ABS($CG$6))) -> 0 | CJ20: =$GD$46*$GA$27 -> 0 | CK20: =IF($FW$46="X-Global",($GE$46*$CF$6),IF($FW$46="X-Projected",($GE$46*$CF$6)*ABS($CG$6))) -> 0 | CL20: =$GF$46*$GA$27 -> 0 | CM20: =IF($FW$46="X-Global",($GG$46*$CF$6),IF($FW$46="X-Projected",($GG$46*$CF$6)*ABS($CG$6))) -> 0 | CN20: =$GH$46*$GA$27 -> 0 | CO20: =IF($FW$46="X-Global",($GI$46*$CF$6),IF($FW$46="X-Projected",($GI$46*$CF$6)*ABS($CG$6))) -> 0 | CP20: =$GJ$46*$GA$27 -> 0 | CQ20: =IF($FW$46="X-Global",($GK$46*$CF$6),IF($FW$46="X-Projected",($GK$46*$CF$6)*ABS($CG$6))) -> 0 | CR20: =$GL$46*$GA$27 -> 0 | CS20: =IF($FW$46="X-Global",($GM$46*$CF$6),IF($FW$46="X-Projected",($GM$46*$CF$6)*ABS($CG$6))) -> 0 | CT20: =$GN$46*$GA$27 -> 0 | CU20: =IF($FW$46="X-Global",($GO$46*$CF$6),IF($FW$46="X-Projected",($GO$46*$CF$6)*ABS($CG$6))) -> 0 | CV20: =$GP$46*$GA$27 -> 0 | CW20: =IF($FW$46="X-Global",($GQ$46*$CF$6),IF($FW$46="X-Projected",($GQ$46*$CF$6)*ABS($CG$6))) -> 0 | FV20: 1 | FX20: =BF20 -> Fixed
L21: Section Area (cm²) | Q21: Inertia (cm⁴) | V21: Elasticity (MPa) | AB21: Length (m) | AO21: =AVERAGE(AO20,AO22) -> 5 | AP21: =AVERAGE(AP20,AP22) -> -0.3 | BD21: 4 | BF21: =L18 -> Fixed | BU21: 3 | BV21: =IF(AND($FX$20="Fixed",$FX$21="Fixed"),$CP$139,IF(AND($FX$20="Pinned",$FX$21="Pinned"),$CP$227,IF(AND($FX$20="Fixed",$FX$21="Pinned"),$CP$313,IF(AND($FX$20="Pinned",$FX$21="Fixed"),$CP$399))))*4.448222 -> 93.61953809 | BW21: =IF(AND($FX$20="Fixed",$FX$21="Fixed"),$CP$140,IF(AND($FX$20="Pinned",$FX$21="Pinned"),$CP$228,IF(AND($FX$20="Fixed",$FX$21="Pinned"),$CP$314,IF(AND($FX$20="Pinned",$FX$21="Fixed"),$CP$400))))*4.448222 -> 29.17843741 | BX21: =IF(AND($FX$20="Fixed",$FX$21="Fixed"),$CP$141/12,IF(AND($FX$20="Pinned",$FX$21="Pinned"),$CP$229/12,IF(AND($FX$20="Fixed",$FX$21="Pinned"),$CP$315/12,IF(AND($FX$20="Pinned",$FX$21="Fixed"),$CP$401/12))))*1.355818 -> -118.1147926 | CC21: 3 (X) | CD21: =$FX$47*$GA$28 -> 0 | CE21: =$FY$47 -> 0 | CF21: =$FZ$47*$GA$28 -> 0 | CG21: =$GA$47 -> 0 | CH21: =$GB$47*$GA$28 -> 0 | CI21: =$GC$47 -> 0 | CJ21: =$GD$47*$GA$28 -> 0 | CK21: =$GE$47 -> 0 | CL21: =$GF$47*$GA$28 -> 0 | CM21: =$GG$47 -> 0 | CN21: =$GH$47*$GA$28 -> 0 | CO21: =$GI$47 -> 0 | CP21: =$GJ$47*$GA$28 -> 0 | CQ21: =$GK$47 -> 0 | CR21: =$GL$47*$GA$28 -> 0 | CS21: =$GM$47 -> 0 | CT21: =$GN$47*$GA$28 -> 0 | CU21: =$GO$47 -> 0 | CV21: =$GP$47*$GA$28 -> 0 | CW21: =$GQ$47 -> 0 | FV21: 4 | FX21: =BF21 -> Fixed
AO22: =AO13 -> 10 | AP22: -0.3
H23: Member 1 | L23: 100 | Q23: 30000 | V23: 200000 | AB23: =SQRT(($L$12-$L$11)^2+($O$12-$O$11)^2) -> 6 | BC23: Member Properties and Data: | BT23: Member Maximum Moments: | CC23: Point Loads: | FN23: Steel Beam: | FU23: Member Properties and Data:
H24: Member 2 | L24: 80 | Q24: 25000 | V24: 200000 | AB24: =SQRT(($L$13-$L$12)^2+($O$13-$O$12)^2) -> 10 | AN24: =ROUND(AB23,3)&"m" -> 6m | AO24: -0.5 | AP24: =AP11 -> 0 | FN24: W14x68
H25: Member 3 | L25: 100 | Q25: 30000 | V25: 200000 | AB25: =SQRT(($L$14-$L$13)^2+($O$14-$O$13)^2) -> 6 | AO25: =AO24 -> -0.5 | AP25: =AVERAGE(AP24,AP26) -> 3 | BD25: Member No. | BF25: E (MPa) | BG25: A (cm^2) | BH25: I (cm^4) | BI25: L (m) | BJ25: lx | BK25: ly | BT25: Member No. | BU25: +M or -M | BV25: M (kN-m) | BW25: x or y (m) | CC25: Member No. | CD25: Point Load #1 | CF25: Point Load #2 | CH25: Point Load #3 | CJ25: Point Load #4 | CL25: Point Load #5 | FN25: =VLOOKUP($FN$24,$FE$4:$FK$797,5,FALSE) ->  | FO25: cm^2 | FV25: Member No. | FX25: E (ksi) | FY25: A (in.^2) | FZ25: I (in.^4) | GA25: L (ft.) | GB25: lx | GC25: ly
AO26: -0.5 | AP26: =AP12 -> 6 | BD26: 1 | BF26: =V23 -> 200000 | BG26: =L23 -> 100 | BH26: =Q23 -> 30000 | BI26: =AB23 -> 6 | BJ26: =($BF$13-$BF$12)/$BI$26 -> 0 | BK26: =($BG$13-$BG$12)/$BI$26 -> 1 | BT26: 1 | BU26: +M(max) | BV26: =$EU$489*1.355818 -> 115.2532089 | BW26: =$EW$489*0.3048 -> 5.999981904 | CD26: a (ft.) | CE26: P (kips) | CF26: a (ft.) | CG26: P (kips) | CH26: a (ft.) | CI26: P (kips) | CJ26: a (ft.) | CK26: P (kips) | CL26: a (ft.) | CM26: P (kips) | FN26: =VLOOKUP($FN$24,$FE$4:$FK$797,6,FALSE) ->  | FO26: cm^4 | FV26: 1 | FX26: =BF26*0.1450377 -> 29007.54 | FY26: =BG26*0.1550003 -> 15.50003 | FZ26: =BH26*0.024025 -> 720.75 | GA26: =BI26*3.28083 -> 19.68498 | GB26: =BJ26 -> 0 | GC26: 1
BD27: 2 | BF27: =V24 -> 200000 | BG27: =L24 -> 80 | BH27: =Q24 -> 25000 | BI27: =AB24 -> 10 | BJ27: =($BF$13-$BF$12)/$BI$26 -> 0 | BK27: =($BG$13-$BG$12)/$BI$26 -> 1 | BU27: -M(max) | BV27: =$EU$490*1.355818 -> -59.81687908 | BW27: =$EW$490*0.3048 -> 0 | CC27: 1 (X) | CD27: =$FX$53*$GA$26 -> 0 | CE27: =$FY$53 -> 0 | CF27: =$FZ$53*$GA$26 -> 0 | CG27: =$GA$53 -> 0 | CH27: =$GB$53*$GA$26 -> 0 | CI27: =$GC$53 -> 0 | CJ27: =$GD$53*$GA$26 -> 0 | CK27: =$GE$53 -> 0 | CL27: =$GF$53*$GA$26 -> 0 | CM27: =$GG$53 -> 0 | FN27: =VLOOKUP($FN$24,$FE$4:$FK$797,7,FALSE) ->  | FO27: cm^4 | FV27: 2 | FX27: =BF27*0.1450377 -> 29007.54 | FY27: =BG27*0.1550003 -> 12.400024 | FZ27: =BH27*0.024025 -> 600.625 | GA27: =BI27*3.28083 -> 32.8083 | GB27: 0 | GC27: 1
AN28: =AB25&"m" -> 6m | AO28: 10.5 | AP28: =AP14 -> 0 | BD28: 3 | BF28: 200000 | BG28: 100 | BH28: 30000 | BI28: 6 | BJ28: 0 | BK28: 1 | BT28: 2 | BU28: +M(max) | BV28: =$EU$659*1.355818 -> 118.1147926 | BW28: =$EW$659*0.3048 -> 9.99996984 | CC28: 2 (Y) | CD28: =$FX$54*$GA$27 -> 0 | CE28: =(-$FY$54*$CF$6) -> 0 | CF28: =$FZ$54*$GA$27 -> 0 | CG28: =(-$GA$54*$CF$6) -> 0 | CH28: =$GB$54*$GA$27 -> 0 | CI28: =(-$GC$54*$CF$6) -> 0 | CJ28: =$GD$54*$GA$27 -> 0 | CK28: =(-$GE$54*$CF$6) -> 0 | CL28: =$GF$54*$GA$27 -> 0 | CM28: =(-$GG$54*$CF$6) -> 0 | FV28: 3 | FX28: =BF28*0.1450377 -> 29007.54 | FY28: =BG28*0.1550003 -> 15.50003 | FZ28: =BH28*0.024025 -> 720.75 | GA28: =BI28*3.28083 -> 19.68498 | GB28: 0 | GC28: 1
AO29: =AO28 -> 10.5 | AP29: =AVERAGE(AP28,AP30) -> 3 | BU29: -M(max) | BV29: =$EU$660*1.355818 -> -102.2406033 | BW29: =$EW$660*0.3048 -> 5.149705987 | CC29: 2 (Axial) | CD29: =$FX$54*$GA$27 -> 0 | CE29: =(-$FY$54*$CG$6) -> 0 | CF29: =$FZ$54*$GA$27 -> 0 | CG29: =(-$GA$54*$CG$6) -> 0 | CH29: =$GB$54*$GA$27 -> 0 | CI29: =(-$GC$54*$CG$6) -> 0 | CJ29: =$GD$54*$GA$27 -> 0 | CK29: =(-$GE$54*$CG$6) -> 0 | CL29: =$GF$54*$GA$27 -> 0 | CM29: =(-$GG$54*$CG$6) -> 0
AO30: 10.5 | AP30: =AP13 -> 6 | BC30: Joint Loads: | BT30: 3 | BU30: +M(max) | BV30: =$EU$829*1.355818 -> 56.95529533 | BW30: =$EW$829*0.3048 -> 0 | CC30: 2 (X) | CD30: =$FX$55*$GA$27 -> 0 | CE30: =($FY$55*$CG$6) -> 0 | CF30: =$FZ$55*$GA$27 -> 0 | CG30: =($GA$55*$CG$6) -> 0 | CH30: =$GB$55*$GA$27 -> 0 | CI30: =($GC$55*$CG$6) -> 0 | CJ30: =$GD$55*$GA$27 -> 0 | CK30: =($GE$55*$CG$6) -> 0 | CL30: =$GF$55*$GA$27 -> 0 | CM30: =($GG$55*$CG$6) -> 0 | FU30: Joint Loads:
BU31: -M(max) | BV31: =$EU$830*1.355818 -> -118.1147926 | BW31: =$EW$830*0.3048 -> 5.999981904 | CC31: 2 (Axial) | CD31: =$FX$55*$GA$27 -> 0 | CE31: =($FY$55*$CF$6) -> 0 | CF31: =$FZ$55*$GA$27 -> 0 | CG31: =($GA$55*$CF$6) -> 0 | CH31: =$GB$55*$GA$27 -> 0 | CI31: =($GC$55*$CF$6) -> 0 | CJ31: =$GD$55*$GA$27 -> 0 | CK31: =($GE$55*$CF$6) -> 0 | CL31: =$GF$55*$GA$27 -> 0 | CM31: =($GG$55*$CF$6) -> 0
BD32: Joint No. | BF32: Px (kN) | BG32: Py (kN) | BH32: Mz (kN-m) | CC32: 3 (X) | CD32: =$FX$56*$GA$28 -> 0 | CE32: =$FY$56 -> 0 | CF32: =$FZ$56*$GA$28 -> 0 | CG32: =$GA$56 -> 0 | CH32: =$GB$56*$GA$28 -> 0 | CI32: =$GC$56 -> 0 | CJ32: =$GD$56*$GA$28 -> 0 | CK32: =$GE$56 -> 0 | CL32: =$GF$56*$GA$28 -> 0 | CM32: =$GG$56 -> 0 | FV32: Joint No. | FX32: Px (kips) | FY32: Py (kips) | FZ32: Mz (ft-k)
BD33: 1 | BF33: =O66*$S$62+O67*$S$63 -> 0 | BG33: =T66*$S$62+T67*$S$63 -> 0 | BH33: =Y66*$S$62+Y67*$S$63 -> 0 | BT33: Joint Displacements: | FV33: 1 | FX33: =BF33*0.2248089 -> 0 | FY33: 0 | FZ33: =BH33*0.737562 -> 0
BD34: 2 | BF34: =O68*$S$62+O69*$S$63 -> 32 | BG34: =T68*$S$62+T69*$S$63 -> 0 | BH34: =Y68*$S$62+Y69*$S$63 -> 0 | CC34: Applied Moments: | FV34: 2 | FX34: 7.1938848 | FY34: 0 | FZ34: =BH34*0.737562 -> 0
BD35: 3 | BF35: =O70*$S$62+O71*$S$63 -> -32 | BG35: =T70*$S$62+T71*$S$63 -> 0 | BH35: =Y70*$S$62+Y71*$S$63 -> 0 | BT35: Joint No. | BU35: Dx (mm) | BV35: Dy (mm) | BW35: qz (rad.) | BX35: (deg.) | FV35: 3 | FX35: -7.1938848 | FY35: 0 | FZ35: =BH35*0.737562 -> 0
BD36: 4 | BF36: =O72*$S$62+O73*$S$63 -> 0 | BG36: =T72*$S$62+T73*$S$63 -> 0 | BH36: =Y72*$S$62+Y73*$S$63 -> 0 | BM36: Note: Point loads or moments at member | BT36: 1 | BU36: =IF(AND($FX$20="Fixed",$FX$21="Fixed"),$CR$94,IF(AND($FX$20="Pinned",$FX$21="Pinned"),$CR$180,IF(AND($FX$20="Fixed",$FX$21="Pinned"),$CR$267,IF(AND($FX$20="Pinned",$FX$21="Fixed"),$CR$353))))*25.4 -> 0 | BV36: =IF(AND($FX$20="Fixed",$FX$21="Fixed"),$CR$95,IF(AND($FX$20="Pinned",$FX$21="Pinned"),$CR$181,IF(AND($FX$20="Fixed",$FX$21="Pinned"),$CR$268,IF(AND($FX$20="Pinned",$FX$21="Fixed"),$CR$354))))*25.4 -> 0 | BW36: =IF(AND($FX$20="Fixed",$FX$21="Fixed"),$CR$96,IF(AND($FX$20="Pinned",$FX$21="Pinned"),$CE$203,IF(AND($FX$20="Fixed",$FX$21="Pinned"),$CR$269,IF(AND($FX$20="Pinned",$FX$21="Fixed"),$CE$376)))) -> 0 | BX36: =BW36*180/PI() -> 0 | CC36: Member No. | CD36: Moment #1 | CF36: Moment #2 | CH36: Moment #3 | CJ36: Moment #4 | CL36: Moment #5 | FV36: 4 | FX36: 0 | FY36: 0 | FZ36: =BH36*0.737562 -> 0
BM37: ends must be input as joint loads. | BT37: 2 | BU37: =IF(AND($FX$20="Fixed",$FX$21="Fixed"),$CE$111,IF(AND($FX$20="Pinned",$FX$21="Pinned"),$CE$197,IF(AND($FX$20="Fixed",$FX$21="Pinned"),$CE$284,IF(AND($FX$20="Pinned",$FX$21="Fixed"),$CE$370))))*25.4 -> 0.4380541331 | BV37: =IF(AND($FX$20="Fixed",$FX$21="Fixed"),$CE$112,IF(AND($FX$20="Pinned",$FX$21="Pinned"),$CE$198,IF(AND($FX$20="Fixed",$FX$21="Pinned"),$CE$285,IF(AND($FX$20="Pinned",$FX$21="Fixed"),$CE$371))))*25.4 -> 0.2441409635 | BW37: =IF(AND($FX$20="Fixed",$FX$21="Fixed"),$CE$113,IF(AND($FX$20="Pinned",$FX$21="Pinned"),$CE$199,IF(AND($FX$20="Fixed",$FX$21="Pinned"),$CE$286,IF(AND($FX$20="Pinned",$FX$21="Fixed"),$CE$372)))) -> 0.002771819834 | BX37: =BW37*180/PI() -> 0.158813578 | CD37: c (ft.) | CE37: M (ft-kips) | CF37: c (ft.) | CG37: M (ft-kips) | CH37: c (ft.) | CI37: M (ft-kips) | CJ37: c (ft.) | CK37: M (ft-kips) | CL37: c (ft.) | CM37: M (ft-kips)
BC38: Member Loads: | BT38: 3 | BU38: =IF(AND($FX$20="Fixed",$FX$21="Fixed"),$CE$114,IF(AND($FX$20="Pinned",$FX$21="Pinned"),$CE$200,IF(AND($FX$20="Fixed",$FX$21="Pinned"),$CE$287,IF(AND($FX$20="Pinned",$FX$21="Fixed"),$CE$373))))*25.4 -> 0.4204194369 | BV38: =IF(AND($FX$20="Fixed",$FX$21="Fixed"),$CE$115,IF(AND($FX$20="Pinned",$FX$21="Pinned"),$CE$201,IF(AND($FX$20="Fixed",$FX$21="Pinned"),$CE$288,IF(AND($FX$20="Pinned",$FX$21="Fixed"),$CE$374))))*25.4 -> 0.2808578341 | BW38: =IF(AND($FX$20="Fixed",$FX$21="Fixed"),$CE$116,IF(AND($FX$20="Pinned",$FX$21="Pinned"),$CE$202,IF(AND($FX$20="Fixed",$FX$21="Pinned"),$CE$289,IF(AND($FX$20="Pinned",$FX$21="Fixed"),$CE$375)))) -> -0.003057978553 | BX38: =BW38*180/PI() -> -0.175209265 | CC38: 1 | CD38: =IF($FX$62*$GA$26=0,$FX$62*$GA$26+0.000000001,IF($FX$62*$GA$26=$GA$26,$FX$62*$GA$26-0.000000001,$FX$62*$GA$26)) -> 1e-09 | CE38: =$FY$62 -> 0 | CF38: =IF($FZ$62*$GA$26=0,$FZ$62*$GA$26+0.000000001,IF($FZ$62*$GA$26=$GA$26,$FZ$62*$GA$26-0.000000001,$FZ$62*$GA$26)) -> 1e-09 | CG38: =$GA$62 -> 0 | CH38: =IF($GB$62*$GA$26=0,$GB$62*$GA$26+0.000000001,IF($GB$62*$GA$26=$GA$26,$GB$62*$GA$26-0.000000001,$GB$62*$GA$26)) -> 1e-09 | CI38: =$GC$62 -> 0 | CJ38: =IF($GD$62*$GA$26=0,$GD$62*$GA$26+0.000000001,IF($GD$62*$GA$26=$GA$26,$GD$62*$GA$26-0.000000001,$GD$62*$GA$26)) -> 1e-09 | CK38: =$GE$62 -> 0 | CL38: =IF($GF$62*$GA$26=0,$GF$62*$GA$26+0.000000001,IF($GF$62*$GA$26=$GA$26,$GF$62*$GA$26-0.000000001,$GF$62*$GA$26)) -> 1e-09 | CM38: =$GG$62 -> 0 | FU38: Member Loads:
BT39: 4 | BU39: =IF(AND($FX$20="Fixed",$FX$21="Fixed"),$CR$97,IF(AND($FX$20="Pinned",$FX$21="Pinned"),$CR$182,IF(AND($FX$20="Fixed",$FX$21="Pinned"),$CR$270,IF(AND($FX$20="Pinned",$FX$21="Fixed"),$CR$355))))*25.4 -> 0 | BV39: =IF(AND($FX$20="Fixed",$FX$21="Fixed"),$CR$98,IF(AND($FX$20="Pinned",$FX$21="Pinned"),$CR$183,IF(AND($FX$20="Fixed",$FX$21="Pinned"),$CR$271,IF(AND($FX$20="Pinned",$FX$21="Fixed"),$CR$356))))*25.4 -> 0 | BW39: =IF(AND($FX$20="Fixed",$FX$21="Fixed"),$CR$99,IF(AND($FX$20="Pinned",$FX$21="Pinned"),$CE$204,IF(AND($FX$20="Fixed",$FX$21="Pinned"),$CE$290,IF(AND($FX$20="Pinned",$FX$21="Fixed"),$CR$357)))) -> 0 | BX39: =BW39*180/PI() -> 0 | CC39: 2 | CD39: =IF($FX$63*$GA$27=0,$FX$63*$GA$27+0.000000001,IF($FX$63*$GA$27=$GA$27,$FX$63*$GA$27-0.000000001,$FX$63*$GA$27)) -> 1e-09 | CE39: =$FY$63 -> 0 | CF39: =IF($FZ$63*$GA$27=0,$FZ$63*$GA$27+0.000000001,IF($FZ$63*$GA$27=$GA$27,$FZ$63*$GA$27-0.000000001,$FZ$63*$GA$27)) -> 1e-09 | CG39: =$GA$63 -> 0 | CH39: =IF($GB$63*$GA$27=0,$GB$63*$GA$27+0.000000001,IF($GB$63*$GA$27=$GA$27,$GB$63*$GA$27-0.000000001,$GB$63*$GA$27)) -> 1e-09 | CI39: =$GC$63 -> 0 | CJ39: =IF($GD$63*$GA$27=0,$GD$63*$GA$27+0.000000001,IF($GD$63*$GA$27=$GA$27,$GD$63*$GA$27-0.000000001,$GD$63*$GA$27)) -> 1e-09 | CK39: =$GE$63 -> 0 | CL39: =IF($GF$63*$GA$27=0,$GF$63*$GA$27+0.000000001,IF($GF$63*$GA$27=$GA$27,$GF$63*$GA$27-0.000000001,$GF$63*$GA$27)) -> 1e-09 | CM39: =$GG$63 -> 0
BD40: Distributed Loads: | CC40: 3 | CD40: =IF($FX$64*$GA$28=0,$FX$64*$GA$28+0.000000001,IF($FX$64*$GA$28=$GA$28,$FX$64*$GA$28-0.000000001,$FX$64*$GA$28)) -> 1e-09 | CE40: =$FY$64 -> 0 | CF40: =IF($FZ$64*$GA$28=0,$FZ$64*$GA$28+0.000000001,IF($FZ$64*$GA$28=$GA$28,$FZ$64*$GA$28-0.000000001,$FZ$64*$GA$28)) -> 1e-09 | CG40: =$GA$64 -> 0 | CH40: =IF($GB$64*$GA$28=0,$GB$64*$GA$28+0.000000001,IF($GB$64*$GA$28=$GA$28,$GB$64*$GA$28-0.000000001,$GB$64*$GA$28)) -> 1e-09 | CI40: =$GC$64 -> 0 | CJ40: =IF($GD$64*$GA$28=0,$GD$64*$GA$28+0.000000001,IF($GD$64*$GA$28=$GA$28,$GD$64*$GA$28-0.000000001,$GD$64*$GA$28)) -> 1e-09 | CK40: =$GE$64 -> 0 | CL40: =IF($GF$64*$GA$28=0,$GF$64*$GA$28+0.000000001,IF($GF$64*$GA$28=$GA$28,$GF$64*$GA$28-0.000000001,$GF$64*$GA$28)) -> 1e-09 | CM40: =$GG$64 -> 0 | FV40: Distributed Loads:
BD42: Member | BF42: Distributed Load #1 | BJ42: Distributed Load #2 | BN42: Distributed Load #3 | BR42: Distributed Load #4 | BV42: Distributed Load #5 | FV42: Member | FX42: Distributed Load #1 | GB42: Distributed Load #2 | GF42: Distributed Load #3 | GJ42: Distributed Load #4 | GN42: Distributed Load #5
BD43: No. | BE43: Load Direct. | BF43: b/L | BG43: wb (kN/m) | BH43: e/L | BI43: we (kN/m) | BJ43: b/L | BK43: wb (kN/m) | BL43: e/L | BM43: we (kN/m) | BN43: b/L | BO43: wb (kN/m) | BP43: e/L | BQ43: we (kN/m) | BR43: b/L | BS43: wb (kN/m) | BT43: e/L | BU43: we (kN/m) | BV43: b/L | BW43: wb (kN/m) | BX43: e/L | BY43: we (kN/m) | CC43: Determine Fixed End Moments for Members: | FV43: No. | FW43: Load Direct. | FX43: b/L | FY43: wb (k/ft.) | FZ43: e/L | GA43: we (k/ft.) | GB43: b/L | GC43: wb (k/ft.) | GD43: e/L | GE43: we (k/ft.) | GF43: b/L | GG43: wb (k/ft.) | GH43: e/L | GI43: we (k/ft.) | GJ43: b/L | GK43: wb (k/ft.) | GL43: e/L | GM43: we (k/ft.) | GN43: b/L | GO43: wb (k/ft.) | GP43: e/L | GQ43: we (k/ft.)
BD44: 1 | BE44: X-Global | BF44: =P113/AB23 -> 0 | BG44: =IF($P$111="Dead",R113*$S$62,R113*$S$63) -> 0 | BH44: =T113/AB23 -> 0 | BI44: =IF($P$111="Dead",V113*$S$62,V113*$S$63) -> 0 | BJ44: =X113/AB23 -> 0 | BK44: =IF($X$111="Dead",Z113*$S$62,Z113*$S$63) -> 0 | BL44: =AB113/AB23 -> 0 | BM44: =IF($X$111="Dead",AD113*$S$62,AD113*$S$63) -> 0 | BN44: =P121/AB23 -> 0 | BO44: =IF($P$119="Dead",R121*$S$62,R121*$S$63) -> 0 | BP44: =T121/AB23 -> 0 | BQ44: =IF($P$119="Dead",V121*$S$62,V121*$S$63) -> 0 | BR44: =X121/AB23 -> 0 | BS44: =IF($X$119="Dead",Z121*$S$62,Z121*$S$63) -> 0 | BT44: =AB121/AB23 -> 0 | BU44: =IF($X$119="Dead",AD121*$S$62,AD121*$S$63) -> 0 | BV44: =P129/AB23 -> 0 | BW44: =IF($P$127="Dead",R129*$S$62,R129*$S$63) -> 0 | BX44: =T129/AB23 -> 0 | BY44: =IF($P$127="Dead",V129*$S$62,V129*$S$63) -> 0 | CC44: For Distributed Load #1 | CK44: For Distributed Load #2 | CS44: For Distributed Load #3 | DA44: For Distributed Load #4 | DI44: For Distributed Load #5 | DQ44: For All 10 Point Loads | DY44: For All 4 Applied Moments | EG44: Summations of Loading Functions for All Loads | EO44: Initial Beam Parameters at Left End | ES44: Member | ET44: Fixed End | EU44: Dist. From Left | FV44: 1 | FW44: =BE44 -> X-Global | FX44: 0 | FY44: =BG44*0.068522 -> 0 | FZ44: =BH44 -> 0 | GA44: =BI44*0.068522 -> 0 | GB44: =BJ44 -> 0 | GC44: =BK44*0.068522 -> 0 | GD44: =BL44 -> 0 | GE44: =BM44*0.068522 -> 0 | GF44: =BN44 -> 0 | GG44: =BO44*0.068522 -> 0 | GH44: =BP44 -> 0 | GI44: =BQ44*0.068522 -> 0 | GJ44: =BR44 -> 0 | GK44: =BS44*0.068522 -> 0 | GL44: =BT44 -> 0 | GM44: =BU44*0.068522 -> 0 | GN44: =BV44 -> 0 | GO44: =BW44*0.068522 -> 0 | GP44: =BX44 -> 0 | GQ44: =BY44*0.068522 -> 0
BD45: 2 | BE45: Y-Global | BF45: =P114/AB24 -> 0 | BG45: =IF($P$111="Dead",R114*$S$62,R114*$S$63) -> 14 | BH45: =T114/AB24 -> 1 | BI45: =IF($P$111="Dead",V114*$S$62,V114*$S$63) -> 21 | BJ45: =X114/AB24 -> 0 | BK45: =IF($X$111="Dead",Z114*$S$62,Z114*$S$63) -> 0 | BL45: =AB114/AB24 -> 0 | BM45: =IF($X$111="Dead",AD114*$S$62,AD114*$S$63) -> 0 | BN45: =P122/AB24 -> 0 | BO45: =IF($P$119="Dead",R122*$S$62,R122*$S$63) -> 0 | BP45: =T122/AB24 -> 0 | BQ45: =IF($P$119="Dead",V122*$S$62,V122*$S$63) -> 0 | BR45: =X122/AB24 -> 0 | BS45: =IF($X$119="Dead",Z122*$S$62,Z122*$S$63) -> 0 | BT45: =AB122/AB24 -> 0 | BU45: =IF($X$119="Dead",AD122*$S$62,AD122*$S$63) -> 0 | BV45: =P130/AB24 -> 0 | BW45: =IF($P$127="Dead",R130*$S$62,R130*$S$63) -> 0 | BX45: =T130/AB24 -> 0 | BY45: =IF($P$127="Dead",V130*$S$62,V130*$S$63) -> 0 | CC45: Loading Functions Evaluated at x = L | CG45: Loading Functions Evaluated at x | CK45: Loading Functions Evaluated at x = L | CO45: Loading Functions Evaluated at x | CS45: Loading Functions Evaluated at x = L | CW45: Loading Functions Evaluated at x | DA45: Loading Functions Evaluated at x = L | DE45: Loading Functions Evaluated at x | DI45: Loading Functions Evaluated at x = L | DM45: Loading Functions Evaluated at x | DQ45: Loading Functions Evaluated at x = L | DU45: Loading Functions Evaluated at x | DY45: Loading Functions Evaluated at x = L | EC45: Loading Functions Evaluated at x | EG45: For Loading Functions Evaluated at x = L | EK45: For Loading Functions Evaluated at x | EO45: with Loading Functions Evaluated at x = L | ES45: End Reaction | ET45: Moments | EU45: End of Member | FV45: 2 | FW45: Y-Global | FX45: 0 | FY45: =BG45*0.068522 -> 0.959308 | FZ45: =BH45 -> 1 | GA45: =BI45*0.068522 -> 1.438962 | GB45: =BJ45 -> 0 | GC45: =BK45*0.068522 -> 0 | GD45: =BL45 -> 0 | GE45: =BM45*0.068522 -> 0 | GF45: =BN45 -> 0 | GG45: =BO45*0.068522 -> 0 | GH45: =BP45 -> 0 | GI45: =BQ45*0.068522 -> 0 | GJ45: =BR45 -> 0 | GK45: =BS45*0.068522 -> 0 | GL45: =BT45 -> 0 | GM45: =BU45*0.068522 -> 0 | GN45: =BV45 -> 0 | GO45: =BW45*0.068522 -> 0 | GP45: =BX45 -> 0 | GQ45: =BY45*0.068522 -> 0
BD46: 2 | BE46: X-Projected | BF46: =P115/AB24 -> 0 | BG46: 0 | BH46: =T115/AB24 -> 0 | BI46: 0 | BJ46: =X115/AB24 -> 0 | BK46: 0 | BL46: =AB115/AB24 -> 0 | BM46: 0 | BN46: =P123/AB24 -> 0 | BO46: 0 | BP46: =T123/AB24 -> 0 | BQ46: 0 | BR46: =X123/AB24 -> 0 | BS46: 0 | BT46: =AB123/AB24 -> 0 | BU46: 0 | BV46: =P131/AB24 -> 0 | BW46: 0 | BX46: =T131/AB24 -> 0 | BY46: 0 | CB46: Points: | CC46: FvL | CD46: FmL | CE46: FqL | CF46: FDL | CG46: Fvx | CH46: Fmx | CI46: Fqx | CJ46: FDx | CK46: FvL | CL46: FmL | CM46: FqL | CN46: FDL | CO46: Fvx | CP46: Fmx | CQ46: Fqx | CR46: FDx | CS46: FvL | CT46: FmL | CU46: FqL | CV46: FDL | CW46: Fvx | CX46: Fmx | CY46: Fqx | CZ46: FDx | DA46: FvL | DB46: FmL | DC46: FqL | DD46: FDL | DE46: Fvx | DF46: Fmx | DG46: Fqx | DH46: FDx | DI46: FvL | DJ46: FmL | DK46: FqL | DL46: FDL | DM46: Fvx | DN46: Fmx | DO46: Fqx | DP46: FDx | DQ46: FvL | DR46: FmL | DS46: FqL | DT46: FDL | DU46: Fvx | DV46: Fmx | DW46: Fqx | DX46: FDx | DY46: FvL | DZ46: FmL | EA46: FqL | EB46: FDL | EC46: Fvx | ED46: Fmx | EE46: Fqx | EF46: FDx | EG46: SFvL | EH46: SFmL | EI46: SFqL | EJ46: SFDL | EK46: SFvx | EL46: SFmx | EM46: SFqx | EN46: SFDx | EO46: Vo | EP46: Mo | EQ46: qo | ER46: Do | ES46: (kips) | ET46: (ft-kips) | EU46: x (ft.) | EV46: Points: | FV46: 2 | FW46: X-Projected | FX46: 0 | FY46: =BG46*0.068522 -> 0 | FZ46: =BH46 -> 0 | GA46: =BI46*0.068522 -> 0 | GB46: =BJ46 -> 0 | GC46: =BK46*0.068522 -> 0 | GD46: =BL46 -> 0 | GE46: =BM46*0.068522 -> 0 | GF46: =BN46 -> 0 | GG46: =BO46*0.068522 -> 0 | GH46: =BP46 -> 0 | GI46: =BQ46*0.068522 -> 0 | GJ46: =BR46 -> 0 | GK46: =BS46*0.068522 -> 0 | GL46: =BT46 -> 0 | GM46: =BU46*0.068522 -> 0 | GN46: =BV46 -> 0 | GO46: =BW46*0.068522 -> 0 | GP46: =BX46 -> 0 | GQ46: =BY46*0.068522 -> 0
BD47: 3 | BE47: X-Global | BF47: =P116/AB25 -> 0 | BG47: 0 | BH47: =T116/AB25 -> 0 | BI47: 0 | BJ47: =X116/AB25 -> 0 | BK47: 0 | BL47: =AB116/AB25 -> 0 | BM47: 0 | BN47: =P124/AB25 -> 0 | BO47: 0 | BP47: =T124/AB25 -> 0 | BQ47: 0 | BR47: =X124/AB25 -> 0 | BS47: 0 | BT47: =AB124/AB25 -> 0 | BU47: 0 | BV47: =P132/AB25 -> 0 | BW47: 0 | BX47: =T132/AB25 -> 0 | BY47: 0 | CB47: Member #1(X) FEM(L): | CC47: =IF($CD$16=$CF$16,"---",IF(AND($CD$16="",$CE$16="",$CF$16="",$CG$16=""),"---",(-$CE$16*($GA$26-$CD$16-($GA$26-$CF$16)))+(-1/2*($CG$16-$CE$16)/($CF$16-$CD$16)*(($GA$26-$CD$16)^2-($GA$26-$CF$16)^2)+($CG$16-$CE$16)*($GA$26-$CF$16)))) -> --- | CD47: =IF($CD$16=$CF$16,"---",IF(AND($CD$16="",$CE$16="",$CF$16="",$CG$16=""),"---",(-$CE$16/2*(($GA$26-$CD$16)^2-($GA$26-$CF$16)^2))+(-1/6*($CG$16-$CE$16)/($CF$16-$CD$16)*(($GA$26-$CD$16)^3-($GA$26-$CF$16)^3)+($CG$16-$CE$16)/2*($GA$26-$CF$16)^2))) -> --- | CE47: =IF($CD$16=$CF$16,"---",IF(AND($CD$16="",$CE$16="",$CF$16="",$CG$16=""),"---",(-$CE$16/(6*$FX$26*$FZ$26)*(($GA$26-$CD$16)^3-($GA$26-$CF$16)^3))+(-1/(24*$FX$26*$FZ$26)*($CG$16-$CE$16)/($CF$16-$CD$16)*(($GA$26-$CD$16)^4-($GA$26-$CF$16)^4)+($CG$16-$CE$16)/(6*$FX$26*$FZ$26)*($GA$26-$CF$16)^3))) -> --- | CF47: =IF($CD$16=$CF$16,"---",IF(AND($CD$16="",$CE$16="",$CF$16="",$CG$16=""),"---",($CE$16/(24*$FX$26*$FZ$26)*(($GA$26-$CD$16)^4-($GA$26-$CF$16)^4))+(1/(120*$FX$26*$FZ$26)*($CG$16-$CE$16)/($CF$16-$CD$16)*(($GA$26-$CD$16)^5-($GA$26-$CF$16)^5)-($CG$16-$CE$16)/(24*$FX$26*$FZ$26)*($GA$26-$CF$16)^4))) -> --- | CG47: =IF($CD$16=$CF$16,"---",IF(AND($CD$16="",$CE$16="",$CF$16="",$CG$16=""),"---",(IF($EU47>=$CF$16,-$CE$16*($EU47-$CD$16-($EU47-$CF$16)),IF($EU47>=$CD$16,-$CE$16*($EU47-$CD$16),0)))+(IF($EU47>=$CF$16,-1/2*($CG$16-$CE$16)/($CF$16-$CD$16)*(($EU47-$CD$16)^2-($EU47-$CF$16)^2)+($CG$16-$CE$16)*($EU47-$CF$16),IF($EU47>=$CD$16,-1/2*($CG$16-$CE$16)/($CF$16-$CD$16)*($EU47-$CD$16)^2,0))))) -> --- | CH47: =IF($CD$16=$CF$16,"---",IF(AND($CD$16="",$CE$16="",$CF$16="",$CG$16=""),"---",(IF($EU47>=$CF$16,-$CE$16/2*(($EU47-$CD$16)^2-($EU47-$CF$16)^2),IF($EU47>=$CD$16,-$CE$16/2*($EU47-$CD$16)^2,0)))+(IF($EU47>=$CF$16,-1/6*($CG$16-$CE$16)/($CF$16-$CD$16)*(($EU47-$CD$16)^3-($EU47-$CF$16)^3)+($CG$16-$CE$16)/2*($EU47-$CF$16)^2,IF($EU47>=$CD$16,-1/6*($CG$16-$CE$16)/($CF$16-$CD$16)*($EU47-$CD$16)^3,0))))) -> --- | CI47: =IF($CD$16=$CF$16,"---",IF(AND($CD$16="",$CE$16="",$CF$16="",$CG$16=""),"---",(IF($EU47>=$CF$16,-$CE$16/(6*$FX$26*$FZ$26)*(($EU47-$CD$16)^3-($EU47-$CF$16)^3),IF($EU47>=$CD$16,-$CE$16/(6*$FX$26*$FZ$26)*($EU47-$CD$16)^3,0)))+(IF($EU47>=$CF$16,-1/(24*$FX$26*$FZ$26)*($CG$16-$CE$16)/($CF$16-$CD$16)*(($EU47-$CD$16)^4-($EU47-$CF$16)^4)+($CG$16-$CE$16)/(6*$FX$26*$FZ$26)*($EU47-$CF$16)^3,IF($EU47>=$CD$16,-1/(24*$FX$26*$FZ$26)*($CG$16-$CE$16)/($CF$16-$CD$16)*($EU47-$CD$16)^4,0))))) -> --- | CJ47: =IF($CD$16=$CF$16,"---",IF(AND($CD$16="",$CE$16="",$CF$16="",$CG$16=""),"---",(IF($EU47>=$CF$16,$CE$16/(24*$FX$26*$FZ$26)*(($EU47-$CD$16)^4-($EU47-$CF$16)^4),IF($EU47>=$CD$16,$CE$16/(24*$FX$26*$FZ$26)*($EU47-$CD$16)^4,0)))+(IF($EU47>=$CF$16,1/(120*$FX$26*$FZ$26)*($CG$16-$CE$16)/($CF$16-$CD$16)*(($EU47-$CD$16)^5-($EU47-$CF$16)^5)-($CG$16-$CE$16)/(24*$FX$26*$FZ$26)*($EU47-$CF$16)^4,IF($EU47>=$CD$16,1/(120*$FX$26*$FZ$26)*($CG$16-$CE$16)/($CF$16-$CD$16)*($EU47-$CD$16)^5,0))))) -> --- | CK47: =IF($CH$16=$CJ$16,"---",IF(AND($CH$16="",$CI$16="",$CJ$16="",$CK$16=""),"---",(-$CI$16*($GA$26-$CH$16-($GA$26-$CJ$16)))+(-1/2*($CK$16-$CI$16)/($CJ$16-$CH$16)*(($GA$26-$CH$16)^2-($GA$26-$CJ$16)^2)+($CK$16-$CI$16)*($GA$26-$CJ$16)))) -> --- | CL47: =IF($CH$16=$CJ$16,"---",IF(AND($CH$16="",$CI$16="",$CJ$16="",$CK$16=""),"---",(-$CI$16/2*(($GA$26-$CH$16)^2-($GA$26-$CJ$16)^2))+(-1/6*($CK$16-$CI$16)/($CJ$16-$CH$16)*(($GA$26-$CH$16)^3-($GA$26-$CJ$16)^3)+($CK$16-$CI$16)/2*($GA$26-$CJ$16)^2))) -> --- | CM47: =IF($CH$16=$CJ$16,"---",IF(AND($CH$16="",$CI$16="",$CJ$16="",$CK$16=""),"---",(-$CI$16/(6*$FX$26*$FZ$26)*(($GA$26-$CH$16)^3-($GA$26-$CJ$16)^3))+(-1/(24*$FX$26*$FZ$26)*($CK$16-$CI$16)/($CJ$16-$CH$16)*(($GA$26-$CH$16)^4-($GA$26-$CJ$16)^4)+($CK$16-$CI$16)/(6*$FX$26*$FZ$26)*($GA$26-$CJ$16)^3))) -> --- | CN47: =IF($CH$16=$CJ$16,"---",IF(AND($CH$16="",$CI$16="",$CJ$16="",$CK$16=""),"---",($CI$16/(24*$FX$26*$FZ$26)*(($GA$26-$CH$16)^4-($GA$26-$CJ$16)^4))+(1/(120*$FX$26*$FZ$26)*($CK$16-$CI$16)/($CJ$16-$CH$16)*(($GA$26-$CH$16)^5-($GA$26-$CJ$16)^5)-($CK$16-$CI$16)/(24*$FX$26*$FZ$26)*($GA$26-$CJ$16)^4))) -> --- | CO47: =IF($CH$16=$CJ$16,"---",IF(AND($CH$16="",$CI$16="",$CJ$16="",$CK$16=""),"---",(IF($EU47>=$CJ$16,-$CI$16*($EU47-$CH$16-($EU47-$CJ$16)),IF($EU47>=$CH$16,-$CI$16*($EU47-$CH$16),0)))+(IF($EU47>=$CJ$16,-1/2*($CK$16-$CI$16)/($CJ$16-$CH$16)*(($EU47-$CH$16)^2-($EU47-$CJ$16)^2)+($CK$16-$CI$16)*($EU47-$CJ$16),IF($EU47>=$CH$16,-1/2*($CK$16-$CI$16)/($CJ$16-$CH$16)*($EU47-$CH$16)^2,0))))) -> --- | CP47: =IF($CH$16=$CJ$16,"---",IF(AND($CH$16="",$CI$16="",$CJ$16="",$CK$16=""),"---",(IF($EU47>=$CJ$16,-$CI$16/2*(($EU47-$CH$16)^2-($EU47-$CJ$16)^2),IF($EU47>=$CH$16,-$CI$16/2*($EU47-$CH$16)^2,0)))+(IF($EU47>=$CJ$16,-1/6*($CK$16-$CI$16)/($CJ$16-$CH$16)*(($EU47-$CH$16)^3-($EU47-$CJ$16)^3)+($CK$16-$CI$16)/2*($EU47-$CJ$16)^2,IF($EU47>=$CH$16,-1/6*($CK$16-$CI$16)/($CJ$16-$CH$16)*($EU47-$CH$16)^3,0))))) -> --- | CQ47: =IF($CH$16=$CJ$16,"---",IF(AND($CH$16="",$CI$16="",$CJ$16="",$CK$16=""),"---",(IF($EU47>=$CJ$16,-$CI$16/(6*$FX$26*$FZ$26)*(($EU47-$CH$16)^3-($EU47-$CJ$16)^3),IF($EU47>=$CH$16,-$CI$16/(6*$FX$26*$FZ$26)*($EU47-$CH$16)^3,0)))+(IF($EU47>=$CJ$16,-1/(24*$FX$26*$FZ$26)*($CK$16-$CI$16)/($CJ$16-$CH$16)*(($EU47-$CH$16)^4-($EU47-$CJ$16)^4)+($CK$16-$CI$16)/(6*$FX$26*$FZ$26)*($EU47-$CJ$16)^3,IF($EU47>=$CH$16,-1/(24*$FX$26*$FZ$26)*($CK$16-$CI$16)/($CJ$16-$CH$16)*($EU47-$CH$16)^4,0))))) -> --- | CR47: =IF($CH$16=$CJ$16,"---",IF(AND($CH$16="",$CI$16="",$CJ$16="",$CK$16=""),"---",(IF($EU47>=$CJ$16,$CI$16/(24*$FX$26*$FZ$26)*(($EU47-$CH$16)^4-($EU47-$CJ$16)^4),IF($EU47>=$CH$16,$CI$16/(24*$FX$26*$FZ$26)*($EU47-$CH$16)^4,0)))+(IF($EU47>=$CJ$16,1/(120*$FX$26*$FZ$26)*($CK$16-$CI$16)/($CJ$16-$CH$16)*(($EU47-$CH$16)^5-($EU47-$CJ$16)^5)-($CK$16-$CI$16)/(24*$FX$26*$FZ$26)*($EU47-$CJ$16)^4,IF($EU47>=$CH$16,1/(120*$FX$26*$FZ$26)*($CK$16-$CI$16)/($CJ$16-$CH$16)*($EU47-$CH$16)^5,0))))) -> --- | CS47: =IF($CL$16=$CN$16,"---",IF(AND($CL$16="",$CM$16="",$CN$16="",$CO$16=""),"---",(-$CM$16*($GA$26-$CL$16-($GA$26-$CN$16)))+(-1/2*($CO$16-$CM$16)/($CN$16-$CL$16)*(($GA$26-$CL$16)^2-($GA$26-$CN$16)^2)+($CO$16-$CM$16)*($GA$26-$CN$16)))) -> --- | CT47: =IF($CL$16=$CN$16,"---",IF(AND($CL$16="",$CM$16="",$CN$16="",$CO$16=""),"---",(-$CM$16/2*(($GA$26-$CL$16)^2-($GA$26-$CN$16)^2))+(-1/6*($CO$16-$CM$16)/($CN$16-$CL$16)*(($GA$26-$CL$16)^3-($GA$26-$CN$16)^3)+($CO$16-$CM$16)/2*($GA$26-$CN$16)^2))) -> --- | CU47: =IF($CL$16=$CN$16,"---",IF(AND($CL$16="",$CM$16="",$CN$16="",$CO$16=""),"---",(-$CM$16/(6*$FX$26*$FZ$26)*(($GA$26-$CL$16)^3-($GA$26-$CN$16)^3))+(-1/(24*$FX$26*$FZ$26)*($CO$16-$CM$16)/($CN$16-$CL$16)*(($GA$26-$CL$16)^4-($GA$26-$CN$16)^4)+($CO$16-$CM$16)/(6*$FX$26*$FZ$26)*($GA$26-$CN$16)^3))) -> --- | CV47: =IF($CL$16=$CN$16,"---",IF(AND($CL$16="",$CM$16="",$CN$16="",$CO$16=""),"---",($CM$16/(24*$FX$26*$FZ$26)*(($GA$26-$CL$16)^4-($GA$26-$CN$16)^4))+(1/(120*$FX$26*$FZ$26)*($CO$16-$CM$16)/($CN$16-$CL$16)*(($GA$26-$CL$16)^5-($GA$26-$CN$16)^5)-($CO$16-$CM$16)/(24*$FX$26*$FZ$26)*($GA$26-$CN$16)^4))) -> --- | CW47: =IF($CL$16=$CN$16,"---",IF(AND($CL$16="",$CM$16="",$CN$16="",$CO$16=""),"---",(IF($EU47>=$CN$16,-$CM$16*($EU47-$CL$16-($EU47-$CN$16)),IF($EU47>=$CL$16,-$CM$16*($EU47-$CL$16),0)))+(IF($EU47>=$CN$16,-1/2*($CO$16-$CM$16)/($CN$16-$CL$16)*(($EU47-$CL$16)^2-($EU47-$CN$16)^2)+($CO$16-$CM$16)*($EU47-$CN$16),IF($EU47>=$CL$16,-1/2*($CO$16-$CM$16)/($CN$16-$CL$16)*($EU47-$CL$16)^2,0))))) -> --- | CX47: =IF($CL$16=$CN$16,"---",IF(AND($CL$16="",$CM$16="",$CN$16="",$CO$16=""),"---",(IF($EU47>=$CN$16,-$CM$16/2*(($EU47-$CL$16)^2-($EU47-$CN$16)^2),IF($EU47>=$CL$16,-$CM$16/2*($EU47-$CL$16)^2,0)))+(IF($EU47>=$CN$16,-1/6*($CO$16-$CM$16)/($CN$16-$CL$16)*(($EU47-$CL$16)^3-($EU47-$CN$16)^3)+($CO$16-$CM$16)/2*($EU47-$CN$16)^2,IF($EU47>=$CL$16,-1/6*($CO$16-$CM$16)/($CN$16-$CL$16)*($EU47-$CL$16)^3,0))))) -> --- | CY47: =IF($CL$16=$CN$16,"---",IF(AND($CL$16="",$CM$16="",$CN$16="",$CO$16=""),"---",(IF($EU47>=$CN$16,-$CM$16/(6*$FX$26*$FZ$26)*(($EU47-$CL$16)^3-($EU47-$CN$16)^3),IF($EU47>=$CL$16,-$CM$16/(6*$FX$26*$FZ$26)*($EU47-$CL$16)^3,0)))+(IF($EU47>=$CN$16,-1/(24*$FX$26*$FZ$26)*($CO$16-$CM$16)/($CN$16-$CL$16)*(($EU47-$CL$16)^4-($EU47-$CN$16)^4)+($CO$16-$CM$16)/(6*$FX$26*$FZ$26)*($EU47-$CN$16)^3,IF($EU47>=$CL$16,-1/(24*$FX$26*$FZ$26)*($CO$16-$CM$16)/($CN$16-$CL$16)*($EU47-$CL$16)^4,0))))) -> --- | CZ47: =IF($CL$16=$CN$16,"---",IF(AND($CL$16="",$CM$16="",$CN$16="",$CO$16=""),"---",(IF($EU47>=$CN$16,$CM$16/(24*$FX$26*$FZ$26)*(($EU47-$CL$16)^4-($EU47-$CN$16)^4),IF($EU47>=$CL$16,$CM$16/(24*$FX$26*$FZ$26)*($EU47-$CL$16)^4,0)))+(IF($EU47>=$CN$16,1/(120*$FX$26*$FZ$26)*($CO$16-$CM$16)/($CN$16-$CL$16)*(($EU47-$CL$16)^5-($EU47-$CN$16)^5)-($CO$16-$CM$16)/(24*$FX$26*$FZ$26)*($EU47-$CN$16)^4,IF($EU47>=$CL$16,1/(120*$FX$26*$FZ$26)*($CO$16-$CM$16)/($CN$16-$CL$16)*($EU47-$CL$16)^5,0))))) -> --- | DA47: =IF($CP$16=$CR$16,"---",IF(AND($CP$16="",$CQ$16="",$CR$16="",$CS$16=""),"---",(-$CQ$16*($GA$26-$CP$16-($GA$26-$CR$16)))+(-1/2*($CS$16-$CQ$16)/($CR$16-$CP$16)*(($GA$26-$CP$16)^2-($GA$26-$CR$16)^2)+($CS$16-$CQ$16)*($GA$26-$CR$16)))) -> --- | DB47: =IF($CP$16=$CR$16,"---",IF(AND($CP$16="",$CQ$16="",$CR$16="",$CS$16=""),"---",(-$CQ$16/2*(($GA$26-$CP$16)^2-($GA$26-$CR$16)^2))+(-1/6*($CS$16-$CQ$16)/($CR$16-$CP$16)*(($GA$26-$CP$16)^3-($GA$26-$CR$16)^3)+($CS$16-$CQ$16)/2*($GA$26-$CR$16)^2))) -> --- | DC47: =IF($CP$16=$CR$16,"---",IF(AND($CP$16="",$CQ$16="",$CR$16="",$CS$16=""),"---",(-$CQ$16/(6*$FX$26*$FZ$26)*(($GA$26-$CP$16)^3-($GA$26-$CR$16)^3))+(-1/(24*$FX$26*$FZ$26)*($CS$16-$CQ$16)/($CR$16-$CP$16)*(($GA$26-$CP$16)^4-($GA$26-$CR$16)^4)+($CS$16-$CQ$16)/(6*$FX$26*$FZ$26)*($GA$26-$CR$16)^3))) -> --- | DD47: =IF($CP$16=$CR$16,"---",IF(AND($CP$16="",$CQ$16="",$CR$16="",$CS$16=""),"---",($CQ$16/(24*$FX$26*$FZ$26)*(($GA$26-$CP$16)^4-($GA$26-$CR$16)^4))+(1/(120*$FX$26*$FZ$26)*($CS$16-$CQ$16)/($CR$16-$CP$16)*(($GA$26-$CP$16)^5-($GA$26-$CR$16)^5)-($CS$16-$CQ$16)/(24*$FX$26*$FZ$26)*($GA$26-$CR$16)^4))) -> --- | DE47: =IF($CP$16=$CR$16,"---",IF(AND($CP$16="",$CQ$16="",$CR$16="",$CS$16=""),"---",(IF($EU47>=$CR$16,-$CQ$16*($EU47-$CP$16-($EU47-$CR$16)),IF($EU47>=$CP$16,-$CQ$16*($EU47-$CP$16),0)))+(IF($EU47>=$CR$16,-1/2*($CS$16-$CQ$16)/($CR$16-$CP$16)*(($EU47-$CP$16)^2-($EU47-$CR$16)^2)+($CS$16-$CQ$16)*($EU47-$CR$16),IF($EU47>=$CP$16,-1/2*($CS$16-$CQ$16)/($CR$16-$CP$16)*($EU47-$CP$16)^2,0))))) -> --- | DF47: =IF($CP$16=$CR$16,"---",IF(AND($CP$16="",$CQ$16="",$CR$16="",$CS$16=""),"---",(IF($EU47>=$CR$16,-$CQ$16/2*(($EU47-$CP$16)^2-($EU47-$CR$16)^2),IF($EU47>=$CP$16,-$CQ$16/2*($EU47-$CP$16)^2,0)))+(IF($EU47>=$CR$16,-1/6*($CS$16-$CQ$16)/($CR$16-$CP$16)*(($EU47-$CP$16)^3-($EU47-$CR$16)^3)+($CS$16-$CQ$16)/2*($EU47-$CR$16)^2,IF($EU47>=$CP$16,-1/6*($CS$16-$CQ$16)/($CR$16-$CP$16)*($EU47-$CP$16)^3,0))))) -> --- | DG47: =IF($CP$16=$CR$16,"---",IF(AND($CP$16="",$CQ$16="",$CR$16="",$CS$16=""),"---",(IF($EU47>=$CR$16,-$CQ$16/(6*$FX$26*$FZ$26)*(($EU47-$CP$16)^3-($EU47-$CR$16)^3),IF($EU47>=$CP$16,-$CQ$16/(6*$FX$26*$FZ$26)*($EU47-$CP$16)^3,0)))+(IF($EU47>=$CR$16,-1/(24*$FX$26*$FZ$26)*($CS$16-$CQ$16)/($CR$16-$CP$16)*(($EU47-$CP$16)^4-($EU47-$CR$16)^4)+($CS$16-$CQ$16)/(6*$FX$26*$FZ$26)*($EU47-$CR$16)^3,IF($EU47>=$CP$16,-1/(24*$FX$26*$FZ$26)*($CS$16-$CQ$16)/($CR$16-$CP$16)*($EU47-$CP$16)^4,0))))) -> --- | DH47: =IF($CP$16=$CR$16,"---",IF(AND($CP$16="",$CQ$16="",$CR$16="",$CS$16=""),"---",(IF($EU47>=$CR$16,$CQ$16/(24*$FX$26*$FZ$26)*(($EU47-$CP$16)^4-($EU47-$CR$16)^4),IF($EU47>=$CP$16,$CQ$16/(24*$FX$26*$FZ$26)*($EU47-$CP$16)^4,0)))+(IF($EU47>=$CR$16,1/(120*$FX$26*$FZ$26)*($CS$16-$CQ$16)/($CR$16-$CP$16)*(($EU47-$CP$16)^5-($EU47-$CR$16)^5)-($CS$16-$CQ$16)/(24*$FX$26*$FZ$26)*($EU47-$CR$16)^4,IF($EU47>=$CP$16,1/(120*$FX$26*$FZ$26)*($CS$16-$CQ$16)/($CR$16-$CP$16)*($EU47-$CP$16)^5,0))))) -> --- | DI47: =IF($CT$16=$CV$16,"---",IF(AND($CT$16="",$CU$16="",$CV$16="",$CW$16=""),"---",(-$CU$16*($GA$26-$CT$16-($GA$26-$CV$16)))+(-1/2*($CW$16-$CU$16)/($CV$16-$CT$16)*(($GA$26-$CT$16)^2-($GA$26-$CV$16)^2)+($CW$16-$CU$16)*($GA$26-$CV$16)))) -> --- | DJ47: =IF($CT$16=$CV$16,"---",IF(AND($CT$16="",$CU$16="",$CV$16="",$CW$16=""),"---",(-$CU$16/2*(($GA$26-$CT$16)^2-($GA$26-$CV$16)^2))+(-1/6*($CW$16-$CU$16)/($CV$16-$CT$16)*(($GA$26-$CT$16)^3-($GA$26-$CV$16)^3)+($CW$16-$CU$16)/2*($GA$26-$CV$16)^2))) -> --- | DK47: =IF($CT$16=$CV$16,"---",IF(AND($CT$16="",$CU$16="",$CV$16="",$CW$16=""),"---",(-$CU$16/(6*$FX$26*$FZ$26)*(($GA$26-$CT$16)^3-($GA$26-$CV$16)^3))+(-1/(24*$FX$26*$FZ$26)*($CW$16-$CU$16)/($CV$16-$CT$16)*(($GA$26-$CT$16)^4-($GA$26-$CV$16)^4)+($CW$16-$CU$16)/(6*$FX$26*$FZ$26)*($GA$26-$CV$16)^3))) -> --- | DL47: =IF($CT$16=$CV$16,"---",IF(AND($CT$16="",$CU$16="",$CV$16="",$CW$16=""),"---",($CU$16/(24*$FX$26*$FZ$26)*(($GA$26-$CT$16)^4-($GA$26-$CV$16)^4))+(1/(120*$FX$26*$FZ$26)*($CW$16-$CU$16)/($CV$16-$CT$16)*(($GA$26-$CT$16)^5-($GA$26-$CV$16)^5)-($CW$16-$CU$16)/(24*$FX$26*$FZ$26)*($GA$26-$CV$16)^4))) -> --- | DM47: =IF($CT$16=$CV$16,"---",IF(AND($CT$16="",$CU$16="",$CV$16="",$CW$16=""),"---",(IF($EU47>=$CV$16,-$CU$16*($EU47-$CT$16-($EU47-$CV$16)),IF($EU47>=$CT$16,-$CU$16*($EU47-$CT$16),0)))+(IF($EU47>=$CV$16,-1/2*($CW$16-$CU$16)/($CV$16-$CT$16)*(($EU47-$CT$16)^2-($EU47-$CV$16)^2)+($CW$16-$CU$16)*($EU47-$CV$16),IF($EU47>=$CT$16,-1/2*($CW$16-$CU$16)/($CV$16-$CT$16)*($EU47-$CT$16)^2,0))))) -> --- | DN47: =IF($CT$16=$CV$16,"---",IF(AND($CT$16="",$CU$16="",$CV$16="",$CW$16=""),"---",(IF($EU47>=$CV$16,-$CU$16/2*(($EU47-$CT$16)^2-($EU47-$CV$16)^2),IF($EU47>=$CT$16,-$CU$16/2*($EU47-$CT$16)^2,0)))+(IF($EU47>=$CV$16,-1/6*($CW$16-$CU$16)/($CV$16-$CT$16)*(($EU47-$CT$16)^3-($EU47-$CV$16)^3)+($CW$16-$CU$16)/2*($EU47-$CV$16)^2,IF($EU47>=$CT$16,-1/6*($CW$16-$CU$16)/($CV$16-$CT$16)*($EU47-$CT$16)^3,0))))) -> --- | DO47: =IF($CT$16=$CV$16,"---",IF(AND($CT$16="",$CU$16="",$CV$16="",$CW$16=""),"---",(IF($EU47>=$CV$16,-$CU$16/(6*$FX$26*$FZ$26)*(($EU47-$CT$16)^3-($EU47-$CV$16)^3),IF($EU47>=$CT$16,-$CU$16/(6*$FX$26*$FZ$26)*($EU47-$CT$16)^3,0)))+(IF($EU47>=$CV$16,-1/(24*$FX$26*$FZ$26)*($CW$16-$CU$16)/($CV$16-$CT$16)*(($EU47-$CT$16)^4-($EU47-$CV$16)^4)+($CW$16-$CU$16)/(6*$FX$26*$FZ$26)*($EU47-$CV$16)^3,IF($EU47>=$CT$16,-1/(24*$FX$26*$FZ$26)*($CW$16-$CU$16)/($CV$16-$CT$16)*($EU47-$CT$16)^4,0))))) -> --- | DP47: =IF($CT$16=$CV$16,"---",IF(AND($CT$16="",$CU$16="",$CV$16="",$CW$16=""),"---",(IF($EU47>=$CV$16,$CU$16/(24*$FX$26*$FZ$26)*(($EU47-$CT$16)^4-($EU47-$CV$16)^4),IF($EU47>=$CT$16,$CU$16/(24*$FX$26*$FZ$26)*($EU47-$CT$16)^4,0)))+(IF($EU47>=$CV$16,1/(120*$FX$26*$FZ$26)*($CW$16-$CU$16)/($CV$16-$CT$16)*(($EU47-$CT$16)^5-($EU47-$CV$16)^5)-($CW$16-$CU$16)/(24*$FX$26*$FZ$26)*($EU47-$CV$16)^4,IF($EU47>=$CT$16,1/(120*$FX$26*$FZ$26)*($CW$16-$CU$16)/($CV$16-$CT$16)*($EU47-$CT$16)^5,0))))) -> --- | DQ47: =-$CE$27+-$CG$27+-$CI$27+-$CK$27+-$CM$27+-$CO$27+-$CQ$27+-$CS$27+-$CU$27+-$CW$27 -> 0 | DR47: =-$CE$27*($GA$26-$CD$27)+-$CG$27*($GA$26-$CF$27)+-$CI$27*($GA$26-$CH$27)+-$CK$27*($GA$26-$CJ$27)+-$CM$27*($GA$26-$CL$27)+-$CO$27*($GA$26-$CN$27)+-$CQ$27*($GA$26-$CP$27)+-$CS$27*($GA$26-$CR$27)+-$CU$27*($GA$26-$CT$27)+-$CW$27*($GA$26-$CV$27) -> 0 | DS47: =-$CE$27*($GA$26-$CD$27)^2/(2*$FX$26*$FZ$26)+-$CG$27*($GA$26-$CF$27)^2/(2*$FX$26*$FZ$26)+-$CI$27*($GA$26-$CH$27)^2/(2*$FX$26*$FZ$26)+-$CK$27*($GA$26-$CJ$27)^2/(2*$FX$26*$FZ$26)+-$CM$27*($GA$26-$CL$27)^2/(2*$FX$26*$FZ$26)+-$CO$27*($GA$26-$CN$27)^2/(2*$FX$26*$FZ$26)+-$CQ$27*($GA$26-$CP$27)^2/(2*$FX$26*$FZ$26)+-$CS$27*($GA$26-$CR$27)^2/(2*$FX$26*$FZ$26)+-$CU$27*($GA$26-$CT$27)^2/(2*$FX$26*$FZ$26)+-$CW$27*($GA$26-$CV$27)^2/(2*$FX$26*$FZ$26) -> 0 | DT47: =$CE$27*($GA$26-$CD$27)^3/(6*$FX$26*$FZ$26)+$CG$27*($GA$26-$CF$27)^3/(6*$FX$26*$FZ$26)+$CI$27*($GA$26-$CH$27)^3/(6*$FX$26*$FZ$26)+$CK$27*($GA$26-$CJ$27)^3/(6*$FX$26*$FZ$26)+$CM$27*($GA$26-$CL$27)^3/(6*$FX$26*$FZ$26)+$CO$27*($GA$26-$CN$27)^3/(6*$FX$26*$FZ$26)+$CQ$27*($GA$26-$CP$27)^3/(6*$FX$26*$FZ$26)+$CS$27*($GA$26-$CR$27)^3/(6*$FX$26*$FZ$26)+$CU$27*($GA$26-$CT$27)^3/(6*$FX$26*$FZ$26)+$CW$27*($GA$26-$CV$27)^3/(6*$FX$26*$FZ$26) -> 0 | DU47: =IF($EU47>$CD$27,-$CE$27,0)+IF($EU47>$CF$27,-$CG$27,0)+IF($EU47>$CH$27,-$CI$27,0)+IF($EU47>$CJ$27,-$CK$27,0)+IF($EU47>$CL$27,-$CM$27,0)+IF($EU47>$CN$27,-$CO$27,0)+IF($EU47>$CP$27,-$CQ$27,0)+IF($EU47>$CR$27,-$CS$27,0)+IF($EU47>$CT$27,-$CU$27,0)+IF($EU47>$CV$27,-$CW$27,0) -> 0 | DV47: =IF($EU47>$CD$27,-$CE$27*($EU47-$CD$27),0)+IF($EU47>$CF$27,-$CG$27*($EU47-$CF$27),0)+IF($EU47>$CH$27,-$CI$27*($EU47-$CH$27),0)+IF($EU47>$CJ$27,-$CK$27*($EU47-$CJ$27),0)+IF($EU47>$CL$27,-$CM$27*($EU47-$CL$27),0)+IF($EU47>$CN$27,-$CO$27*($EU47-$CN$27),0)+IF($EU47>$CP$27,-$CQ$27*($EU47-$CP$27),0)+IF($EU47>$CR$27,-$CS$27*($EU47-$CR$27),0)+IF($EU47>$CT$27,-$CU$27*($EU47-$CT$27),0)+IF($EU47>$CV$27,-$CW$27*($EU47-$CV$27),0) -> 0 | DW47: =IF($EU47>$CD$27,-$CE$27*($EU47-$CD$27)^2/(2*$FX$26*$FZ$26),0)+IF($EU47>$CF$27,-$CG$27*($EU47-$CF$27)^2/(2*$FX$26*$FZ$26),0)+IF($EU47>$CH$27,-$CI$27*($EU47-$CH$27)^2/(2*$FX$26*$FZ$26),0)+IF($EU47>$CJ$27,-$CK$27*($EU47-$CJ$27)^2/(2*$FX$26*$FZ$26),0)+IF($EU47>$CL$27,-$CM$27*($EU47-$CL$27)^2/(2*$FX$26*$FZ$26),0)+IF($EU47>$CN$27,-$CO$27*($EU47-$CN$27)^2/(2*$FX$26*$FZ$26),0)+IF($EU47>$CP$27,-$CQ$27*($EU47-$CP$27)^2/(2*$FX$26*$FZ$26),0)+IF($EU47>$CR$27,-$CS$27*($EU47-$CR$27)^2/(2*$FX$26*$FZ$26),0)+IF($EU47>$CT$27,-$CU$27*($EU47-$CT$27)^2/(2*$FX$26*$FZ$26),0)+IF($EU47>$CV$27,-$CW$27*($EU47-$CV$27)^2/(2*$FX$26*$FZ$26),0) -> 0 | DX47: =IF($EU47>$CD$27,$CE$27*($EU47-$CD$27)^3/(6*$FX$26*$FZ$26),0)+IF($EU47>$CF$27,$CG$27*($EU47-$CF$27)^3/(6*$FX$26*$FZ$26),0)+IF($EU47>$CH$27,$CI$27*($EU47-$CH$27)^3/(6*$FX$26*$FZ$26),0)+IF($EU47>$CJ$27,$CK$27*($EU47-$CJ$27)^3/(6*$FX$26*$FZ$26),0)+IF($EU47>$CL$27,$CM$27*($EU47-$CL$27)^3/(6*$FX$26*$FZ$26),0)+IF($EU47>$CN$27,$CO$27*($EU47-$CN$27)^3/(6*$FX$26*$FZ$26),0)+IF($EU47>$CP$27,$CQ$27*($EU47-$CP$27)^3/(6*$FX$26*$FZ$26),0)+IF($EU47>$CR$27,$CS$27*($EU47-$CR$27)^3/(6*$FX$26*$FZ$26),0)+IF($EU47>$CT$27,$CU$27*($EU47-$CT$27)^3/(6*$FX$26*$FZ$26),0)+IF($EU47>$CV$27,$CW$27*($EU47-$CV$27)^3/(6*$FX$26*$FZ$26),0) -> 0 | DY47: =0+0+0+0 -> 0 | DZ47: =-$CE$38+-$CG$38+-$CI$38+-$CK$38+-CM38 -> 0 | EA47: =-$CE$38*($GA$26-$CD$38)/($FX$26*$FZ$26)+-$CG$38*($GA$26-$CF$38)/($FX$26*$FZ$26)+-$CI$38*($GA$26-$CH$38)/($FX$26*$FZ$26)+-$CK$38*($GA$26-$CJ$38)/($FX$26*$FZ$26)+-$CM$38*($GA$26-$CL$38)/($FX$26*$FZ$26) -> 0 | EB47: =$CE$38*($GA$26-$CD$38)^2/(2*$FX$26*$FZ$26)+$CG$38*($GA$26-$CF$38)^2/(2*$FX$26*$FZ$26)+$CI$38*($GA$26-$CH$38)^2/(2*$FX$26*$FZ$26)+$CK$38*($GA$26-$CJ$38)^2/(2*$FX$26*$FZ$26)+$CM$38*($GA$26-$CL$38)^2/(2*$FX$26*$FZ$26) -> 0 | EC47: =IF($EU47>=IF($CD$38=$GA$26,$CD$38+0.000000001,$CD$38),0,0)+IF($EU47>=IF($CF$38=$GA$26,$CF$38+0.000000001,$CF$38),0,0)+IF($EU47>=IF($CH$38=$GA$26,$CH$38+0.000000001,$CH$38),0,0)+IF($EU47>=IF($CJ$38=$GA$26,$CJ$38+0.000000001,$CJ$38),0,0)+IF($EU47>=IF($CL$38=$GA$26,$CL$38+0.000000001,$CL$38),0,0) -> 0 | ED47: =IF($EU47>=IF($CD$38=$GA$26,$CD$38+0.000000001,$CD$38),-$CE$38,0)+IF($EU47>=IF($CF$38=$GA$26,$CF$38+0.000000001,$CF$38),-$CG$38,0)+IF($EU47>=IF($CH$38=$GA$26,$CH$38+0.000000001,$CH$38),-$CI$38,0)+IF($EU47>=IF($CJ$38=$GA$26,$CJ$38+0.000000001,$CJ$38),-$CK$38,0)+IF($EU47>=IF($CL$38=$GA$26,$CL$38+0.000000001,$CL$38),-$CM$38,0) -> 0 | EE47: =IF($EU47>=IF($CD$38=$GA$26,$CD$38+0.000000001,$CD$38),-$CE$38*($EU47-$CD$38)/($FX$26*$FZ$26),0)+IF($EU47>=IF($CF$38=$GA$26,$CF$38+0.000000001,$CF$38),-$CG$38*($EU47-$CF$38)/($FX$26*$FZ$26),0)+IF($EU47>=IF($CH$38=$GA$26,$CH$38+0.000000001,$CH$38),-$CI$38*($EU47-$CH$38)/($FX$26*$FZ$26),0)+IF($EU47>=IF($CJ$38=$GA$26,$CJ$38+0.000000001,$CJ$38),-$CK$38*($EU47-$CJ$38)/($FX$26*$FZ$26),0)+IF($EU47>=IF($CL$38=$GA$26,$CL$38+0.000000001,$CL$38),-$CM$38*($EU47-$CL$38)/($FX$26*$FZ$26),0) -> 0 | EF47: =IF($EU47>=IF($CD$38=$GA$26,$CD$38+0.000000001,$CD$38),$CE$38*($EU47-$CD$38)^2/(2*$FX$26*$FZ$26),0)+IF($EU47>=IF($CF$38=$GA$26,$CF$38+0.000000001,$CF$38),$CG$38*($EU47-$CF$38)^2/(2*$FX$26*$FZ$26),0)+IF($EU47>=IF($CH$38=$GA$26,$CH$38+0.000000001,$CH$38),$CI$38*($EU47-$CH$38)^2/(2*$FX$26*$FZ$26),0)+IF($EU47>=IF($CJ$38=$GA$26,$CJ$38+0.000000001,$CJ$38),$CK$38*($EU47-$CJ$38)^2/(2*$FX$26*$FZ$26),0)+IF($EU47>=IF($CL$38=$GA$26,$CL$38+0.000000001,$CL$38),$CM$38*($EU47-$CL$38)^2/(2*$FX$26*$FZ$26),0) -> 0 | EG47: =SUM(CC47,CK47,CS47,DA47,DI47,DQ47,DY47) -> 0 | EH47: 0 | EI47: 0 | EJ47: 0 | EK47: 0 | EL47: 0 | EM47: 0 | EN47: 0 | EO47: =-12*$FX$26*$FZ$26/$GA$26^3*$EJ47-6*$FX$26*$FZ$26/$GA$26^2*$EI47 -> 0 | EP47: =6*$FX$26*$FZ$26/$GA$26^2*$EJ47+2*$FX$26*$FZ$26/$GA$26*$EI47 -> 0 | EQ47: =0 -> 0 | ER47: =0 -> 0 | ES47: =$EO47+$EK47 -> 0 | ET47: =$EP47+$EO47*$EU47+$EL47 -> 0 | EU47: =0 -> 0 | EV47: Member #1 FEM(L): | FV47: 3 | FW47: X-Global | FX47: 0 | FY47: =BG47*0.068522 -> 0 | FZ47: =BH47 -> 0 | GA47: =BI47*0.068522 -> 0 | GB47: =BJ47 -> 0 | GC47: =BK47*0.068522 -> 0 | GD47: =BL47 -> 0 | GE47: =BM47*0.068522 -> 0 | GF47: =BN47 -> 0 | GG47: =BO47*0.068522 -> 0 | GH47: =BP47 -> 0 | GI47: =BQ47*0.068522 -> 0 | GJ47: =BR47 -> 0 | GK47: =BS47*0.068522 -> 0 | GL47: =BT47 -> 0 | GM47: =BU47*0.068522 -> 0 | GN47: =BV47 -> 0 | GO47: =BW47*0.068522 -> 0 | GP47: =BX47 -> 0 | GQ47: =BY47*0.068522 -> 0
CB48: Member #1(X) FEM(R): | CC48: =$CC$47 -> --- | CD48: =$CD$47 -> --- | CE48: =$CE$47 -> --- | CF48: =$CF$47 -> --- | CG48: =IF($CD$16=$CF$16,"---",IF(AND($CD$16="",$CE$16="",$CF$16="",$CG$16=""),"---",(IF($EU48>=$CF$16,-$CE$16*($EU48-$CD$16-($EU48-$CF$16)),IF($EU48>=$CD$16,-$CE$16*($EU48-$CD$16),0)))+(IF($EU48>=$CF$16,-1/2*($CG$16-$CE$16)/($CF$16-$CD$16)*(($EU48-$CD$16)^2-($EU48-$CF$16)^2)+($CG$16-$CE$16)*($EU48-$CF$16),IF($EU48>=$CD$16,-1/2*($CG$16-$CE$16)/($CF$16-$CD$16)*($EU48-$CD$16)^2,0))))) -> --- | CH48: =IF($CD$16=$CF$16,"---",IF(AND($CD$16="",$CE$16="",$CF$16="",$CG$16=""),"---",(IF($EU48>=$CF$16,-$CE$16/2*(($EU48-$CD$16)^2-($EU48-$CF$16)^2),IF($EU48>=$CD$16,-$CE$16/2*($EU48-$CD$16)^2,0)))+(IF($EU48>=$CF$16,-1/6*($CG$16-$CE$16)/($CF$16-$CD$16)*(($EU48-$CD$16)^3-($EU48-$CF$16)^3)+($CG$16-$CE$16)/2*($EU48-$CF$16)^2,IF($EU48>=$CD$16,-1/6*($CG$16-$CE$16)/($CF$16-$CD$16)*($EU48-$CD$16)^3,0))))) -> --- | CI48: =IF($CD$16=$CF$16,"---",IF(AND($CD$16="",$CE$16="",$CF$16="",$CG$16=""),"---",(IF($EU48>=$CF$16,-$CE$16/(6*$FX$26*$FZ$26)*(($EU48-$CD$16)^3-($EU48-$CF$16)^3),IF($EU48>=$CD$16,-$CE$16/(6*$FX$26*$FZ$26)*($EU48-$CD$16)^3,0)))+(IF($EU48>=$CF$16,-1/(24*$FX$26*$FZ$26)*($CG$16-$CE$16)/($CF$16-$CD$16)*(($EU48-$CD$16)^4-($EU48-$CF$16)^4)+($CG$16-$CE$16)/(6*$FX$26*$FZ$26)*($EU48-$CF$16)^3,IF($EU48>=$CD$16,-1/(24*$FX$26*$FZ$26)*($CG$16-$CE$16)/($CF$16-$CD$16)*($EU48-$CD$16)^4,0))))) -> --- | CJ48: =IF($CD$16=$CF$16,"---",IF(AND($CD$16="",$CE$16="",$CF$16="",$CG$16=""),"---",(IF($EU48>=$CF$16,$CE$16/(24*$FX$26*$FZ$26)*(($EU48-$CD$16)^4-($EU48-$CF$16)^4),IF($EU48>=$CD$16,$CE$16/(24*$FX$26*$FZ$26)*($EU48-$CD$16)^4,0)))+(IF($EU48>=$CF$16,1/(120*$FX$26*$FZ$26)*($CG$16-$CE$16)/($CF$16-$CD$16)*(($EU48-$CD$16)^5-($EU48-$CF$16)^5)-($CG$16-$CE$16)/(24*$FX$26*$FZ$26)*($EU48-$CF$16)^4,IF($EU48>=$CD$16,1/(120*$FX$26*$FZ$26)*($CG$16-$CE$16)/($CF$16-$CD$16)*($EU48-$CD$16)^5,0))))) -> --- | CK48: =$CK$47 -> --- | CL48: =$CL$47 -> --- | CM48: =$CM$47 -> --- | CN48: =$CN$47 -> --- | CO48: =IF($CH$16=$CJ$16,"---",IF(AND($CH$16="",$CI$16="",$CJ$16="",$CK$16=""),"---",(IF($EU48>=$CJ$16,-$CI$16*($EU48-$CH$16-($EU48-$CJ$16)),IF($EU48>=$CH$16,-$CI$16*($EU48-$CH$16),0)))+(IF($EU48>=$CJ$16,-1/2*($CK$16-$CI$16)/($CJ$16-$CH$16)*(($EU48-$CH$16)^2-($EU48-$CJ$16)^2)+($CK$16-$CI$16)*($EU48-$CJ$16),IF($EU48>=$CH$16,-1/2*($CK$16-$CI$16)/($CJ$16-$CH$16)*($EU48-$CH$16)^2,0))))) -> --- | CP48: =IF($CH$16=$CJ$16,"---",IF(AND($CH$16="",$CI$16="",$CJ$16="",$CK$16=""),"---",(IF($EU48>=$CJ$16,-$CI$16/2*(($EU48-$CH$16)^2-($EU48-$CJ$16)^2),IF($EU48>=$CH$16,-$CI$16/2*($EU48-$CH$16)^2,0)))+(IF($EU48>=$CJ$16,-1/6*($CK$16-$CI$16)/($CJ$16-$CH$16)*(($EU48-$CH$16)^3-($EU48-$CJ$16)^3)+($CK$16-$CI$16)/2*($EU48-$CJ$16)^2,IF($EU48>=$CH$16,-1/6*($CK$16-$CI$16)/($CJ$16-$CH$16)*($EU48-$CH$16)^3,0))))) -> --- | CQ48: =IF($CH$16=$CJ$16,"---",IF(AND($CH$16="",$CI$16="",$CJ$16="",$CK$16=""),"---",(IF($EU48>=$CJ$16,-$CI$16/(6*$FX$26*$FZ$26)*(($EU48-$CH$16)^3-($EU48-$CJ$16)^3),IF($EU48>=$CH$16,-$CI$16/(6*$FX$26*$FZ$26)*($EU48-$CH$16)^3,0)))+(IF($EU48>=$CJ$16,-1/(24*$FX$26*$FZ$26)*($CK$16-$CI$16)/($CJ$16-$CH$16)*(($EU48-$CH$16)^4-($EU48-$CJ$16)^4)+($CK$16-$CI$16)/(6*$FX$26*$FZ$26)*($EU48-$CJ$16)^3,IF($EU48>=$CH$16,-1/(24*$FX$26*$FZ$26)*($CK$16-$CI$16)/($CJ$16-$CH$16)*($EU48-$CH$16)^4,0))))) -> --- | CR48: =IF($CH$16=$CJ$16,"---",IF(AND($CH$16="",$CI$16="",$CJ$16="",$CK$16=""),"---",(IF($EU48>=$CJ$16,$CI$16/(24*$FX$26*$FZ$26)*(($EU48-$CH$16)^4-($EU48-$CJ$16)^4),IF($EU48>=$CH$16,$CI$16/(24*$FX$26*$FZ$26)*($EU48-$CH$16)^4,0)))+(IF($EU48>=$CJ$16,1/(120*$FX$26*$FZ$26)*($CK$16-$CI$16)/($CJ$16-$CH$16)*(($EU48-$CH$16)^5-($EU48-$CJ$16)^5)-($CK$16-$CI$16)/(24*$FX$26*$FZ$26)*($EU48-$CJ$16)^4,IF($EU48>=$CH$16,1/(120*$FX$26*$FZ$26)*($CK$16-$CI$16)/($CJ$16-$CH$16)*($EU48-$CH$16)^5,0))))) -> --- | CS48: =$CS$47 -> --- | CT48: =$CT$47 -> --- | CU48: =$CU$47 -> --- | CV48: =$CV$47 -> --- | CW48: =IF($CL$16=$CN$16,"---",IF(AND($CL$16="",$CM$16="",$CN$16="",$CO$16=""),"---",(IF($EU48>=$CN$16,-$CM$16*($EU48-$CL$16-($EU48-$CN$16)),IF($EU48>=$CL$16,-$CM$16*($EU48-$CL$16),0)))+(IF($EU48>=$CN$16,-1/2*($CO$16-$CM$16)/($CN$16-$CL$16)*(($EU48-$CL$16)^2-($EU48-$CN$16)^2)+($CO$16-$CM$16)*($EU48-$CN$16),IF($EU48>=$CL$16,-1/2*($CO$16-$CM$16)/($CN$16-$CL$16)*($EU48-$CL$16)^2,0))))) -> --- | CX48: =IF($CL$16=$CN$16,"---",IF(AND($CL$16="",$CM$16="",$CN$16="",$CO$16=""),"---",(IF($EU48>=$CN$16,-$CM$16/2*(($EU48-$CL$16)^2-($EU48-$CN$16)^2),IF($EU48>=$CL$16,-$CM$16/2*($EU48-$CL$16)^2,0)))+(IF($EU48>=$CN$16,-1/6*($CO$16-$CM$16)/($CN$16-$CL$16)*(($EU48-$CL$16)^3-($EU48-$CN$16)^3)+($CO$16-$CM$16)/2*($EU48-$CN$16)^2,IF($EU48>=$CL$16,-1/6*($CO$16-$CM$16)/($CN$16-$CL$16)*($EU48-$CL$16)^3,0))))) -> --- | CY48: =IF($CL$16=$CN$16,"---",IF(AND($CL$16="",$CM$16="",$CN$16="",$CO$16=""),"---",(IF($EU48>=$CN$16,-$CM$16/(6*$FX$26*$FZ$26)*(($EU48-$CL$16)^3-($EU48-$CN$16)^3),IF($EU48>=$CL$16,-$CM$16/(6*$FX$26*$FZ$26)*($EU48-$CL$16)^3,0)))+(IF($EU48>=$CN$16,-1/(24*$FX$26*$FZ$26)*($CO$16-$CM$16)/($CN$16-$CL$16)*(($EU48-$CL$16)^4-($EU48-$CN$16)^4)+($CO$16-$CM$16)/(6*$FX$26*$FZ$26)*($EU48-$CN$16)^3,IF($EU48>=$CL$16,-1/(24*$FX$26*$FZ$26)*($CO$16-$CM$16)/($CN$16-$CL$16)*($EU48-$CL$16)^4,0))))) -> --- | CZ48: =IF($CL$16=$CN$16,"---",IF(AND($CL$16="",$CM$16="",$CN$16="",$CO$16=""),"---",(IF($EU48>=$CN$16,$CM$16/(24*$FX$26*$FZ$26)*(($EU48-$CL$16)^4-($EU48-$CN$16)^4),IF($EU48>=$CL$16,$CM$16/(24*$FX$26*$FZ$26)*($EU48-$CL$16)^4,0)))+(IF($EU48>=$CN$16,1/(120*$FX$26*$FZ$26)*($CO$16-$CM$16)/($CN$16-$CL$16)*(($EU48-$CL$16)^5-($EU48-$CN$16)^5)-($CO$16-$CM$16)/(24*$FX$26*$FZ$26)*($EU48-$CN$16)^4,IF($EU48>=$CL$16,1/(120*$FX$26*$FZ$26)*($CO$16-$CM$16)/($CN$16-$CL$16)*($EU48-$CL$16)^5,0))))) -> --- | DA48: =$DA$47 -> --- | DB48: =$DB$47 -> --- | DC48: =$DC$47 -> --- | DD48: =$DD$47 -> --- | DE48: =IF($CP$16=$CR$16,"---",IF(AND($CP$16="",$CQ$16="",$CR$16="",$CS$16=""),"---",(IF($EU48>=$CR$16,-$CQ$16*($EU48-$CP$16-($EU48-$CR$16)),IF($EU48>=$CP$16,-$CQ$16*($EU48-$CP$16),0)))+(IF($EU48>=$CR$16,-1/2*($CS$16-$CQ$16)/($CR$16-$CP$16)*(($EU48-$CP$16)^2-($EU48-$CR$16)^2)+($CS$16-$CQ$16)*($EU48-$CR$16),IF($EU48>=$CP$16,-1/2*($CS$16-$CQ$16)/($CR$16-$CP$16)*($EU48-$CP$16)^2,0))))) -> --- | DF48: =IF($CP$16=$CR$16,"---",IF(AND($CP$16="",$CQ$16="",$CR$16="",$CS$16=""),"---",(IF($EU48>=$CR$16,-$CQ$16/2*(($EU48-$CP$16)^2-($EU48-$CR$16)^2),IF($EU48>=$CP$16,-$CQ$16/2*($EU48-$CP$16)^2,0)))+(IF($EU48>=$CR$16,-1/6*($CS$16-$CQ$16)/($CR$16-$CP$16)*(($EU48-$CP$16)^3-($EU48-$CR$16)^3)+($CS$16-$CQ$16)/2*($EU48-$CR$16)^2,IF($EU48>=$CP$16,-1/6*($CS$16-$CQ$16)/($CR$16-$CP$16)*($EU48-$CP$16)^3,0))))) -> --- | DG48: =IF($CP$16=$CR$16,"---",IF(AND($CP$16="",$CQ$16="",$CR$16="",$CS$16=""),"---",(IF($EU48>=$CR$16,-$CQ$16/(6*$FX$26*$FZ$26)*(($EU48-$CP$16)^3-($EU48-$CR$16)^3),IF($EU48>=$CP$16,-$CQ$16/(6*$FX$26*$FZ$26)*($EU48-$CP$16)^3,0)))+(IF($EU48>=$CR$16,-1/(24*$FX$26*$FZ$26)*($CS$16-$CQ$16)/($CR$16-$CP$16)*(($EU48-$CP$16)^4-($EU48-$CR$16)^4)+($CS$16-$CQ$16)/(6*$FX$26*$FZ$26)*($EU48-$CR$16)^3,IF($EU48>=$CP$16,-1/(24*$FX$26*$FZ$26)*($CS$16-$CQ$16)/($CR$16-$CP$16)*($EU48-$CP$16)^4,0))))) -> --- | DH48: =IF($CP$16=$CR$16,"---",IF(AND($CP$16="",$CQ$16="",$CR$16="",$CS$16=""),"---",(IF($EU48>=$CR$16,$CQ$16/(24*$FX$26*$FZ$26)*(($EU48-$CP$16)^4-($EU48-$CR$16)^4),IF($EU48>=$CP$16,$CQ$16/(24*$FX$26*$FZ$26)*($EU48-$CP$16)^4,0)))+(IF($EU48>=$CR$16,1/(120*$FX$26*$FZ$26)*($CS$16-$CQ$16)/($CR$16-$CP$16)*(($EU48-$CP$16)^5-($EU48-$CR$16)^5)-($CS$16-$CQ$16)/(24*$FX$26*$FZ$26)*($EU48-$CR$16)^4,IF($EU48>=$CP$16,1/(120*$FX$26*$FZ$26)*($CS$16-$CQ$16)/($CR$16-$CP$16)*($EU48-$CP$16)^5,0))))) -> --- | DI48: =$DI$47 -> --- | DJ48: =$DJ$47 -> --- | DK48: =$DK$47 -> --- | DL48: =$DL$47 -> --- | DM48: =IF($CT$16=$CV$16,"---",IF(AND($CT$16="",$CU$16="",$CV$16="",$CW$16=""),"---",(IF($EU48>=$CV$16,-$CU$16*($EU48-$CT$16-($EU48-$CV$16)),IF($EU48>=$CT$16,-$CU$16*($EU48-$CT$16),0)))+(IF($EU48>=$CV$16,-1/2*($CW$16-$CU$16)/($CV$16-$CT$16)*(($EU48-$CT$16)^2-($EU48-$CV$16)^2)+($CW$16-$CU$16)*($EU48-$CV$16),IF($EU48>=$CT$16,-1/2*($CW$16-$CU$16)/($CV$16-$CT$16)*($EU48-$CT$16)^2,0))))) -> --- | DN48: =IF($CT$16=$CV$16,"---",IF(AND($CT$16="",$CU$16="",$CV$16="",$CW$16=""),"---",(IF($EU48>=$CV$16,-$CU$16/2*(($EU48-$CT$16)^2-($EU48-$CV$16)^2),IF($EU48>=$CT$16,-$CU$16/2*($EU48-$CT$16)^2,0)))+(IF($EU48>=$CV$16,-1/6*($CW$16-$CU$16)/($CV$16-$CT$16)*(($EU48-$CT$16)^3-($EU48-$CV$16)^3)+($CW$16-$CU$16)/2*($EU48-$CV$16)^2,IF($EU48>=$CT$16,-1/6*($CW$16-$CU$16)/($CV$16-$CT$16)*($EU48-$CT$16)^3,0))))) -> --- | DO48: =IF($CT$16=$CV$16,"---",IF(AND($CT$16="",$CU$16="",$CV$16="",$CW$16=""),"---",(IF($EU48>=$CV$16,-$CU$16/(6*$FX$26*$FZ$26)*(($EU48-$CT$16)^3-($EU48-$CV$16)^3),IF($EU48>=$CT$16,-$CU$16/(6*$FX$26*$FZ$26)*($EU48-$CT$16)^3,0)))+(IF($EU48>=$CV$16,-1/(24*$FX$26*$FZ$26)*($CW$16-$CU$16)/($CV$16-$CT$16)*(($EU48-$CT$16)^4-($EU48-$CV$16)^4)+($CW$16-$CU$16)/(6*$FX$26*$FZ$26)*($EU48-$CV$16)^3,IF($EU48>=$CT$16,-1/(24*$FX$26*$FZ$26)*($CW$16-$CU$16)/($CV$16-$CT$16)*($EU48-$CT$16)^4,0))))) -> --- | DP48: =IF($CT$16=$CV$16,"---",IF(AND($CT$16="",$CU$16="",$CV$16="",$CW$16=""),"---",(IF($EU48>=$CV$16,$CU$16/(24*$FX$26*$FZ$26)*(($EU48-$CT$16)^4-($EU48-$CV$16)^4),IF($EU48>=$CT$16,$CU$16/(24*$FX$26*$FZ$26)*($EU48-$CT$16)^4,0)))+(IF($EU48>=$CV$16,1/(120*$FX$26*$FZ$26)*($CW$16-$CU$16)/($CV$16-$CT$16)*(($EU48-$CT$16)^5-($EU48-$CV$16)^5)-($CW$16-$CU$16)/(24*$FX$26*$FZ$26)*($EU48-$CV$16)^4,IF($EU48>=$CT$16,1/(120*$FX$26*$FZ$26)*($CW$16-$CU$16)/($CV$16-$CT$16)*($EU48-$CT$16)^5,0))))) -> --- | DQ48: =$DQ$47 -> 0 | DR48: =$DR$47 -> 0 | DS48: =$DS$47 -> 0 | DT48: =$DT$47 -> 0 | DU48: =IF($EU48>$CD$27,-$CE$27,0)+IF($EU48>$CF$27,-$CG$27,0)+IF($EU48>$CH$27,-$CI$27,0)+IF($EU48>$CJ$27,-$CK$27,0)+IF($EU48>$CL$27,-$CM$27,0)+IF($EU48>$CN$27,-$CO$27,0)+IF($EU48>$CP$27,-$CQ$27,0)+IF($EU48>$CR$27,-$CS$27,0)+IF($EU48>$CT$27,-$CU$27,0)+IF($EU48>$CV$27,-$CW$27,0) -> 0 | DV48: =IF($EU48>$CD$27,-$CE$27*($EU48-$CD$27),0)+IF($EU48>$CF$27,-$CG$27*($EU48-$CF$27),0)+IF($EU48>$CH$27,-$CI$27*($EU48-$CH$27),0)+IF($EU48>$CJ$27,-$CK$27*($EU48-$CJ$27),0)+IF($EU48>$CL$27,-$CM$27*($EU48-$CL$27),0)+IF($EU48>$CN$27,-$CO$27*($EU48-$CN$27),0)+IF($EU48>$CP$27,-$CQ$27*($EU48-$CP$27),0)+IF($EU48>$CR$27,-$CS$27*($EU48-$CR$27),0)+IF($EU48>$CT$27,-$CU$27*($EU48-$CT$27),0)+IF($EU48>$CV$27,-$CW$27*($EU48-$CV$27),0) -> 0 | DW48: =IF($EU48>$CD$27,-$CE$27*($EU48-$CD$27)^2/(2*$FX$26*$FZ$26),0)+IF($EU48>$CF$27,-$CG$27*($EU48-$CF$27)^2/(2*$FX$26*$FZ$26),0)+IF($EU48>$CH$27,-$CI$27*($EU48-$CH$27)^2/(2*$FX$26*$FZ$26),0)+IF($EU48>$CJ$27,-$CK$27*($EU48-$CJ$27)^2/(2*$FX$26*$FZ$26),0)+IF($EU48>$CL$27,-$CM$27*($EU48-$CL$27)^2/(2*$FX$26*$FZ$26),0)+IF($EU48>$CN$27,-$CO$27*($EU48-$CN$27)^2/(2*$FX$26*$FZ$26),0)+IF($EU48>$CP$27,-$CQ$27*($EU48-$CP$27)^2/(2*$FX$26*$FZ$26),0)+IF($EU48>$CR$27,-$CS$27*($EU48-$CR$27)^2/(2*$FX$26*$FZ$26),0)+IF($EU48>$CT$27,-$CU$27*($EU48-$CT$27)^2/(2*$FX$26*$FZ$26),0)+IF($EU48>$CV$27,-$CW$27*($EU48-$CV$27)^2/(2*$FX$26*$FZ$26),0) -> 0 | DX48: =IF($EU48>$CD$27,$CE$27*($EU48-$CD$27)^3/(6*$FX$26*$FZ$26),0)+IF($EU48>$CF$27,$CG$27*($EU48-$CF$27)^3/(6*$FX$26*$FZ$26),0)+IF($EU48>$CH$27,$CI$27*($EU48-$CH$27)^3/(6*$FX$26*$FZ$26),0)+IF($EU48>$CJ$27,$CK$27*($EU48-$CJ$27)^3/(6*$FX$26*$FZ$26),0)+IF($EU48>$CL$27,$CM$27*($EU48-$CL$27)^3/(6*$FX$26*$FZ$26),0)+IF($EU48>$CN$27,$CO$27*($EU48-$CN$27)^3/(6*$FX$26*$FZ$26),0)+IF($EU48>$CP$27,$CQ$27*($EU48-$CP$27)^3/(6*$FX$26*$FZ$26),0)+IF($EU48>$CR$27,$CS$27*($EU48-$CR$27)^3/(6*$FX$26*$FZ$26),0)+IF($EU48>$CT$27,$CU$27*($EU48-$CT$27)^3/(6*$FX$26*$FZ$26),0)+IF($EU48>$CV$27,$CW$27*($EU48-$CV$27)^3/(6*$FX$26*$FZ$26),0) -> 0 | DY48: =$DY$47 -> 0 | DZ48: =$DZ$47 -> 0 | EA48: =$EA$47 -> 0 | EB48: =$EB$47 -> 0 | EC48: =IF($EU48>=IF($CD$38=$GA$26,$CD$38+0.000000001,$CD$38),0,0)+IF($EU48>=IF($CF$38=$GA$26,$CF$38+0.000000001,$CF$38),0,0)+IF($EU48>=IF($CH$38=$GA$26,$CH$38+0.000000001,$CH$38),0,0)+IF($EU48>=IF($CJ$38=$GA$26,$CJ$38+0.000000001,$CJ$38),0,0)+IF($EU48>=IF($CL$38=$GA$26,$CL$38+0.000000001,$CL$38),0,0) -> 0 | ED48: =IF($EU48>=IF($CD$38=$GA$26,$CD$38+0.000000001,$CD$38),-$CE$38,0)+IF($EU48>=IF($CF$38=$GA$26,$CF$38+0.000000001,$CF$38),-$CG$38,0)+IF($EU48>=IF($CH$38=$GA$26,$CH$38+0.000000001,$CH$38),-$CI$38,0)+IF($EU48>=IF($CJ$38=$GA$26,$CJ$38+0.000000001,$CJ$38),-$CK$38,0)+IF($EU48>=IF($CL$38=$GA$26,$CL$38+0.000000001,$CL$38),-$CM$38,0) -> 0 | EE48: =IF($EU48>=IF($CD$38=$GA$26,$CD$38+0.000000001,$CD$38),-$CE$38*($EU48-$CD$38)/($FX$26*$FZ$26),0)+IF($EU48>=IF($CF$38=$GA$26,$CF$38+0.000000001,$CF$38),-$CG$38*($EU48-$CF$38)/($FX$26*$FZ$26),0)+IF($EU48>=IF($CH$38=$GA$26,$CH$38+0.000000001,$CH$38),-$CI$38*($EU48-$CH$38)/($FX$26*$FZ$26),0)+IF($EU48>=IF($CJ$38=$GA$26,$CJ$38+0.000000001,$CJ$38),-$CK$38*($EU48-$CJ$38)/($FX$26*$FZ$26),0)+IF($EU48>=IF($CL$38=$GA$26,$CL$38+0.000000001,$CL$38),-$CM$38*($EU48-$CL$38)/($FX$26*$FZ$26),0) -> 0 | EF48: =IF($EU48>=IF($CD$38=$GA$26,$CD$38+0.000000001,$CD$38),$CE$38*($EU48-$CD$38)^2/(2*$FX$26*$FZ$26),0)+IF($EU48>=IF($CF$38=$GA$26,$CF$38+0.000000001,$CF$38),$CG$38*($EU48-$CF$38)^2/(2*$FX$26*$FZ$26),0)+IF($EU48>=IF($CH$38=$GA$26,$CH$38+0.000000001,$CH$38),$CI$38*($EU48-$CH$38)^2/(2*$FX$26*$FZ$26),0)+IF($EU48>=IF($CJ$38=$GA$26,$CJ$38+0.000000001,$CJ$38),$CK$38*($EU48-$CJ$38)^2/(2*$FX$26*$FZ$26),0)+IF($EU48>=IF($CL$38=$GA$26,$CL$38+0.000000001,$CL$38),$CM$38*($EU48-$CL$38)^2/(2*$FX$26*$FZ$26),0) -> 0 | EG48: 0 | EH48: 0 | EI48: 0 | EJ48: 0 | EK48: 0 | EL48: 0 | EM48: 0 | EN48: 0 | EO48: =$EO$47 -> 0 | EP48: =$EP$47 -> 0 | EQ48: =$EQ$47 -> 0 | ER48: =$ER$47 -> 0 | ES48: =-($EO48+$EK48) -> 0 | ET48: 0 | EU48: =$GA$26+0.0000000001 -> 19.68498 | EV48: Member #1 FEM(R):
BD49: Point Loads: | CB49: Member #2(Y) FEM(L): | CC49: =IF($CD$17=$CF$17,"---",IF(AND($CD$17="",$CE$17="",$CF$17="",$CG$17=""),"---",(-$CE$17*($GA$27-$CD$17-($GA$27-$CF$17)))+(-1/2*($CG$17-$CE$17)/($CF$17-$CD$17)*(($GA$27-$CD$17)^2-($GA$27-$CF$17)^2)+($CG$17-$CE$17)*($GA$27-$CF$17)))) -> 39.34158082 | CD49: =IF($CD$17=$CF$17,"---",IF(AND($CD$17="",$CE$17="",$CF$17="",$CG$17=""),"---",(-$CE$17/2*(($GA$27-$CD$17)^2-($GA$27-$CF$17)^2))+(-1/6*($CG$17-$CE$17)/($CF$17-$CD$17)*(($GA$27-$CD$17)^3-($GA$27-$CF$17)^3)+($CG$17-$CE$17)/2*($GA$27-$CF$17)^2))) -> 602.3408468 | CE49: =IF($CD$17=$CF$17,"---",IF(AND($CD$17="",$CE$17="",$CF$17="",$CG$17=""),"---",(-$CE$17/(6*$FX$27*$FZ$27)*(($GA$27-$CD$17)^3-($GA$27-$CF$17)^3))+(-1/(24*$FX$27*$FZ$27)*($CG$17-$CE$17)/($CF$17-$CD$17)*(($GA$27-$CD$17)^4-($GA$27-$CF$17)^4)+($CG$17-$CE$17)/(6*$FX$27*$FZ$27)*($GA$27-$CF$17)^3))) -> 0.0003645828336 | CF49: =IF($CD$17=$CF$17,"---",IF(AND($CD$17="",$CE$17="",$CF$17="",$CG$17=""),"---",($CE$17/(24*$FX$27*$FZ$27)*(($GA$27-$CD$17)^4-($GA$27-$CF$17)^4))+(1/(120*$FX$27*$FZ$27)*($CG$17-$CE$17)/($CF$17-$CD$17)*(($GA$27-$CD$17)^5-($GA$27-$CF$17)^5)-($CG$17-$CE$17)/(24*$FX$27*$FZ$27)*($GA$27-$CF$17)^4))) -> -0.002923883839 | CG49: =IF($CD$17=$CF$17,"---",IF(AND($CD$17="",$CE$17="",$CF$17="",$CG$17=""),"---",(IF($EU49>=$CF$17,-$CE$17*($EU49-$CD$17-($EU49-$CF$17)),IF($EU49>=$CD$17,-$CE$17*($EU49-$CD$17),0)))+(IF($EU49>=$CF$17,-1/2*($CG$17-$CE$17)/($CF$17-$CD$17)*(($EU49-$CD$17)^2-($EU49-$CF$17)^2)+($CG$17-$CE$17)*($EU49-$CF$17),IF($EU49>=$CD$17,-1/2*($CG$17-$CE$17)/($CF$17-$CD$17)*($EU49-$CD$17)^2,0))))) -> 0 | CH49: =IF($CD$17=$CF$17,"---",IF(AND($CD$17="",$CE$17="",$CF$17="",$CG$17=""),"---",(IF($EU49>=$CF$17,-$CE$17/2*(($EU49-$CD$17)^2-($EU49-$CF$17)^2),IF($EU49>=$CD$17,-$CE$17/2*($EU49-$CD$17)^2,0)))+(IF($EU49>=$CF$17,-1/6*($CG$17-$CE$17)/($CF$17-$CD$17)*(($EU49-$CD$17)^3-($EU49-$CF$17)^3)+($CG$17-$CE$17)/2*($EU49-$CF$17)^2,IF($EU49>=$CD$17,-1/6*($CG$17-$CE$17)/($CF$17-$CD$17)*($EU49-$CD$17)^3,0))))) -> 0 | CI49: =IF($CD$17=$CF$17,"---",IF(AND($CD$17="",$CE$17="",$CF$17="",$CG$17=""),"---",(IF($EU49>=$CF$17,-$CE$17/(6*$FX$27*$FZ$27)*(($EU49-$CD$17)^3-($EU49-$CF$17)^3),IF($EU49>=$CD$17,-$CE$17/(6*$FX$27*$FZ$27)*($EU49-$CD$17)^3,0)))+(IF($EU49>=$CF$17,-1/(24*$FX$27*$FZ$27)*($CG$17-$CE$17)/($CF$17-$CD$17)*(($EU49-$CD$17)^4-($EU49-$CF$17)^4)+($CG$17-$CE$17)/(6*$FX$27*$FZ$27)*($EU49-$CF$17)^3,IF($EU49>=$CD$17,-1/(24*$FX$27*$FZ$27)*($CG$17-$CE$17)/($CF$17-$CD$17)*($EU49-$CD$17)^4,0))))) -> 0 | CJ49: =IF($CD$17=$CF$17,"---",IF(AND($CD$17="",$CE$17="",$CF$17="",$CG$17=""),"---",(IF($EU49>=$CF$17,$CE$17/(24*$FX$27*$FZ$27)*(($EU49-$CD$17)^4-($EU49-$CF$17)^4),IF($EU49>=$CD$17,$CE$17/(24*$FX$27*$FZ$27)*($EU49-$CD$17)^4,0)))+(IF($EU49>=$CF$17,1/(120*$FX$27*$FZ$27)*($CG$17-$CE$17)/($CF$17-$CD$17)*(($EU49-$CD$17)^5-($EU49-$CF$17)^5)-($CG$17-$CE$17)/(24*$FX$27*$FZ$27)*($EU49-$CF$17)^4,IF($EU49>=$CD$17,1/(120*$FX$27*$FZ$27)*($CG$17-$CE$17)/($CF$17-$CD$17)*($EU49-$CD$17)^5,0))))) -> 0 | CK49: =IF($CH$17=$CJ$17,"---",IF(AND($CH$17="",$CI$17="",$CJ$17="",$CK$17=""),"---",(-$CI$17*($GA$27-$CH$17-($GA$27-$CJ$17)))+(-1/2*($CK$17-$CI$17)/($CJ$17-$CH$17)*(($GA$27-$CH$17)^2-($GA$27-$CJ$17)^2)+($CK$17-$CI$17)*($GA$27-$CJ$17)))) -> --- | CL49: =IF($CH$17=$CJ$17,"---",IF(AND($CH$17="",$CI$17="",$CJ$17="",$CK$17=""),"---",(-$CI$17/2*(($GA$27-$CH$17)^2-($GA$27-$CJ$17)^2))+(-1/6*($CK$17-$CI$17)/($CJ$17-$CH$17)*(($GA$27-$CH$17)^3-($GA$27-$CJ$17)^3)+($CK$17-$CI$17)/2*($GA$27-$CJ$17)^2))) -> --- | CM49: =IF($CH$17=$CJ$17,"---",IF(AND($CH$17="",$CI$17="",$CJ$17="",$CK$17=""),"---",(-$CI$17/(6*$FX$27*$FZ$27)*(($GA$27-$CH$17)^3-($GA$27-$CJ$17)^3))+(-1/(24*$FX$27*$FZ$27)*($CK$17-$CI$17)/($CJ$17-$CH$17)*(($GA$27-$CH$17)^4-($GA$27-$CJ$17)^4)+($CK$17-$CI$17)/(6*$FX$27*$FZ$27)*($GA$27-$CJ$17)^3))) -> --- | CN49: =IF($CH$17=$CJ$17,"---",IF(AND($CH$17="",$CI$17="",$CJ$17="",$CK$17=""),"---",($CI$17/(24*$FX$27*$FZ$27)*(($GA$27-$CH$17)^4-($GA$27-$CJ$17)^4))+(1/(120*$FX$27*$FZ$27)*($CK$17-$CI$17)/($CJ$17-$CH$17)*(($GA$27-$CH$17)^5-($GA$27-$CJ$17)^5)-($CK$17-$CI$17)/(24*$FX$27*$FZ$27)*($GA$27-$CJ$17)^4))) -> --- | CO49: =IF($CH$17=$CJ$17,"---",IF(AND($CH$17="",$CI$17="",$CJ$17="",$CK$17=""),"---",(IF($EU49>=$CJ$17,-$CI$17*($EU49-$CH$17-($EU49-$CJ$17)),IF($EU49>=$CH$17,-$CI$17*($EU49-$CH$17),0)))+(IF($EU49>=$CJ$17,-1/2*($CK$17-$CI$17)/($CJ$17-$CH$17)*(($EU49-$CH$17)^2-($EU49-$CJ$17)^2)+($CK$17-$CI$17)*($EU49-$CJ$17),IF($EU49>=$CH$17,-1/2*($CK$17-$CI$17)/($CJ$17-$CH$17)*($EU49-$CH$17)^2,0))))) -> --- | CP49: =IF($CH$17=$CJ$17,"---",IF(AND($CH$17="",$CI$17="",$CJ$17="",$CK$17=""),"---",(IF($EU49>=$CJ$17,-$CI$17/2*(($EU49-$CH$17)^2-($EU49-$CJ$17)^2),IF($EU49>=$CH$17,-$CI$17/2*($EU49-$CH$17)^2,0)))+(IF($EU49>=$CJ$17,-1/6*($CK$17-$CI$17)/($CJ$17-$CH$17)*(($EU49-$CH$17)^3-($EU49-$CJ$17)^3)+($CK$17-$CI$17)/2*($EU49-$CJ$17)^2,IF($EU49>=$CH$17,-1/6*($CK$17-$CI$17)/($CJ$17-$CH$17)*($EU49-$CH$17)^3,0))))) -> --- | CQ49: =IF($CH$17=$CJ$17,"---",IF(AND($CH$17="",$CI$17="",$CJ$17="",$CK$17=""),"---",(IF($EU49>=$CJ$17,-$CI$17/(6*$FX$27*$FZ$27)*(($EU49-$CH$17)^3-($EU49-$CJ$17)^3),IF($EU49>=$CH$17,-$CI$17/(6*$FX$27*$FZ$27)*($EU49-$CH$17)^3,0)))+(IF($EU49>=$CJ$17,-1/(24*$FX$27*$FZ$27)*($CK$17-$CI$17)/($CJ$17-$CH$17)*(($EU49-$CH$17)^4-($EU49-$CJ$17)^4)+($CK$17-$CI$17)/(6*$FX$27*$FZ$27)*($EU49-$CJ$17)^3,IF($EU49>=$CH$17,-1/(24*$FX$27*$FZ$27)*($CK$17-$CI$17)/($CJ$17-$CH$17)*($EU49-$CH$17)^4,0))))) -> --- | CR49: =IF($CH$17=$CJ$17,"---",IF(AND($CH$17="",$CI$17="",$CJ$17="",$CK$17=""),"---",(IF($EU49>=$CJ$17,$CI$17/(24*$FX$27*$FZ$27)*(($EU49-$CH$17)^4-($EU49-$CJ$17)^4),IF($EU49>=$CH$17,$CI$17/(24*$FX$27*$FZ$27)*($EU49-$CH$17)^4,0)))+(IF($EU49>=$CJ$17,1/(120*$FX$27*$FZ$27)*($CK$17-$CI$17)/($CJ$17-$CH$17)*(($EU49-$CH$17)^5-($EU49-$CJ$17)^5)-($CK$17-$CI$17)/(24*$FX$27*$FZ$27)*($EU49-$CJ$17)^4,IF($EU49>=$CH$17,1/(120*$FX$27*$FZ$27)*($CK$17-$CI$17)/($CJ$17-$CH$17)*($EU49-$CH$17)^5,0))))) -> --- | CS49: =IF($CL$17=$CN$17,"---",IF(AND($CL$17="",$CM$17="",$CN$17="",$CO$17=""),"---",(-$CM$17*($GA$27-$CL$17-($GA$27-$CN$17)))+(-1/2*($CO$17-$CM$17)/($CN$17-$CL$17)*(($GA$27-$CL$17)^2-($GA$27-$CN$17)^2)+($CO$17-$CM$17)*($GA$27-$CN$17)))) -> --- | CT49: =IF($CL$17=$CN$17,"---",IF(AND($CL$17="",$CM$17="",$CN$17="",$CO$17=""),"---",(-$CM$17/2*(($GA$27-$CL$17)^2-($GA$27-$CN$17)^2))+(-1/6*($CO$17-$CM$17)/($CN$17-$CL$17)*(($GA$27-$CL$17)^3-($GA$27-$CN$17)^3)+($CO$17-$CM$17)/2*($GA$27-$CN$17)^2))) -> --- | CU49: =IF($CL$17=$CN$17,"---",IF(AND($CL$17="",$CM$17="",$CN$17="",$CO$17=""),"---",(-$CM$17/(6*$FX$27*$FZ$27)*(($GA$27-$CL$17)^3-($GA$27-$CN$17)^3))+(-1/(24*$FX$27*$FZ$27)*($CO$17-$CM$17)/($CN$17-$CL$17)*(($GA$27-$CL$17)^4-($GA$27-$CN$17)^4)+($CO$17-$CM$17)/(6*$FX$27*$FZ$27)*($GA$27-$CN$17)^3))) -> --- | CV49: =IF($CL$17=$CN$17,"---",IF(AND($CL$17="",$CM$17="",$CN$17="",$CO$17=""),"---",($CM$17/(24*$FX$27*$FZ$27)*(($GA$27-$CL$17)^4-($GA$27-$CN$17)^4))+(1/(120*$FX$27*$FZ$27)*($CO$17-$CM$17)/($CN$17-$CL$17)*(($GA$27-$CL$17)^5-($GA$27-$CN$17)^5)-($CO$17-$CM$17)/(24*$FX$27*$FZ$27)*($GA$27-$CN$17)^4))) -> --- | CW49: =IF($CL$17=$CN$17,"---",IF(AND($CL$17="",$CM$17="",$CN$17="",$CO$17=""),"---",(IF($EU49>=$CN$17,-$CM$17*($EU49-$CL$17-($EU49-$CN$17)),IF($EU49>=$CL$17,-$CM$17*($EU49-$CL$17),0)))+(IF($EU49>=$CN$17,-1/2*($CO$17-$CM$17)/($CN$17-$CL$17)*(($EU49-$CL$17)^2-($EU49-$CN$17)^2)+($CO$17-$CM$17)*($EU49-$CN$17),IF($EU49>=$CL$17,-1/2*($CO$17-$CM$17)/($CN$17-$CL$17)*($EU49-$CL$17)^2,0))))) -> --- | CX49: =IF($CL$17=$CN$17,"---",IF(AND($CL$17="",$CM$17="",$CN$17="",$CO$17=""),"---",(IF($EU49>=$CN$17,-$CM$17/2*(($EU49-$CL$17)^2-($EU49-$CN$17)^2),IF($EU49>=$CL$17,-$CM$17/2*($EU49-$CL$17)^2,0)))+(IF($EU49>=$CN$17,-1/6*($CO$17-$CM$17)/($CN$17-$CL$17)*(($EU49-$CL$17)^3-($EU49-$CN$17)^3)+($CO$17-$CM$17)/2*($EU49-$CN$17)^2,IF($EU49>=$CL$17,-1/6*($CO$17-$CM$17)/($CN$17-$CL$17)*($EU49-$CL$17)^3,0))))) -> --- | CY49: =IF($CL$17=$CN$17,"---",IF(AND($CL$17="",$CM$17="",$CN$17="",$CO$17=""),"---",(IF($EU49>=$CN$17,-$CM$17/(6*$FX$27*$FZ$27)*(($EU49-$CL$17)^3-($EU49-$CN$17)^3),IF($EU49>=$CL$17,-$CM$17/(6*$FX$27*$FZ$27)*($EU49-$CL$17)^3,0)))+(IF($EU49>=$CN$17,-1/(24*$FX$27*$FZ$27)*($CO$17-$CM$17)/($CN$17-$CL$17)*(($EU49-$CL$17)^4-($EU49-$CN$17)^4)+($CO$17-$CM$17)/(6*$FX$27*$FZ$27)*($EU49-$CN$17)^3,IF($EU49>=$CL$17,-1/(24*$FX$27*$FZ$27)*($CO$17-$CM$17)/($CN$17-$CL$17)*($EU49-$CL$17)^4,0))))) -> --- | CZ49: =IF($CL$17=$CN$17,"---",IF(AND($CL$17="",$CM$17="",$CN$17="",$CO$17=""),"---",(IF($EU49>=$CN$17,$CM$17/(24*$FX$27*$FZ$27)*(($EU49-$CL$17)^4-($EU49-$CN$17)^4),IF($EU49>=$CL$17,$CM$17/(24*$FX$27*$FZ$27)*($EU49-$CL$17)^4,0)))+(IF($EU49>=$CN$17,1/(120*$FX$27*$FZ$27)*($CO$17-$CM$17)/($CN$17-$CL$17)*(($EU49-$CL$17)^5-($EU49-$CN$17)^5)-($CO$17-$CM$17)/(24*$FX$27*$FZ$27)*($EU49-$CN$17)^4,IF($EU49>=$CL$17,1/(120*$FX$27*$FZ$27)*($CO$17-$CM$17)/($CN$17-$CL$17)*($EU49-$CL$17)^5,0))))) -> --- | DA49: =IF($CP$17=$CR$17,"---",IF(AND($CP$17="",$CQ$17="",$CR$17="",$CS$17=""),"---",(-$CQ$17*($GA$27-$CP$17-($GA$27-$CR$17)))+(-1/2*($CS$17-$CQ$17)/($CR$17-$CP$17)*(($GA$27-$CP$17)^2-($GA$27-$CR$17)^2)+($CS$17-$CQ$17)*($GA$27-$CR$17)))) -> --- | DB49: =IF($CP$17=$CR$17,"---",IF(AND($CP$17="",$CQ$17="",$CR$17="",$CS$17=""),"---",(-$CQ$17/2*(($GA$27-$CP$17)^2-($GA$27-$CR$17)^2))+(-1/6*($CS$17-$CQ$17)/($CR$17-$CP$17)*(($GA$27-$CP$17)^3-($GA$27-$CR$17)^3)+($CS$17-$CQ$17)/2*($GA$27-$CR$17)^2))) -> --- | DC49: =IF($CP$17=$CR$17,"---",IF(AND($CP$17="",$CQ$17="",$CR$17="",$CS$17=""),"---",(-$CQ$17/(6*$FX$27*$FZ$27)*(($GA$27-$CP$17)^3-($GA$27-$CR$17)^3))+(-1/(24*$FX$27*$FZ$27)*($CS$17-$CQ$17)/($CR$17-$CP$17)*(($GA$27-$CP$17)^4-($GA$27-$CR$17)^4)+($CS$17-$CQ$17)/(6*$FX$27*$FZ$27)*($GA$27-$CR$17)^3))) -> --- | DD49: =IF($CP$17=$CR$17,"---",IF(AND($CP$17="",$CQ$17="",$CR$17="",$CS$17=""),"---",($CQ$17/(24*$FX$27*$FZ$27)*(($GA$27-$CP$17)^4-($GA$27-$CR$17)^4))+(1/(120*$FX$27*$FZ$27)*($CS$17-$CQ$17)/($CR$17-$CP$17)*(($GA$27-$CP$17)^5-($GA$27-$CR$17)^5)-($CS$17-$CQ$17)/(24*$FX$27*$FZ$27)*($GA$27-$CR$17)^4))) -> --- | DE49: =IF($CP$17=$CR$17,"---",IF(AND($CP$17="",$CQ$17="",$CR$17="",$CS$17=""),"---",(IF($EU49>=$CR$17,-$CQ$17*($EU49-$CP$17-($EU49-$CR$17)),IF($EU49>=$CP$17,-$CQ$17*($EU49-$CP$17),0)))+(IF($EU49>=$CR$17,-1/2*($CS$17-$CQ$17)/($CR$17-$CP$17)*(($EU49-$CP$17)^2-($EU49-$CR$17)^2)+($CS$17-$CQ$17)*($EU49-$CR$17),IF($EU49>=$CP$17,-1/2*($CS$17-$CQ$17)/($CR$17-$CP$17)*($EU49-$CP$17)^2,0))))) -> --- | DF49: =IF($CP$17=$CR$17,"---",IF(AND($CP$17="",$CQ$17="",$CR$17="",$CS$17=""),"---",(IF($EU49>=$CR$17,-$CQ$17/2*(($EU49-$CP$17)^2-($EU49-$CR$17)^2),IF($EU49>=$CP$17,-$CQ$17/2*($EU49-$CP$17)^2,0)))+(IF($EU49>=$CR$17,-1/6*($CS$17-$CQ$17)/($CR$17-$CP$17)*(($EU49-$CP$17)^3-($EU49-$CR$17)^3)+($CS$17-$CQ$17)/2*($EU49-$CR$17)^2,IF($EU49>=$CP$17,-1/6*($CS$17-$CQ$17)/($CR$17-$CP$17)*($EU49-$CP$17)^3,0))))) -> --- | DG49: =IF($CP$17=$CR$17,"---",IF(AND($CP$17="",$CQ$17="",$CR$17="",$CS$17=""),"---",(IF($EU49>=$CR$17,-$CQ$17/(6*$FX$27*$FZ$27)*(($EU49-$CP$17)^3-($EU49-$CR$17)^3),IF($EU49>=$CP$17,-$CQ$17/(6*$FX$27*$FZ$27)*($EU49-$CP$17)^3,0)))+(IF($EU49>=$CR$17,-1/(24*$FX$27*$FZ$27)*($CS$17-$CQ$17)/($CR$17-$CP$17)*(($EU49-$CP$17)^4-($EU49-$CR$17)^4)+($CS$17-$CQ$17)/(6*$FX$27*$FZ$27)*($EU49-$CR$17)^3,IF($EU49>=$CP$17,-1/(24*$FX$27*$FZ$27)*($CS$17-$CQ$17)/($CR$17-$CP$17)*($EU49-$CP$17)^4,0))))) -> --- | DH49: =IF($CP$17=$CR$17,"---",IF(AND($CP$17="",$CQ$17="",$CR$17="",$CS$17=""),"---",(IF($EU49>=$CR$17,$CQ$17/(24*$FX$27*$FZ$27)*(($EU49-$CP$17)^4-($EU49-$CR$17)^4),IF($EU49>=$CP$17,$CQ$17/(24*$FX$27*$FZ$27)*($EU49-$CP$17)^4,0)))+(IF($EU49>=$CR$17,1/(120*$FX$27*$FZ$27)*($CS$17-$CQ$17)/($CR$17-$CP$17)*(($EU49-$CP$17)^5-($EU49-$CR$17)^5)-($CS$17-$CQ$17)/(24*$FX$27*$FZ$27)*($EU49-$CR$17)^4,IF($EU49>=$CP$17,1/(120*$FX$27*$FZ$27)*($CS$17-$CQ$17)/($CR$17-$CP$17)*($EU49-$CP$17)^5,0))))) -> --- | DI49: =IF($CT$17=$CV$17,"---",IF(AND($CT$17="",$CU$17="",$CV$17="",$CW$17=""),"---",(-$CU$17*($GA$27-$CT$17-($GA$27-$CV$17)))+(-1/2*($CW$17-$CU$17)/($CV$17-$CT$17)*(($GA$27-$CT$17)^2-($GA$27-$CV$17)^2)+($CW$17-$CU$17)*($GA$27-$CV$17)))) -> --- | DJ49: =IF($CT$17=$CV$17,"---",IF(AND($CT$17="",$CU$17="",$CV$17="",$CW$17=""),"---",(-$CU$17/2*(($GA$27-$CT$17)^2-($GA$27-$CV$17)^2))+(-1/6*($CW$17-$CU$17)/($CV$17-$CT$17)*(($GA$27-$CT$17)^3-($GA$27-$CV$17)^3)+($CW$17-$CU$17)/2*($GA$27-$CV$17)^2))) -> --- | DK49: =IF($CT$17=$CV$17,"---",IF(AND($CT$17="",$CU$17="",$CV$17="",$CW$17=""),"---",(-$CU$17/(6*$FX$27*$FZ$27)*(($GA$27-$CT$17)^3-($GA$27-$CV$17)^3))+(-1/(24*$FX$27*$FZ$27)*($CW$17-$CU$17)/($CV$17-$CT$17)*(($GA$27-$CT$17)^4-($GA$27-$CV$17)^4)+($CW$17-$CU$17)/(6*$FX$27*$FZ$27)*($GA$27-$CV$17)^3))) -> --- | DL49: =IF($CT$17=$CV$17,"---",IF(AND($CT$17="",$CU$17="",$CV$17="",$CW$17=""),"---",($CU$17/(24*$FX$27*$FZ$27)*(($GA$27-$CT$17)^4-($GA$27-$CV$17)^4))+(1/(120*$FX$27*$FZ$27)*($CW$17-$CU$17)/($CV$17-$CT$17)*(($GA$27-$CT$17)^5-($GA$27-$CV$17)^5)-($CW$17-$CU$17)/(24*$FX$27*$FZ$27)*($GA$27-$CV$17)^4))) -> --- | DM49: =IF($CT$17=$CV$17,"---",IF(AND($CT$17="",$CU$17="",$CV$17="",$CW$17=""),"---",(IF($EU49>=$CV$17,-$CU$17*($EU49-$CT$17-($EU49-$CV$17)),IF($EU49>=$CT$17,-$CU$17*($EU49-$CT$17),0)))+(IF($EU49>=$CV$17,-1/2*($CW$17-$CU$17)/($CV$17-$CT$17)*(($EU49-$CT$17)^2-($EU49-$CV$17)^2)+($CW$17-$CU$17)*($EU49-$CV$17),IF($EU49>=$CT$17,-1/2*($CW$17-$CU$17)/($CV$17-$CT$17)*($EU49-$CT$17)^2,0))))) -> --- | DN49: =IF($CT$17=$CV$17,"---",IF(AND($CT$17="",$CU$17="",$CV$17="",$CW$17=""),"---",(IF($EU49>=$CV$17,-$CU$17/2*(($EU49-$CT$17)^2-($EU49-$CV$17)^2),IF($EU49>=$CT$17,-$CU$17/2*($EU49-$CT$17)^2,0)))+(IF($EU49>=$CV$17,-1/6*($CW$17-$CU$17)/($CV$17-$CT$17)*(($EU49-$CT$17)^3-($EU49-$CV$17)^3)+($CW$17-$CU$17)/2*($EU49-$CV$17)^2,IF($EU49>=$CT$17,-1/6*($CW$17-$CU$17)/($CV$17-$CT$17)*($EU49-$CT$17)^3,0))))) -> --- | DO49: =IF($CT$17=$CV$17,"---",IF(AND($CT$17="",$CU$17="",$CV$17="",$CW$17=""),"---",(IF($EU49>=$CV$17,-$CU$17/(6*$FX$27*$FZ$27)*(($EU49-$CT$17)^3-($EU49-$CV$17)^3),IF($EU49>=$CT$17,-$CU$17/(6*$FX$27*$FZ$27)*($EU49-$CT$17)^3,0)))+(IF($EU49>=$CV$17,-1/(24*$FX$27*$FZ$27)*($CW$17-$CU$17)/($CV$17-$CT$17)*(($EU49-$CT$17)^4-($EU49-$CV$17)^4)+($CW$17-$CU$17)/(6*$FX$27*$FZ$27)*($EU49-$CV$17)^3,IF($EU49>=$CT$17,-1/(24*$FX$27*$FZ$27)*($CW$17-$CU$17)/($CV$17-$CT$17)*($EU49-$CT$17)^4,0))))) -> --- | DP49: =IF($CT$17=$CV$17,"---",IF(AND($CT$17="",$CU$17="",$CV$17="",$CW$17=""),"---",(IF($EU49>=$CV$17,$CU$17/(24*$FX$27*$FZ$27)*(($EU49-$CT$17)^4-($EU49-$CV$17)^4),IF($EU49>=$CT$17,$CU$17/(24*$FX$27*$FZ$27)*($EU49-$CT$17)^4,0)))+(IF($EU49>=$CV$17,1/(120*$FX$27*$FZ$27)*($CW$17-$CU$17)/($CV$17-$CT$17)*(($EU49-$CT$17)^5-($EU49-$CV$17)^5)-($CW$17-$CU$17)/(24*$FX$27*$FZ$27)*($EU49-$CV$17)^4,IF($EU49>=$CT$17,1/(120*$FX$27*$FZ$27)*($CW$17-$CU$17)/($CV$17-$CT$17)*($EU49-$CT$17)^5,0))))) -> --- | DQ49: =-$CE$28+-$CG$28+-$CI$28+-$CK$28+-$CM$28+-$CO$28+-$CQ$28+-$CS$28+-$CU$28+-$CW$28 -> 0 | DR49: =-$CE$28*($GA$27-$CD$28)+-$CG$28*($GA$27-$CF$28)+-$CI$28*($GA$27-$CH$28)+-$CK$28*($GA$27-$CJ$28)+-$CM$28*($GA$27-$CL$28)+-$CO$28*($GA$27-$CN$28)+-$CQ$28*($GA$27-$CP$28)+-$CS$28*($GA$27-$CR$28)+-$CU$28*($GA$27-$CT$28)+-$CW$28*($GA$27-$CV$28) -> 0 | DS49: =-$CE$28*($GA$27-$CD$28)^2/(2*$FX$27*$FZ$27)+-$CG$28*($GA$27-$CF$28)^2/(2*$FX$27*$FZ$27)+-$CI$28*($GA$27-$CH$28)^2/(2*$FX$27*$FZ$27)+-$CK$28*($GA$27-$CJ$28)^2/(2*$FX$27*$FZ$27)+-$CM$28*($GA$27-$CL$28)^2/(2*$FX$27*$FZ$27)+-$CO$28*($GA$27-$CN$28)^2/(2*$FX$27*$FZ$27)+-$CQ$28*($GA$27-$CP$28)^2/(2*$FX$27*$FZ$27)+-$CS$28*($GA$27-$CR$28)^2/(2*$FX$27*$FZ$27)+-$CU$28*($GA$27-$CT$28)^2/(2*$FX$27*$FZ$27)+-$CW$28*($GA$27-$CV$28)^2/(2*$FX$27*$FZ$27) -> 0 | DT49: =$CE$28*($GA$27-$CD$28)^3/(6*$FX$27*$FZ$27)+$CG$28*($GA$27-$CF$28)^3/(6*$FX$27*$FZ$27)+$CI$28*($GA$27-$CH$28)^3/(6*$FX$27*$FZ$27)+$CK$28*($GA$27-$CJ$28)^3/(6*$FX$27*$FZ$27)+$CM$28*($GA$27-$CL$28)^3/(6*$FX$27*$FZ$27)+$CO$28*($GA$27-$CN$28)^3/(6*$FX$27*$FZ$27)+$CQ$28*($GA$27-$CP$28)^3/(6*$FX$27*$FZ$27)+$CS$28*($GA$27-$CR$28)^3/(6*$FX$27*$FZ$27)+$CU$28*($GA$27-$CT$28)^3/(6*$FX$27*$FZ$27)+$CW$28*($GA$27-$CV$28)^3/(6*$FX$27*$FZ$27) -> 0 | DU49: =IF($EU49>$CD$28,-$CE$28,0)+IF($EU49>$CF$28,-$CG$28,0)+IF($EU49>$CH$28,-$CI$28,0)+IF($EU49>$CJ$28,-$CK$28,0)+IF($EU49>$CL$28,-$CM$28,0)+IF($EU49>$CN$28,-$CO$28,0)+IF($EU49>$CP$28,-$CQ$28,0)+IF($EU49>$CR$28,-$CS$28,0)+IF($EU49>$CT$28,-$CU$28,0)+IF($EU49>$CV$28,-$CW$28,0) -> 0 | DV49: =IF($EU49>$CD$28,-$CE$28*($EU49-$CD$28),0)+IF($EU49>$CF$28,-$CG$28*($EU49-$CF$28),0)+IF($EU49>$CH$28,-$CI$28*($EU49-$CH$28),0)+IF($EU49>$CJ$28,-$CK$28*($EU49-$CJ$28),0)+IF($EU49>$CL$28,-$CM$28*($EU49-$CL$28),0)+IF($EU49>$CN$28,-$CO$28*($EU49-$CN$28),0)+IF($EU49>$CP$28,-$CQ$28*($EU49-$CP$28),0)+IF($EU49>$CR$28,-$CS$28*($EU49-$CR$28),0)+IF($EU49>$CT$28,-$CU$28*($EU49-$CT$28),0)+IF($EU49>$CV$28,-$CW$28*($EU49-$CV$28),0) -> 0 | DW49: =IF($EU49>$CD$28,-$CE$28*($EU49-$CD$28)^2/(2*$FX$27*$FZ$27),0)+IF($EU49>$CF$28,-$CG$28*($EU49-$CF$28)^2/(2*$FX$27*$FZ$27),0)+IF($EU49>$CH$28,-$CI$28*($EU49-$CH$28)^2/(2*$FX$27*$FZ$27),0)+IF($EU49>$CJ$28,-$CK$28*($EU49-$CJ$28)^2/(2*$FX$27*$FZ$27),0)+IF($EU49>$CL$28,-$CM$28*($EU49-$CL$28)^2/(2*$FX$27*$FZ$27),0)+IF($EU49>$CN$28,-$CO$28*($EU49-$CN$28)^2/(2*$FX$27*$FZ$27),0)+IF($EU49>$CP$28,-$CQ$28*($EU49-$CP$28)^2/(2*$FX$27*$FZ$27),0)+IF($EU49>$CR$28,-$CS$28*($EU49-$CR$28)^2/(2*$FX$27*$FZ$27),0)+IF($EU49>$CT$28,-$CU$28*($EU49-$CT$28)^2/(2*$FX$27*$FZ$27),0)+IF($EU49>$CV$28,-$CW$28*($EU49-$CV$28)^2/(2*$FX$27*$FZ$27),0) -> 0 | DX49: =IF($EU49>$CD$28,$CE$28*($EU49-$CD$28)^3/(6*$FX$27*$FZ$27),0)+IF($EU49>$CF$28,$CG$28*($EU49-$CF$28)^3/(6*$FX$27*$FZ$27),0)+IF($EU49>$CH$28,$CI$28*($EU49-$CH$28)^3/(6*$FX$27*$FZ$27),0)+IF($EU49>$CJ$28,$CK$28*($EU49-$CJ$28)^3/(6*$FX$27*$FZ$27),0)+IF($EU49>$CL$28,$CM$28*($EU49-$CL$28)^3/(6*$FX$27*$FZ$27),0)+IF($EU49>$CN$28,$CO$28*($EU49-$CN$28)^3/(6*$FX$27*$FZ$27),0)+IF($EU49>$CP$28,$CQ$28*($EU49-$CP$28)^3/(6*$FX$27*$FZ$27),0)+IF($EU49>$CR$28,$CS$28*($EU49-$CR$28)^3/(6*$FX$27*$FZ$27),0)+IF($EU49>$CT$28,$CU$28*($EU49-$CT$28)^3/(6*$FX$27*$FZ$27),0)+IF($EU49>$CV$28,$CW$28*($EU49-$CV$28)^3/(6*$FX$27*$FZ$27),0) -> 0 | DY49: =0+0+0+0 -> 0 | DZ49: =-$CE$39+-$CG$39+-$CI$39+-$CK$39+-CM39 -> 0 | EA49: =-$CE$39*($GA$27-$CD$39)/($FX$27*$FZ$27)+-$CG$39*($GA$27-$CF$39)/($FX$27*$FZ$27)+-$CI$39*($GA$27-$CH$39)/($FX$27*$FZ$27)+-$CK$39*($GA$27-$CJ$39)/($FX$27*$FZ$27)+-$CM$39*($GA$27-$CL$39)/($FX$27*$FZ$27) -> 0 | EB49: =$CE$39*($GA$27-$CD$39)^2/(2*$FX$27*$FZ$27)+$CG$39*($GA$27-$CF$39)^2/(2*$FX$27*$FZ$27)+$CI$39*($GA$27-$CH$39)^2/(2*$FX$27*$FZ$27)+$CK$39*($GA$27-$CJ$39)^2/(2*$FX$27*$FZ$27)+$CM$39*($GA$27-$CL$39)^2/(2*$FX$27*$FZ$27) -> 0 | EC49: =IF($EU49>=IF($CD$39=$GA$27,$CD$39+0.000000001,$CD$39),0,0)+IF($EU49>=IF($CF$39=$GA$27,$CF$39+0.000000001,$CF$39),0,0)+IF($EU49>=IF($CH$39=$GA$27,$CH$39+0.000000001,$CH$39),0,0)+IF($EU49>=IF($CJ$39=$GA$27,$CJ$39+0.000000001,$CJ$39),0,0)+IF($EU49>=IF($CL$39=$GA$27,$CL$39+0.000000001,$CL$39),0,0) -> 0 | ED49: =IF($EU49>=IF($CD$39=$GA$27,$CD$39+0.000000001,$CD$39),-$CE$39,0)+IF($EU49>=IF($CF$39=$GA$27,$CF$39+0.000000001,$CF$39),-$CG$39,0)+IF($EU49>=IF($CH$39=$GA$27,$CH$39+0.000000001,$CH$39),-$CI$39,0)+IF($EU49>=IF($CJ$39=$GA$27,$CJ$39+0.000000001,$CJ$39),-$CK$39,0)+IF($EU49>=IF($CL$39=$GA$27,$CL$39+0.000000001,$CL$39),-$CM$39,0) -> 0 | EE49: =IF($EU49>=IF($CD$39=$GA$27,$CD$39+0.000000001,$CD$39),-$CE$39*($EU49-$CD$39)/($FX$27*$FZ$27),0)+IF($EU49>=IF($CF$39=$GA$27,$CF$39+0.000000001,$CF$39),-$CG$39*($EU49-$CF$39)/($FX$27*$FZ$27),0)+IF($EU49>=IF($CH$39=$GA$27,$CH$39+0.000000001,$CH$39),-$CI$39*($EU49-$CH$39)/($FX$27*$FZ$27),0)+IF($EU49>=IF($CJ$39=$GA$27,$CJ$39+0.000000001,$CJ$39),-$CK$39*($EU49-$CJ$39)/($FX$27*$FZ$27),0)+IF($EU49>=IF($CL$39=$GA$27,$CL$39+0.000000001,$CL$39),-$CM$39*($EU49-$CL$39)/($FX$27*$FZ$27),0) -> 0 | EF49: =IF($EU49>=IF($CD$39=$GA$27,$CD$39+0.000000001,$CD$39),$CE$39*($EU49-$CD$39)^2/(2*$FX$27*$FZ$27),0)+IF($EU49>=IF($CF$39=$GA$27,$CF$39+0.000000001,$CF$39),$CG$39*($EU49-$CF$39)^2/(2*$FX$27*$FZ$27),0)+IF($EU49>=IF($CH$39=$GA$27,$CH$39+0.000000001,$CH$39),$CI$39*($EU49-$CH$39)^2/(2*$FX$27*$FZ$27),0)+IF($EU49>=IF($CJ$39=$GA$27,$CJ$39+0.000000001,$CJ$39),$CK$39*($EU49-$CJ$39)^2/(2*$FX$27*$FZ$27),0)+IF($EU49>=IF($CL$39=$GA$27,$CL$39+0.000000001,$CL$39),$CM$39*($EU49-$CL$39)^2/(2*$FX$27*$FZ$27),0) -> 0 | EG49: 39.34158082 | EH49: 602.3408468 | EI49: 0.0003645828336 | EJ49: -0.002923883839 | EK49: 0 | EL49: 0 | EM49: 0 | EN49: 0 | EO49: =-12*$FX$27*$FZ$27/$GA$27^3*$EJ49-6*$FX$27*$FZ$27/$GA$27^2*$EI49 -> -18.09712718 | EP49: =6*$FX$27*$FZ$27/$GA$27^2*$EJ49+2*$FX$27*$FZ$27/$GA$27*$EI49 -> 103.2584309 | EQ49: =0 -> 0 | ER49: =0 -> 0 | ES49: =$EO49+$EK49 -> -18.09712718 | ET49: 103.2584309 | EU49: =0 -> 0 | EV49: Member #2(Y) FEM(L): | FV49: Point Loads:
CB50: Member #2(Y) FEM(R): | CC50: =$CC$49 -> 39.34158082 | CD50: =$CD$49 -> 602.3408468 | CE50: =$CE$49 -> 0.0003645828336 | CF50: =$CF$49 -> -0.002923883839 | CG50: =IF($CD$17=$CF$17,"---",IF(AND($CD$17="",$CE$17="",$CF$17="",$CG$17=""),"---",(IF($EU50>=$CF$17,-$CE$17*($EU50-$CD$17-($EU50-$CF$17)),IF($EU50>=$CD$17,-$CE$17*($EU50-$CD$17),0)))+(IF($EU50>=$CF$17,-1/2*($CG$17-$CE$17)/($CF$17-$CD$17)*(($EU50-$CD$17)^2-($EU50-$CF$17)^2)+($CG$17-$CE$17)*($EU50-$CF$17),IF($EU50>=$CD$17,-1/2*($CG$17-$CE$17)/($CF$17-$CD$17)*($EU50-$CD$17)^2,0))))) -> 39.34158082 | CH50: =IF($CD$17=$CF$17,"---",IF(AND($CD$17="",$CE$17="",$CF$17="",$CG$17=""),"---",(IF($EU50>=$CF$17,-$CE$17/2*(($EU50-$CD$17)^2-($EU50-$CF$17)^2),IF($EU50>=$CD$17,-$CE$17/2*($EU50-$CD$17)^2,0)))+(IF($EU50>=$CF$17,-1/6*($CG$17-$CE$17)/($CF$17-$CD$17)*(($EU50-$CD$17)^3-($EU50-$CF$17)^3)+($CG$17-$CE$17)/2*($EU50-$CF$17)^2,IF($EU50>=$CD$17,-1/6*($CG$17-$CE$17)/($CF$17-$CD$17)*($EU50-$CD$17)^3,0))))) -> 602.3408468 | CI50: =IF($CD$17=$CF$17,"---",IF(AND($CD$17="",$CE$17="",$CF$17="",$CG$17=""),"---",(IF($EU50>=$CF$17,-$CE$17/(6*$FX$27*$FZ$27)*(($EU50-$CD$17)^3-($EU50-$CF$17)^3),IF($EU50>=$CD$17,-$CE$17/(6*$FX$27*$FZ$27)*($EU50-$CD$17)^3,0)))+(IF($EU50>=$CF$17,-1/(24*$FX$27*$FZ$27)*($CG$17-$CE$17)/($CF$17-$CD$17)*(($EU50-$CD$17)^4-($EU50-$CF$17)^4)+($CG$17-$CE$17)/(6*$FX$27*$FZ$27)*($EU50-$CF$17)^3,IF($EU50>=$CD$17,-1/(24*$FX$27*$FZ$27)*($CG$17-$CE$17)/($CF$17-$CD$17)*($EU50-$CD$17)^4,0))))) -> 0.0003645828336 | CJ50: =IF($CD$17=$CF$17,"---",IF(AND($CD$17="",$CE$17="",$CF$17="",$CG$17=""),"---",(IF($EU50>=$CF$17,$CE$17/(24*$FX$27*$FZ$27)*(($EU50-$CD$17)^4-($EU50-$CF$17)^4),IF($EU50>=$CD$17,$CE$17/(24*$FX$27*$FZ$27)*($EU50-$CD$17)^4,0)))+(IF($EU50>=$CF$17,1/(120*$FX$27*$FZ$27)*($CG$17-$CE$17)/($CF$17-$CD$17)*(($EU50-$CD$17)^5-($EU50-$CF$17)^5)-($CG$17-$CE$17)/(24*$FX$27*$FZ$27)*($EU50-$CF$17)^4,IF($EU50>=$CD$17,1/(120*$FX$27*$FZ$27)*($CG$17-$CE$17)/($CF$17-$CD$17)*($EU50-$CD$17)^5,0))))) -> -0.002923883839 | CK50: =$CK$49 -> --- | CL50: =$CL$49 -> --- | CM50: =$CM$49 -> --- | CN50: =$CN$49 -> --- | CO50: =IF($CH$17=$CJ$17,"---",IF(AND($CH$17="",$CI$17="",$CJ$17="",$CK$17=""),"---",(IF($EU50>=$CJ$17,-$CI$17*($EU50-$CH$17-($EU50-$CJ$17)),IF($EU50>=$CH$17,-$CI$17*($EU50-$CH$17),0)))+(IF($EU50>=$CJ$17,-1/2*($CK$17-$CI$17)/($CJ$17-$CH$17)*(($EU50-$CH$17)^2-($EU50-$CJ$17)^2)+($CK$17-$CI$17)*($EU50-$CJ$17),IF($EU50>=$CH$17,-1/2*($CK$17-$CI$17)/($CJ$17-$CH$17)*($EU50-$CH$17)^2,0))))) -> --- | CP50: =IF($CH$17=$CJ$17,"---",IF(AND($CH$17="",$CI$17="",$CJ$17="",$CK$17=""),"---",(IF($EU50>=$CJ$17,-$CI$17/2*(($EU50-$CH$17)^2-($EU50-$CJ$17)^2),IF($EU50>=$CH$17,-$CI$17/2*($EU50-$CH$17)^2,0)))+(IF($EU50>=$CJ$17,-1/6*($CK$17-$CI$17)/($CJ$17-$CH$17)*(($EU50-$CH$17)^3-($EU50-$CJ$17)^3)+($CK$17-$CI$17)/2*($EU50-$CJ$17)^2,IF($EU50>=$CH$17,-1/6*($CK$17-$CI$17)/($CJ$17-$CH$17)*($EU50-$CH$17)^3,0))))) -> --- | CQ50: =IF($CH$17=$CJ$17,"---",IF(AND($CH$17="",$CI$17="",$CJ$17="",$CK$17=""),"---",(IF($EU50>=$CJ$17,-$CI$17/(6*$FX$27*$FZ$27)*(($EU50-$CH$17)^3-($EU50-$CJ$17)^3),IF($EU50>=$CH$17,-$CI$17/(6*$FX$27*$FZ$27)*($EU50-$CH$17)^3,0)))+(IF($EU50>=$CJ$17,-1/(24*$FX$27*$FZ$27)*($CK$17-$CI$17)/($CJ$17-$CH$17)*(($EU50-$CH$17)^4-($EU50-$CJ$17)^4)+($CK$17-$CI$17)/(6*$FX$27*$FZ$27)*($EU50-$CJ$17)^3,IF($EU50>=$CH$17,-1/(24*$FX$27*$FZ$27)*($CK$17-$CI$17)/($CJ$17-$CH$17)*($EU50-$CH$17)^4,0))))) -> --- | CR50: =IF($CH$17=$CJ$17,"---",IF(AND($CH$17="",$CI$17="",$CJ$17="",$CK$17=""),"---",(IF($EU50>=$CJ$17,$CI$17/(24*$FX$27*$FZ$27)*(($EU50-$CH$17)^4-($EU50-$CJ$17)^4),IF($EU50>=$CH$17,$CI$17/(24*$FX$27*$FZ$27)*($EU50-$CH$17)^4,0)))+(IF($EU50>=$CJ$17,1/(120*$FX$27*$FZ$27)*($CK$17-$CI$17)/($CJ$17-$CH$17)*(($EU50-$CH$17)^5-($EU50-$CJ$17)^5)-($CK$17-$CI$17)/(24*$FX$27*$FZ$27)*($EU50-$CJ$17)^4,IF($EU50>=$CH$17,1/(120*$FX$27*$FZ$27)*($CK$17-$CI$17)/($CJ$17-$CH$17)*($EU50-$CH$17)^5,0))))) -> --- | CS50: =$CS$49 -> --- | CT50: =$CT$49 -> --- | CU50: =$CU$49 -> --- | CV50: =$CV$49 -> --- | CW50: =IF($CL$17=$CN$17,"---",IF(AND($CL$17="",$CM$17="",$CN$17="",$CO$17=""),"---",(IF($EU50>=$CN$17,-$CM$17*($EU50-$CL$17-($EU50-$CN$17)),IF($EU50>=$CL$17,-$CM$17*($EU50-$CL$17),0)))+(IF($EU50>=$CN$17,-1/2*($CO$17-$CM$17)/($CN$17-$CL$17)*(($EU50-$CL$17)^2-($EU50-$CN$17)^2)+($CO$17-$CM$17)*($EU50-$CN$17),IF($EU50>=$CL$17,-1/2*($CO$17-$CM$17)/($CN$17-$CL$17)*($EU50-$CL$17)^2,0))))) -> --- | CX50: =IF($CL$17=$CN$17,"---",IF(AND($CL$17="",$CM$17="",$CN$17="",$CO$17=""),"---",(IF($EU50>=$CN$17,-$CM$17/2*(($EU50-$CL$17)^2-($EU50-$CN$17)^2),IF($EU50>=$CL$17,-$CM$17/2*($EU50-$CL$17)^2,0)))+(IF($EU50>=$CN$17,-1/6*($CO$17-$CM$17)/($CN$17-$CL$17)*(($EU50-$CL$17)^3-($EU50-$CN$17)^3)+($CO$17-$CM$17)/2*($EU50-$CN$17)^2,IF($EU50>=$CL$17,-1/6*($CO$17-$CM$17)/($CN$17-$CL$17)*($EU50-$CL$17)^3,0))))) -> --- | CY50: =IF($CL$17=$CN$17,"---",IF(AND($CL$17="",$CM$17="",$CN$17="",$CO$17=""),"---",(IF($EU50>=$CN$17,-$CM$17/(6*$FX$27*$FZ$27)*(($EU50-$CL$17)^3-($EU50-$CN$17)^3),IF($EU50>=$CL$17,-$CM$17/(6*$FX$27*$FZ$27)*($EU50-$CL$17)^3,0)))+(IF($EU50>=$CN$17,-1/(24*$FX$27*$FZ$27)*($CO$17-$CM$17)/($CN$17-$CL$17)*(($EU50-$CL$17)^4-($EU50-$CN$17)^4)+($CO$17-$CM$17)/(6*$FX$27*$FZ$27)*($EU50-$CN$17)^3,IF($EU50>=$CL$17,-1/(24*$FX$27*$FZ$27)*($CO$17-$CM$17)/($CN$17-$CL$17)*($EU50-$CL$17)^4,0))))) -> --- | CZ50: =IF($CL$17=$CN$17,"---",IF(AND($CL$17="",$CM$17="",$CN$17="",$CO$17=""),"---",(IF($EU50>=$CN$17,$CM$17/(24*$FX$27*$FZ$27)*(($EU50-$CL$17)^4-($EU50-$CN$17)^4),IF($EU50>=$CL$17,$CM$17/(24*$FX$27*$FZ$27)*($EU50-$CL$17)^4,0)))+(IF($EU50>=$CN$17,1/(120*$FX$27*$FZ$27)*($CO$17-$CM$17)/($CN$17-$CL$17)*(($EU50-$CL$17)^5-($EU50-$CN$17)^5)-($CO$17-$CM$17)/(24*$FX$27*$FZ$27)*($EU50-$CN$17)^4,IF($EU50>=$CL$17,1/(120*$FX$27*$FZ$27)*($CO$17-$CM$17)/($CN$17-$CL$17)*($EU50-$CL$17)^5,0))))) -> --- | DA50: =$DA$49 -> --- | DB50: =$DB$49 -> --- | DC50: =$DC$49 -> --- | DD50: =$DD$49 -> --- | DE50: =IF($CP$17=$CR$17,"---",IF(AND($CP$17="",$CQ$17="",$CR$17="",$CS$17=""),"---",(IF($EU50>=$CR$17,-$CQ$17*($EU50-$CP$17-($EU50-$CR$17)),IF($EU50>=$CP$17,-$CQ$17*($EU50-$CP$17),0)))+(IF($EU50>=$CR$17,-1/2*($CS$17-$CQ$17)/($CR$17-$CP$17)*(($EU50-$CP$17)^2-($EU50-$CR$17)^2)+($CS$17-$CQ$17)*($EU50-$CR$17),IF($EU50>=$CP$17,-1/2*($CS$17-$CQ$17)/($CR$17-$CP$17)*($EU50-$CP$17)^2,0))))) -> --- | DF50: =IF($CP$17=$CR$17,"---",IF(AND($CP$17="",$CQ$17="",$CR$17="",$CS$17=""),"---",(IF($EU50>=$CR$17,-$CQ$17/2*(($EU50-$CP$17)^2-($EU50-$CR$17)^2),IF($EU50>=$CP$17,-$CQ$17/2*($EU50-$CP$17)^2,0)))+(IF($EU50>=$CR$17,-1/6*($CS$17-$CQ$17)/($CR$17-$CP$17)*(($EU50-$CP$17)^3-($EU50-$CR$17)^3)+($CS$17-$CQ$17)/2*($EU50-$CR$17)^2,IF($EU50>=$CP$17,-1/6*($CS$17-$CQ$17)/($CR$17-$CP$17)*($EU50-$CP$17)^3,0))))) -> --- | DG50: =IF($CP$17=$CR$17,"---",IF(AND($CP$17="",$CQ$17="",$CR$17="",$CS$17=""),"---",(IF($EU50>=$CR$17,-$CQ$17/(6*$FX$27*$FZ$27)*(($EU50-$CP$17)^3-($EU50-$CR$17)^3),IF($EU50>=$CP$17,-$CQ$17/(6*$FX$27*$FZ$27)*($EU50-$CP$17)^3,0)))+(IF($EU50>=$CR$17,-1/(24*$FX$27*$FZ$27)*($CS$17-$CQ$17)/($CR$17-$CP$17)*(($EU50-$CP$17)^4-($EU50-$CR$17)^4)+($CS$17-$CQ$17)/(6*$FX$27*$FZ$27)*($EU50-$CR$17)^3,IF($EU50>=$CP$17,-1/(24*$FX$27*$FZ$27)*($CS$17-$CQ$17)/($CR$17-$CP$17)*($EU50-$CP$17)^4,0))))) -> --- | DH50: =IF($CP$17=$CR$17,"---",IF(AND($CP$17="",$CQ$17="",$CR$17="",$CS$17=""),"---",(IF($EU50>=$CR$17,$CQ$17/(24*$FX$27*$FZ$27)*(($EU50-$CP$17)^4-($EU50-$CR$17)^4),IF($EU50>=$CP$17,$CQ$17/(24*$FX$27*$FZ$27)*($EU50-$CP$17)^4,0)))+(IF($EU50>=$CR$17,1/(120*$FX$27*$FZ$27)*($CS$17-$CQ$17)/($CR$17-$CP$17)*(($EU50-$CP$17)^5-($EU50-$CR$17)^5)-($CS$17-$CQ$17)/(24*$FX$27*$FZ$27)*($EU50-$CR$17)^4,IF($EU50>=$CP$17,1/(120*$FX$27*$FZ$27)*($CS$17-$CQ$17)/($CR$17-$CP$17)*($EU50-$CP$17)^5,0))))) -> --- | DI50: =$DI$49 -> --- | DJ50: =$DJ$49 -> --- | DK50: =$DK$49 -> --- | DL50: =$DL$49 -> --- | DM50: =IF($CT$17=$CV$17,"---",IF(AND($CT$17="",$CU$17="",$CV$17="",$CW$17=""),"---",(IF($EU50>=$CV$17,-$CU$17*($EU50-$CT$17-($EU50-$CV$17)),IF($EU50>=$CT$17,-$CU$17*($EU50-$CT$17),0)))+(IF($EU50>=$CV$17,-1/2*($CW$17-$CU$17)/($CV$17-$CT$17)*(($EU50-$CT$17)^2-($EU50-$CV$17)^2)+($CW$17-$CU$17)*($EU50-$CV$17),IF($EU50>=$CT$17,-1/2*($CW$17-$CU$17)/($CV$17-$CT$17)*($EU50-$CT$17)^2,0))))) -> --- | DN50: =IF($CT$17=$CV$17,"---",IF(AND($CT$17="",$CU$17="",$CV$17="",$CW$17=""),"---",(IF($EU50>=$CV$17,-$CU$17/2*(($EU50-$CT$17)^2-($EU50-$CV$17)^2),IF($EU50>=$CT$17,-$CU$17/2*($EU50-$CT$17)^2,0)))+(IF($EU50>=$CV$17,-1/6*($CW$17-$CU$17)/($CV$17-$CT$17)*(($EU50-$CT$17)^3-($EU50-$CV$17)^3)+($CW$17-$CU$17)/2*($EU50-$CV$17)^2,IF($EU50>=$CT$17,-1/6*($CW$17-$CU$17)/($CV$17-$CT$17)*($EU50-$CT$17)^3,0))))) -> --- | DO50: =IF($CT$17=$CV$17,"---",IF(AND($CT$17="",$CU$17="",$CV$17="",$CW$17=""),"---",(IF($EU50>=$CV$17,-$CU$17/(6*$FX$27*$FZ$27)*(($EU50-$CT$17)^3-($EU50-$CV$17)^3),IF($EU50>=$CT$17,-$CU$17/(6*$FX$27*$FZ$27)*($EU50-$CT$17)^3,0)))+(IF($EU50>=$CV$17,-1/(24*$FX$27*$FZ$27)*($CW$17-$CU$17)/($CV$17-$CT$17)*(($EU50-$CT$17)^4-($EU50-$CV$17)^4)+($CW$17-$CU$17)/(6*$FX$27*$FZ$27)*($EU50-$CV$17)^3,IF($EU50>=$CT$17,-1/(24*$FX$27*$FZ$27)*($CW$17-$CU$17)/($CV$17-$CT$17)*($EU50-$CT$17)^4,0))))) -> --- | DP50: =IF($CT$17=$CV$17,"---",IF(AND($CT$17="",$CU$17="",$CV$17="",$CW$17=""),"---",(IF($EU50>=$CV$17,$CU$17/(24*$FX$27*$FZ$27)*(($EU50-$CT$17)^4-($EU50-$CV$17)^4),IF($EU50>=$CT$17,$CU$17/(24*$FX$27*$FZ$27)*($EU50-$CT$17)^4,0)))+(IF($EU50>=$CV$17,1/(120*$FX$27*$FZ$27)*($CW$17-$CU$17)/($CV$17-$CT$17)*(($EU50-$CT$17)^5-($EU50-$CV$17)^5)-($CW$17-$CU$17)/(24*$FX$27*$FZ$27)*($EU50-$CV$17)^4,IF($EU50>=$CT$17,1/(120*$FX$27*$FZ$27)*($CW$17-$CU$17)/($CV$17-$CT$17)*($EU50-$CT$17)^5,0))))) -> --- | DQ50: =$DQ$49 -> 0 | DR50: =$DR$49 -> 0 | DS50: =$DS$49 -> 0 | DT50: =$DT$49 -> 0 | DU50: =IF($EU50>$CD$28,-$CE$28,0)+IF($EU50>$CF$28,-$CG$28,0)+IF($EU50>$CH$28,-$CI$28,0)+IF($EU50>$CJ$28,-$CK$28,0)+IF($EU50>$CL$28,-$CM$28,0)+IF($EU50>$CN$28,-$CO$28,0)+IF($EU50>$CP$28,-$CQ$28,0)+IF($EU50>$CR$28,-$CS$28,0)+IF($EU50>$CT$28,-$CU$28,0)+IF($EU50>$CV$28,-$CW$28,0) -> 0 | DV50: =IF($EU50>$CD$28,-$CE$28*($EU50-$CD$28),0)+IF($EU50>$CF$28,-$CG$28*($EU50-$CF$28),0)+IF($EU50>$CH$28,-$CI$28*($EU50-$CH$28),0)+IF($EU50>$CJ$28,-$CK$28*($EU50-$CJ$28),0)+IF($EU50>$CL$28,-$CM$28*($EU50-$CL$28),0)+IF($EU50>$CN$28,-$CO$28*($EU50-$CN$28),0)+IF($EU50>$CP$28,-$CQ$28*($EU50-$CP$28),0)+IF($EU50>$CR$28,-$CS$28*($EU50-$CR$28),0)+IF($EU50>$CT$28,-$CU$28*($EU50-$CT$28),0)+IF($EU50>$CV$28,-$CW$28*($EU50-$CV$28),0) -> 0 | DW50: =IF($EU50>$CD$28,-$CE$28*($EU50-$CD$28)^2/(2*$FX$27*$FZ$27),0)+IF($EU50>$CF$28,-$CG$28*($EU50-$CF$28)^2/(2*$FX$27*$FZ$27),0)+IF($EU50>$CH$28,-$CI$28*($EU50-$CH$28)^2/(2*$FX$27*$FZ$27),0)+IF($EU50>$CJ$28,-$CK$28*($EU50-$CJ$28)^2/(2*$FX$27*$FZ$27),0)+IF($EU50>$CL$28,-$CM$28*($EU50-$CL$28)^2/(2*$FX$27*$FZ$27),0)+IF($EU50>$CN$28,-$CO$28*($EU50-$CN$28)^2/(2*$FX$27*$FZ$27),0)+IF($EU50>$CP$28,-$CQ$28*($EU50-$CP$28)^2/(2*$FX$27*$FZ$27),0)+IF($EU50>$CR$28,-$CS$28*($EU50-$CR$28)^2/(2*$FX$27*$FZ$27),0)+IF($EU50>$CT$28,-$CU$28*($EU50-$CT$28)^2/(2*$FX$27*$FZ$27),0)+IF($EU50>$CV$28,-$CW$28*($EU50-$CV$28)^2/(2*$FX$27*$FZ$27),0) -> 0 | DX50: =IF($EU50>$CD$28,$CE$28*($EU50-$CD$28)^3/(6*$FX$27*$FZ$27),0)+IF($EU50>$CF$28,$CG$28*($EU50-$CF$28)^3/(6*$FX$27*$FZ$27),0)+IF($EU50>$CH$28,$CI$28*($EU50-$CH$28)^3/(6*$FX$27*$FZ$27),0)+IF($EU50>$CJ$28,$CK$28*($EU50-$CJ$28)^3/(6*$FX$27*$FZ$27),0)+IF($EU50>$CL$28,$CM$28*($EU50-$CL$28)^3/(6*$FX$27*$FZ$27),0)+IF($EU50>$CN$28,$CO$28*($EU50-$CN$28)^3/(6*$FX$27*$FZ$27),0)+IF($EU50>$CP$28,$CQ$28*($EU50-$CP$28)^3/(6*$FX$27*$FZ$27),0)+IF($EU50>$CR$28,$CS$28*($EU50-$CR$28)^3/(6*$FX$27*$FZ$27),0)+IF($EU50>$CT$28,$CU$28*($EU50-$CT$28)^3/(6*$FX$27*$FZ$27),0)+IF($EU50>$CV$28,$CW$28*($EU50-$CV$28)^3/(6*$FX$27*$FZ$27),0) -> 0 | DY50: =$DY$49 -> 0 | DZ50: =$DZ$49 -> 0 | EA50: =$EA$49 -> 0 | EB50: =$EB$49 -> 0 | EC50: =IF($EU50>=IF($CD$39=$GA$27,$CD$39+0.000000001,$CD$39),0,0)+IF($EU50>=IF($CF$39=$GA$27,$CF$39+0.000000001,$CF$39),0,0)+IF($EU50>=IF($CH$39=$GA$27,$CH$39+0.000000001,$CH$39),0,0)+IF($EU50>=IF($CJ$39=$GA$27,$CJ$39+0.000000001,$CJ$39),0,0)+IF($EU50>=IF($CL$39=$GA$27,$CL$39+0.000000001,$CL$39),0,0) -> 0 | ED50: =IF($EU50>=IF($CD$39=$GA$27,$CD$39+0.000000001,$CD$39),-$CE$39,0)+IF($EU50>=IF($CF$39=$GA$27,$CF$39+0.000000001,$CF$39),-$CG$39,0)+IF($EU50>=IF($CH$39=$GA$27,$CH$39+0.000000001,$CH$39),-$CI$39,0)+IF($EU50>=IF($CJ$39=$GA$27,$CJ$39+0.000000001,$CJ$39),-$CK$39,0)+IF($EU50>=IF($CL$39=$GA$27,$CL$39+0.000000001,$CL$39),-$CM$39,0) -> 0 | EE50: =IF($EU50>=IF($CD$39=$GA$27,$CD$39+0.000000001,$CD$39),-$CE$39*($EU50-$CD$39)/($FX$27*$FZ$27),0)+IF($EU50>=IF($CF$39=$GA$27,$CF$39+0.000000001,$CF$39),-$CG$39*($EU50-$CF$39)/($FX$27*$FZ$27),0)+IF($EU50>=IF($CH$39=$GA$27,$CH$39+0.000000001,$CH$39),-$CI$39*($EU50-$CH$39)/($FX$27*$FZ$27),0)+IF($EU50>=IF($CJ$39=$GA$27,$CJ$39+0.000000001,$CJ$39),-$CK$39*($EU50-$CJ$39)/($FX$27*$FZ$27),0)+IF($EU50>=IF($CL$39=$GA$27,$CL$39+0.000000001,$CL$39),-$CM$39*($EU50-$CL$39)/($FX$27*$FZ$27),0) -> 0 | EF50: =IF($EU50>=IF($CD$39=$GA$27,$CD$39+0.000000001,$CD$39),$CE$39*($EU50-$CD$39)^2/(2*$FX$27*$FZ$27),0)+IF($EU50>=IF($CF$39=$GA$27,$CF$39+0.000000001,$CF$39),$CG$39*($EU50-$CF$39)^2/(2*$FX$27*$FZ$27),0)+IF($EU50>=IF($CH$39=$GA$27,$CH$39+0.000000001,$CH$39),$CI$39*($EU50-$CH$39)^2/(2*$FX$27*$FZ$27),0)+IF($EU50>=IF($CJ$39=$GA$27,$CJ$39+0.000000001,$CJ$39),$CK$39*($EU50-$CJ$39)^2/(2*$FX$27*$FZ$27),0)+IF($EU50>=IF($CL$39=$GA$27,$CL$39+0.000000001,$CL$39),$CM$39*($EU50-$CL$39)^2/(2*$FX$27*$FZ$27),0) -> 0 | EG50: 39.34158082 | EH50: 602.3408468 | EI50: 0.0003645828336 | EJ50: -0.002923883839 | EK50: 39.34158082 | EL50: 602.3408468 | EM50: 0.0003645828336 | EN50: -0.002923883839 | EO50: =$EO$49 -> -18.09712718 | EP50: =$EP$49 -> 103.2584309 | EQ50: =$EQ$49 -> 0 | ER50: =$ER$49 -> 0 | ES50: =-($EO50+$EK50) -> -21.24445364 | ET50: 111.8633001 | EU50: =$GA$27+0.0000000001 -> 32.8083 | EV50: Member #2(Y) FEM(R):
BD51: Member | BF51: Point Load #1 | BH51: Point Load #2 | BJ51: Point Load #3 | BL51: Point Load #4 | BN51: Point Load #5 | CB51: Member #2(Y) Axial(L): | CC51: =IF($CD$18=$CF$18,"---",IF(AND($CD$18="",$CE$18="",$CF$18="",$CG$18=""),"---",(-$CE$18*($GA$27-$CD$18-($GA$27-$CF$18)))+(-1/2*($CG$18-$CE$18)/($CF$18-$CD$18)*(($GA$27-$CD$18)^2-($GA$27-$CF$18)^2)+($CG$18-$CE$18)*($GA$27-$CF$18)))) -> 0 | CD51: =IF($CD$18=$CF$18,"---",IF(AND($CD$18="",$CE$18="",$CF$18="",$CG$18=""),"---",(-$CE$18/2*(($GA$27-$CD$18)^2-($GA$27-$CF$18)^2))+(-1/6*($CG$18-$CE$18)/($CF$18-$CD$18)*(($GA$27-$CD$18)^3-($GA$27-$CF$18)^3)+($CG$18-$CE$18)/2*($GA$27-$CF$18)^2))) -> 0 | CE51: =IF($CD$18=$CF$18,"---",IF(AND($CD$18="",$CE$18="",$CF$18="",$CG$18=""),"---",(-$CE$18/(6*$FX$27*$FZ$27)*(($GA$27-$CD$18)^3-($GA$27-$CF$18)^3))+(-1/(24*$FX$27*$FZ$27)*($CG$18-$CE$18)/($CF$18-$CD$18)*(($GA$27-$CD$18)^4-($GA$27-$CF$18)^4)+($CG$18-$CE$18)/(6*$FX$27*$FZ$27)*($GA$27-$CF$18)^3))) -> 0 | CF51: =IF($CD$18=$CF$18,"---",IF(AND($CD$18="",$CE$18="",$CF$18="",$CG$18=""),"---",($CE$18/(24*$FX$27*$FZ$27)*(($GA$27-$CD$18)^4-($GA$27-$CF$18)^4))+(1/(120*$FX$27*$FZ$27)*($CG$18-$CE$18)/($CF$18-$CD$18)*(($GA$27-$CD$18)^5-($GA$27-$CF$18)^5)-($CG$18-$CE$18)/(24*$FX$27*$FZ$27)*($GA$27-$CF$18)^4))) -> 0 | CG51: =IF($CD$18=$CF$18,"---",IF(AND($CD$18="",$CE$18="",$CF$18="",$CG$18=""),"---",(IF($EU51>=$CF$18,-$CE$18*($EU51-$CD$18-($EU51-$CF$18)),IF($EU51>=$CD$18,-$CE$18*($EU51-$CD$18),0)))+(IF($EU51>=$CF$18,-1/2*($CG$18-$CE$18)/($CF$18-$CD$18)*(($EU51-$CD$18)^2-($EU51-$CF$18)^2)+($CG$18-$CE$18)*($EU51-$CF$18),IF($EU51>=$CD$18,-1/2*($CG$18-$CE$18)/($CF$18-$CD$18)*($EU51-$CD$18)^2,0))))) -> 0 | CH51: =IF($CD$18=$CF$18,"---",IF(AND($CD$18="",$CE$18="",$CF$18="",$CG$18=""),"---",(IF($EU51>=$CF$18,-$CE$18/2*(($EU51-$CD$18)^2-($EU51-$CF$18)^2),IF($EU51>=$CD$18,-$CE$18/2*($EU51-$CD$18)^2,0)))+(IF($EU51>=$CF$18,-1/6*($CG$18-$CE$18)/($CF$18-$CD$18)*(($EU51-$CD$18)^3-($EU51-$CF$18)^3)+($CG$18-$CE$18)/2*($EU51-$CF$18)^2,IF($EU51>=$CD$18,-1/6*($CG$18-$CE$18)/($CF$18-$CD$18)*($EU51-$CD$18)^3,0))))) -> 0 | CI51: =IF($CD$18=$CF$18,"---",IF(AND($CD$18="",$CE$18="",$CF$18="",$CG$18=""),"---",(IF($EU51>=$CF$18,-$CE$18/(6*$FX$27*$FZ$27)*(($EU51-$CD$18)^3-($EU51-$CF$18)^3),IF($EU51>=$CD$18,-$CE$18/(6*$FX$27*$FZ$27)*($EU51-$CD$18)^3,0)))+(IF($EU51>=$CF$18,-1/(24*$FX$27*$FZ$27)*($CG$18-$CE$18)/($CF$18-$CD$18)*(($EU51-$CD$18)^4-($EU51-$CF$18)^4)+($CG$18-$CE$18)/(6*$FX$27*$FZ$27)*($EU51-$CF$18)^3,IF($EU51>=$CD$18,-1/(24*$FX$27*$FZ$27)*($CG$18-$CE$18)/($CF$18-$CD$18)*($EU51-$CD$18)^4,0))))) -> 0 | CJ51: =IF($CD$18=$CF$18,"---",IF(AND($CD$18="",$CE$18="",$CF$18="",$CG$18=""),"---",(IF($EU51>=$CF$18,$CE$18/(24*$FX$27*$FZ$27)*(($EU51-$CD$18)^4-($EU51-$CF$18)^4),IF($EU51>=$CD$18,$CE$18/(24*$FX$27*$FZ$27)*($EU51-$CD$18)^4,0)))+(IF($EU51>=$CF$18,1/(120*$FX$27*$FZ$27)*($CG$18-$CE$18)/($CF$18-$CD$18)*(($EU51-$CD$18)^5-($EU51-$CF$18)^5)-($CG$18-$CE$18)/(24*$FX$27*$FZ$27)*($EU51-$CF$18)^4,IF($EU51>=$CD$18,1/(120*$FX$27*$FZ$27)*($CG$18-$CE$18)/($CF$18-$CD$18)*($EU51-$CD$18)^5,0))))) -> 0 | CK51: =IF($CH$18=$CJ$18,"---",IF(AND($CH$18="",$CI$18="",$CJ$18="",$CK$18=""),"---",(-$CI$18*($GA$27-$CH$18-($GA$27-$CJ$18)))+(-1/2*($CK$18-$CI$18)/($CJ$18-$CH$18)*(($GA$27-$CH$18)^2-($GA$27-$CJ$18)^2)+($CK$18-$CI$18)*($GA$27-$CJ$18)))) -> --- | CL51: =IF($CH$18=$CJ$18,"---",IF(AND($CH$18="",$CI$18="",$CJ$18="",$CK$18=""),"---",(-$CI$18/2*(($GA$27-$CH$18)^2-($GA$27-$CJ$18)^2))+(-1/6*($CK$18-$CI$18)/($CJ$18-$CH$18)*(($GA$27-$CH$18)^3-($GA$27-$CJ$18)^3)+($CK$18-$CI$18)/2*($GA$27-$CJ$18)^2))) -> --- | CM51: =IF($CH$18=$CJ$18,"---",IF(AND($CH$18="",$CI$18="",$CJ$18="",$CK$18=""),"---",(-$CI$18/(6*$FX$27*$FZ$27)*(($GA$27-$CH$18)^3-($GA$27-$CJ$18)^3))+(-1/(24*$FX$27*$FZ$27)*($CK$18-$CI$18)/($CJ$18-$CH$18)*(($GA$27-$CH$18)^4-($GA$27-$CJ$18)^4)+($CK$18-$CI$18)/(6*$FX$27*$FZ$27)*($GA$27-$CJ$18)^3))) -> --- | CN51: =IF($CH$18=$CJ$18,"---",IF(AND($CH$18="",$CI$18="",$CJ$18="",$CK$18=""),"---",($CI$18/(24*$FX$27*$FZ$27)*(($GA$27-$CH$18)^4-($GA$27-$CJ$18)^4))+(1/(120*$FX$27*$FZ$27)*($CK$18-$CI$18)/($CJ$18-$CH$18)*(($GA$27-$CH$18)^5-($GA$27-$CJ$18)^5)-($CK$18-$CI$18)/(24*$FX$27*$FZ$27)*($GA$27-$CJ$18)^4))) -> --- | CO51: =IF($CH$18=$CJ$18,"---",IF(AND($CH$18="",$CI$18="",$CJ$18="",$CK$18=""),"---",(IF($EU51>=$CJ$18,-$CI$18*($EU51-$CH$18-($EU51-$CJ$18)),IF($EU51>=$CH$18,-$CI$18*($EU51-$CH$18),0)))+(IF($EU51>=$CJ$18,-1/2*($CK$18-$CI$18)/($CJ$18-$CH$18)*(($EU51-$CH$18)^2-($EU51-$CJ$18)^2)+($CK$18-$CI$18)*($EU51-$CJ$18),IF($EU51>=$CH$18,-1/2*($CK$18-$CI$18)/($CJ$18-$CH$18)*($EU51-$CH$18)^2,0))))) -> --- | CP51: =IF($CH$18=$CJ$18,"---",IF(AND($CH$18="",$CI$18="",$CJ$18="",$CK$18=""),"---",(IF($EU51>=$CJ$18,-$CI$18/2*(($EU51-$CH$18)^2-($EU51-$CJ$18)^2),IF($EU51>=$CH$18,-$CI$18/2*($EU51-$CH$18)^2,0)))+(IF($EU51>=$CJ$18,-1/6*($CK$18-$CI$18)/($CJ$18-$CH$18)*(($EU51-$CH$18)^3-($EU51-$CJ$18)^3)+($CK$18-$CI$18)/2*($EU51-$CJ$18)^2,IF($EU51>=$CH$18,-1/6*($CK$18-$CI$18)/($CJ$18-$CH$18)*($EU51-$CH$18)^3,0))))) -> --- | CQ51: =IF($CH$18=$CJ$18,"---",IF(AND($CH$18="",$CI$18="",$CJ$18="",$CK$18=""),"---",(IF($EU51>=$CJ$18,-$CI$18/(6*$FX$27*$FZ$27)*(($EU51-$CH$18)^3-($EU51-$CJ$18)^3),IF($EU51>=$CH$18,-$CI$18/(6*$FX$27*$FZ$27)*($EU51-$CH$18)^3,0)))+(IF($EU51>=$CJ$18,-1/(24*$FX$27*$FZ$27)*($CK$18-$CI$18)/($CJ$18-$CH$18)*(($EU51-$CH$18)^4-($EU51-$CJ$18)^4)+($CK$18-$CI$18)/(6*$FX$27*$FZ$27)*($EU51-$CJ$18)^3,IF($EU51>=$CH$18,-1/(24*$FX$27*$FZ$27)*($CK$18-$CI$18)/($CJ$18-$CH$18)*($EU51-$CH$18)^4,0))))) -> --- | CR51: =IF($CH$18=$CJ$18,"---",IF(AND($CH$18="",$CI$18="",$CJ$18="",$CK$18=""),"---",(IF($EU51>=$CJ$18,$CI$18/(24*$FX$27*$FZ$27)*(($EU51-$CH$18)^4-($EU51-$CJ$18)^4),IF($EU51>=$CH$18,$CI$18/(24*$FX$27*$FZ$27)*($EU51-$CH$18)^4,0)))+(IF($EU51>=$CJ$18,1/(120*$FX$27*$FZ$27)*($CK$18-$CI$18)/($CJ$18-$CH$18)*(($EU51-$CH$18)^5-($EU51-$CJ$18)^5)-($CK$18-$CI$18)/(24*$FX$27*$FZ$27)*($EU51-$CJ$18)^4,IF($EU51>=$CH$18,1/(120*$FX$27*$FZ$27)*($CK$18-$CI$18)/($CJ$18-$CH$18)*($EU51-$CH$18)^5,0))))) -> --- | CS51: =IF($CL$18=$CN$18,"---",IF(AND($CL$18="",$CM$18="",$CN$18="",$CO$18=""),"---",(-$CM$18*($GA$27-$CL$18-($GA$27-$CN$18)))+(-1/2*($CO$18-$CM$18)/($CN$18-$CL$18)*(($GA$27-$CL$18)^2-($GA$27-$CN$18)^2)+($CO$18-$CM$18)*($GA$27-$CN$18)))) -> --- | CT51: =IF($CL$18=$CN$18,"---",IF(AND($CL$18="",$CM$18="",$CN$18="",$CO$18=""),"---",(-$CM$18/2*(($GA$27-$CL$18)^2-($GA$27-$CN$18)^2))+(-1/6*($CO$18-$CM$18)/($CN$18-$CL$18)*(($GA$27-$CL$18)^3-($GA$27-$CN$18)^3)+($CO$18-$CM$18)/2*($GA$27-$CN$18)^2))) -> --- | CU51: =IF($CL$18=$CN$18,"---",IF(AND($CL$18="",$CM$18="",$CN$18="",$CO$18=""),"---",(-$CM$18/(6*$FX$27*$FZ$27)*(($GA$27-$CL$18)^3-($GA$27-$CN$18)^3))+(-1/(24*$FX$27*$FZ$27)*($CO$18-$CM$18)/($CN$18-$CL$18)*(($GA$27-$CL$18)^4-($GA$27-$CN$18)^4)+($CO$18-$CM$18)/(6*$FX$27*$FZ$27)*($GA$27-$CN$18)^3))) -> --- | CV51: =IF($CL$18=$CN$18,"---",IF(AND($CL$18="",$CM$18="",$CN$18="",$CO$18=""),"---",($CM$18/(24*$FX$27*$FZ$27)*(($GA$27-$CL$18)^4-($GA$27-$CN$18)^4))+(1/(120*$FX$27*$FZ$27)*($CO$18-$CM$18)/($CN$18-$CL$18)*(($GA$27-$CL$18)^5-($GA$27-$CN$18)^5)-($CO$18-$CM$18)/(24*$FX$27*$FZ$27)*($GA$27-$CN$18)^4))) -> --- | CW51: =IF($CL$18=$CN$18,"---",IF(AND($CL$18="",$CM$18="",$CN$18="",$CO$18=""),"---",(IF($EU51>=$CN$18,-$CM$18*($EU51-$CL$18-($EU51-$CN$18)),IF($EU51>=$CL$18,-$CM$18*($EU51-$CL$18),0)))+(IF($EU51>=$CN$18,-1/2*($CO$18-$CM$18)/($CN$18-$CL$18)*(($EU51-$CL$18)^2-($EU51-$CN$18)^2)+($CO$18-$CM$18)*($EU51-$CN$18),IF($EU51>=$CL$18,-1/2*($CO$18-$CM$18)/($CN$18-$CL$18)*($EU51-$CL$18)^2,0))))) -> --- | CX51: =IF($CL$18=$CN$18,"---",IF(AND($CL$18="",$CM$18="",$CN$18="",$CO$18=""),"---",(IF($EU51>=$CN$18,-$CM$18/2*(($EU51-$CL$18)^2-($EU51-$CN$18)^2),IF($EU51>=$CL$18,-$CM$18/2*($EU51-$CL$18)^2,0)))+(IF($EU51>=$CN$18,-1/6*($CO$18-$CM$18)/($CN$18-$CL$18)*(($EU51-$CL$18)^3-($EU51-$CN$18)^3)+($CO$18-$CM$18)/2*($EU51-$CN$18)^2,IF($EU51>=$CL$18,-1/6*($CO$18-$CM$18)/($CN$18-$CL$18)*($EU51-$CL$18)^3,0))))) -> --- | CY51: =IF($CL$18=$CN$18,"---",IF(AND($CL$18="",$CM$18="",$CN$18="",$CO$18=""),"---",(IF($EU51>=$CN$18,-$CM$18/(6*$FX$27*$FZ$27)*(($EU51-$CL$18)^3-($EU51-$CN$18)^3),IF($EU51>=$CL$18,-$CM$18/(6*$FX$27*$FZ$27)*($EU51-$CL$18)^3,0)))+(IF($EU51>=$CN$18,-1/(24*$FX$27*$FZ$27)*($CO$18-$CM$18)/($CN$18-$CL$18)*(($EU51-$CL$18)^4-($EU51-$CN$18)^4)+($CO$18-$CM$18)/(6*$FX$27*$FZ$27)*($EU51-$CN$18)^3,IF($EU51>=$CL$18,-1/(24*$FX$27*$FZ$27)*($CO$18-$CM$18)/($CN$18-$CL$18)*($EU51-$CL$18)^4,0))))) -> --- | CZ51: =IF($CL$18=$CN$18,"---",IF(AND($CL$18="",$CM$18="",$CN$18="",$CO$18=""),"---",(IF($EU51>=$CN$18,$CM$18/(24*$FX$27*$FZ$27)*(($EU51-$CL$18)^4-($EU51-$CN$18)^4),IF($EU51>=$CL$18,$CM$18/(24*$FX$27*$FZ$27)*($EU51-$CL$18)^4,0)))+(IF($EU51>=$CN$18,1/(120*$FX$27*$FZ$27)*($CO$18-$CM$18)/($CN$18-$CL$18)*(($EU51-$CL$18)^5-($EU51-$CN$18)^5)-($CO$18-$CM$18)/(24*$FX$27*$FZ$27)*($EU51-$CN$18)^4,IF($EU51>=$CL$18,1/(120*$FX$27*$FZ$27)*($CO$18-$CM$18)/($CN$18-$CL$18)*($EU51-$CL$18)^5,0))))) -> --- | DA51: =IF($CP$18=$CR$18,"---",IF(AND($CP$18="",$CQ$18="",$CR$18="",$CS$18=""),"---",(-$CQ$18*($GA$27-$CP$18-($GA$27-$CR$18)))+(-1/2*($CS$18-$CQ$18)/($CR$18-$CP$18)*(($GA$27-$CP$18)^2-($GA$27-$CR$18)^2)+($CS$18-$CQ$18)*($GA$27-$CR$18)))) -> --- | DB51: =IF($CP$18=$CR$18,"---",IF(AND($CP$18="",$CQ$18="",$CR$18="",$CS$18=""),"---",(-$CQ$18/2*(($GA$27-$CP$18)^2-($GA$27-$CR$18)^2))+(-1/6*($CS$18-$CQ$18)/($CR$18-$CP$18)*(($GA$27-$CP$18)^3-($GA$27-$CR$18)^3)+($CS$18-$CQ$18)/2*($GA$27-$CR$18)^2))) -> --- | DC51: =IF($CP$18=$CR$18,"---",IF(AND($CP$18="",$CQ$18="",$CR$18="",$CS$18=""),"---",(-$CQ$18/(6*$FX$27*$FZ$27)*(($GA$27-$CP$18)^3-($GA$27-$CR$18)^3))+(-1/(24*$FX$27*$FZ$27)*($CS$18-$CQ$18)/($CR$18-$CP$18)*(($GA$27-$CP$18)^4-($GA$27-$CR$18)^4)+($CS$18-$CQ$18)/(6*$FX$27*$FZ$27)*($GA$27-$CR$18)^3))) -> --- | DD51: =IF($CP$18=$CR$18,"---",IF(AND($CP$18="",$CQ$18="",$CR$18="",$CS$18=""),"---",($CQ$18/(24*$FX$27*$FZ$27)*(($GA$27-$CP$18)^4-($GA$27-$CR$18)^4))+(1/(120*$FX$27*$FZ$27)*($CS$18-$CQ$18)/($CR$18-$CP$18)*(($GA$27-$CP$18)^5-($GA$27-$CR$18)^5)-($CS$18-$CQ$18)/(24*$FX$27*$FZ$27)*($GA$27-$CR$18)^4))) -> --- | DE51: =IF($CP$18=$CR$18,"---",IF(AND($CP$18="",$CQ$18="",$CR$18="",$CS$18=""),"---",(IF($EU51>=$CR$18,-$CQ$18*($EU51-$CP$18-($EU51-$CR$18)),IF($EU51>=$CP$18,-$CQ$18*($EU51-$CP$18),0)))+(IF($EU51>=$CR$18,-1/2*($CS$18-$CQ$18)/($CR$18-$CP$18)*(($EU51-$CP$18)^2-($EU51-$CR$18)^2)+($CS$18-$CQ$18)*($EU51-$CR$18),IF($EU51>=$CP$18,-1/2*($CS$18-$CQ$18)/($CR$18-$CP$18)*($EU51-$CP$18)^2,0))))) -> --- | DF51: =IF($CP$18=$CR$18,"---",IF(AND($CP$18="",$CQ$18="",$CR$18="",$CS$18=""),"---",(IF($EU51>=$CR$18,-$CQ$18/2*(($EU51-$CP$18)^2-($EU51-$CR$18)^2),IF($EU51>=$CP$18,-$CQ$18/2*($EU51-$CP$18)^2,0)))+(IF($EU51>=$CR$18,-1/6*($CS$18-$CQ$18)/($CR$18-$CP$18)*(($EU51-$CP$18)^3-($EU51-$CR$18)^3)+($CS$18-$CQ$18)/2*($EU51-$CR$18)^2,IF($EU51>=$CP$18,-1/6*($CS$18-$CQ$18)/($CR$18-$CP$18)*($EU51-$CP$18)^3,0))))) -> --- | DG51: =IF($CP$18=$CR$18,"---",IF(AND($CP$18="",$CQ$18="",$CR$18="",$CS$18=""),"---",(IF($EU51>=$CR$18,-$CQ$18/(6*$FX$27*$FZ$27)*(($EU51-$CP$18)^3-($EU51-$CR$18)^3),IF($EU51>=$CP$18,-$CQ$18/(6*$FX$27*$FZ$27)*($EU51-$CP$18)^3,0)))+(IF($EU51>=$CR$18,-1/(24*$FX$27*$FZ$27)*($CS$18-$CQ$18)/($CR$18-$CP$18)*(($EU51-$CP$18)^4-($EU51-$CR$18)^4)+($CS$18-$CQ$18)/(6*$FX$27*$FZ$27)*($EU51-$CR$18)^3,IF($EU51>=$CP$18,-1/(24*$FX$27*$FZ$27)*($CS$18-$CQ$18)/($CR$18-$CP$18)*($EU51-$CP$18)^4,0))))) -> --- | DH51: =IF($CP$18=$CR$18,"---",IF(AND($CP$18="",$CQ$18="",$CR$18="",$CS$18=""),"---",(IF($EU51>=$CR$18,$CQ$18/(24*$FX$27*$FZ$27)*(($EU51-$CP$18)^4-($EU51-$CR$18)^4),IF($EU51>=$CP$18,$CQ$18/(24*$FX$27*$FZ$27)*($EU51-$CP$18)^4,0)))+(IF($EU51>=$CR$18,1/(120*$FX$27*$FZ$27)*($CS$18-$CQ$18)/($CR$18-$CP$18)*(($EU51-$CP$18)^5-($EU51-$CR$18)^5)-($CS$18-$CQ$18)/(24*$FX$27*$FZ$27)*($EU51-$CR$18)^4,IF($EU51>=$CP$18,1/(120*$FX$27*$FZ$27)*($CS$18-$CQ$18)/($CR$18-$CP$18)*($EU51-$CP$18)^5,0))))) -> --- | DI51: =IF($CT$18=$CV$18,"---",IF(AND($CT$18="",$CU$18="",$CV$18="",$CW$18=""),"---",(-$CU$18*($GA$27-$CT$18-($GA$27-$CV$18)))+(-1/2*($CW$18-$CU$18)/($CV$18-$CT$18)*(($GA$27-$CT$18)^2-($GA$27-$CV$18)^2)+($CW$18-$CU$18)*($GA$27-$CV$18)))) -> --- | DJ51: =IF($CT$18=$CV$18,"---",IF(AND($CT$18="",$CU$18="",$CV$18="",$CW$18=""),"---",(-$CU$18/2*(($GA$27-$CT$18)^2-($GA$27-$CV$18)^2))+(-1/6*($CW$18-$CU$18)/($CV$18-$CT$18)*(($GA$27-$CT$18)^3-($GA$27-$CV$18)^3)+($CW$18-$CU$18)/2*($GA$27-$CV$18)^2))) -> --- | DK51: =IF($CT$18=$CV$18,"---",IF(AND($CT$18="",$CU$18="",$CV$18="",$CW$18=""),"---",(-$CU$18/(6*$FX$27*$FZ$27)*(($GA$27-$CT$18)^3-($GA$27-$CV$18)^3))+(-1/(24*$FX$27*$FZ$27)*($CW$18-$CU$18)/($CV$18-$CT$18)*(($GA$27-$CT$18)^4-($GA$27-$CV$18)^4)+($CW$18-$CU$18)/(6*$FX$27*$FZ$27)*($GA$27-$CV$18)^3))) -> --- | DL51: =IF($CT$18=$CV$18,"---",IF(AND($CT$18="",$CU$18="",$CV$18="",$CW$18=""),"---",($CU$18/(24*$FX$27*$FZ$27)*(($GA$27-$CT$18)^4-($GA$27-$CV$18)^4))+(1/(120*$FX$27*$FZ$27)*($CW$18-$CU$18)/($CV$18-$CT$18)*(($GA$27-$CT$18)^5-($GA$27-$CV$18)^5)-($CW$18-$CU$18)/(24*$FX$27*$FZ$27)*($GA$27-$CV$18)^4))) -> --- | DM51: =IF($CT$18=$CV$18,"---",IF(AND($CT$18="",$CU$18="",$CV$18="",$CW$18=""),"---",(IF($EU51>=$CV$18,-$CU$18*($EU51-$CT$18-($EU51-$CV$18)),IF($EU51>=$CT$18,-$CU$18*($EU51-$CT$18),0)))+(IF($EU51>=$CV$18,-1/2*($CW$18-$CU$18)/($CV$18-$CT$18)*(($EU51-$CT$18)^2-($EU51-$CV$18)^2)+($CW$18-$CU$18)*($EU51-$CV$18),IF($EU51>=$CT$18,-1/2*($CW$18-$CU$18)/($CV$18-$CT$18)*($EU51-$CT$18)^2,0))))) -> --- | DN51: =IF($CT$18=$CV$18,"---",IF(AND($CT$18="",$CU$18="",$CV$18="",$CW$18=""),"---",(IF($EU51>=$CV$18,-$CU$18/2*(($EU51-$CT$18)^2-($EU51-$CV$18)^2),IF($EU51>=$CT$18,-$CU$18/2*($EU51-$CT$18)^2,0)))+(IF($EU51>=$CV$18,-1/6*($CW$18-$CU$18)/($CV$18-$CT$18)*(($EU51-$CT$18)^3-($EU51-$CV$18)^3)+($CW$18-$CU$18)/2*($EU51-$CV$18)^2,IF($EU51>=$CT$18,-1/6*($CW$18-$CU$18)/($CV$18-$CT$18)*($EU51-$CT$18)^3,0))))) -> --- | DO51: =IF($CT$18=$CV$18,"---",IF(AND($CT$18="",$CU$18="",$CV$18="",$CW$18=""),"---",(IF($EU51>=$CV$18,-$CU$18/(6*$FX$27*$FZ$27)*(($EU51-$CT$18)^3-($EU51-$CV$18)^3),IF($EU51>=$CT$18,-$CU$18/(6*$FX$27*$FZ$27)*($EU51-$CT$18)^3,0)))+(IF($EU51>=$CV$18,-1/(24*$FX$27*$FZ$27)*($CW$18-$CU$18)/($CV$18-$CT$18)*(($EU51-$CT$18)^4-($EU51-$CV$18)^4)+($CW$18-$CU$18)/(6*$FX$27*$FZ$27)*($EU51-$CV$18)^3,IF($EU51>=$CT$18,-1/(24*$FX$27*$FZ$27)*($CW$18-$CU$18)/($CV$18-$CT$18)*($EU51-$CT$18)^4,0))))) -> --- | DP51: =IF($CT$18=$CV$18,"---",IF(AND($CT$18="",$CU$18="",$CV$18="",$CW$18=""),"---",(IF($EU51>=$CV$18,$CU$18/(24*$FX$27*$FZ$27)*(($EU51-$CT$18)^4-($EU51-$CV$18)^4),IF($EU51>=$CT$18,$CU$18/(24*$FX$27*$FZ$27)*($EU51-$CT$18)^4,0)))+(IF($EU51>=$CV$18,1/(120*$FX$27*$FZ$27)*($CW$18-$CU$18)/($CV$18-$CT$18)*(($EU51-$CT$18)^5-($EU51-$CV$18)^5)-($CW$18-$CU$18)/(24*$FX$27*$FZ$27)*($EU51-$CV$18)^4,IF($EU51>=$CT$18,1/(120*$FX$27*$FZ$27)*($CW$18-$CU$18)/($CV$18-$CT$18)*($EU51-$CT$18)^5,0))))) -> --- | DQ51: =-$CE$29+-$CG$29+-$CI$29+-$CK$29+-$CM$29+-$CO$29+-$CQ$29+-$CS$29+-$CU$29+-$CW$29 -> 0 | DR51: =-$CE$29*($GA$27-$CD$29)+-$CG$29*($GA$27-$CF$29)+-$CI$29*($GA$27-$CH$29)+-$CK$29*($GA$27-$CJ$29)+-$CM$29*($GA$27-$CL$29)+-$CO$29*($GA$27-$CN$29)+-$CQ$29*($GA$27-$CP$29)+-$CS$29*($GA$27-$CR$29)+-$CU$29*($GA$27-$CT$29)+-$CW$29*($GA$27-$CV$29) -> 0 | DS51: =-$CE$29*($GA$27-$CD$29)^2/(2*$FX$27*$FZ$27)+-$CG$29*($GA$27-$CF$29)^2/(2*$FX$27*$FZ$27)+-$CI$29*($GA$27-$CH$29)^2/(2*$FX$27*$FZ$27)+-$CK$29*($GA$27-$CJ$29)^2/(2*$FX$27*$FZ$27)+-$CM$29*($GA$27-$CL$29)^2/(2*$FX$27*$FZ$27)+-$CO$29*($GA$27-$CN$29)^2/(2*$FX$27*$FZ$27)+-$CQ$29*($GA$27-$CP$29)^2/(2*$FX$27*$FZ$27)+-$CS$29*($GA$27-$CR$29)^2/(2*$FX$27*$FZ$27)+-$CU$29*($GA$27-$CT$29)^2/(2*$FX$27*$FZ$27)+-$CW$29*($GA$27-$CV$29)^2/(2*$FX$27*$FZ$27) -> 0 | DT51: =$CE$29*($GA$27-$CD$29)^3/(6*$FX$27*$FZ$27)+$CG$29*($GA$27-$CF$29)^3/(6*$FX$27*$FZ$27)+$CI$29*($GA$27-$CH$29)^3/(6*$FX$27*$FZ$27)+$CK$29*($GA$27-$CJ$29)^3/(6*$FX$27*$FZ$27)+$CM$29*($GA$27-$CL$29)^3/(6*$FX$27*$FZ$27)+$CO$29*($GA$27-$CN$29)^3/(6*$FX$27*$FZ$27)+$CQ$29*($GA$27-$CP$29)^3/(6*$FX$27*$FZ$27)+$CS$29*($GA$27-$CR$29)^3/(6*$FX$27*$FZ$27)+$CU$29*($GA$27-$CT$29)^3/(6*$FX$27*$FZ$27)+$CW$29*($GA$27-$CV$29)^3/(6*$FX$27*$FZ$27) -> 0 | DU51: =IF($EU49>$CD$29,-$CE$29,0)+IF($EU49>$CF$29,-$CG$29,0)+IF($EU49>$CH$29,-$CI$29,0)+IF($EU49>$CJ$29,-$CK$29,0)+IF($EU49>$CL$29,-$CM$29,0)+IF($EU49>$CN$29,-$CO$29,0)+IF($EU49>$CP$29,-$CQ$29,0)+IF($EU49>$CR$29,-$CS$29,0)+IF($EU49>$CT$29,-$CU$29,0)+IF($EU49>$CV$29,-$CW$29,0) -> 0 | DV51: =IF($EU49>$CD$29,-$CE$29*($EU49-$CD$29),0)+IF($EU49>$CF$29,-$CG$29*($EU49-$CF$29),0)+IF($EU49>$CH$29,-$CI$29*($EU49-$CH$29),0)+IF($EU49>$CJ$29,-$CK$29*($EU49-$CJ$29),0)+IF($EU49>$CL$29,-$CM$29*($EU49-$CL$29),0)+IF($EU49>$CN$29,-$CO$29*($EU49-$CN$29),0)+IF($EU49>$CP$29,-$CQ$29*($EU49-$CP$29),0)+IF($EU49>$CR$29,-$CS$29*($EU49-$CR$29),0)+IF($EU49>$CT$29,-$CU$29*($EU49-$CT$29),0)+IF($EU49>$CV$29,-$CW$29*($EU49-$CV$29),0) -> 0 | DW51: =IF($EU49>$CD$29,-$CE$29*($EU49-$CD$29)^2/(2*$FX$27*$FZ$27),0)+IF($EU49>$CF$29,-$CG$29*($EU49-$CF$29)^2/(2*$FX$27*$FZ$27),0)+IF($EU49>$CH$29,-$CI$29*($EU49-$CH$29)^2/(2*$FX$27*$FZ$27),0)+IF($EU49>$CJ$29,-$CK$29*($EU49-$CJ$29)^2/(2*$FX$27*$FZ$27),0)+IF($EU49>$CL$29,-$CM$29*($EU49-$CL$29)^2/(2*$FX$27*$FZ$27),0)+IF($EU49>$CN$29,-$CO$29*($EU49-$CN$29)^2/(2*$FX$27*$FZ$27),0)+IF($EU49>$CP$29,-$CQ$29*($EU49-$CP$29)^2/(2*$FX$27*$FZ$27),0)+IF($EU49>$CR$29,-$CS$29*($EU49-$CR$29)^2/(2*$FX$27*$FZ$27),0)+IF($EU49>$CT$29,-$CU$29*($EU49-$CT$29)^2/(2*$FX$27*$FZ$27),0)+IF($EU49>$CV$29,-$CW$29*($EU49-$CV$29)^2/(2*$FX$27*$FZ$27),0) -> 0 | DX51: =IF($EU49>$CD$29,$CE$29*($EU49-$CD$29)^3/(6*$FX$27*$FZ$27),0)+IF($EU49>$CF$29,$CG$29*($EU49-$CF$29)^3/(6*$FX$27*$FZ$27),0)+IF($EU49>$CH$29,$CI$29*($EU49-$CH$29)^3/(6*$FX$27*$FZ$27),0)+IF($EU49>$CJ$29,$CK$29*($EU49-$CJ$29)^3/(6*$FX$27*$FZ$27),0)+IF($EU49>$CL$29,$CM$29*($EU49-$CL$29)^3/(6*$FX$27*$FZ$27),0)+IF($EU49>$CN$29,$CO$29*($EU49-$CN$29)^3/(6*$FX$27*$FZ$27),0)+IF($EU49>$CP$29,$CQ$29*($EU49-$CP$29)^3/(6*$FX$27*$FZ$27),0)+IF($EU49>$CR$29,$CS$29*($EU49-$CR$29)^3/(6*$FX$27*$FZ$27),0)+IF($EU49>$CT$29,$CU$29*($EU49-$CT$29)^3/(6*$FX$27*$FZ$27),0)+IF($EU49>$CV$29,$CW$29*($EU49-$CV$29)^3/(6*$FX$27*$FZ$27),0) -> 0 | DY51: =0+0+0+0 -> 0 | DZ51: 0 | EA51: 0 | EB51: 0 | EC51: 0 | ED51: 0 | EE51: 0 | EF51: 0 | EG51: 0 | EH51: 0 | EI51: 0 | EJ51: 0 | EK51: 0 | EL51: 0 | EM51: 0 | EN51: 0 | EO51: =-12*$FX$27*$FZ$27/$GA$27^3*$EJ51-6*$FX$27*$FZ$27/$GA$27^2*$EI51 -> 0 | EP51: =6*$FX$27*$FZ$27/$GA$27^2*$EJ51+2*$FX$27*$FZ$27/$GA$27*$EI51 -> 0 | EQ51: =0 -> 0 | ER51: =0 -> 0 | ES51: =$EO51+$EK51 -> 0 | ET51: 0 | EU51: =0 -> 0 | EV51: Member #2(Y) Axial(L): | FV51: Member | FX51: Point Load #1 | FZ51: Point Load #2 | GB51: Point Load #3 | GD51: Point Load #4 | GF51: Point Load #5
BD52: No. | BE52: Load Direct. | BF52: a/L | BG52: P (kN) | BH52: a/L | BI52: P (kN) | BJ52: a/L | BK52: P (kN) | BL52: a/L | BM52: P (kN) | BN52: a/L | BO52: P (kN) | CB52: Member #2(Y) Axial(R): | CC52: =$CC$51 -> 0 | CD52: =$CD$51 -> 0 | CE52: =$CE$51 -> 0 | CF52: =$CF$51 -> 0 | CG52: =IF($CD$18=$CF$18,"---",IF(AND($CD$18="",$CE$18="",$CF$18="",$CG$18=""),"---",(IF($EU52>=$CF$18,-$CE$18*($EU52-$CD$18-($EU52-$CF$18)),IF($EU52>=$CD$18,-$CE$18*($EU52-$CD$18),0)))+(IF($EU52>=$CF$18,-1/2*($CG$18-$CE$18)/($CF$18-$CD$18)*(($EU52-$CD$18)^2-($EU52-$CF$18)^2)+($CG$18-$CE$18)*($EU52-$CF$18),IF($EU52>=$CD$18,-1/2*($CG$18-$CE$18)/($CF$18-$CD$18)*($EU52-$CD$18)^2,0))))) -> 0 | CH52: =IF($CD$18=$CF$18,"---",IF(AND($CD$18="",$CE$18="",$CF$18="",$CG$18=""),"---",(IF($EU52>=$CF$18,-$CE$18/2*(($EU52-$CD$18)^2-($EU52-$CF$18)^2),IF($EU52>=$CD$18,-$CE$18/2*($EU52-$CD$18)^2,0)))+(IF($EU52>=$CF$18,-1/6*($CG$18-$CE$18)/($CF$18-$CD$18)*(($EU52-$CD$18)^3-($EU52-$CF$18)^3)+($CG$18-$CE$18)/2*($EU52-$CF$18)^2,IF($EU52>=$CD$18,-1/6*($CG$18-$CE$18)/($CF$18-$CD$18)*($EU52-$CD$18)^3,0))))) -> 0 | CI52: =IF($CD$18=$CF$18,"---",IF(AND($CD$18="",$CE$18="",$CF$18="",$CG$18=""),"---",(IF($EU52>=$CF$18,-$CE$18/(6*$FX$27*$FZ$27)*(($EU52-$CD$18)^3-($EU52-$CF$18)^3),IF($EU52>=$CD$18,-$CE$18/(6*$FX$27*$FZ$27)*($EU52-$CD$18)^3,0)))+(IF($EU52>=$CF$18,-1/(24*$FX$27*$FZ$27)*($CG$18-$CE$18)/($CF$18-$CD$18)*(($EU52-$CD$18)^4-($EU52-$CF$18)^4)+($CG$18-$CE$18)/(6*$FX$27*$FZ$27)*($EU52-$CF$18)^3,IF($EU52>=$CD$18,-1/(24*$FX$27*$FZ$27)*($CG$18-$CE$18)/($CF$18-$CD$18)*($EU52-$CD$18)^4,0))))) -> 0 | CJ52: =IF($CD$18=$CF$18,"---",IF(AND($CD$18="",$CE$18="",$CF$18="",$CG$18=""),"---",(IF($EU52>=$CF$18,$CE$18/(24*$FX$27*$FZ$27)*(($EU52-$CD$18)^4-($EU52-$CF$18)^4),IF($EU52>=$CD$18,$CE$18/(24*$FX$27*$FZ$27)*($EU52-$CD$18)^4,0)))+(IF($EU52>=$CF$18,1/(120*$FX$27*$FZ$27)*($CG$18-$CE$18)/($CF$18-$CD$18)*(($EU52-$CD$18)^5-($EU52-$CF$18)^5)-($CG$18-$CE$18)/(24*$FX$27*$FZ$27)*($EU52-$CF$18)^4,IF($EU52>=$CD$18,1/(120*$FX$27*$FZ$27)*($CG$18-$CE$18)/($CF$18-$CD$18)*($EU52-$CD$18)^5,0))))) -> 0 | CK52: =$CK$51 -> --- | CL52: =$CL$51 -> --- | CM52: =$CM$51 -> --- | CN52: =$CN$51 -> --- | CO52: =IF($CH$18=$CJ$18,"---",IF(AND($CH$18="",$CI$18="",$CJ$18="",$CK$18=""),"---",(IF($EU52>=$CJ$18,-$CI$18*($EU52-$CH$18-($EU52-$CJ$18)),IF($EU52>=$CH$18,-$CI$18*($EU52-$CH$18),0)))+(IF($EU52>=$CJ$18,-1/2*($CK$18-$CI$18)/($CJ$18-$CH$18)*(($EU52-$CH$18)^2-($EU52-$CJ$18)^2)+($CK$18-$CI$18)*($EU52-$CJ$18),IF($EU52>=$CH$18,-1/2*($CK$18-$CI$18)/($CJ$18-$CH$18)*($EU52-$CH$18)^2,0))))) -> --- | CP52: =IF($CH$18=$CJ$18,"---",IF(AND($CH$18="",$CI$18="",$CJ$18="",$CK$18=""),"---",(IF($EU52>=$CJ$18,-$CI$18/2*(($EU52-$CH$18)^2-($EU52-$CJ$18)^2),IF($EU52>=$CH$18,-$CI$18/2*($EU52-$CH$18)^2,0)))+(IF($EU52>=$CJ$18,-1/6*($CK$18-$CI$18)/($CJ$18-$CH$18)*(($EU52-$CH$18)^3-($EU52-$CJ$18)^3)+($CK$18-$CI$18)/2*($EU52-$CJ$18)^2,IF($EU52>=$CH$18,-1/6*($CK$18-$CI$18)/($CJ$18-$CH$18)*($EU52-$CH$18)^3,0))))) -> --- | CQ52: =IF($CH$18=$CJ$18,"---",IF(AND($CH$18="",$CI$18="",$CJ$18="",$CK$18=""),"---",(IF($EU52>=$CJ$18,-$CI$18/(6*$FX$27*$FZ$27)*(($EU52-$CH$18)^3-($EU52-$CJ$18)^3),IF($EU52>=$CH$18,-$CI$18/(6*$FX$27*$FZ$27)*($EU52-$CH$18)^3,0)))+(IF($EU52>=$CJ$18,-1/(24*$FX$27*$FZ$27)*($CK$18-$CI$18)/($CJ$18-$CH$18)*(($EU52-$CH$18)^4-($EU52-$CJ$18)^4)+($CK$18-$CI$18)/(6*$FX$27*$FZ$27)*($EU52-$CJ$18)^3,IF($EU52>=$CH$18,-1/(24*$FX$27*$FZ$27)*($CK$18-$CI$18)/($CJ$18-$CH$18)*($EU52-$CH$18)^4,0))))) -> --- | CR52: =IF($CH$18=$CJ$18,"---",IF(AND($CH$18="",$CI$18="",$CJ$18="",$CK$18=""),"---",(IF($EU52>=$CJ$18,$CI$18/(24*$FX$27*$FZ$27)*(($EU52-$CH$18)^4-($EU52-$CJ$18)^4),IF($EU52>=$CH$18,$CI$18/(24*$FX$27*$FZ$27)*($EU52-$CH$18)^4,0)))+(IF($EU52>=$CJ$18,1/(120*$FX$27*$FZ$27)*($CK$18-$CI$18)/($CJ$18-$CH$18)*(($EU52-$CH$18)^5-($EU52-$CJ$18)^5)-($CK$18-$CI$18)/(24*$FX$27*$FZ$27)*($EU52-$CJ$18)^4,IF($EU52>=$CH$18,1/(120*$FX$27*$FZ$27)*($CK$18-$CI$18)/($CJ$18-$CH$18)*($EU52-$CH$18)^5,0))))) -> --- | CS52: =$CS$51 -> --- | CT52: =$CT$51 -> --- | CU52: =$CU$51 -> --- | CV52: =$CV$51 -> --- | CW52: =IF($CL$18=$CN$18,"---",IF(AND($CL$18="",$CM$18="",$CN$18="",$CO$18=""),"---",(IF($EU52>=$CN$18,-$CM$18*($EU52-$CL$18-($EU52-$CN$18)),IF($EU52>=$CL$18,-$CM$18*($EU52-$CL$18),0)))+(IF($EU52>=$CN$18,-1/2*($CO$18-$CM$18)/($CN$18-$CL$18)*(($EU52-$CL$18)^2-($EU52-$CN$18)^2)+($CO$18-$CM$18)*($EU52-$CN$18),IF($EU52>=$CL$18,-1/2*($CO$18-$CM$18)/($CN$18-$CL$18)*($EU52-$CL$18)^2,0))))) -> --- | CX52: =IF($CL$18=$CN$18,"---",IF(AND($CL$18="",$CM$18="",$CN$18="",$CO$18=""),"---",(IF($EU52>=$CN$18,-$CM$18/2*(($EU52-$CL$18)^2-($EU52-$CN$18)^2),IF($EU52>=$CL$18,-$CM$18/2*($EU52-$CL$18)^2,0)))+(IF($EU52>=$CN$18,-1/6*($CO$18-$CM$18)/($CN$18-$CL$18)*(($EU52-$CL$18)^3-($EU52-$CN$18)^3)+($CO$18-$CM$18)/2*($EU52-$CN$18)^2,IF($EU52>=$CL$18,-1/6*($CO$18-$CM$18)/($CN$18-$CL$18)*($EU52-$CL$18)^3,0))))) -> --- | CY52: =IF($CL$18=$CN$18,"---",IF(AND($CL$18="",$CM$18="",$CN$18="",$CO$18=""),"---",(IF($EU52>=$CN$18,-$CM$18/(6*$FX$27*$FZ$27)*(($EU52-$CL$18)^3-($EU52-$CN$18)^3),IF($EU52>=$CL$18,-$CM$18/(6*$FX$27*$FZ$27)*($EU52-$CL$18)^3,0)))+(IF($EU52>=$CN$18,-1/(24*$FX$27*$FZ$27)*($CO$18-$CM$18)/($CN$18-$CL$18)*(($EU52-$CL$18)^4-($EU52-$CN$18)^4)+($CO$18-$CM$18)/(6*$FX$27*$FZ$27)*($EU52-$CN$18)^3,IF($EU52>=$CL$18,-1/(24*$FX$27*$FZ$27)*($CO$18-$CM$18)/($CN$18-$CL$18)*($EU52-$CL$18)^4,0))))) -> --- | CZ52: =IF($CL$18=$CN$18,"---",IF(AND($CL$18="",$CM$18="",$CN$18="",$CO$18=""),"---",(IF($EU52>=$CN$18,$CM$18/(24*$FX$27*$FZ$27)*(($EU52-$CL$18)^4-($EU52-$CN$18)^4),IF($EU52>=$CL$18,$CM$18/(24*$FX$27*$FZ$27)*($EU52-$CL$18)^4,0)))+(IF($EU52>=$CN$18,1/(120*$FX$27*$FZ$27)*($CO$18-$CM$18)/($CN$18-$CL$18)*(($EU52-$CL$18)^5-($EU52-$CN$18)^5)-($CO$18-$CM$18)/(24*$FX$27*$FZ$27)*($EU52-$CN$18)^4,IF($EU52>=$CL$18,1/(120*$FX$27*$FZ$27)*($CO$18-$CM$18)/($CN$18-$CL$18)*($EU52-$CL$18)^5,0))))) -> --- | DA52: =$DA$51 -> --- | DB52: =$DB$51 -> --- | DC52: =$DC$51 -> --- | DD52: =$DD$51 -> --- | DE52: =IF($CP$18=$CR$18,"---",IF(AND($CP$18="",$CQ$18="",$CR$18="",$CS$18=""),"---",(IF($EU52>=$CR$18,-$CQ$18*($EU52-$CP$18-($EU52-$CR$18)),IF($EU52>=$CP$18,-$CQ$18*($EU52-$CP$18),0)))+(IF($EU52>=$CR$18,-1/2*($CS$18-$CQ$18)/($CR$18-$CP$18)*(($EU52-$CP$18)^2-($EU52-$CR$18)^2)+($CS$18-$CQ$18)*($EU52-$CR$18),IF($EU52>=$CP$18,-1/2*($CS$18-$CQ$18)/($CR$18-$CP$18)*($EU52-$CP$18)^2,0))))) -> --- | DF52: =IF($CP$18=$CR$18,"---",IF(AND($CP$18="",$CQ$18="",$CR$18="",$CS$18=""),"---",(IF($EU52>=$CR$18,-$CQ$18/2*(($EU52-$CP$18)^2-($EU52-$CR$18)^2),IF($EU52>=$CP$18,-$CQ$18/2*($EU52-$CP$18)^2,0)))+(IF($EU52>=$CR$18,-1/6*($CS$18-$CQ$18)/($CR$18-$CP$18)*(($EU52-$CP$18)^3-($EU52-$CR$18)^3)+($CS$18-$CQ$18)/2*($EU52-$CR$18)^2,IF($EU52>=$CP$18,-1/6*($CS$18-$CQ$18)/($CR$18-$CP$18)*($EU52-$CP$18)^3,0))))) -> --- | DG52: =IF($CP$18=$CR$18,"---",IF(AND($CP$18="",$CQ$18="",$CR$18="",$CS$18=""),"---",(IF($EU52>=$CR$18,-$CQ$18/(6*$FX$27*$FZ$27)*(($EU52-$CP$18)^3-($EU52-$CR$18)^3),IF($EU52>=$CP$18,-$CQ$18/(6*$FX$27*$FZ$27)*($EU52-$CP$18)^3,0)))+(IF($EU52>=$CR$18,-1/(24*$FX$27*$FZ$27)*($CS$18-$CQ$18)/($CR$18-$CP$18)*(($EU52-$CP$18)^4-($EU52-$CR$18)^4)+($CS$18-$CQ$18)/(6*$FX$27*$FZ$27)*($EU52-$CR$18)^3,IF($EU52>=$CP$18,-1/(24*$FX$27*$FZ$27)*($CS$18-$CQ$18)/($CR$18-$CP$18)*($EU52-$CP$18)^4,0))))) -> --- | DH52: =IF($CP$18=$CR$18,"---",IF(AND($CP$18="",$CQ$18="",$CR$18="",$CS$18=""),"---",(IF($EU52>=$CR$18,$CQ$18/(24*$FX$27*$FZ$27)*(($EU52-$CP$18)^4-($EU52-$CR$18)^4),IF($EU52>=$CP$18,$CQ$18/(24*$FX$27*$FZ$27)*($EU52-$CP$18)^4,0)))+(IF($EU52>=$CR$18,1/(120*$FX$27*$FZ$27)*($CS$18-$CQ$18)/($CR$18-$CP$18)*(($EU52-$CP$18)^5-($EU52-$CR$18)^5)-($CS$18-$CQ$18)/(24*$FX$27*$FZ$27)*($EU52-$CR$18)^4,IF($EU52>=$CP$18,1/(120*$FX$27*$FZ$27)*($CS$18-$CQ$18)/($CR$18-$CP$18)*($EU52-$CP$18)^5,0))))) -> --- | DI52: =$DI$51 -> --- | DJ52: =$DJ$51 -> --- | DK52: =$DK$51 -> --- | DL52: =$DL$51 -> --- | DM52: =IF($CT$18=$CV$18,"---",IF(AND($CT$18="",$CU$18="",$CV$18="",$CW$18=""),"---",(IF($EU52>=$CV$18,-$CU$18*($EU52-$CT$18-($EU52-$CV$18)),IF($EU52>=$CT$18,-$CU$18*($EU52-$CT$18),0)))+(IF($EU52>=$CV$18,-1/2*($CW$18-$CU$18)/($CV$18-$CT$18)*(($EU52-$CT$18)^2-($EU52-$CV$18)^2)+($CW$18-$CU$18)*($EU52-$CV$18),IF($EU52>=$CT$18,-1/2*($CW$18-$CU$18)/($CV$18-$CT$18)*($EU52-$CT$18)^2,0))))) -> --- | DN52: =IF($CT$18=$CV$18,"---",IF(AND($CT$18="",$CU$18="",$CV$18="",$CW$18=""),"---",(IF($EU52>=$CV$18,-$CU$18/2*(($EU52-$CT$18)^2-($EU52-$CV$18)^2),IF($EU52>=$CT$18,-$CU$18/2*($EU52-$CT$18)^2,0)))+(IF($EU52>=$CV$18,-1/6*($CW$18-$CU$18)/($CV$18-$CT$18)*(($EU52-$CT$18)^3-($EU52-$CV$18)^3)+($CW$18-$CU$18)/2*($EU52-$CV$18)^2,IF($EU52>=$CT$18,-1/6*($CW$18-$CU$18)/($CV$18-$CT$18)*($EU52-$CT$18)^3,0))))) -> --- | DO52: =IF($CT$18=$CV$18,"---",IF(AND($CT$18="",$CU$18="",$CV$18="",$CW$18=""),"---",(IF($EU52>=$CV$18,-$CU$18/(6*$FX$27*$FZ$27)*(($EU52-$CT$18)^3-($EU52-$CV$18)^3),IF($EU52>=$CT$18,-$CU$18/(6*$FX$27*$FZ$27)*($EU52-$CT$18)^3,0)))+(IF($EU52>=$CV$18,-1/(24*$FX$27*$FZ$27)*($CW$18-$CU$18)/($CV$18-$CT$18)*(($EU52-$CT$18)^4-($EU52-$CV$18)^4)+($CW$18-$CU$18)/(6*$FX$27*$FZ$27)*($EU52-$CV$18)^3,IF($EU52>=$CT$18,-1/(24*$FX$27*$FZ$27)*($CW$18-$CU$18)/($CV$18-$CT$18)*($EU52-$CT$18)^4,0))))) -> --- | DP52: =IF($CT$18=$CV$18,"---",IF(AND($CT$18="",$CU$18="",$CV$18="",$CW$18=""),"---",(IF($EU52>=$CV$18,$CU$18/(24*$FX$27*$FZ$27)*(($EU52-$CT$18)^4-($EU52-$CV$18)^4),IF($EU52>=$CT$18,$CU$18/(24*$FX$27*$FZ$27)*($EU52-$CT$18)^4,0)))+(IF($EU52>=$CV$18,1/(120*$FX$27*$FZ$27)*($CW$18-$CU$18)/($CV$18-$CT$18)*(($EU52-$CT$18)^5-($EU52-$CV$18)^5)-($CW$18-$CU$18)/(24*$FX$27*$FZ$27)*($EU52-$CV$18)^4,IF($EU52>=$CT$18,1/(120*$FX$27*$FZ$27)*($CW$18-$CU$18)/($CV$18-$CT$18)*($EU52-$CT$18)^5,0))))) -> --- | DQ52: =$DQ$51 -> 0 | DR52: =$DR$51 -> 0 | DS52: =$DS$51 -> 0 | DT52: =$DT$51 -> 0 | DU52: =IF($EU50>$CD$29,-$CE$29,0)+IF($EU50>$CF$29,-$CG$29,0)+IF($EU50>$CH$29,-$CI$29,0)+IF($EU50>$CJ$29,-$CK$29,0)+IF($EU50>$CL$29,-$CM$29,0)+IF($EU50>$CN$29,-$CO$29,0)+IF($EU50>$CP$29,-$CQ$29,0)+IF($EU50>$CR$29,-$CS$29,0)+IF($EU50>$CT$29,-$CU$29,0)+IF($EU50>$CV$29,-$CW$29,0) -> 0 | DV52: =IF($EU50>$CD$29,-$CE$29*($EU50-$CD$29),0)+IF($EU50>$CF$29,-$CG$29*($EU50-$CF$29),0)+IF($EU50>$CH$29,-$CI$29*($EU50-$CH$29),0)+IF($EU50>$CJ$29,-$CK$29*($EU50-$CJ$29),0)+IF($EU50>$CL$29,-$CM$29*($EU50-$CL$29),0)+IF($EU50>$CN$29,-$CO$29*($EU50-$CN$29),0)+IF($EU50>$CP$29,-$CQ$29*($EU50-$CP$29),0)+IF($EU50>$CR$29,-$CS$29*($EU50-$CR$29),0)+IF($EU50>$CT$29,-$CU$29*($EU50-$CT$29),0)+IF($EU50>$CV$29,-$CW$29*($EU50-$CV$29),0) -> 0 | DW52: =IF($EU50>$CD$29,-$CE$29*($EU50-$CD$29)^2/(2*$FX$27*$FZ$27),0)+IF($EU50>$CF$29,-$CG$29*($EU50-$CF$29)^2/(2*$FX$27*$FZ$27),0)+IF($EU50>$CH$29,-$CI$29*($EU50-$CH$29)^2/(2*$FX$27*$FZ$27),0)+IF($EU50>$CJ$29,-$CK$29*($EU50-$CJ$29)^2/(2*$FX$27*$FZ$27),0)+IF($EU50>$CL$29,-$CM$29*($EU50-$CL$29)^2/(2*$FX$27*$FZ$27),0)+IF($EU50>$CN$29,-$CO$29*($EU50-$CN$29)^2/(2*$FX$27*$FZ$27),0)+IF($EU50>$CP$29,-$CQ$29*($EU50-$CP$29)^2/(2*$FX$27*$FZ$27),0)+IF($EU50>$CR$29,-$CS$29*($EU50-$CR$29)^2/(2*$FX$27*$FZ$27),0)+IF($EU50>$CT$29,-$CU$29*($EU50-$CT$29)^2/(2*$FX$27*$FZ$27),0)+IF($EU50>$CV$29,-$CW$29*($EU50-$CV$29)^2/(2*$FX$27*$FZ$27),0) -> 0 | DX52: =IF($EU50>$CD$29,$CE$29*($EU50-$CD$29)^3/(6*$FX$27*$FZ$27),0)+IF($EU50>$CF$29,$CG$29*($EU50-$CF$29)^3/(6*$FX$27*$FZ$27),0)+IF($EU50>$CH$29,$CI$29*($EU50-$CH$29)^3/(6*$FX$27*$FZ$27),0)+IF($EU50>$CJ$29,$CK$29*($EU50-$CJ$29)^3/(6*$FX$27*$FZ$27),0)+IF($EU50>$CL$29,$CM$29*($EU50-$CL$29)^3/(6*$FX$27*$FZ$27),0)+IF($EU50>$CN$29,$CO$29*($EU50-$CN$29)^3/(6*$FX$27*$FZ$27),0)+IF($EU50>$CP$29,$CQ$29*($EU50-$CP$29)^3/(6*$FX$27*$FZ$27),0)+IF($EU50>$CR$29,$CS$29*($EU50-$CR$29)^3/(6*$FX$27*$FZ$27),0)+IF($EU50>$CT$29,$CU$29*($EU50-$CT$29)^3/(6*$FX$27*$FZ$27),0)+IF($EU50>$CV$29,$CW$29*($EU50-$CV$29)^3/(6*$FX$27*$FZ$27),0) -> 0 | DY52: =$DY$51 -> 0 | DZ52: =$DZ$51 -> 0 | EA52: =$EA$51 -> 0 | EB52: =$EB$51 -> 0 | EC52: 0 | ED52: 0 | EE52: 0 | EF52: 0 | EG52: 0 | EH52: 0 | EI52: 0 | EJ52: 0 | EK52: 0 | EL52: 0 | EM52: 0 | EN52: 0 | EO52: =$EO$51 -> 0 | EP52: =$EP$51 -> 0 | EQ52: =$EQ$51 -> 0 | ER52: =$ER$51 -> 0 | ES52: =-($EO52+$EK52) -> 0 | ET52: 0 | EU52: =$GA$27+0.0000000001 -> 32.8083 | EV52: Member #2(Y) Axial(R): | FV52: No. | FW52: Load Direct. | FX52: a/L | FY52: P (kips) | FZ52: a/L | GA52: P (kips) | GB52: a/L | GC52: P (kips) | GD52: a/L | GE52: P (kips) | GF52: a/L | GG52: P (kips)
BD53: 1 | BE53: X-Global | BF53: =P80/AB23 -> 0 | BG53: =IF($P$78="Dead",R80*$S$62,R80*$S$63) -> 0 | BH53: =T80/AB23 -> 0 | BI53: =IF($T$78="Dead",V80*$S$62,V80*$S$63) -> 0 | BJ53: =X80/AB23 -> 0 | BK53: =IF($X$78="Dead",Z80*$S$62,Z80*$S$63) -> 0 | BL53: =P88/AB23 -> 0 | BM53: =IF($P$86="Dead",R88*$S$62,R88*$S$63) -> 0 | BN53: =T88/AB23 -> 0 | BO53: =IF($T$86="Dead",V88*$S$62,V88*$S$63) -> 0 | CB53: Member #2(X) FEM(L): | CC53: =IF($CD$19=$CF$19,"---",IF(AND($CD$19="",$CE$19="",$CF$19="",$CG$19=""),"---",(-$CE$19*($GA$27-$CD$19-($GA$27-$CF$19)))+(-1/2*($CG$19-$CE$19)/($CF$19-$CD$19)*(($GA$27-$CD$19)^2-($GA$27-$CF$19)^2)+($CG$19-$CE$19)*($GA$27-$CF$19)))) -> --- | CD53: =IF($CD$19=$CF$19,"---",IF(AND($CD$19="",$CE$19="",$CF$19="",$CG$19=""),"---",(-$CE$19/2*(($GA$27-$CD$19)^2-($GA$27-$CF$19)^2))+(-1/6*($CG$19-$CE$19)/($CF$19-$CD$19)*(($GA$27-$CD$19)^3-($GA$27-$CF$19)^3)+($CG$19-$CE$19)/2*($GA$27-$CF$19)^2))) -> --- | CE53: =IF($CD$19=$CF$19,"---",IF(AND($CD$19="",$CE$19="",$CF$19="",$CG$19=""),"---",(-$CE$19/(6*$FX$27*$FZ$27)*(($GA$27-$CD$19)^3-($GA$27-$CF$19)^3))+(-1/(24*$FX$27*$FZ$27)*($CG$19-$CE$19)/($CF$19-$CD$19)*(($GA$27-$CD$19)^4-($GA$27-$CF$19)^4)+($CG$19-$CE$19)/(6*$FX$27*$FZ$27)*($GA$27-$CF$19)^3))) -> --- | CF53: =IF($CD$19=$CF$19,"---",IF(AND($CD$19="",$CE$19="",$CF$19="",$CG$19=""),"---",($CE$19/(24*$FX$27*$FZ$27)*(($GA$27-$CD$19)^4-($GA$27-$CF$19)^4))+(1/(120*$FX$27*$FZ$27)*($CG$19-$CE$19)/($CF$19-$CD$19)*(($GA$27-$CD$19)^5-($GA$27-$CF$19)^5)-($CG$19-$CE$19)/(24*$FX$27*$FZ$27)*($GA$27-$CF$19)^4))) -> --- | CG53: =IF($CD$19=$CF$19,"---",IF(AND($CD$19="",$CE$19="",$CF$19="",$CG$19=""),"---",(IF($EU53>=$CF$19,-$CE$19*($EU53-$CD$19-($EU53-$CF$19)),IF($EU53>=$CD$19,-$CE$19*($EU53-$CD$19),0)))+(IF($EU53>=$CF$19,-1/2*($CG$19-$CE$19)/($CF$19-$CD$19)*(($EU53-$CD$19)^2-($EU53-$CF$19)^2)+($CG$19-$CE$19)*($EU53-$CF$19),IF($EU53>=$CD$19,-1/2*($CG$19-$CE$19)/($CF$19-$CD$19)*($EU53-$CD$19)^2,0))))) -> --- | CH53: =IF($CD$19=$CF$19,"---",IF(AND($CD$19="",$CE$19="",$CF$19="",$CG$19=""),"---",(IF($EU53>=$CF$19,-$CE$19/2*(($EU53-$CD$19)^2-($EU53-$CF$19)^2),IF($EU53>=$CD$19,-$CE$19/2*($EU53-$CD$19)^2,0)))+(IF($EU53>=$CF$19,-1/6*($CG$19-$CE$19)/($CF$19-$CD$19)*(($EU53-$CD$19)^3-($EU53-$CF$19)^3)+($CG$19-$CE$19)/2*($EU53-$CF$19)^2,IF($EU53>=$CD$19,-1/6*($CG$19-$CE$19)/($CF$19-$CD$19)*($EU53-$CD$19)^3,0))))) -> --- | CI53: =IF($CD$19=$CF$19,"---",IF(AND($CD$19="",$CE$19="",$CF$19="",$CG$19=""),"---",(IF($EU53>=$CF$19,-$CE$19/(6*$FX$27*$FZ$27)*(($EU53-$CD$19)^3-($EU53-$CF$19)^3),IF($EU53>=$CD$19,-$CE$19/(6*$FX$27*$FZ$27)*($EU53-$CD$19)^3,0)))+(IF($EU53>=$CF$19,-1/(24*$FX$27*$FZ$27)*($CG$19-$CE$19)/($CF$19-$CD$19)*(($EU53-$CD$19)^4-($EU53-$CF$19)^4)+($CG$19-$CE$19)/(6*$FX$27*$FZ$27)*($EU53-$CF$19)^3,IF($EU53>=$CD$19,-1/(24*$FX$27*$FZ$27)*($CG$19-$CE$19)/($CF$19-$CD$19)*($EU53-$CD$19)^4,0))))) -> --- | CJ53: =IF($CD$19=$CF$19,"---",IF(AND($CD$19="",$CE$19="",$CF$19="",$CG$19=""),"---",(IF($EU53>=$CF$19,$CE$19/(24*$FX$27*$FZ$27)*(($EU53-$CD$19)^4-($EU53-$CF$19)^4),IF($EU53>=$CD$19,$CE$19/(24*$FX$27*$FZ$27)*($EU53-$CD$19)^4,0)))+(IF($EU53>=$CF$19,1/(120*$FX$27*$FZ$27)*($CG$19-$CE$19)/($CF$19-$CD$19)*(($EU53-$CD$19)^5-($EU53-$CF$19)^5)-($CG$19-$CE$19)/(24*$FX$27*$FZ$27)*($EU53-$CF$19)^4,IF($EU53>=$CD$19,1/(120*$FX$27*$FZ$27)*($CG$19-$CE$19)/($CF$19-$CD$19)*($EU53-$CD$19)^5,0))))) -> --- | CK53: =IF($CH$19=$CJ$19,"---",IF(AND($CH$19="",$CI$19="",$CJ$19="",$CK$19=""),"---",(-$CI$19*($GA$27-$CH$19-($GA$27-$CJ$19)))+(-1/2*($CK$19-$CI$19)/($CJ$19-$CH$19)*(($GA$27-$CH$19)^2-($GA$27-$CJ$19)^2)+($CK$19-$CI$19)*($GA$27-$CJ$19)))) -> --- | CL53: =IF($CH$19=$CJ$19,"---",IF(AND($CH$19="",$CI$19="",$CJ$19="",$CK$19=""),"---",(-$CI$19/2*(($GA$27-$CH$19)^2-($GA$27-$CJ$19)^2))+(-1/6*($CK$19-$CI$19)/($CJ$19-$CH$19)*(($GA$27-$CH$19)^3-($GA$27-$CJ$19)^3)+($CK$19-$CI$19)/2*($GA$27-$CJ$19)^2))) -> --- | CM53: =IF($CH$19=$CJ$19,"---",IF(AND($CH$19="",$CI$19="",$CJ$19="",$CK$19=""),"---",(-$CI$19/(6*$FX$27*$FZ$27)*(($GA$27-$CH$19)^3-($GA$27-$CJ$19)^3))+(-1/(24*$FX$27*$FZ$27)*($CK$19-$CI$19)/($CJ$19-$CH$19)*(($GA$27-$CH$19)^4-($GA$27-$CJ$19)^4)+($CK$19-$CI$19)/(6*$FX$27*$FZ$27)*($GA$27-$CJ$19)^3))) -> --- | CN53: =IF($CH$19=$CJ$19,"---",IF(AND($CH$19="",$CI$19="",$CJ$19="",$CK$19=""),"---",($CI$19/(24*$FX$27*$FZ$27)*(($GA$27-$CH$19)^4-($GA$27-$CJ$19)^4))+(1/(120*$FX$27*$FZ$27)*($CK$19-$CI$19)/($CJ$19-$CH$19)*(($GA$27-$CH$19)^5-($GA$27-$CJ$19)^5)-($CK$19-$CI$19)/(24*$FX$27*$FZ$27)*($GA$27-$CJ$19)^4))) -> --- | CO53: =IF($CH$19=$CJ$19,"---",IF(AND($CH$19="",$CI$19="",$CJ$19="",$CK$19=""),"---",(IF($EU53>=$CJ$19,-$CI$19*($EU53-$CH$19-($EU53-$CJ$19)),IF($EU53>=$CH$19,-$CI$19*($EU53-$CH$19),0)))+(IF($EU53>=$CJ$19,-1/2*($CK$19-$CI$19)/($CJ$19-$CH$19)*(($EU53-$CH$19)^2-($EU53-$CJ$19)^2)+($CK$19-$CI$19)*($EU53-$CJ$19),IF($EU53>=$CH$19,-1/2*($CK$19-$CI$19)/($CJ$19-$CH$19)*($EU53-$CH$19)^2,0))))) -> --- | CP53: =IF($CH$19=$CJ$19,"---",IF(AND($CH$19="",$CI$19="",$CJ$19="",$CK$19=""),"---",(IF($EU53>=$CJ$19,-$CI$19/2*(($EU53-$CH$19)^2-($EU53-$CJ$19)^2),IF($EU53>=$CH$19,-$CI$19/2*($EU53-$CH$19)^2,0)))+(IF($EU53>=$CJ$19,-1/6*($CK$19-$CI$19)/($CJ$19-$CH$19)*(($EU53-$CH$19)^3-($EU53-$CJ$19)^3)+($CK$19-$CI$19)/2*($EU53-$CJ$19)^2,IF($EU53>=$CH$19,-1/6*($CK$19-$CI$19)/($CJ$19-$CH$19)*($EU53-$CH$19)^3,0))))) -> --- | CQ53: =IF($CH$19=$CJ$19,"---",IF(AND($CH$19="",$CI$19="",$CJ$19="",$CK$19=""),"---",(IF($EU53>=$CJ$19,-$CI$19/(6*$FX$27*$FZ$27)*(($EU53-$CH$19)^3-($EU53-$CJ$19)^3),IF($EU53>=$CH$19,-$CI$19/(6*$FX$27*$FZ$27)*($EU53-$CH$19)^3,0)))+(IF($EU53>=$CJ$19,-1/(24*$FX$27*$FZ$27)*($CK$19-$CI$19)/($CJ$19-$CH$19)*(($EU53-$CH$19)^4-($EU53-$CJ$19)^4)+($CK$19-$CI$19)/(6*$FX$27*$FZ$27)*($EU53-$CJ$19)^3,IF($EU53>=$CH$19,-1/(24*$FX$27*$FZ$27)*($CK$19-$CI$19)/($CJ$19-$CH$19)*($EU53-$CH$19)^4,0))))) -> --- | CR53: =IF($CH$19=$CJ$19,"---",IF(AND($CH$19="",$CI$19="",$CJ$19="",$CK$19=""),"---",(IF($EU53>=$CJ$19,$CI$19/(24*$FX$27*$FZ$27)*(($EU53-$CH$19)^4-($EU53-$CJ$19)^4),IF($EU53>=$CH$19,$CI$19/(24*$FX$27*$FZ$27)*($EU53-$CH$19)^4,0)))+(IF($EU53>=$CJ$19,1/(120*$FX$27*$FZ$27)*($CK$19-$CI$19)/($CJ$19-$CH$19)*(($EU53-$CH$19)^5-($EU53-$CJ$19)^5)-($CK$19-$CI$19)/(24*$FX$27*$FZ$27)*($EU53-$CJ$19)^4,IF($EU53>=$CH$19,1/(120*$FX$27*$FZ$27)*($CK$19-$CI$19)/($CJ$19-$CH$19)*($EU53-$CH$19)^5,0))))) -> --- | CS53: =IF($CL$19=$CN$19,"---",IF(AND($CL$19="",$CM$19="",$CN$19="",$CO$19=""),"---",(-$CM$19*($GA$27-$CL$19-($GA$27-$CN$19)))+(-1/2*($CO$19-$CM$19)/($CN$19-$CL$19)*(($GA$27-$CL$19)^2-($GA$27-$CN$19)^2)+($CO$19-$CM$19)*($GA$27-$CN$19)))) -> --- | CT53: =IF($CL$19=$CN$19,"---",IF(AND($CL$19="",$CM$19="",$CN$19="",$CO$19=""),"---",(-$CM$19/2*(($GA$27-$CL$19)^2-($GA$27-$CN$19)^2))+(-1/6*($CO$19-$CM$19)/($CN$19-$CL$19)*(($GA$27-$CL$19)^3-($GA$27-$CN$19)^3)+($CO$19-$CM$19)/2*($GA$27-$CN$19)^2))) -> --- | CU53: =IF($CL$19=$CN$19,"---",IF(AND($CL$19="",$CM$19="",$CN$19="",$CO$19=""),"---",(-$CM$19/(6*$FX$27*$FZ$27)*(($GA$27-$CL$19)^3-($GA$27-$CN$19)^3))+(-1/(24*$FX$27*$FZ$27)*($CO$19-$CM$19)/($CN$19-$CL$19)*(($GA$27-$CL$19)^4-($GA$27-$CN$19)^4)+($CO$19-$CM$19)/(6*$FX$27*$FZ$27)*($GA$27-$CN$19)^3))) -> --- | CV53: =IF($CL$19=$CN$19,"---",IF(AND($CL$19="",$CM$19="",$CN$19="",$CO$19=""),"---",($CM$19/(24*$FX$27*$FZ$27)*(($GA$27-$CL$19)^4-($GA$27-$CN$19)^4))+(1/(120*$FX$27*$FZ$27)*($CO$19-$CM$19)/($CN$19-$CL$19)*(($GA$27-$CL$19)^5-($GA$27-$CN$19)^5)-($CO$19-$CM$19)/(24*$FX$27*$FZ$27)*($GA$27-$CN$19)^4))) -> --- | CW53: =IF($CL$19=$CN$19,"---",IF(AND($CL$19="",$CM$19="",$CN$19="",$CO$19=""),"---",(IF($EU53>=$CN$19,-$CM$19*($EU53-$CL$19-($EU53-$CN$19)),IF($EU53>=$CL$19,-$CM$19*($EU53-$CL$19),0)))+(IF($EU53>=$CN$19,-1/2*($CO$19-$CM$19)/($CN$19-$CL$19)*(($EU53-$CL$19)^2-($EU53-$CN$19)^2)+($CO$19-$CM$19)*($EU53-$CN$19),IF($EU53>=$CL$19,-1/2*($CO$19-$CM$19)/($CN$19-$CL$19)*($EU53-$CL$19)^2,0))))) -> --- | CX53: =IF($CL$19=$CN$19,"---",IF(AND($CL$19="",$CM$19="",$CN$19="",$CO$19=""),"---",(IF($EU53>=$CN$19,-$CM$19/2*(($EU53-$CL$19)^2-($EU53-$CN$19)^2),IF($EU53>=$CL$19,-$CM$19/2*($EU53-$CL$19)^2,0)))+(IF($EU53>=$CN$19,-1/6*($CO$19-$CM$19)/($CN$19-$CL$19)*(($EU53-$CL$19)^3-($EU53-$CN$19)^3)+($CO$19-$CM$19)/2*($EU53-$CN$19)^2,IF($EU53>=$CL$19,-1/6*($CO$19-$CM$19)/($CN$19-$CL$19)*($EU53-$CL$19)^3,0))))) -> --- | CY53: =IF($CL$19=$CN$19,"---",IF(AND($CL$19="",$CM$19="",$CN$19="",$CO$19=""),"---",(IF($EU53>=$CN$19,-$CM$19/(6*$FX$27*$FZ$27)*(($EU53-$CL$19)^3-($EU53-$CN$19)^3),IF($EU53>=$CL$19,-$CM$19/(6*$FX$27*$FZ$27)*($EU53-$CL$19)^3,0)))+(IF($EU53>=$CN$19,-1/(24*$FX$27*$FZ$27)*($CO$19-$CM$19)/($CN$19-$CL$19)*(($EU53-$CL$19)^4-($EU53-$CN$19)^4)+($CO$19-$CM$19)/(6*$FX$27*$FZ$27)*($EU53-$CN$19)^3,IF($EU53>=$CL$19,-1/(24*$FX$27*$FZ$27)*($CO$19-$CM$19)/($CN$19-$CL$19)*($EU53-$CL$19)^4,0))))) -> --- | CZ53: =IF($CL$19=$CN$19,"---",IF(AND($CL$19="",$CM$19="",$CN$19="",$CO$19=""),"---",(IF($EU53>=$CN$19,$CM$19/(24*$FX$27*$FZ$27)*(($EU53-$CL$19)^4-($EU53-$CN$19)^4),IF($EU53>=$CL$19,$CM$19/(24*$FX$27*$FZ$27)*($EU53-$CL$19)^4,0)))+(IF($EU53>=$CN$19,1/(120*$FX$27*$FZ$27)*($CO$19-$CM$19)/($CN$19-$CL$19)*(($EU53-$CL$19)^5-($EU53-$CN$19)^5)-($CO$19-$CM$19)/(24*$FX$27*$FZ$27)*($EU53-$CN$19)^4,IF($EU53>=$CL$19,1/(120*$FX$27*$FZ$27)*($CO$19-$CM$19)/($CN$19-$CL$19)*($EU53-$CL$19)^5,0))))) -> --- | DA53: =IF($CP$19=$CR$19,"---",IF(AND($CP$19="",$CQ$19="",$CR$19="",$CS$19=""),"---",(-$CQ$19*($GA$27-$CP$19-($GA$27-$CR$19)))+(-1/2*($CS$19-$CQ$19)/($CR$19-$CP$19)*(($GA$27-$CP$19)^2-($GA$27-$CR$19)^2)+($CS$19-$CQ$19)*($GA$27-$CR$19)))) -> --- | DB53: =IF($CP$19=$CR$19,"---",IF(AND($CP$19="",$CQ$19="",$CR$19="",$CS$19=""),"---",(-$CQ$19/2*(($GA$27-$CP$19)^2-($GA$27-$CR$19)^2))+(-1/6*($CS$19-$CQ$19)/($CR$19-$CP$19)*(($GA$27-$CP$19)^3-($GA$27-$CR$19)^3)+($CS$19-$CQ$19)/2*($GA$27-$CR$19)^2))) -> --- | DC53: =IF($CP$19=$CR$19,"---",IF(AND($CP$19="",$CQ$19="",$CR$19="",$CS$19=""),"---",(-$CQ$19/(6*$FX$27*$FZ$27)*(($GA$27-$CP$19)^3-($GA$27-$CR$19)^3))+(-1/(24*$FX$27*$FZ$27)*($CS$19-$CQ$19)/($CR$19-$CP$19)*(($GA$27-$CP$19)^4-($GA$27-$CR$19)^4)+($CS$19-$CQ$19)/(6*$FX$27*$FZ$27)*($GA$27-$CR$19)^3))) -> --- | DD53: =IF($CP$19=$CR$19,"---",IF(AND($CP$19="",$CQ$19="",$CR$19="",$CS$19=""),"---",($CQ$19/(24*$FX$27*$FZ$27)*(($GA$27-$CP$19)^4-($GA$27-$CR$19)^4))+(1/(120*$FX$27*$FZ$27)*($CS$19-$CQ$19)/($CR$19-$CP$19)*(($GA$27-$CP$19)^5-($GA$27-$CR$19)^5)-($CS$19-$CQ$19)/(24*$FX$27*$FZ$27)*($GA$27-$CR$19)^4))) -> --- | DE53: =IF($CP$19=$CR$19,"---",IF(AND($CP$19="",$CQ$19="",$CR$19="",$CS$19=""),"---",(IF($EU53>=$CR$19,-$CQ$19*($EU53-$CP$19-($EU53-$CR$19)),IF($EU53>=$CP$19,-$CQ$19*($EU53-$CP$19),0)))+(IF($EU53>=$CR$19,-1/2*($CS$19-$CQ$19)/($CR$19-$CP$19)*(($EU53-$CP$19)^2-($EU53-$CR$19)^2)+($CS$19-$CQ$19)*($EU53-$CR$19),IF($EU53>=$CP$19,-1/2*($CS$19-$CQ$19)/($CR$19-$CP$19)*($EU53-$CP$19)^2,0))))) -> --- | DF53: =IF($CP$19=$CR$19,"---",IF(AND($CP$19="",$CQ$19="",$CR$19="",$CS$19=""),"---",(IF($EU53>=$CR$19,-$CQ$19/2*(($EU53-$CP$19)^2-($EU53-$CR$19)^2),IF($EU53>=$CP$19,-$CQ$19/2*($EU53-$CP$19)^2,0)))+(IF($EU53>=$CR$19,-1/6*($CS$19-$CQ$19)/($CR$19-$CP$19)*(($EU53-$CP$19)^3-($EU53-$CR$19)^3)+($CS$19-$CQ$19)/2*($EU53-$CR$19)^2,IF($EU53>=$CP$19,-1/6*($CS$19-$CQ$19)/($CR$19-$CP$19)*($EU53-$CP$19)^3,0))))) -> --- | DG53: =IF($CP$19=$CR$19,"---",IF(AND($CP$19="",$CQ$19="",$CR$19="",$CS$19=""),"---",(IF($EU53>=$CR$19,-$CQ$19/(6*$FX$27*$FZ$27)*(($EU53-$CP$19)^3-($EU53-$CR$19)^3),IF($EU53>=$CP$19,-$CQ$19/(6*$FX$27*$FZ$27)*($EU53-$CP$19)^3,0)))+(IF($EU53>=$CR$19,-1/(24*$FX$27*$FZ$27)*($CS$19-$CQ$19)/($CR$19-$CP$19)*(($EU53-$CP$19)^4-($EU53-$CR$19)^4)+($CS$19-$CQ$19)/(6*$FX$27*$FZ$27)*($EU53-$CR$19)^3,IF($EU53>=$CP$19,-1/(24*$FX$27*$FZ$27)*($CS$19-$CQ$19)/($CR$19-$CP$19)*($EU53-$CP$19)^4,0))))) -> --- | DH53: =IF($CP$19=$CR$19,"---",IF(AND($CP$19="",$CQ$19="",$CR$19="",$CS$19=""),"---",(IF($EU53>=$CR$19,$CQ$19/(24*$FX$27*$FZ$27)*(($EU53-$CP$19)^4-($EU53-$CR$19)^4),IF($EU53>=$CP$19,$CQ$19/(24*$FX$27*$FZ$27)*($EU53-$CP$19)^4,0)))+(IF($EU53>=$CR$19,1/(120*$FX$27*$FZ$27)*($CS$19-$CQ$19)/($CR$19-$CP$19)*(($EU53-$CP$19)^5-($EU53-$CR$19)^5)-($CS$19-$CQ$19)/(24*$FX$27*$FZ$27)*($EU53-$CR$19)^4,IF($EU53>=$CP$19,1/(120*$FX$27*$FZ$27)*($CS$19-$CQ$19)/($CR$19-$CP$19)*($EU53-$CP$19)^5,0))))) -> --- | DI53: =IF($CT$19=$CV$19,"---",IF(AND($CT$19="",$CU$19="",$CV$19="",$CW$19=""),"---",(-$CU$19*($GA$27-$CT$19-($GA$27-$CV$19)))+(-1/2*($CW$19-$CU$19)/($CV$19-$CT$19)*(($GA$27-$CT$19)^2-($GA$27-$CV$19)^2)+($CW$19-$CU$19)*($GA$27-$CV$19)))) -> --- | DJ53: =IF($CT$19=$CV$19,"---",IF(AND($CT$19="",$CU$19="",$CV$19="",$CW$19=""),"---",(-$CU$19/2*(($GA$27-$CT$19)^2-($GA$27-$CV$19)^2))+(-1/6*($CW$19-$CU$19)/($CV$19-$CT$19)*(($GA$27-$CT$19)^3-($GA$27-$CV$19)^3)+($CW$19-$CU$19)/2*($GA$27-$CV$19)^2))) -> --- | DK53: =IF($CT$19=$CV$19,"---",IF(AND($CT$19="",$CU$19="",$CV$19="",$CW$19=""),"---",(-$CU$19/(6*$FX$27*$FZ$27)*(($GA$27-$CT$19)^3-($GA$27-$CV$19)^3))+(-1/(24*$FX$27*$FZ$27)*($CW$19-$CU$19)/($CV$19-$CT$19)*(($GA$27-$CT$19)^4-($GA$27-$CV$19)^4)+($CW$19-$CU$19)/(6*$FX$27*$FZ$27)*($GA$27-$CV$19)^3))) -> --- | DL53: =IF($CT$19=$CV$19,"---",IF(AND($CT$19="",$CU$19="",$CV$19="",$CW$19=""),"---",($CU$19/(24*$FX$27*$FZ$27)*(($GA$27-$CT$19)^4-($GA$27-$CV$19)^4))+(1/(120*$FX$27*$FZ$27)*($CW$19-$CU$19)/($CV$19-$CT$19)*(($GA$27-$CT$19)^5-($GA$27-$CV$19)^5)-($CW$19-$CU$19)/(24*$FX$27*$FZ$27)*($GA$27-$CV$19)^4))) -> --- | DM53: =IF($CT$19=$CV$19,"---",IF(AND($CT$19="",$CU$19="",$CV$19="",$CW$19=""),"---",(IF($EU53>=$CV$19,-$CU$19*($EU53-$CT$19-($EU53-$CV$19)),IF($EU53>=$CT$19,-$CU$19*($EU53-$CT$19),0)))+(IF($EU53>=$CV$19,-1/2*($CW$19-$CU$19)/($CV$19-$CT$19)*(($EU53-$CT$19)^2-($EU53-$CV$19)^2)+($CW$19-$CU$19)*($EU53-$CV$19),IF($EU53>=$CT$19,-1/2*($CW$19-$CU$19)/($CV$19-$CT$19)*($EU53-$CT$19)^2,0))))) -> --- | DN53: =IF($CT$19=$CV$19,"---",IF(AND($CT$19="",$CU$19="",$CV$19="",$CW$19=""),"---",(IF($EU53>=$CV$19,-$CU$19/2*(($EU53-$CT$19)^2-($EU53-$CV$19)^2),IF($EU53>=$CT$19,-$CU$19/2*($EU53-$CT$19)^2,0)))+(IF($EU53>=$CV$19,-1/6*($CW$19-$CU$19)/($CV$19-$CT$19)*(($EU53-$CT$19)^3-($EU53-$CV$19)^3)+($CW$19-$CU$19)/2*($EU53-$CV$19)^2,IF($EU53>=$CT$19,-1/6*($CW$19-$CU$19)/($CV$19-$CT$19)*($EU53-$CT$19)^3,0))))) -> --- | DO53: =IF($CT$19=$CV$19,"---",IF(AND($CT$19="",$CU$19="",$CV$19="",$CW$19=""),"---",(IF($EU53>=$CV$19,-$CU$19/(6*$FX$27*$FZ$27)*(($EU53-$CT$19)^3-($EU53-$CV$19)^3),IF($EU53>=$CT$19,-$CU$19/(6*$FX$27*$FZ$27)*($EU53-$CT$19)^3,0)))+(IF($EU53>=$CV$19,-1/(24*$FX$27*$FZ$27)*($CW$19-$CU$19)/($CV$19-$CT$19)*(($EU53-$CT$19)^4-($EU53-$CV$19)^4)+($CW$19-$CU$19)/(6*$FX$27*$FZ$27)*($EU53-$CV$19)^3,IF($EU53>=$CT$19,-1/(24*$FX$27*$FZ$27)*($CW$19-$CU$19)/($CV$19-$CT$19)*($EU53-$CT$19)^4,0))))) -> --- | DP53: =IF($CT$19=$CV$19,"---",IF(AND($CT$19="",$CU$19="",$CV$19="",$CW$19=""),"---",(IF($EU53>=$CV$19,$CU$19/(24*$FX$27*$FZ$27)*(($EU53-$CT$19)^4-($EU53-$CV$19)^4),IF($EU53>=$CT$19,$CU$19/(24*$FX$27*$FZ$27)*($EU53-$CT$19)^4,0)))+(IF($EU53>=$CV$19,1/(120*$FX$27*$FZ$27)*($CW$19-$CU$19)/($CV$19-$CT$19)*(($EU53-$CT$19)^5-($EU53-$CV$19)^5)-($CW$19-$CU$19)/(24*$FX$27*$FZ$27)*($EU53-$CV$19)^4,IF($EU53>=$CT$19,1/(120*$FX$27*$FZ$27)*($CW$19-$CU$19)/($CV$19-$CT$19)*($EU53-$CT$19)^5,0))))) -> --- | DQ53: =-$CE$30+-$CG$30+-$CI$30+-$CK$30+-$CM$30+-$CO$30+-$CQ$30+-$CS$30+-$CU$30+-$CW$30 -> 0 | DR53: =-$CE$30*($GA$27-$CD$30)+-$CG$30*($GA$27-$CF$30)+-$CI$30*($GA$27-$CH$30)+-$CK$30*($GA$27-$CJ$30)+-$CM$30*($GA$27-$CL$30)+-$CO$30*($GA$27-$CN$30)+-$CQ$30*($GA$27-$CP$30)+-$CS$30*($GA$27-$CR$30)+-$CU$30*($GA$27-$CT$30)+-$CW$30*($GA$27-$CV$30) -> 0 | DS53: =-$CE$30*($GA$27-$CD$30)^2/(2*$FX$27*$FZ$27)+-$CG$30*($GA$27-$CF$30)^2/(2*$FX$27*$FZ$27)+-$CI$30*($GA$27-$CH$30)^2/(2*$FX$27*$FZ$27)+-$CK$30*($GA$27-$CJ$30)^2/(2*$FX$27*$FZ$27)+-$CM$30*($GA$27-$CL$30)^2/(2*$FX$27*$FZ$27)+-$CO$30*($GA$27-$CN$30)^2/(2*$FX$27*$FZ$27)+-$CQ$30*($GA$27-$CP$30)^2/(2*$FX$27*$FZ$27)+-$CS$30*($GA$27-$CR$30)^2/(2*$FX$27*$FZ$27)+-$CU$30*($GA$27-$CT$30)^2/(2*$FX$27*$FZ$27)+-$CW$30*($GA$27-$CV$30)^2/(2*$FX$27*$FZ$27) -> 0 | DT53: =$CE$30*($GA$27-$CD$30)^3/(6*$FX$27*$FZ$27)+$CG$30*($GA$27-$CF$30)^3/(6*$FX$27*$FZ$27)+$CI$30*($GA$27-$CH$30)^3/(6*$FX$27*$FZ$27)+$CK$30*($GA$27-$CJ$30)^3/(6*$FX$27*$FZ$27)+$CM$30*($GA$27-$CL$30)^3/(6*$FX$27*$FZ$27)+$CO$30*($GA$27-$CN$30)^3/(6*$FX$27*$FZ$27)+$CQ$30*($GA$27-$CP$30)^3/(6*$FX$27*$FZ$27)+$CS$30*($GA$27-$CR$30)^3/(6*$FX$27*$FZ$27)+$CU$30*($GA$27-$CT$30)^3/(6*$FX$27*$FZ$27)+$CW$30*($GA$27-$CV$30)^3/(6*$FX$27*$FZ$27) -> 0 | DU53: =IF($EU49>$CD$30,-$CE$30,0)+IF($EU49>$CF$30,-$CG$30,0)+IF($EU49>$CH$30,-$CI$30,0)+IF($EU49>$CJ$30,-$CK$30,0)+IF($EU49>$CL$30,-$CM$30,0)+IF($EU49>$CN$30,-$CO$30,0)+IF($EU49>$CP$30,-$CQ$30,0)+IF($EU49>$CR$30,-$CS$30,0)+IF($EU49>$CT$30,-$CU$30,0)+IF($EU49>$CV$30,-$CW$30,0) -> 0 | DV53: =IF($EU49>$CD$30,-$CE$30*($EU49-$CD$30),0)+IF($EU49>$CF$30,-$CG$30*($EU49-$CF$30),0)+IF($EU49>$CH$30,-$CI$30*($EU49-$CH$30),0)+IF($EU49>$CJ$30,-$CK$30*($EU49-$CJ$30),0)+IF($EU49>$CL$30,-$CM$30*($EU49-$CL$30),0)+IF($EU49>$CN$30,-$CO$30*($EU49-$CN$30),0)+IF($EU49>$CP$30,-$CQ$30*($EU49-$CP$30),0)+IF($EU49>$CR$30,-$CS$30*($EU49-$CR$30),0)+IF($EU49>$CT$30,-$CU$30*($EU49-$CT$30),0)+IF($EU49>$CV$30,-$CW$30*($EU49-$CV$30),0) -> 0 | DW53: =IF($EU49>$CD$30,-$CE$30*($EU49-$CD$30)^2/(2*$FX$27*$FZ$27),0)+IF($EU49>$CF$30,-$CG$30*($EU49-$CF$30)^2/(2*$FX$27*$FZ$27),0)+IF($EU49>$CH$30,-$CI$30*($EU49-$CH$30)^2/(2*$FX$27*$FZ$27),0)+IF($EU49>$CJ$30,-$CK$30*($EU49-$CJ$30)^2/(2*$FX$27*$FZ$27),0)+IF($EU49>$CL$30,-$CM$30*($EU49-$CL$30)^2/(2*$FX$27*$FZ$27),0)+IF($EU49>$CN$30,-$CO$30*($EU49-$CN$30)^2/(2*$FX$27*$FZ$27),0)+IF($EU49>$CP$30,-$CQ$30*($EU49-$CP$30)^2/(2*$FX$27*$FZ$27),0)+IF($EU49>$CR$30,-$CS$30*($EU49-$CR$30)^2/(2*$FX$27*$FZ$27),0)+IF($EU49>$CT$30,-$CU$30*($EU49-$CT$30)^2/(2*$FX$27*$FZ$27),0)+IF($EU49>$CV$30,-$CW$30*($EU49-$CV$30)^2/(2*$FX$27*$FZ$27),0) -> 0 | DX53: =IF($EU49>$CD$30,$CE$30*($EU49-$CD$30)^3/(6*$FX$27*$FZ$27),0)+IF($EU49>$CF$30,$CG$30*($EU49-$CF$30)^3/(6*$FX$27*$FZ$27),0)+IF($EU49>$CH$30,$CI$30*($EU49-$CH$30)^3/(6*$FX$27*$FZ$27),0)+IF($EU49>$CJ$30,$CK$30*($EU49-$CJ$30)^3/(6*$FX$27*$FZ$27),0)+IF($EU49>$CL$30,$CM$30*($EU49-$CL$30)^3/(6*$FX$27*$FZ$27),0)+IF($EU49>$CN$30,$CO$30*($EU49-$CN$30)^3/(6*$FX$27*$FZ$27),0)+IF($EU49>$CP$30,$CQ$30*($EU49-$CP$30)^3/(6*$FX$27*$FZ$27),0)+IF($EU49>$CR$30,$CS$30*($EU49-$CR$30)^3/(6*$FX$27*$FZ$27),0)+IF($EU49>$CT$30,$CU$30*($EU49-$CT$30)^3/(6*$FX$27*$FZ$27),0)+IF($EU49>$CV$30,$CW$30*($EU49-$CV$30)^3/(6*$FX$27*$FZ$27),0) -> 0 | DY53: =0+0+0+0 -> 0 | DZ53: =0+0+0+0 -> 0 | EA53: =0+0+0+0 -> 0 | EB53: =0+0+0+0 -> 0 | EC53: 0 | ED53: 0 | EE53: 0 | EF53: 0 | EG53: 0 | EH53: 0 | EI53: 0 | EJ53: 0 | EK53: 0 | EL53: 0 | EM53: 0 | EN53: 0 | EO53: =-12*$FX$27*$FZ$27/$GA$27^3*$EJ53-6*$FX$27*$FZ$27/$GA$27^2*$EI53 -> 0 | EP53: =6*$FX$27*$FZ$27/$GA$27^2*$EJ53+2*$FX$27*$FZ$27/$GA$27*$EI53 -> 0 | EQ53: =0 -> 0 | ER53: =0 -> 0 | ES53: =$EO53+$EK53 -> 0 | ET53: 0 | EU53: =0 -> 0 | EV53: Member #2(X) FEM(L): | FV53: 1 | FW53: =BE53 -> X-Global | FX53: 0 | FY53: =BG53*0.2248089 -> 0 | FZ53: =BH53 -> 0 | GA53: =BI53*0.2248089 -> 0 | GB53: =BJ53 -> 0 | GC53: =BK53*0.2248089 -> 0 | GD53: =BL53 -> 0 | GE53: =BM53*0.2248089 -> 0 | GF53: =BN53 -> 0 | GG53: =BO53*0.2248089 -> 0
B54: Your Logo / Company Details Here | G54: Project: | M54: =IF(M2="","",M2) ->  | AF54: By: | BD54: 2 | BE54: Y-Global | BF54: =P81/AB24 -> 0 | BG54: =IF($P$78="Dead",R81*$S$62,R81*$S$63) -> 0 | BH54: =T81/AB24 -> 0 | BI54: =IF($T$78="Dead",V81*$S$62,V81*$S$63) -> 0 | BJ54: =X81/AB24 -> 0 | BK54: =IF($X$78="Dead",Z81*$S$62,Z81*$S$63) -> 0 | BL54: =P89/AB24 -> 0 | BM54: =IF($P$86="Dead",R89*$S$62,R89*$S$63) -> 0 | BN54: =T89/AB24 -> 0 | BO54: =IF($T$86="Dead",V89*$S$62,V89*$S$63) -> 0 | CB54: Member #2(X) FEM(R): | CC54: =$CC$53 -> --- | CD54: =$CD$53 -> --- | CE54: =$CE$53 -> --- | CF54: =$CF$53 -> --- | CG54: =IF($CD$19=$CF$19,"---",IF(AND($CD$19="",$CE$19="",$CF$19="",$CG$19=""),"---",(IF($EU54>=$CF$19,-$CE$19*($EU54-$CD$19-($EU54-$CF$19)),IF($EU54>=$CD$19,-$CE$19*($EU54-$CD$19),0)))+(IF($EU54>=$CF$19,-1/2*($CG$19-$CE$19)/($CF$19-$CD$19)*(($EU54-$CD$19)^2-($EU54-$CF$19)^2)+($CG$19-$CE$19)*($EU54-$CF$19),IF($EU54>=$CD$19,-1/2*($CG$19-$CE$19)/($CF$19-$CD$19)*($EU54-$CD$19)^2,0))))) -> --- | CH54: =IF($CD$19=$CF$19,"---",IF(AND($CD$19="",$CE$19="",$CF$19="",$CG$19=""),"---",(IF($EU54>=$CF$19,-$CE$19/2*(($EU54-$CD$19)^2-($EU54-$CF$19)^2),IF($EU54>=$CD$19,-$CE$19/2*($EU54-$CD$19)^2,0)))+(IF($EU54>=$CF$19,-1/6*($CG$19-$CE$19)/($CF$19-$CD$19)*(($EU54-$CD$19)^3-($EU54-$CF$19)^3)+($CG$19-$CE$19)/2*($EU54-$CF$19)^2,IF($EU54>=$CD$19,-1/6*($CG$19-$CE$19)/($CF$19-$CD$19)*($EU54-$CD$19)^3,0))))) -> --- | CI54: =IF($CD$19=$CF$19,"---",IF(AND($CD$19="",$CE$19="",$CF$19="",$CG$19=""),"---",(IF($EU54>=$CF$19,-$CE$19/(6*$FX$27*$FZ$27)*(($EU54-$CD$19)^3-($EU54-$CF$19)^3),IF($EU54>=$CD$19,-$CE$19/(6*$FX$27*$FZ$27)*($EU54-$CD$19)^3,0)))+(IF($EU54>=$CF$19,-1/(24*$FX$27*$FZ$27)*($CG$19-$CE$19)/($CF$19-$CD$19)*(($EU54-$CD$19)^4-($EU54-$CF$19)^4)+($CG$19-$CE$19)/(6*$FX$27*$FZ$27)*($EU54-$CF$19)^3,IF($EU54>=$CD$19,-1/(24*$FX$27*$FZ$27)*($CG$19-$CE$19)/($CF$19-$CD$19)*($EU54-$CD$19)^4,0))))) -> --- | CJ54: =IF($CD$19=$CF$19,"---",IF(AND($CD$19="",$CE$19="",$CF$19="",$CG$19=""),"---",(IF($EU54>=$CF$19,$CE$19/(24*$FX$27*$FZ$27)*(($EU54-$CD$19)^4-($EU54-$CF$19)^4),IF($EU54>=$CD$19,$CE$19/(24*$FX$27*$FZ$27)*($EU54-$CD$19)^4,0)))+(IF($EU54>=$CF$19,1/(120*$FX$27*$FZ$27)*($CG$19-$CE$19)/($CF$19-$CD$19)*(($EU54-$CD$19)^5-($EU54-$CF$19)^5)-($CG$19-$CE$19)/(24*$FX$27*$FZ$27)*($EU54-$CF$19)^4,IF($EU54>=$CD$19,1/(120*$FX$27*$FZ$27)*($CG$19-$CE$19)/($CF$19-$CD$19)*($EU54-$CD$19)^5,0))))) -> --- | CK54: =$CK$53 -> --- | CL54: =$CL$53 -> --- | CM54: =$CM$53 -> --- | CN54: =$CN$53 -> --- | CO54: =IF($CH$19=$CJ$19,"---",IF(AND($CH$19="",$CI$19="",$CJ$19="",$CK$19=""),"---",(IF($EU54>=$CJ$19,-$CI$19*($EU54-$CH$19-($EU54-$CJ$19)),IF($EU54>=$CH$19,-$CI$19*($EU54-$CH$19),0)))+(IF($EU54>=$CJ$19,-1/2*($CK$19-$CI$19)/($CJ$19-$CH$19)*(($EU54-$CH$19)^2-($EU54-$CJ$19)^2)+($CK$19-$CI$19)*($EU54-$CJ$19),IF($EU54>=$CH$19,-1/2*($CK$19-$CI$19)/($CJ$19-$CH$19)*($EU54-$CH$19)^2,0))))) -> --- | CP54: =IF($CH$19=$CJ$19,"---",IF(AND($CH$19="",$CI$19="",$CJ$19="",$CK$19=""),"---",(IF($EU54>=$CJ$19,-$CI$19/2*(($EU54-$CH$19)^2-($EU54-$CJ$19)^2),IF($EU54>=$CH$19,-$CI$19/2*($EU54-$CH$19)^2,0)))+(IF($EU54>=$CJ$19,-1/6*($CK$19-$CI$19)/($CJ$19-$CH$19)*(($EU54-$CH$19)^3-($EU54-$CJ$19)^3)+($CK$19-$CI$19)/2*($EU54-$CJ$19)^2,IF($EU54>=$CH$19,-1/6*($CK$19-$CI$19)/($CJ$19-$CH$19)*($EU54-$CH$19)^3,0))))) -> --- | CQ54: =IF($CH$19=$CJ$19,"---",IF(AND($CH$19="",$CI$19="",$CJ$19="",$CK$19=""),"---",(IF($EU54>=$CJ$19,-$CI$19/(6*$FX$27*$FZ$27)*(($EU54-$CH$19)^3-($EU54-$CJ$19)^3),IF($EU54>=$CH$19,-$CI$19/(6*$FX$27*$FZ$27)*($EU54-$CH$19)^3,0)))+(IF($EU54>=$CJ$19,-1/(24*$FX$27*$FZ$27)*($CK$19-$CI$19)/($CJ$19-$CH$19)*(($EU54-$CH$19)^4-($EU54-$CJ$19)^4)+($CK$19-$CI$19)/(6*$FX$27*$FZ$27)*($EU54-$CJ$19)^3,IF($EU54>=$CH$19,-1/(24*$FX$27*$FZ$27)*($CK$19-$CI$19)/($CJ$19-$CH$19)*($EU54-$CH$19)^4,0))))) -> --- | CR54: =IF($CH$19=$CJ$19,"---",IF(AND($CH$19="",$CI$19="",$CJ$19="",$CK$19=""),"---",(IF($EU54>=$CJ$19,$CI$19/(24*$FX$27*$FZ$27)*(($EU54-$CH$19)^4-($EU54-$CJ$19)^4),IF($EU54>=$CH$19,$CI$19/(24*$FX$27*$FZ$27)*($EU54-$CH$19)^4,0)))+(IF($EU54>=$CJ$19,1/(120*$FX$27*$FZ$27)*($CK$19-$CI$19)/($CJ$19-$CH$19)*(($EU54-$CH$19)^5-($EU54-$CJ$19)^5)-($CK$19-$CI$19)/(24*$FX$27*$FZ$27)*($EU54-$CJ$19)^4,IF($EU54>=$CH$19,1/(120*$FX$27*$FZ$27)*($CK$19-$CI$19)/($CJ$19-$CH$19)*($EU54-$CH$19)^5,0))))) -> --- | CS54: =$CS$53 -> --- | CT54: =$CT$53 -> --- | CU54: =$CU$53 -> --- | CV54: =$CV$53 -> --- | CW54: =IF($CL$19=$CN$19,"---",IF(AND($CL$19="",$CM$19="",$CN$19="",$CO$19=""),"---",(IF($EU54>=$CN$19,-$CM$19*($EU54-$CL$19-($EU54-$CN$19)),IF($EU54>=$CL$19,-$CM$19*($EU54-$CL$19),0)))+(IF($EU54>=$CN$19,-1/2*($CO$19-$CM$19)/($CN$19-$CL$19)*(($EU54-$CL$19)^2-($EU54-$CN$19)^2)+($CO$19-$CM$19)*($EU54-$CN$19),IF($EU54>=$CL$19,-1/2*($CO$19-$CM$19)/($CN$19-$CL$19)*($EU54-$CL$19)^2,0))))) -> --- | CX54: =IF($CL$19=$CN$19,"---",IF(AND($CL$19="",$CM$19="",$CN$19="",$CO$19=""),"---",(IF($EU54>=$CN$19,-$CM$19/2*(($EU54-$CL$19)^2-($EU54-$CN$19)^2),IF($EU54>=$CL$19,-$CM$19/2*($EU54-$CL$19)^2,0)))+(IF($EU54>=$CN$19,-1/6*($CO$19-$CM$19)/($CN$19-$CL$19)*(($EU54-$CL$19)^3-($EU54-$CN$19)^3)+($CO$19-$CM$19)/2*($EU54-$CN$19)^2,IF($EU54>=$CL$19,-1/6*($CO$19-$CM$19)/($CN$19-$CL$19)*($EU54-$CL$19)^3,0))))) -> --- | CY54: =IF($CL$19=$CN$19,"---",IF(AND($CL$19="",$CM$19="",$CN$19="",$CO$19=""),"---",(IF($EU54>=$CN$19,-$CM$19/(6*$FX$27*$FZ$27)*(($EU54-$CL$19)^3-($EU54-$CN$19)^3),IF($EU54>=$CL$19,-$CM$19/(6*$FX$27*$FZ$27)*($EU54-$CL$19)^3,0)))+(IF($EU54>=$CN$19,-1/(24*$FX$27*$FZ$27)*($CO$19-$CM$19)/($CN$19-$CL$19)*(($EU54-$CL$19)^4-($EU54-$CN$19)^4)+($CO$19-$CM$19)/(6*$FX$27*$FZ$27)*($EU54-$CN$19)^3,IF($EU54>=$CL$19,-1/(24*$FX$27*$FZ$27)*($CO$19-$CM$19)/($CN$19-$CL$19)*($EU54-$CL$19)^4,0))))) -> --- | CZ54: =IF($CL$19=$CN$19,"---",IF(AND($CL$19="",$CM$19="",$CN$19="",$CO$19=""),"---",(IF($EU54>=$CN$19,$CM$19/(24*$FX$27*$FZ$27)*(($EU54-$CL$19)^4-($EU54-$CN$19)^4),IF($EU54>=$CL$19,$CM$19/(24*$FX$27*$FZ$27)*($EU54-$CL$19)^4,0)))+(IF($EU54>=$CN$19,1/(120*$FX$27*$FZ$27)*($CO$19-$CM$19)/($CN$19-$CL$19)*(($EU54-$CL$19)^5-($EU54-$CN$19)^5)-($CO$19-$CM$19)/(24*$FX$27*$FZ$27)*($EU54-$CN$19)^4,IF($EU54>=$CL$19,1/(120*$FX$27*$FZ$27)*($CO$19-$CM$19)/($CN$19-$CL$19)*($EU54-$CL$19)^5,0))))) -> --- | DA54: =$DA$53 -> --- | DB54: =$DB$53 -> --- | DC54: =$DC$53 -> --- | DD54: =$DD$53 -> --- | DE54: =IF($CP$19=$CR$19,"---",IF(AND($CP$19="",$CQ$19="",$CR$19="",$CS$19=""),"---",(IF($EU54>=$CR$19,-$CQ$19*($EU54-$CP$19-($EU54-$CR$19)),IF($EU54>=$CP$19,-$CQ$19*($EU54-$CP$19),0)))+(IF($EU54>=$CR$19,-1/2*($CS$19-$CQ$19)/($CR$19-$CP$19)*(($EU54-$CP$19)^2-($EU54-$CR$19)^2)+($CS$19-$CQ$19)*($EU54-$CR$19),IF($EU54>=$CP$19,-1/2*($CS$19-$CQ$19)/($CR$19-$CP$19)*($EU54-$CP$19)^2,0))))) -> --- | DF54: =IF($CP$19=$CR$19,"---",IF(AND($CP$19="",$CQ$19="",$CR$19="",$CS$19=""),"---",(IF($EU54>=$CR$19,-$CQ$19/2*(($EU54-$CP$19)^2-($EU54-$CR$19)^2),IF($EU54>=$CP$19,-$CQ$19/2*($EU54-$CP$19)^2,0)))+(IF($EU54>=$CR$19,-1/6*($CS$19-$CQ$19)/($CR$19-$CP$19)*(($EU54-$CP$19)^3-($EU54-$CR$19)^3)+($CS$19-$CQ$19)/2*($EU54-$CR$19)^2,IF($EU54>=$CP$19,-1/6*($CS$19-$CQ$19)/($CR$19-$CP$19)*($EU54-$CP$19)^3,0))))) -> --- | DG54: =IF($CP$19=$CR$19,"---",IF(AND($CP$19="",$CQ$19="",$CR$19="",$CS$19=""),"---",(IF($EU54>=$CR$19,-$CQ$19/(6*$FX$27*$FZ$27)*(($EU54-$CP$19)^3-($EU54-$CR$19)^3),IF($EU54>=$CP$19,-$CQ$19/(6*$FX$27*$FZ$27)*($EU54-$CP$19)^3,0)))+(IF($EU54>=$CR$19,-1/(24*$FX$27*$FZ$27)*($CS$19-$CQ$19)/($CR$19-$CP$19)*(($EU54-$CP$19)^4-($EU54-$CR$19)^4)+($CS$19-$CQ$19)/(6*$FX$27*$FZ$27)*($EU54-$CR$19)^3,IF($EU54>=$CP$19,-1/(24*$FX$27*$FZ$27)*($CS$19-$CQ$19)/($CR$19-$CP$19)*($EU54-$CP$19)^4,0))))) -> --- | DH54: =IF($CP$19=$CR$19,"---",IF(AND($CP$19="",$CQ$19="",$CR$19="",$CS$19=""),"---",(IF($EU54>=$CR$19,$CQ$19/(24*$FX$27*$FZ$27)*(($EU54-$CP$19)^4-($EU54-$CR$19)^4),IF($EU54>=$CP$19,$CQ$19/(24*$FX$27*$FZ$27)*($EU54-$CP$19)^4,0)))+(IF($EU54>=$CR$19,1/(120*$FX$27*$FZ$27)*($CS$19-$CQ$19)/($CR$19-$CP$19)*(($EU54-$CP$19)^5-($EU54-$CR$19)^5)-($CS$19-$CQ$19)/(24*$FX$27*$FZ$27)*($EU54-$CR$19)^4,IF($EU54>=$CP$19,1/(120*$FX$27*$FZ$27)*($CS$19-$CQ$19)/($CR$19-$CP$19)*($EU54-$CP$19)^5,0))))) -> --- | DI54: =$DI$53 -> --- | DJ54: =$DJ$53 -> --- | DK54: =$DK$53 -> --- | DL54: =$DL$53 -> --- | DM54: =IF($CT$19=$CV$19,"---",IF(AND($CT$19="",$CU$19="",$CV$19="",$CW$19=""),"---",(IF($EU54>=$CV$19,-$CU$19*($EU54-$CT$19-($EU54-$CV$19)),IF($EU54>=$CT$19,-$CU$19*($EU54-$CT$19),0)))+(IF($EU54>=$CV$19,-1/2*($CW$19-$CU$19)/($CV$19-$CT$19)*(($EU54-$CT$19)^2-($EU54-$CV$19)^2)+($CW$19-$CU$19)*($EU54-$CV$19),IF($EU54>=$CT$19,-1/2*($CW$19-$CU$19)/($CV$19-$CT$19)*($EU54-$CT$19)^2,0))))) -> --- | DN54: =IF($CT$19=$CV$19,"---",IF(AND($CT$19="",$CU$19="",$CV$19="",$CW$19=""),"---",(IF($EU54>=$CV$19,-$CU$19/2*(($EU54-$CT$19)^2-($EU54-$CV$19)^2),IF($EU54>=$CT$19,-$CU$19/2*($EU54-$CT$19)^2,0)))+(IF($EU54>=$CV$19,-1/6*($CW$19-$CU$19)/($CV$19-$CT$19)*(($EU54-$CT$19)^3-($EU54-$CV$19)^3)+($CW$19-$CU$19)/2*($EU54-$CV$19)^2,IF($EU54>=$CT$19,-1/6*($CW$19-$CU$19)/($CV$19-$CT$19)*($EU54-$CT$19)^3,0))))) -> --- | DO54: =IF($CT$19=$CV$19,"---",IF(AND($CT$19="",$CU$19="",$CV$19="",$CW$19=""),"---",(IF($EU54>=$CV$19,-$CU$19/(6*$FX$27*$FZ$27)*(($EU54-$CT$19)^3-($EU54-$CV$19)^3),IF($EU54>=$CT$19,-$CU$19/(6*$FX$27*$FZ$27)*($EU54-$CT$19)^3,0)))+(IF($EU54>=$CV$19,-1/(24*$FX$27*$FZ$27)*($CW$19-$CU$19)/($CV$19-$CT$19)*(($EU54-$CT$19)^4-($EU54-$CV$19)^4)+($CW$19-$CU$19)/(6*$FX$27*$FZ$27)*($EU54-$CV$19)^3,IF($EU54>=$CT$19,-1/(24*$FX$27*$FZ$27)*($CW$19-$CU$19)/($CV$19-$CT$19)*($EU54-$CT$19)^4,0))))) -> --- | DP54: =IF($CT$19=$CV$19,"---",IF(AND($CT$19="",$CU$19="",$CV$19="",$CW$19=""),"---",(IF($EU54>=$CV$19,$CU$19/(24*$FX$27*$FZ$27)*(($EU54-$CT$19)^4-($EU54-$CV$19)^4),IF($EU54>=$CT$19,$CU$19/(24*$FX$27*$FZ$27)*($EU54-$CT$19)^4,0)))+(IF($EU54>=$CV$19,1/(120*$FX$27*$FZ$27)*($CW$19-$CU$19)/($CV$19-$CT$19)*(($EU54-$CT$19)^5-($EU54-$CV$19)^5)-($CW$19-$CU$19)/(24*$FX$27*$FZ$27)*($EU54-$CV$19)^4,IF($EU54>=$CT$19,1/(120*$FX$27*$FZ$27)*($CW$19-$CU$19)/($CV$19-$CT$19)*($EU54-$CT$19)^5,0))))) -> --- | DQ54: =$DQ$53 -> 0 | DR54: =$DR$53 -> 0 | DS54: =$DS$53 -> 0 | DT54: =$DT$53 -> 0 | DU54: =IF($EU50>$CD$30,-$CE$30,0)+IF($EU50>$CF$30,-$CG$30,0)+IF($EU50>$CH$30,-$CI$30,0)+IF($EU50>$CJ$30,-$CK$30,0)+IF($EU50>$CL$30,-$CM$30,0)+IF($EU50>$CN$30,-$CO$30,0)+IF($EU50>$CP$30,-$CQ$30,0)+IF($EU50>$CR$30,-$CS$30,0)+IF($EU50>$CT$30,-$CU$30,0)+IF($EU50>$CV$30,-$CW$30,0) -> 0 | DV54: =IF($EU50>$CD$30,-$CE$30*($EU50-$CD$30),0)+IF($EU50>$CF$30,-$CG$30*($EU50-$CF$30),0)+IF($EU50>$CH$30,-$CI$30*($EU50-$CH$30),0)+IF($EU50>$CJ$30,-$CK$30*($EU50-$CJ$30),0)+IF($EU50>$CL$30,-$CM$30*($EU50-$CL$30),0)+IF($EU50>$CN$30,-$CO$30*($EU50-$CN$30),0)+IF($EU50>$CP$30,-$CQ$30*($EU50-$CP$30),0)+IF($EU50>$CR$30,-$CS$30*($EU50-$CR$30),0)+IF($EU50>$CT$30,-$CU$30*($EU50-$CT$30),0)+IF($EU50>$CV$30,-$CW$30*($EU50-$CV$30),0) -> 0 | DW54: =IF($EU50>$CD$30,-$CE$30*($EU50-$CD$30)^2/(2*$FX$27*$FZ$27),0)+IF($EU50>$CF$30,-$CG$30*($EU50-$CF$30)^2/(2*$FX$27*$FZ$27),0)+IF($EU50>$CH$30,-$CI$30*($EU50-$CH$30)^2/(2*$FX$27*$FZ$27),0)+IF($EU50>$CJ$30,-$CK$30*($EU50-$CJ$30)^2/(2*$FX$27*$FZ$27),0)+IF($EU50>$CL$30,-$CM$30*($EU50-$CL$30)^2/(2*$FX$27*$FZ$27),0)+IF($EU50>$CN$30,-$CO$30*($EU50-$CN$30)^2/(2*$FX$27*$FZ$27),0)+IF($EU50>$CP$30,-$CQ$30*($EU50-$CP$30)^2/(2*$FX$27*$FZ$27),0)+IF($EU50>$CR$30,-$CS$30*($EU50-$CR$30)^2/(2*$FX$27*$FZ$27),0)+IF($EU50>$CT$30,-$CU$30*($EU50-$CT$30)^2/(2*$FX$27*$FZ$27),0)+IF($EU50>$CV$30,-$CW$30*($EU50-$CV$30)^2/(2*$FX$27*$FZ$27),0) -> 0 | DX54: =IF($EU50>$CD$30,$CE$30*($EU50-$CD$30)^3/(6*$FX$27*$FZ$27),0)+IF($EU50>$CF$30,$CG$30*($EU50-$CF$30)^3/(6*$FX$27*$FZ$27),0)+IF($EU50>$CH$30,$CI$30*($EU50-$CH$30)^3/(6*$FX$27*$FZ$27),0)+IF($EU50>$CJ$30,$CK$30*($EU50-$CJ$30)^3/(6*$FX$27*$FZ$27),0)+IF($EU50>$CL$30,$CM$30*($EU50-$CL$30)^3/(6*$FX$27*$FZ$27),0)+IF($EU50>$CN$30,$CO$30*($EU50-$CN$30)^3/(6*$FX$27*$FZ$27),0)+IF($EU50>$CP$30,$CQ$30*($EU50-$CP$30)^3/(6*$FX$27*$FZ$27),0)+IF($EU50>$CR$30,$CS$30*($EU50-$CR$30)^3/(6*$FX$27*$FZ$27),0)+IF($EU50>$CT$30,$CU$30*($EU50-$CT$30)^3/(6*$FX$27*$FZ$27),0)+IF($EU50>$CV$30,$CW$30*($EU50-$CV$30)^3/(6*$FX$27*$FZ$27),0) -> 0 | DY54: =$DY$53 -> 0 | DZ54: =$DZ$53 -> 0 | EA54: =$EA$53 -> 0 | EB54: =$EB$53 -> 0 | EC54: 0 | ED54: 0 | EE54: 0 | EF54: 0 | EG54: 0 | EH54: 0 | EI54: 0 | EJ54: 0 | EK54: 0 | EL54: 0 | EM54: 0 | EN54: 0 | EO54: =$EO$53 -> 0 | EP54: =$EP$53 -> 0 | EQ54: =$EQ$53 -> 0 | ER54: =$ER$53 -> 0 | ES54: =-($EO54+$EK54) -> 0 | ET54: 0 | EU54: =$GA$27+0.0000000001 -> 32.8083 | EV54: Member #2(X) FEM(R): | FV54: 2 | FW54: Y-Global | FX54: 0 | FY54: =BG54*0.2248089 -> 0 | FZ54: =BH54 -> 0 | GA54: =BI54*0.2248089 -> 0 | GB54: =BJ54 -> 0 | GC54: =BK54*0.2248089 -> 0 | GD54: =BL54 -> 0 | GE54: =BM54*0.2248089 -> 0 | GF54: =BN54 -> 0 | GG54: =BO54*0.2248089 -> 0
G55: Calculation: | M55: =IF(M3="","",M3) -> Portal Frame Analysis | BD55: 2 | BE55: X-Global | BF55: =P82/AB24 -> 0 | BG55: 0 | BH55: =T82/AB24 -> 0 | BI55: 0 | BJ55: =X82/AB24 -> 0 | BK55: 0 | BL55: =P90/AB24 -> 0 | BM55: 0 | BN55: =T90/AB24 -> 0 | BO55: 0 | CB55: Member #2(X) Axial(L): | CC55: =IF($CD$20=$CF$20,"---",IF(AND($CD$20="",$CE$20="",$CF$20="",$CG$20=""),"---",(-$CE$20*($GA$27-$CD$20-($GA$27-$CF$20)))+(-1/2*($CG$20-$CE$20)/($CF$20-$CD$20)*(($GA$27-$CD$20)^2-($GA$27-$CF$20)^2)+($CG$20-$CE$20)*($GA$27-$CF$20)))) -> --- | CD55: =IF($CD$20=$CF$20,"---",IF(AND($CD$20="",$CE$20="",$CF$20="",$CG$20=""),"---",(-$CE$20/2*(($GA$27-$CD$20)^2-($GA$27-$CF$20)^2))+(-1/6*($CG$20-$CE$20)/($CF$20-$CD$20)*(($GA$27-$CD$20)^3-($GA$27-$CF$20)^3)+($CG$20-$CE$20)/2*($GA$27-$CF$20)^2))) -> --- | CE55: =IF($CD$20=$CF$20,"---",IF(AND($CD$20="",$CE$20="",$CF$20="",$CG$20=""),"---",(-$CE$20/(6*$FX$27*$FZ$27)*(($GA$27-$CD$20)^3-($GA$27-$CF$20)^3))+(-1/(24*$FX$27*$FZ$27)*($CG$20-$CE$20)/($CF$20-$CD$20)*(($GA$27-$CD$20)^4-($GA$27-$CF$20)^4)+($CG$20-$CE$20)/(6*$FX$27*$FZ$27)*($GA$27-$CF$20)^3))) -> --- | CF55: =IF($CD$20=$CF$20,"---",IF(AND($CD$20="",$CE$20="",$CF$20="",$CG$20=""),"---",($CE$20/(24*$FX$27*$FZ$27)*(($GA$27-$CD$20)^4-($GA$27-$CF$20)^4))+(1/(120*$FX$27*$FZ$27)*($CG$20-$CE$20)/($CF$20-$CD$20)*(($GA$27-$CD$20)^5-($GA$27-$CF$20)^5)-($CG$20-$CE$20)/(24*$FX$27*$FZ$27)*($GA$27-$CF$20)^4))) -> --- | CG55: =IF($CD$20=$CF$20,"---",IF(AND($CD$20="",$CE$20="",$CF$20="",$CG$20=""),"---",(IF($EU55>=$CF$20,-$CE$20*($EU55-$CD$20-($EU55-$CF$20)),IF($EU55>=$CD$20,-$CE$20*($EU55-$CD$20),0)))+(IF($EU55>=$CF$20,-1/2*($CG$20-$CE$20)/($CF$20-$CD$20)*(($EU55-$CD$20)^2-($EU55-$CF$20)^2)+($CG$20-$CE$20)*($EU55-$CF$20),IF($EU55>=$CD$20,-1/2*($CG$20-$CE$20)/($CF$20-$CD$20)*($EU55-$CD$20)^2,0))))) -> --- | CH55: =IF($CD$20=$CF$20,"---",IF(AND($CD$20="",$CE$20="",$CF$20="",$CG$20=""),"---",(IF($EU55>=$CF$20,-$CE$20/2*(($EU55-$CD$20)^2-($EU55-$CF$20)^2),IF($EU55>=$CD$20,-$CE$20/2*($EU55-$CD$20)^2,0)))+(IF($EU55>=$CF$20,-1/6*($CG$20-$CE$20)/($CF$20-$CD$20)*(($EU55-$CD$20)^3-($EU55-$CF$20)^3)+($CG$20-$CE$20)/2*($EU55-$CF$20)^2,IF($EU55>=$CD$20,-1/6*($CG$20-$CE$20)/($CF$20-$CD$20)*($EU55-$CD$20)^3,0))))) -> --- | CI55: =IF($CD$20=$CF$20,"---",IF(AND($CD$20="",$CE$20="",$CF$20="",$CG$20=""),"---",(IF($EU55>=$CF$20,-$CE$20/(6*$FX$27*$FZ$27)*(($EU55-$CD$20)^3-($EU55-$CF$20)^3),IF($EU55>=$CD$20,-$CE$20/(6*$FX$27*$FZ$27)*($EU55-$CD$20)^3,0)))+(IF($EU55>=$CF$20,-1/(24*$FX$27*$FZ$27)*($CG$20-$CE$20)/($CF$20-$CD$20)*(($EU55-$CD$20)^4-($EU55-$CF$20)^4)+($CG$20-$CE$20)/(6*$FX$27*$FZ$27)*($EU55-$CF$20)^3,IF($EU55>=$CD$20,-1/(24*$FX$27*$FZ$27)*($CG$20-$CE$20)/($CF$20-$CD$20)*($EU55-$CD$20)^4,0))))) -> --- | CJ55: =IF($CD$20=$CF$20,"---",IF(AND($CD$20="",$CE$20="",$CF$20="",$CG$20=""),"---",(IF($EU55>=$CF$20,$CE$20/(24*$FX$27*$FZ$27)*(($EU55-$CD$20)^4-($EU55-$CF$20)^4),IF($EU55>=$CD$20,$CE$20/(24*$FX$27*$FZ$27)*($EU55-$CD$20)^4,0)))+(IF($EU55>=$CF$20,1/(120*$FX$27*$FZ$27)*($CG$20-$CE$20)/($CF$20-$CD$20)*(($EU55-$CD$20)^5-($EU55-$CF$20)^5)-($CG$20-$CE$20)/(24*$FX$27*$FZ$27)*($EU55-$CF$20)^4,IF($EU55>=$CD$20,1/(120*$FX$27*$FZ$27)*($CG$20-$CE$20)/($CF$20-$CD$20)*($EU55-$CD$20)^5,0))))) -> --- | CK55: =IF($CH$20=$CJ$20,"---",IF(AND($CH$20="",$CI$20="",$CJ$20="",$CK$20=""),"---",(-$CI$20*($GA$27-$CH$20-($GA$27-$CJ$20)))+(-1/2*($CK$20-$CI$20)/($CJ$20-$CH$20)*(($GA$27-$CH$20)^2-($GA$27-$CJ$20)^2)+($CK$20-$CI$20)*($GA$27-$CJ$20)))) -> --- | CL55: =IF($CH$20=$CJ$20,"---",IF(AND($CH$20="",$CI$20="",$CJ$20="",$CK$20=""),"---",(-$CI$20/2*(($GA$27-$CH$20)^2-($GA$27-$CJ$20)^2))+(-1/6*($CK$20-$CI$20)/($CJ$20-$CH$20)*(($GA$27-$CH$20)^3-($GA$27-$CJ$20)^3)+($CK$20-$CI$20)/2*($GA$27-$CJ$20)^2))) -> --- | CM55: =IF($CH$20=$CJ$20,"---",IF(AND($CH$20="",$CI$20="",$CJ$20="",$CK$20=""),"---",(-$CI$20/(6*$FX$27*$FZ$27)*(($GA$27-$CH$20)^3-($GA$27-$CJ$20)^3))+(-1/(24*$FX$27*$FZ$27)*($CK$20-$CI$20)/($CJ$20-$CH$20)*(($GA$27-$CH$20)^4-($GA$27-$CJ$20)^4)+($CK$20-$CI$20)/(6*$FX$27*$FZ$27)*($GA$27-$CJ$20)^3))) -> --- | CN55: =IF($CH$20=$CJ$20,"---",IF(AND($CH$20="",$CI$20="",$CJ$20="",$CK$20=""),"---",($CI$20/(24*$FX$27*$FZ$27)*(($GA$27-$CH$20)^4-($GA$27-$CJ$20)^4))+(1/(120*$FX$27*$FZ$27)*($CK$20-$CI$20)/($CJ$20-$CH$20)*(($GA$27-$CH$20)^5-($GA$27-$CJ$20)^5)-($CK$20-$CI$20)/(24*$FX$27*$FZ$27)*($GA$27-$CJ$20)^4))) -> --- | CO55: =IF($CH$20=$CJ$20,"---",IF(AND($CH$20="",$CI$20="",$CJ$20="",$CK$20=""),"---",(IF($EU55>=$CJ$20,-$CI$20*($EU55-$CH$20-($EU55-$CJ$20)),IF($EU55>=$CH$20,-$CI$20*($EU55-$CH$20),0)))+(IF($EU55>=$CJ$20,-1/2*($CK$20-$CI$20)/($CJ$20-$CH$20)*(($EU55-$CH$20)^2-($EU55-$CJ$20)^2)+($CK$20-$CI$20)*($EU55-$CJ$20),IF($EU55>=$CH$20,-1/2*($CK$20-$CI$20)/($CJ$20-$CH$20)*($EU55-$CH$20)^2,0))))) -> --- | CP55: =IF($CH$20=$CJ$20,"---",IF(AND($CH$20="",$CI$20="",$CJ$20="",$CK$20=""),"---",(IF($EU55>=$CJ$20,-$CI$20/2*(($EU55-$CH$20)^2-($EU55-$CJ$20)^2),IF($EU55>=$CH$20,-$CI$20/2*($EU55-$CH$20)^2,0)))+(IF($EU55>=$CJ$20,-1/6*($CK$20-$CI$20)/($CJ$20-$CH$20)*(($EU55-$CH$20)^3-($EU55-$CJ$20)^3)+($CK$20-$CI$20)/2*($EU55-$CJ$20)^2,IF($EU55>=$CH$20,-1/6*($CK$20-$CI$20)/($CJ$20-$CH$20)*($EU55-$CH$20)^3,0))))) -> --- | CQ55: =IF($CH$20=$CJ$20,"---",IF(AND($CH$20="",$CI$20="",$CJ$20="",$CK$20=""),"---",(IF($EU55>=$CJ$20,-$CI$20/(6*$FX$27*$FZ$27)*(($EU55-$CH$20)^3-($EU55-$CJ$20)^3),IF($EU55>=$CH$20,-$CI$20/(6*$FX$27*$FZ$27)*($EU55-$CH$20)^3,0)))+(IF($EU55>=$CJ$20,-1/(24*$FX$27*$FZ$27)*($CK$20-$CI$20)/($CJ$20-$CH$20)*(($EU55-$CH$20)^4-($EU55-$CJ$20)^4)+($CK$20-$CI$20)/(6*$FX$27*$FZ$27)*($EU55-$CJ$20)^3,IF($EU55>=$CH$20,-1/(24*$FX$27*$FZ$27)*($CK$20-$CI$20)/($CJ$20-$CH$20)*($EU55-$CH$20)^4,0))))) -> --- | CR55: =IF($CH$20=$CJ$20,"---",IF(AND($CH$20="",$CI$20="",$CJ$20="",$CK$20=""),"---",(IF($EU55>=$CJ$20,$CI$20/(24*$FX$27*$FZ$27)*(($EU55-$CH$20)^4-($EU55-$CJ$20)^4),IF($EU55>=$CH$20,$CI$20/(24*$FX$27*$FZ$27)*($EU55-$CH$20)^4,0)))+(IF($EU55>=$CJ$20,1/(120*$FX$27*$FZ$27)*($CK$20-$CI$20)/($CJ$20-$CH$20)*(($EU55-$CH$20)^5-($EU55-$CJ$20)^5)-($CK$20-$CI$20)/(24*$FX$27*$FZ$27)*($EU55-$CJ$20)^4,IF($EU55>=$CH$20,1/(120*$FX$27*$FZ$27)*($CK$20-$CI$20)/($CJ$20-$CH$20)*($EU55-$CH$20)^5,0))))) -> --- | CS55: =IF($CL$20=$CN$20,"---",IF(AND($CL$20="",$CM$20="",$CN$20="",$CO$20=""),"---",(-$CM$20*($GA$27-$CL$20-($GA$27-$CN$20)))+(-1/2*($CO$20-$CM$20)/($CN$20-$CL$20)*(($GA$27-$CL$20)^2-($GA$27-$CN$20)^2)+($CO$20-$CM$20)*($GA$27-$CN$20)))) -> --- | CT55: =IF($CL$20=$CN$20,"---",IF(AND($CL$20="",$CM$20="",$CN$20="",$CO$20=""),"---",(-$CM$20/2*(($GA$27-$CL$20)^2-($GA$27-$CN$20)^2))+(-1/6*($CO$20-$CM$20)/($CN$20-$CL$20)*(($GA$27-$CL$20)^3-($GA$27-$CN$20)^3)+($CO$20-$CM$20)/2*($GA$27-$CN$20)^2))) -> --- | CU55: =IF($CL$20=$CN$20,"---",IF(AND($CL$20="",$CM$20="",$CN$20="",$CO$20=""),"---",(-$CM$20/(6*$FX$27*$FZ$27)*(($GA$27-$CL$20)^3-($GA$27-$CN$20)^3))+(-1/(24*$FX$27*$FZ$27)*($CO$20-$CM$20)/($CN$20-$CL$20)*(($GA$27-$CL$20)^4-($GA$27-$CN$20)^4)+($CO$20-$CM$20)/(6*$FX$27*$FZ$27)*($GA$27-$CN$20)^3))) -> --- | CV55: =IF($CL$20=$CN$20,"---",IF(AND($CL$20="",$CM$20="",$CN$20="",$CO$20=""),"---",($CM$20/(24*$FX$27*$FZ$27)*(($GA$27-$CL$20)^4-($GA$27-$CN$20)^4))+(1/(120*$FX$27*$FZ$27)*($CO$20-$CM$20)/($CN$20-$CL$20)*(($GA$27-$CL$20)^5-($GA$27-$CN$20)^5)-($CO$20-$CM$20)/(24*$FX$27*$FZ$27)*($GA$27-$CN$20)^4))) -> --- | CW55: =IF($CL$20=$CN$20,"---",IF(AND($CL$20="",$CM$20="",$CN$20="",$CO$20=""),"---",(IF($EU55>=$CN$20,-$CM$20*($EU55-$CL$20-($EU55-$CN$20)),IF($EU55>=$CL$20,-$CM$20*($EU55-$CL$20),0)))+(IF($EU55>=$CN$20,-1/2*($CO$20-$CM$20)/($CN$20-$CL$20)*(($EU55-$CL$20)^2-($EU55-$CN$20)^2)+($CO$20-$CM$20)*($EU55-$CN$20),IF($EU55>=$CL$20,-1/2*($CO$20-$CM$20)/($CN$20-$CL$20)*($EU55-$CL$20)^2,0))))) -> --- | CX55: =IF($CL$20=$CN$20,"---",IF(AND($CL$20="",$CM$20="",$CN$20="",$CO$20=""),"---",(IF($EU55>=$CN$20,-$CM$20/2*(($EU55-$CL$20)^2-($EU55-$CN$20)^2),IF($EU55>=$CL$20,-$CM$20/2*($EU55-$CL$20)^2,0)))+(IF($EU55>=$CN$20,-1/6*($CO$20-$CM$20)/($CN$20-$CL$20)*(($EU55-$CL$20)^3-($EU55-$CN$20)^3)+($CO$20-$CM$20)/2*($EU55-$CN$20)^2,IF($EU55>=$CL$20,-1/6*($CO$20-$CM$20)/($CN$20-$CL$20)*($EU55-$CL$20)^3,0))))) -> --- | CY55: =IF($CL$20=$CN$20,"---",IF(AND($CL$20="",$CM$20="",$CN$20="",$CO$20=""),"---",(IF($EU55>=$CN$20,-$CM$20/(6*$FX$27*$FZ$27)*(($EU55-$CL$20)^3-($EU55-$CN$20)^3),IF($EU55>=$CL$20,-$CM$20/(6*$FX$27*$FZ$27)*($EU55-$CL$20)^3,0)))+(IF($EU55>=$CN$20,-1/(24*$FX$27*$FZ$27)*($CO$20-$CM$20)/($CN$20-$CL$20)*(($EU55-$CL$20)^4-($EU55-$CN$20)^4)+($CO$20-$CM$20)/(6*$FX$27*$FZ$27)*($EU55-$CN$20)^3,IF($EU55>=$CL$20,-1/(24*$FX$27*$FZ$27)*($CO$20-$CM$20)/($CN$20-$CL$20)*($EU55-$CL$20)^4,0))))) -> --- | CZ55: =IF($CL$20=$CN$20,"---",IF(AND($CL$20="",$CM$20="",$CN$20="",$CO$20=""),"---",(IF($EU55>=$CN$20,$CM$20/(24*$FX$27*$FZ$27)*(($EU55-$CL$20)^4-($EU55-$CN$20)^4),IF($EU55>=$CL$20,$CM$20/(24*$FX$27*$FZ$27)*($EU55-$CL$20)^4,0)))+(IF($EU55>=$CN$20,1/(120*$FX$27*$FZ$27)*($CO$20-$CM$20)/($CN$20-$CL$20)*(($EU55-$CL$20)^5-($EU55-$CN$20)^5)-($CO$20-$CM$20)/(24*$FX$27*$FZ$27)*($EU55-$CN$20)^4,IF($EU55>=$CL$20,1/(120*$FX$27*$FZ$27)*($CO$20-$CM$20)/($CN$20-$CL$20)*($EU55-$CL$20)^5,0))))) -> --- | DA55: =IF($CP$20=$CR$20,"---",IF(AND($CP$20="",$CQ$20="",$CR$20="",$CS$20=""),"---",(-$CQ$20*($GA$27-$CP$20-($GA$27-$CR$20)))+(-1/2*($CS$20-$CQ$20)/($CR$20-$CP$20)*(($GA$27-$CP$20)^2-($GA$27-$CR$20)^2)+($CS$20-$CQ$20)*($GA$27-$CR$20)))) -> --- | DB55: =IF($CP$20=$CR$20,"---",IF(AND($CP$20="",$CQ$20="",$CR$20="",$CS$20=""),"---",(-$CQ$20/2*(($GA$27-$CP$20)^2-($GA$27-$CR$20)^2))+(-1/6*($CS$20-$CQ$20)/($CR$20-$CP$20)*(($GA$27-$CP$20)^3-($GA$27-$CR$20)^3)+($CS$20-$CQ$20)/2*($GA$27-$CR$20)^2))) -> --- | DC55: =IF($CP$20=$CR$20,"---",IF(AND($CP$20="",$CQ$20="",$CR$20="",$CS$20=""),"---",(-$CQ$20/(6*$FX$27*$FZ$27)*(($GA$27-$CP$20)^3-($GA$27-$CR$20)^3))+(-1/(24*$FX$27*$FZ$27)*($CS$20-$CQ$20)/($CR$20-$CP$20)*(($GA$27-$CP$20)^4-($GA$27-$CR$20)^4)+($CS$20-$CQ$20)/(6*$FX$27*$FZ$27)*($GA$27-$CR$20)^3))) -> --- | DD55: =IF($CP$20=$CR$20,"---",IF(AND($CP$20="",$CQ$20="",$CR$20="",$CS$20=""),"---",($CQ$20/(24*$FX$27*$FZ$27)*(($GA$27-$CP$20)^4-($GA$27-$CR$20)^4))+(1/(120*$FX$27*$FZ$27)*($CS$20-$CQ$20)/($CR$20-$CP$20)*(($GA$27-$CP$20)^5-($GA$27-$CR$20)^5)-($CS$20-$CQ$20)/(24*$FX$27*$FZ$27)*($GA$27-$CR$20)^4))) -> --- | DE55: =IF($CP$20=$CR$20,"---",IF(AND($CP$20="",$CQ$20="",$CR$20="",$CS$20=""),"---",(IF($EU55>=$CR$20,-$CQ$20*($EU55-$CP$20-($EU55-$CR$20)),IF($EU55>=$CP$20,-$CQ$20*($EU55-$CP$20),0)))+(IF($EU55>=$CR$20,-1/2*($CS$20-$CQ$20)/($CR$20-$CP$20)*(($EU55-$CP$20)^2-($EU55-$CR$20)^2)+($CS$20-$CQ$20)*($EU55-$CR$20),IF($EU55>=$CP$20,-1/2*($CS$20-$CQ$20)/($CR$20-$CP$20)*($EU55-$CP$20)^2,0))))) -> --- | DF55: =IF($CP$20=$CR$20,"---",IF(AND($CP$20="",$CQ$20="",$CR$20="",$CS$20=""),"---",(IF($EU55>=$CR$20,-$CQ$20/2*(($EU55-$CP$20)^2-($EU55-$CR$20)^2),IF($EU55>=$CP$20,-$CQ$20/2*($EU55-$CP$20)^2,0)))+(IF($EU55>=$CR$20,-1/6*($CS$20-$CQ$20)/($CR$20-$CP$20)*(($EU55-$CP$20)^3-($EU55-$CR$20)^3)+($CS$20-$CQ$20)/2*($EU55-$CR$20)^2,IF($EU55>=$CP$20,-1/6*($CS$20-$CQ$20)/($CR$20-$CP$20)*($EU55-$CP$20)^3,0))))) -> --- | DG55: =IF($CP$20=$CR$20,"---",IF(AND($CP$20="",$CQ$20="",$CR$20="",$CS$20=""),"---",(IF($EU55>=$CR$20,-$CQ$20/(6*$FX$27*$FZ$27)*(($EU55-$CP$20)^3-($EU55-$CR$20)^3),IF($EU55>=$CP$20,-$CQ$20/(6*$FX$27*$FZ$27)*($EU55-$CP$20)^3,0)))+(IF($EU55>=$CR$20,-1/(24*$FX$27*$FZ$27)*($CS$20-$CQ$20)/($CR$20-$CP$20)*(($EU55-$CP$20)^4-($EU55-$CR$20)^4)+($CS$20-$CQ$20)/(6*$FX$27*$FZ$27)*($EU55-$CR$20)^3,IF($EU55>=$CP$20,-1/(24*$FX$27*$FZ$27)*($CS$20-$CQ$20)/($CR$20-$CP$20)*($EU55-$CP$20)^4,0))))) -> --- | DH55: =IF($CP$20=$CR$20,"---",IF(AND($CP$20="",$CQ$20="",$CR$20="",$CS$20=""),"---",(IF($EU55>=$CR$20,$CQ$20/(24*$FX$27*$FZ$27)*(($EU55-$CP$20)^4-($EU55-$CR$20)^4),IF($EU55>=$CP$20,$CQ$20/(24*$FX$27*$FZ$27)*($EU55-$CP$20)^4,0)))+(IF($EU55>=$CR$20,1/(120*$FX$27*$FZ$27)*($CS$20-$CQ$20)/($CR$20-$CP$20)*(($EU55-$CP$20)^5-($EU55-$CR$20)^5)-($CS$20-$CQ$20)/(24*$FX$27*$FZ$27)*($EU55-$CR$20)^4,IF($EU55>=$CP$20,1/(120*$FX$27*$FZ$27)*($CS$20-$CQ$20)/($CR$20-$CP$20)*($EU55-$CP$20)^5,0))))) -> --- | DI55: =IF($CT$20=$CV$20,"---",IF(AND($CT$20="",$CU$20="",$CV$20="",$CW$20=""),"---",(-$CU$20*($GA$27-$CT$20-($GA$27-$CV$20)))+(-1/2*($CW$20-$CU$20)/($CV$20-$CT$20)*(($GA$27-$CT$20)^2-($GA$27-$CV$20)^2)+($CW$20-$CU$20)*($GA$27-$CV$20)))) -> --- | DJ55: =IF($CT$20=$CV$20,"---",IF(AND($CT$20="",$CU$20="",$CV$20="",$CW$20=""),"---",(-$CU$20/2*(($GA$27-$CT$20)^2-($GA$27-$CV$20)^2))+(-1/6*($CW$20-$CU$20)/($CV$20-$CT$20)*(($GA$27-$CT$20)^3-($GA$27-$CV$20)^3)+($CW$20-$CU$20)/2*($GA$27-$CV$20)^2))) -> --- | DK55: =IF($CT$20=$CV$20,"---",IF(AND($CT$20="",$CU$20="",$CV$20="",$CW$20=""),"---",(-$CU$20/(6*$FX$27*$FZ$27)*(($GA$27-$CT$20)^3-($GA$27-$CV$20)^3))+(-1/(24*$FX$27*$FZ$27)*($CW$20-$CU$20)/($CV$20-$CT$20)*(($GA$27-$CT$20)^4-($GA$27-$CV$20)^4)+($CW$20-$CU$20)/(6*$FX$27*$FZ$27)*($GA$27-$CV$20)^3))) -> --- | DL55: =IF($CT$20=$CV$20,"---",IF(AND($CT$20="",$CU$20="",$CV$20="",$CW$20=""),"---",($CU$20/(24*$FX$27*$FZ$27)*(($GA$27-$CT$20)^4-($GA$27-$CV$20)^4))+(1/(120*$FX$27*$FZ$27)*($CW$20-$CU$20)/($CV$20-$CT$20)*(($GA$27-$CT$20)^5-($GA$27-$CV$20)^5)-($CW$20-$CU$20)/(24*$FX$27*$FZ$27)*($GA$27-$CV$20)^4))) -> --- | DM55: =IF($CT$20=$CV$20,"---",IF(AND($CT$20="",$CU$20="",$CV$20="",$CW$20=""),"---",(IF($EU55>=$CV$20,-$CU$20*($EU55-$CT$20-($EU55-$CV$20)),IF($EU55>=$CT$20,-$CU$20*($EU55-$CT$20),0)))+(IF($EU55>=$CV$20,-1/2*($CW$20-$CU$20)/($CV$20-$CT$20)*(($EU55-$CT$20)^2-($EU55-$CV$20)^2)+($CW$20-$CU$20)*($EU55-$CV$20),IF($EU55>=$CT$20,-1/2*($CW$20-$CU$20)/($CV$20-$CT$20)*($EU55-$CT$20)^2,0))))) -> --- | DN55: =IF($CT$20=$CV$20,"---",IF(AND($CT$20="",$CU$20="",$CV$20="",$CW$20=""),"---",(IF($EU55>=$CV$20,-$CU$20/2*(($EU55-$CT$20)^2-($EU55-$CV$20)^2),IF($EU55>=$CT$20,-$CU$20/2*($EU55-$CT$20)^2,0)))+(IF($EU55>=$CV$20,-1/6*($CW$20-$CU$20)/($CV$20-$CT$20)*(($EU55-$CT$20)^3-($EU55-$CV$20)^3)+($CW$20-$CU$20)/2*($EU55-$CV$20)^2,IF($EU55>=$CT$20,-1/6*($CW$20-$CU$20)/($CV$20-$CT$20)*($EU55-$CT$20)^3,0))))) -> --- | DO55: =IF($CT$20=$CV$20,"---",IF(AND($CT$20="",$CU$20="",$CV$20="",$CW$20=""),"---",(IF($EU55>=$CV$20,-$CU$20/(6*$FX$27*$FZ$27)*(($EU55-$CT$20)^3-($EU55-$CV$20)^3),IF($EU55>=$CT$20,-$CU$20/(6*$FX$27*$FZ$27)*($EU55-$CT$20)^3,0)))+(IF($EU55>=$CV$20,-1/(24*$FX$27*$FZ$27)*($CW$20-$CU$20)/($CV$20-$CT$20)*(($EU55-$CT$20)^4-($EU55-$CV$20)^4)+($CW$20-$CU$20)/(6*$FX$27*$FZ$27)*($EU55-$CV$20)^3,IF($EU55>=$CT$20,-1/(24*$FX$27*$FZ$27)*($CW$20-$CU$20)/($CV$20-$CT$20)*($EU55-$CT$20)^4,0))))) -> --- | DP55: =IF($CT$20=$CV$20,"---",IF(AND($CT$20="",$CU$20="",$CV$20="",$CW$20=""),"---",(IF($EU55>=$CV$20,$CU$20/(24*$FX$27*$FZ$27)*(($EU55-$CT$20)^4-($EU55-$CV$20)^4),IF($EU55>=$CT$20,$CU$20/(24*$FX$27*$FZ$27)*($EU55-$CT$20)^4,0)))+(IF($EU55>=$CV$20,1/(120*$FX$27*$FZ$27)*($CW$20-$CU$20)/($CV$20-$CT$20)*(($EU55-$CT$20)^5-($EU55-$CV$20)^5)-($CW$20-$CU$20)/(24*$FX$27*$FZ$27)*($EU55-$CV$20)^4,IF($EU55>=$CT$20,1/(120*$FX$27*$FZ$27)*($CW$20-$CU$20)/($CV$20-$CT$20)*($EU55-$CT$20)^5,0))))) -> --- | DQ55: =-$CE$31+-$CG$31+-$CI$31+-$CK$31+-$CM$31+-$CO$31+-$CQ$31+-$CS$31+-$CU$31+-$CW$31 -> 0 | DR55: =-$CE$31*($GA$27-$CD$31)+-$CG$31*($GA$27-$CF$31)+-$CI$31*($GA$27-$CH$31)+-$CK$31*($GA$27-$CJ$31)+-$CM$31*($GA$27-$CL$31)+-$CO$31*($GA$27-$CN$31)+-$CQ$31*($GA$27-$CP$31)+-$CS$31*($GA$27-$CR$31)+-$CU$31*($GA$27-$CT$31)+-$CW$31*($GA$27-$CV$31) -> 0 | DS55: =-$CE$31*($GA$27-$CD$31)^2/(2*$FX$27*$FZ$27)+-$CG$31*($GA$27-$CF$31)^2/(2*$FX$27*$FZ$27)+-$CI$31*($GA$27-$CH$31)^2/(2*$FX$27*$FZ$27)+-$CK$31*($GA$27-$CJ$31)^2/(2*$FX$27*$FZ$27)+-$CM$31*($GA$27-$CL$31)^2/(2*$FX$27*$FZ$27)+-$CO$31*($GA$27-$CN$31)^2/(2*$FX$27*$FZ$27)+-$CQ$31*($GA$27-$CP$31)^2/(2*$FX$27*$FZ$27)+-$CS$31*($GA$27-$CR$31)^2/(2*$FX$27*$FZ$27)+-$CU$31*($GA$27-$CT$31)^2/(2*$FX$27*$FZ$27)+-$CW$31*($GA$27-$CV$31)^2/(2*$FX$27*$FZ$27) -> 0 | DT55: =$CE$31*($GA$27-$CD$31)^3/(6*$FX$27*$FZ$27)+$CG$31*($GA$27-$CF$31)^3/(6*$FX$27*$FZ$27)+$CI$31*($GA$27-$CH$31)^3/(6*$FX$27*$FZ$27)+$CK$31*($GA$27-$CJ$31)^3/(6*$FX$27*$FZ$27)+$CM$31*($GA$27-$CL$31)^3/(6*$FX$27*$FZ$27)+$CO$31*($GA$27-$CN$31)^3/(6*$FX$27*$FZ$27)+$CQ$31*($GA$27-$CP$31)^3/(6*$FX$27*$FZ$27)+$CS$31*($GA$27-$CR$31)^3/(6*$FX$27*$FZ$27)+$CU$31*($GA$27-$CT$31)^3/(6*$FX$27*$FZ$27)+$CW$31*($GA$27-$CV$31)^3/(6*$FX$27*$FZ$27) -> 0 | DU55: =IF($EU49>$CD$31,-$CE$31,0)+IF($EU49>$CF$31,-$CG$31,0)+IF($EU49>$CH$31,-$CI$31,0)+IF($EU49>$CJ$31,-$CK$31,0)+IF($EU49>$CL$31,-$CM$31,0)+IF($EU49>$CN$31,-$CO$31,0)+IF($EU49>$CP$31,-$CQ$31,0)+IF($EU49>$CR$31,-$CS$31,0)+IF($EU49>$CT$31,-$CU$31,0)+IF($EU49>$CV$31,-$CW$31,0) -> 0 | DV55: =IF($EU49>$CD$31,-$CE$31*($EU49-$CD$31),0)+IF($EU49>$CF$31,-$CG$31*($EU49-$CF$31),0)+IF($EU49>$CH$31,-$CI$31*($EU49-$CH$31),0)+IF($EU49>$CJ$31,-$CK$31*($EU49-$CJ$31),0)+IF($EU49>$CL$31,-$CM$31*($EU49-$CL$31),0)+IF($EU49>$CN$31,-$CO$31*($EU49-$CN$31),0)+IF($EU49>$CP$31,-$CQ$31*($EU49-$CP$31),0)+IF($EU49>$CR$31,-$CS$31*($EU49-$CR$31),0)+IF($EU49>$CT$31,-$CU$31*($EU49-$CT$31),0)+IF($EU49>$CV$31,-$CW$31*($EU49-$CV$31),0) -> 0 | DW55: =IF($EU49>$CD$31,-$CE$31*($EU49-$CD$31)^2/(2*$FX$27*$FZ$27),0)+IF($EU49>$CF$31,-$CG$31*($EU49-$CF$31)^2/(2*$FX$27*$FZ$27),0)+IF($EU49>$CH$31,-$CI$31*($EU49-$CH$31)^2/(2*$FX$27*$FZ$27),0)+IF($EU49>$CJ$31,-$CK$31*($EU49-$CJ$31)^2/(2*$FX$27*$FZ$27),0)+IF($EU49>$CL$31,-$CM$31*($EU49-$CL$31)^2/(2*$FX$27*$FZ$27),0)+IF($EU49>$CN$31,-$CO$31*($EU49-$CN$31)^2/(2*$FX$27*$FZ$27),0)+IF($EU49>$CP$31,-$CQ$31*($EU49-$CP$31)^2/(2*$FX$27*$FZ$27),0)+IF($EU49>$CR$31,-$CS$31*($EU49-$CR$31)^2/(2*$FX$27*$FZ$27),0)+IF($EU49>$CT$31,-$CU$31*($EU49-$CT$31)^2/(2*$FX$27*$FZ$27),0)+IF($EU49>$CV$31,-$CW$31*($EU49-$CV$31)^2/(2*$FX$27*$FZ$27),0) -> 0 | DX55: =IF($EU49>$CD$31,$CE$31*($EU49-$CD$31)^3/(6*$FX$27*$FZ$27),0)+IF($EU49>$CF$31,$CG$31*($EU49-$CF$31)^3/(6*$FX$27*$FZ$27),0)+IF($EU49>$CH$31,$CI$31*($EU49-$CH$31)^3/(6*$FX$27*$FZ$27),0)+IF($EU49>$CJ$31,$CK$31*($EU49-$CJ$31)^3/(6*$FX$27*$FZ$27),0)+IF($EU49>$CL$31,$CM$31*($EU49-$CL$31)^3/(6*$FX$27*$FZ$27),0)+IF($EU49>$CN$31,$CO$31*($EU49-$CN$31)^3/(6*$FX$27*$FZ$27),0)+IF($EU49>$CP$31,$CQ$31*($EU49-$CP$31)^3/(6*$FX$27*$FZ$27),0)+IF($EU49>$CR$31,$CS$31*($EU49-$CR$31)^3/(6*$FX$27*$FZ$27),0)+IF($EU49>$CT$31,$CU$31*($EU49-$CT$31)^3/(6*$FX$27*$FZ$27),0)+IF($EU49>$CV$31,$CW$31*($EU49-$CV$31)^3/(6*$FX$27*$FZ$27),0) -> 0 | DY55: =0+0+0+0 -> 0 | DZ55: =0+0+0+0 -> 0 | EA55: =0+0+0+0 -> 0 | EB55: =0+0+0+0 -> 0 | EC55: 0 | ED55: 0 | EE55: 0 | EF55: 0 | EG55: 0 | EH55: 0 | EI55: 0 | EJ55: 0 | EK55: 0 | EL55: 0 | EM55: 0 | EN55: 0 | EO55: =-12*$FX$27*$FZ$27/$GA$27^3*$EJ55-6*$FX$27*$FZ$27/$GA$27^2*$EI55 -> 0 | EP55: =6*$FX$27*$FZ$27/$GA$27^2*$EJ55+2*$FX$27*$FZ$27/$GA$27*$EI55 -> 0 | EQ55: =0 -> 0 | ER55: =0 -> 0 | ES55: =$EO55+$EK55 -> 0 | ET55: 0 | EU55: =0 -> 0 | EV55: Member #2(X) Axial(L): | FV55: 2 | FW55: X-Global | FX55: 0 | FY55: =BG55*0.2248089 -> 0 | FZ55: =BH55 -> 0 | GA55: =BI55*0.2248089 -> 0 | GB55: =BJ55 -> 0 | GC55: =BK55*0.2248089 -> 0 | GD55: =BL55 -> 0 | GE55: =BM55*0.2248089 -> 0 | GF55: =BN55 -> 0 | GG55: =BO55*0.2248089 -> 0
AF56: Approved: | BD56: 3 | BE56: X-Global | BF56: =P83/AB25 -> 0 | BG56: 0 | BH56: =T83/AB25 -> 0 | BI56: 0 | BJ56: =X83/AB25 -> 0 | BK56: 0 | BL56: =P91/AB25 -> 0 | BM56: 0 | BN56: =T91/AB25 -> 0 | BO56: 0 | CB56: Member #2(X) Axial(R): | CC56: =$CC$55 -> --- | CD56: =$CD$55 -> --- | CE56: =$CE$55 -> --- | CF56: =$CF$55 -> --- | CG56: =IF($CD$20=$CF$20,"---",IF(AND($CD$20="",$CE$20="",$CF$20="",$CG$20=""),"---",(IF($EU56>=$CF$20,-$CE$20*($EU56-$CD$20-($EU56-$CF$20)),IF($EU56>=$CD$20,-$CE$20*($EU56-$CD$20),0)))+(IF($EU56>=$CF$20,-1/2*($CG$20-$CE$20)/($CF$20-$CD$20)*(($EU56-$CD$20)^2-($EU56-$CF$20)^2)+($CG$20-$CE$20)*($EU56-$CF$20),IF($EU56>=$CD$20,-1/2*($CG$20-$CE$20)/($CF$20-$CD$20)*($EU56-$CD$20)^2,0))))) -> --- | CH56: =IF($CD$20=$CF$20,"---",IF(AND($CD$20="",$CE$20="",$CF$20="",$CG$20=""),"---",(IF($EU56>=$CF$20,-$CE$20/2*(($EU56-$CD$20)^2-($EU56-$CF$20)^2),IF($EU56>=$CD$20,-$CE$20/2*($EU56-$CD$20)^2,0)))+(IF($EU56>=$CF$20,-1/6*($CG$20-$CE$20)/($CF$20-$CD$20)*(($EU56-$CD$20)^3-($EU56-$CF$20)^3)+($CG$20-$CE$20)/2*($EU56-$CF$20)^2,IF($EU56>=$CD$20,-1/6*($CG$20-$CE$20)/($CF$20-$CD$20)*($EU56-$CD$20)^3,0))))) -> --- | CI56: =IF($CD$20=$CF$20,"---",IF(AND($CD$20="",$CE$20="",$CF$20="",$CG$20=""),"---",(IF($EU56>=$CF$20,-$CE$20/(6*$FX$27*$FZ$27)*(($EU56-$CD$20)^3-($EU56-$CF$20)^3),IF($EU56>=$CD$20,-$CE$20/(6*$FX$27*$FZ$27)*($EU56-$CD$20)^3,0)))+(IF($EU56>=$CF$20,-1/(24*$FX$27*$FZ$27)*($CG$20-$CE$20)/($CF$20-$CD$20)*(($EU56-$CD$20)^4-($EU56-$CF$20)^4)+($CG$20-$CE$20)/(6*$FX$27*$FZ$27)*($EU56-$CF$20)^3,IF($EU56>=$CD$20,-1/(24*$FX$27*$FZ$27)*($CG$20-$CE$20)/($CF$20-$CD$20)*($EU56-$CD$20)^4,0))))) -> --- | CJ56: =IF($CD$20=$CF$20,"---",IF(AND($CD$20="",$CE$20="",$CF$20="",$CG$20=""),"---",(IF($EU56>=$CF$20,$CE$20/(24*$FX$27*$FZ$27)*(($EU56-$CD$20)^4-($EU56-$CF$20)^4),IF($EU56>=$CD$20,$CE$20/(24*$FX$27*$FZ$27)*($EU56-$CD$20)^4,0)))+(IF($EU56>=$CF$20,1/(120*$FX$27*$FZ$27)*($CG$20-$CE$20)/($CF$20-$CD$20)*(($EU56-$CD$20)^5-($EU56-$CF$20)^5)-($CG$20-$CE$20)/(24*$FX$27*$FZ$27)*($EU56-$CF$20)^4,IF($EU56>=$CD$20,1/(120*$FX$27*$FZ$27)*($CG$20-$CE$20)/($CF$20-$CD$20)*($EU56-$CD$20)^5,0))))) -> --- | CK56: =$CK$55 -> --- | CL56: =$CL$55 -> --- | CM56: =$CM$55 -> --- | CN56: =$CN$55 -> --- | CO56: =IF($CH$20=$CJ$20,"---",IF(AND($CH$20="",$CI$20="",$CJ$20="",$CK$20=""),"---",(IF($EU56>=$CJ$20,-$CI$20*($EU56-$CH$20-($EU56-$CJ$20)),IF($EU56>=$CH$20,-$CI$20*($EU56-$CH$20),0)))+(IF($EU56>=$CJ$20,-1/2*($CK$20-$CI$20)/($CJ$20-$CH$20)*(($EU56-$CH$20)^2-($EU56-$CJ$20)^2)+($CK$20-$CI$20)*($EU56-$CJ$20),IF($EU56>=$CH$20,-1/2*($CK$20-$CI$20)/($CJ$20-$CH$20)*($EU56-$CH$20)^2,0))))) -> --- | CP56: =IF($CH$20=$CJ$20,"---",IF(AND($CH$20="",$CI$20="",$CJ$20="",$CK$20=""),"---",(IF($EU56>=$CJ$20,-$CI$20/2*(($EU56-$CH$20)^2-($EU56-$CJ$20)^2),IF($EU56>=$CH$20,-$CI$20/2*($EU56-$CH$20)^2,0)))+(IF($EU56>=$CJ$20,-1/6*($CK$20-$CI$20)/($CJ$20-$CH$20)*(($EU56-$CH$20)^3-($EU56-$CJ$20)^3)+($CK$20-$CI$20)/2*($EU56-$CJ$20)^2,IF($EU56>=$CH$20,-1/6*($CK$20-$CI$20)/($CJ$20-$CH$20)*($EU56-$CH$20)^3,0))))) -> --- | CQ56: =IF($CH$20=$CJ$20,"---",IF(AND($CH$20="",$CI$20="",$CJ$20="",$CK$20=""),"---",(IF($EU56>=$CJ$20,-$CI$20/(6*$FX$27*$FZ$27)*(($EU56-$CH$20)^3-($EU56-$CJ$20)^3),IF($EU56>=$CH$20,-$CI$20/(6*$FX$27*$FZ$27)*($EU56-$CH$20)^3,0)))+(IF($EU56>=$CJ$20,-1/(24*$FX$27*$FZ$27)*($CK$20-$CI$20)/($CJ$20-$CH$20)*(($EU56-$CH$20)^4-($EU56-$CJ$20)^4)+($CK$20-$CI$20)/(6*$FX$27*$FZ$27)*($EU56-$CJ$20)^3,IF($EU56>=$CH$20,-1/(24*$FX$27*$FZ$27)*($CK$20-$CI$20)/($CJ$20-$CH$20)*($EU56-$CH$20)^4,0))))) -> --- | CR56: =IF($CH$20=$CJ$20,"---",IF(AND($CH$20="",$CI$20="",$CJ$20="",$CK$20=""),"---",(IF($EU56>=$CJ$20,$CI$20/(24*$FX$27*$FZ$27)*(($EU56-$CH$20)^4-($EU56-$CJ$20)^4),IF($EU56>=$CH$20,$CI$20/(24*$FX$27*$FZ$27)*($EU56-$CH$20)^4,0)))+(IF($EU56>=$CJ$20,1/(120*$FX$27*$FZ$27)*($CK$20-$CI$20)/($CJ$20-$CH$20)*(($EU56-$CH$20)^5-($EU56-$CJ$20)^5)-($CK$20-$CI$20)/(24*$FX$27*$FZ$27)*($EU56-$CJ$20)^4,IF($EU56>=$CH$20,1/(120*$FX$27*$FZ$27)*($CK$20-$CI$20)/($CJ$20-$CH$20)*($EU56-$CH$20)^5,0))))) -> --- | CS56: =$CS$55 -> --- | CT56: =$CT$55 -> --- | CU56: =$CU$55 -> --- | CV56: =$CV$55 -> --- | CW56: =IF($CL$20=$CN$20,"---",IF(AND($CL$20="",$CM$20="",$CN$20="",$CO$20=""),"---",(IF($EU56>=$CN$20,-$CM$20*($EU56-$CL$20-($EU56-$CN$20)),IF($EU56>=$CL$20,-$CM$20*($EU56-$CL$20),0)))+(IF($EU56>=$CN$20,-1/2*($CO$20-$CM$20)/($CN$20-$CL$20)*(($EU56-$CL$20)^2-($EU56-$CN$20)^2)+($CO$20-$CM$20)*($EU56-$CN$20),IF($EU56>=$CL$20,-1/2*($CO$20-$CM$20)/($CN$20-$CL$20)*($EU56-$CL$20)^2,0))))) -> --- | CX56: =IF($CL$20=$CN$20,"---",IF(AND($CL$20="",$CM$20="",$CN$20="",$CO$20=""),"---",(IF($EU56>=$CN$20,-$CM$20/2*(($EU56-$CL$20)^2-($EU56-$CN$20)^2),IF($EU56>=$CL$20,-$CM$20/2*($EU56-$CL$20)^2,0)))+(IF($EU56>=$CN$20,-1/6*($CO$20-$CM$20)/($CN$20-$CL$20)*(($EU56-$CL$20)^3-($EU56-$CN$20)^3)+($CO$20-$CM$20)/2*($EU56-$CN$20)^2,IF($EU56>=$CL$20,-1/6*($CO$20-$CM$20)/($CN$20-$CL$20)*($EU56-$CL$20)^3,0))))) -> --- | CY56: =IF($CL$20=$CN$20,"---",IF(AND($CL$20="",$CM$20="",$CN$20="",$CO$20=""),"---",(IF($EU56>=$CN$20,-$CM$20/(6*$FX$27*$FZ$27)*(($EU56-$CL$20)^3-($EU56-$CN$20)^3),IF($EU56>=$CL$20,-$CM$20/(6*$FX$27*$FZ$27)*($EU56-$CL$20)^3,0)))+(IF($EU56>=$CN$20,-1/(24*$FX$27*$FZ$27)*($CO$20-$CM$20)/($CN$20-$CL$20)*(($EU56-$CL$20)^4-($EU56-$CN$20)^4)+($CO$20-$CM$20)/(6*$FX$27*$FZ$27)*($EU56-$CN$20)^3,IF($EU56>=$CL$20,-1/(24*$FX$27*$FZ$27)*($CO$20-$CM$20)/($CN$20-$CL$20)*($EU56-$CL$20)^4,0))))) -> --- | CZ56: =IF($CL$20=$CN$20,"---",IF(AND($CL$20="",$CM$20="",$CN$20="",$CO$20=""),"---",(IF($EU56>=$CN$20,$CM$20/(24*$FX$27*$FZ$27)*(($EU56-$CL$20)^4-($EU56-$CN$20)^4),IF($EU56>=$CL$20,$CM$20/(24*$FX$27*$FZ$27)*($EU56-$CL$20)^4,0)))+(IF($EU56>=$CN$20,1/(120*$FX$27*$FZ$27)*($CO$20-$CM$20)/($CN$20-$CL$20)*(($EU56-$CL$20)^5-($EU56-$CN$20)^5)-($CO$20-$CM$20)/(24*$FX$27*$FZ$27)*($EU56-$CN$20)^4,IF($EU56>=$CL$20,1/(120*$FX$27*$FZ$27)*($CO$20-$CM$20)/($CN$20-$CL$20)*($EU56-$CL$20)^5,0))))) -> --- | DA56: =$DA$55 -> --- | DB56: =$DB$55 -> --- | DC56: =$DC$55 -> --- | DD56: =$DD$55 -> --- | DE56: =IF($CP$20=$CR$20,"---",IF(AND($CP$20="",$CQ$20="",$CR$20="",$CS$20=""),"---",(IF($EU56>=$CR$20,-$CQ$20*($EU56-$CP$20-($EU56-$CR$20)),IF($EU56>=$CP$20,-$CQ$20*($EU56-$CP$20),0)))+(IF($EU56>=$CR$20,-1/2*($CS$20-$CQ$20)/($CR$20-$CP$20)*(($EU56-$CP$20)^2-($EU56-$CR$20)^2)+($CS$20-$CQ$20)*($EU56-$CR$20),IF($EU56>=$CP$20,-1/2*($CS$20-$CQ$20)/($CR$20-$CP$20)*($EU56-$CP$20)^2,0))))) -> --- | DF56: =IF($CP$20=$CR$20,"---",IF(AND($CP$20="",$CQ$20="",$CR$20="",$CS$20=""),"---",(IF($EU56>=$CR$20,-$CQ$20/2*(($EU56-$CP$20)^2-($EU56-$CR$20)^2),IF($EU56>=$CP$20,-$CQ$20/2*($EU56-$CP$20)^2,0)))+(IF($EU56>=$CR$20,-1/6*($CS$20-$CQ$20)/($CR$20-$CP$20)*(($EU56-$CP$20)^3-($EU56-$CR$20)^3)+($CS$20-$CQ$20)/2*($EU56-$CR$20)^2,IF($EU56>=$CP$20,-1/6*($CS$20-$CQ$20)/($CR$20-$CP$20)*($EU56-$CP$20)^3,0))))) -> --- | DG56: =IF($CP$20=$CR$20,"---",IF(AND($CP$20="",$CQ$20="",$CR$20="",$CS$20=""),"---",(IF($EU56>=$CR$20,-$CQ$20/(6*$FX$27*$FZ$27)*(($EU56-$CP$20)^3-($EU56-$CR$20)^3),IF($EU56>=$CP$20,-$CQ$20/(6*$FX$27*$FZ$27)*($EU56-$CP$20)^3,0)))+(IF($EU56>=$CR$20,-1/(24*$FX$27*$FZ$27)*($CS$20-$CQ$20)/($CR$20-$CP$20)*(($EU56-$CP$20)^4-($EU56-$CR$20)^4)+($CS$20-$CQ$20)/(6*$FX$27*$FZ$27)*($EU56-$CR$20)^3,IF($EU56>=$CP$20,-1/(24*$FX$27*$FZ$27)*($CS$20-$CQ$20)/($CR$20-$CP$20)*($EU56-$CP$20)^4,0))))) -> --- | DH56: =IF($CP$20=$CR$20,"---",IF(AND($CP$20="",$CQ$20="",$CR$20="",$CS$20=""),"---",(IF($EU56>=$CR$20,$CQ$20/(24*$FX$27*$FZ$27)*(($EU56-$CP$20)^4-($EU56-$CR$20)^4),IF($EU56>=$CP$20,$CQ$20/(24*$FX$27*$FZ$27)*($EU56-$CP$20)^4,0)))+(IF($EU56>=$CR$20,1/(120*$FX$27*$FZ$27)*($CS$20-$CQ$20)/($CR$20-$CP$20)*(($EU56-$CP$20)^5-($EU56-$CR$20)^5)-($CS$20-$CQ$20)/(24*$FX$27*$FZ$27)*($EU56-$CR$20)^4,IF($EU56>=$CP$20,1/(120*$FX$27*$FZ$27)*($CS$20-$CQ$20)/($CR$20-$CP$20)*($EU56-$CP$20)^5,0))))) -> --- | DI56: =$DI$55 -> --- | DJ56: =$DJ$55 -> --- | DK56: =$DK$55 -> --- | DL56: =$DL$55 -> --- | DM56: =IF($CT$20=$CV$20,"---",IF(AND($CT$20="",$CU$20="",$CV$20="",$CW$20=""),"---",(IF($EU56>=$CV$20,-$CU$20*($EU56-$CT$20-($EU56-$CV$20)),IF($EU56>=$CT$20,-$CU$20*($EU56-$CT$20),0)))+(IF($EU56>=$CV$20,-1/2*($CW$20-$CU$20)/($CV$20-$CT$20)*(($EU56-$CT$20)^2-($EU56-$CV$20)^2)+($CW$20-$CU$20)*($EU56-$CV$20),IF($EU56>=$CT$20,-1/2*($CW$20-$CU$20)/($CV$20-$CT$20)*($EU56-$CT$20)^2,0))))) -> --- | DN56: =IF($CT$20=$CV$20,"---",IF(AND($CT$20="",$CU$20="",$CV$20="",$CW$20=""),"---",(IF($EU56>=$CV$20,-$CU$20/2*(($EU56-$CT$20)^2-($EU56-$CV$20)^2),IF($EU56>=$CT$20,-$CU$20/2*($EU56-$CT$20)^2,0)))+(IF($EU56>=$CV$20,-1/6*($CW$20-$CU$20)/($CV$20-$CT$20)*(($EU56-$CT$20)^3-($EU56-$CV$20)^3)+($CW$20-$CU$20)/2*($EU56-$CV$20)^2,IF($EU56>=$CT$20,-1/6*($CW$20-$CU$20)/($CV$20-$CT$20)*($EU56-$CT$20)^3,0))))) -> --- | DO56: =IF($CT$20=$CV$20,"---",IF(AND($CT$20="",$CU$20="",$CV$20="",$CW$20=""),"---",(IF($EU56>=$CV$20,-$CU$20/(6*$FX$27*$FZ$27)*(($EU56-$CT$20)^3-($EU56-$CV$20)^3),IF($EU56>=$CT$20,-$CU$20/(6*$FX$27*$FZ$27)*($EU56-$CT$20)^3,0)))+(IF($EU56>=$CV$20,-1/(24*$FX$27*$FZ$27)*($CW$20-$CU$20)/($CV$20-$CT$20)*(($EU56-$CT$20)^4-($EU56-$CV$20)^4)+($CW$20-$CU$20)/(6*$FX$27*$FZ$27)*($EU56-$CV$20)^3,IF($EU56>=$CT$20,-1/(24*$FX$27*$FZ$27)*($CW$20-$CU$20)/($CV$20-$CT$20)*($EU56-$CT$20)^4,0))))) -> --- | DP56: =IF($CT$20=$CV$20,"---",IF(AND($CT$20="",$CU$20="",$CV$20="",$CW$20=""),"---",(IF($EU56>=$CV$20,$CU$20/(24*$FX$27*$FZ$27)*(($EU56-$CT$20)^4-($EU56-$CV$20)^4),IF($EU56>=$CT$20,$CU$20/(24*$FX$27*$FZ$27)*($EU56-$CT$20)^4,0)))+(IF($EU56>=$CV$20,1/(120*$FX$27*$FZ$27)*($CW$20-$CU$20)/($CV$20-$CT$20)*(($EU56-$CT$20)^5-($EU56-$CV$20)^5)-($CW$20-$CU$20)/(24*$FX$27*$FZ$27)*($EU56-$CV$20)^4,IF($EU56>=$CT$20,1/(120*$FX$27*$FZ$27)*($CW$20-$CU$20)/($CV$20-$CT$20)*($EU56-$CT$20)^5,0))))) -> --- | DQ56: =$DQ$55 -> 0 | DR56: =$DR$55 -> 0 | DS56: =$DS$55 -> 0 | DT56: =$DT$55 -> 0 | DU56: =IF($EU50>$CD$31,-$CE$31,0)+IF($EU50>$CF$31,-$CG$31,0)+IF($EU50>$CH$31,-$CI$31,0)+IF($EU50>$CJ$31,-$CK$31,0)+IF($EU50>$CL$31,-$CM$31,0)+IF($EU50>$CN$31,-$CO$31,0)+IF($EU50>$CP$31,-$CQ$31,0)+IF($EU50>$CR$31,-$CS$31,0)+IF($EU50>$CT$31,-$CU$31,0)+IF($EU50>$CV$31,-$CW$31,0) -> 0 | DV56: =IF($EU50>$CD$31,-$CE$31*($EU50-$CD$31),0)+IF($EU50>$CF$31,-$CG$31*($EU50-$CF$31),0)+IF($EU50>$CH$31,-$CI$31*($EU50-$CH$31),0)+IF($EU50>$CJ$31,-$CK$31*($EU50-$CJ$31),0)+IF($EU50>$CL$31,-$CM$31*($EU50-$CL$31),0)+IF($EU50>$CN$31,-$CO$31*($EU50-$CN$31),0)+IF($EU50>$CP$31,-$CQ$31*($EU50-$CP$31),0)+IF($EU50>$CR$31,-$CS$31*($EU50-$CR$31),0)+IF($EU50>$CT$31,-$CU$31*($EU50-$CT$31),0)+IF($EU50>$CV$31,-$CW$31*($EU50-$CV$31),0) -> 0 | DW56: =IF($EU50>$CD$31,-$CE$31*($EU50-$CD$31)^2/(2*$FX$27*$FZ$27),0)+IF($EU50>$CF$31,-$CG$31*($EU50-$CF$31)^2/(2*$FX$27*$FZ$27),0)+IF($EU50>$CH$31,-$CI$31*($EU50-$CH$31)^2/(2*$FX$27*$FZ$27),0)+IF($EU50>$CJ$31,-$CK$31*($EU50-$CJ$31)^2/(2*$FX$27*$FZ$27),0)+IF($EU50>$CL$31,-$CM$31*($EU50-$CL$31)^2/(2*$FX$27*$FZ$27),0)+IF($EU50>$CN$31,-$CO$31*($EU50-$CN$31)^2/(2*$FX$27*$FZ$27),0)+IF($EU50>$CP$31,-$CQ$31*($EU50-$CP$31)^2/(2*$FX$27*$FZ$27),0)+IF($EU50>$CR$31,-$CS$31*($EU50-$CR$31)^2/(2*$FX$27*$FZ$27),0)+IF($EU50>$CT$31,-$CU$31*($EU50-$CT$31)^2/(2*$FX$27*$FZ$27),0)+IF($EU50>$CV$31,-$CW$31*($EU50-$CV$31)^2/(2*$FX$27*$FZ$27),0) -> 0 | DX56: =IF($EU50>$CD$31,$CE$31*($EU50-$CD$31)^3/(6*$FX$27*$FZ$27),0)+IF($EU50>$CF$31,$CG$31*($EU50-$CF$31)^3/(6*$FX$27*$FZ$27),0)+IF($EU50>$CH$31,$CI$31*($EU50-$CH$31)^3/(6*$FX$27*$FZ$27),0)+IF($EU50>$CJ$31,$CK$31*($EU50-$CJ$31)^3/(6*$FX$27*$FZ$27),0)+IF($EU50>$CL$31,$CM$31*($EU50-$CL$31)^3/(6*$FX$27*$FZ$27),0)+IF($EU50>$CN$31,$CO$31*($EU50-$CN$31)^3/(6*$FX$27*$FZ$27),0)+IF($EU50>$CP$31,$CQ$31*($EU50-$CP$31)^3/(6*$FX$27*$FZ$27),0)+IF($EU50>$CR$31,$CS$31*($EU50-$CR$31)^3/(6*$FX$27*$FZ$27),0)+IF($EU50>$CT$31,$CU$31*($EU50-$CT$31)^3/(6*$FX$27*$FZ$27),0)+IF($EU50>$CV$31,$CW$31*($EU50-$CV$31)^3/(6*$FX$27*$FZ$27),0) -> 0 | DY56: =$DY$55 -> 0 | DZ56: =$DZ$55 -> 0 | EA56: =$EA$55 -> 0 | EB56: =$EB$55 -> 0 | EC56: 0 | ED56: 0 | EE56: 0 | EF56: 0 | EG56: 0 | EH56: 0 | EI56: 0 | EJ56: 0 | EK56: 0 | EL56: 0 | EM56: 0 | EN56: 0 | EO56: =$EO$55 -> 0 | EP56: =$EP$55 -> 0 | EQ56: =$EQ$55 -> 0 | ER56: =$ER$55 -> 0 | ES56: =-($EO56+$EK56) -> 0 | ET56: 0 | EU56: =$GA$27+0.0000000001 -> 32.8083 | EV56: Member #2(X) Axial(R): | FV56: 3 | FW56: X-Global | FX56: 0 | FY56: =BG56*0.2248089 -> 0 | FZ56: =BH56 -> 0 | GA56: =BI56*0.2248089 -> 0 | GB56: =BJ56 -> 0 | GC56: =BK56*0.2248089 -> 0 | GD56: =BL56 -> 0 | GE56: =BM56*0.2248089 -> 0 | GF56: =BN56 -> 0 | GG56: =BO56*0.2248089 -> 0
G57: Sheet Number: | M57: 2 | T57: Date: | CB57: Member #3(X) FEM(L): | CC57: =IF($CD$21=$CF$21,"---",IF(AND($CD$21="",$CE$21="",$CF$21="",$CG$21=""),"---",(-$CE$21*($GA$28-$CD$21-($GA$28-$CF$21)))+(-1/2*($CG$21-$CE$21)/($CF$21-$CD$21)*(($GA$28-$CD$21)^2-($GA$28-$CF$21)^2)+($CG$21-$CE$21)*($GA$28-$CF$21)))) -> --- | CD57: =IF($CD$21=$CF$21,"---",IF(AND($CD$21="",$CE$21="",$CF$21="",$CG$21=""),"---",(-$CE$21/2*(($GA$28-$CD$21)^2-($GA$28-$CF$21)^2))+(-1/6*($CG$21-$CE$21)/($CF$21-$CD$21)*(($GA$28-$CD$21)^3-($GA$28-$CF$21)^3)+($CG$21-$CE$21)/2*($GA$28-$CF$21)^2))) -> --- | CE57: =IF($CD$21=$CF$21,"---",IF(AND($CD$21="",$CE$21="",$CF$21="",$CG$21=""),"---",(-$CE$21/(6*$FX$28*$FZ$28)*(($GA$28-$CD$21)^3-($GA$28-$CF$21)^3))+(-1/(24*$FX$28*$FZ$28)*($CG$21-$CE$21)/($CF$21-$CD$21)*(($GA$28-$CD$21)^4-($GA$28-$CF$21)^4)+($CG$21-$CE$21)/(6*$FX$28*$FZ$28)*($GA$28-$CF$21)^3))) -> --- | CF57: =IF($CD$21=$CF$21,"---",IF(AND($CD$21="",$CE$21="",$CF$21="",$CG$21=""),"---",($CE$21/(24*$FX$28*$FZ$28)*(($GA$28-$CD$21)^4-($GA$28-$CF$21)^4))+(1/(120*$FX$28*$FZ$28)*($CG$21-$CE$21)/($CF$21-$CD$21)*(($GA$28-$CD$21)^5-($GA$28-$CF$21)^5)-($CG$21-$CE$21)/(24*$FX$28*$FZ$28)*($GA$28-$CF$21)^4))) -> --- | CG57: =IF($CD$21=$CF$21,"---",IF(AND($CD$21="",$CE$21="",$CF$21="",$CG$21=""),"---",(IF($EU57>=$CF$21,-$CE$21*($EU57-$CD$21-($EU57-$CF$21)),IF($EU57>=$CD$21,-$CE$21*($EU57-$CD$21),0)))+(IF($EU57>=$CF$21,-1/2*($CG$21-$CE$21)/($CF$21-$CD$21)*(($EU57-$CD$21)^2-($EU57-$CF$21)^2)+($CG$21-$CE$21)*($EU57-$CF$21),IF($EU57>=$CD$21,-1/2*($CG$21-$CE$21)/($CF$21-$CD$21)*($EU57-$CD$21)^2,0))))) -> --- | CH57: =IF($CD$21=$CF$21,"---",IF(AND($CD$21="",$CE$21="",$CF$21="",$CG$21=""),"---",(IF($EU57>=$CF$21,-$CE$21/2*(($EU57-$CD$21)^2-($EU57-$CF$21)^2),IF($EU57>=$CD$21,-$CE$21/2*($EU57-$CD$21)^2,0)))+(IF($EU57>=$CF$21,-1/6*($CG$21-$CE$21)/($CF$21-$CD$21)*(($EU57-$CD$21)^3-($EU57-$CF$21)^3)+($CG$21-$CE$21)/2*($EU57-$CF$21)^2,IF($EU57>=$CD$21,-1/6*($CG$21-$CE$21)/($CF$21-$CD$21)*($EU57-$CD$21)^3,0))))) -> --- | CI57: =IF($CD$21=$CF$21,"---",IF(AND($CD$21="",$CE$21="",$CF$21="",$CG$21=""),"---",(IF($EU57>=$CF$21,-$CE$21/(6*$FX$28*$FZ$28)*(($EU57-$CD$21)^3-($EU57-$CF$21)^3),IF($EU57>=$CD$21,-$CE$21/(6*$FX$28*$FZ$28)*($EU57-$CD$21)^3,0)))+(IF($EU57>=$CF$21,-1/(24*$FX$28*$FZ$28)*($CG$21-$CE$21)/($CF$21-$CD$21)*(($EU57-$CD$21)^4-($EU57-$CF$21)^4)+($CG$21-$CE$21)/(6*$FX$28*$FZ$28)*($EU57-$CF$21)^3,IF($EU57>=$CD$21,-1/(24*$FX$28*$FZ$28)*($CG$21-$CE$21)/($CF$21-$CD$21)*($EU57-$CD$21)^4,0))))) -> --- | CJ57: =IF($CD$21=$CF$21,"---",IF(AND($CD$21="",$CE$21="",$CF$21="",$CG$21=""),"---",(IF($EU57>=$CF$21,$CE$21/(24*$FX$28*$FZ$28)*(($EU57-$CD$21)^4-($EU57-$CF$21)^4),IF($EU57>=$CD$21,$CE$21/(24*$FX$28*$FZ$28)*($EU57-$CD$21)^4,0)))+(IF($EU57>=$CF$21,1/(120*$FX$28*$FZ$28)*($CG$21-$CE$21)/($CF$21-$CD$21)*(($EU57-$CD$21)^5-($EU57-$CF$21)^5)-($CG$21-$CE$21)/(24*$FX$28*$FZ$28)*($EU57-$CF$21)^4,IF($EU57>=$CD$21,1/(120*$FX$28*$FZ$28)*($CG$21-$CE$21)/($CF$21-$CD$21)*($EU57-$CD$21)^5,0))))) -> --- | CK57: =IF($CH$21=$CJ$21,"---",IF(AND($CH$21="",$CI$21="",$CJ$21="",$CK$21=""),"---",(-$CI$21*($GA$28-$CH$21-($GA$28-$CJ$21)))+(-1/2*($CK$21-$CI$21)/($CJ$21-$CH$21)*(($GA$28-$CH$21)^2-($GA$28-$CJ$21)^2)+($CK$21-$CI$21)*($GA$28-$CJ$21)))) -> --- | CL57: =IF($CH$21=$CJ$21,"---",IF(AND($CH$21="",$CI$21="",$CJ$21="",$CK$21=""),"---",(-$CI$21/2*(($GA$28-$CH$21)^2-($GA$28-$CJ$21)^2))+(-1/6*($CK$21-$CI$21)/($CJ$21-$CH$21)*(($GA$28-$CH$21)^3-($GA$28-$CJ$21)^3)+($CK$21-$CI$21)/2*($GA$28-$CJ$21)^2))) -> --- | CM57: =IF($CH$21=$CJ$21,"---",IF(AND($CH$21="",$CI$21="",$CJ$21="",$CK$21=""),"---",(-$CI$21/(6*$FX$28*$FZ$28)*(($GA$28-$CH$21)^3-($GA$28-$CJ$21)^3))+(-1/(24*$FX$28*$FZ$28)*($CK$21-$CI$21)/($CJ$21-$CH$21)*(($GA$28-$CH$21)^4-($GA$28-$CJ$21)^4)+($CK$21-$CI$21)/(6*$FX$28*$FZ$28)*($GA$28-$CJ$21)^3))) -> --- | CN57: =IF($CH$21=$CJ$21,"---",IF(AND($CH$21="",$CI$21="",$CJ$21="",$CK$21=""),"---",($CI$21/(24*$FX$28*$FZ$28)*(($GA$28-$CH$21)^4-($GA$28-$CJ$21)^4))+(1/(120*$FX$28*$FZ$28)*($CK$21-$CI$21)/($CJ$21-$CH$21)*(($GA$28-$CH$21)^5-($GA$28-$CJ$21)^5)-($CK$21-$CI$21)/(24*$FX$28*$FZ$28)*($GA$28-$CJ$21)^4))) -> --- | CO57: =IF($CH$21=$CJ$21,"---",IF(AND($CH$21="",$CI$21="",$CJ$21="",$CK$21=""),"---",(IF($EU57>=$CJ$21,-$CI$21*($EU57-$CH$21-($EU57-$CJ$21)),IF($EU57>=$CH$21,-$CI$21*($EU57-$CH$21),0)))+(IF($EU57>=$CJ$21,-1/2*($CK$21-$CI$21)/($CJ$21-$CH$21)*(($EU57-$CH$21)^2-($EU57-$CJ$21)^2)+($CK$21-$CI$21)*($EU57-$CJ$21),IF($EU57>=$CH$21,-1/2*($CK$21-$CI$21)/($CJ$21-$CH$21)*($EU57-$CH$21)^2,0))))) -> --- | CP57: =IF($CH$21=$CJ$21,"---",IF(AND($CH$21="",$CI$21="",$CJ$21="",$CK$21=""),"---",(IF($EU57>=$CJ$21,-$CI$21/2*(($EU57-$CH$21)^2-($EU57-$CJ$21)^2),IF($EU57>=$CH$21,-$CI$21/2*($EU57-$CH$21)^2,0)))+(IF($EU57>=$CJ$21,-1/6*($CK$21-$CI$21)/($CJ$21-$CH$21)*(($EU57-$CH$21)^3-($EU57-$CJ$21)^3)+($CK$21-$CI$21)/2*($EU57-$CJ$21)^2,IF($EU57>=$CH$21,-1/6*($CK$21-$CI$21)/($CJ$21-$CH$21)*($EU57-$CH$21)^3,0))))) -> --- | CQ57: =IF($CH$21=$CJ$21,"---",IF(AND($CH$21="",$CI$21="",$CJ$21="",$CK$21=""),"---",(IF($EU57>=$CJ$21,-$CI$21/(6*$FX$28*$FZ$28)*(($EU57-$CH$21)^3-($EU57-$CJ$21)^3),IF($EU57>=$CH$21,-$CI$21/(6*$FX$28*$FZ$28)*($EU57-$CH$21)^3,0)))+(IF($EU57>=$CJ$21,-1/(24*$FX$28*$FZ$28)*($CK$21-$CI$21)/($CJ$21-$CH$21)*(($EU57-$CH$21)^4-($EU57-$CJ$21)^4)+($CK$21-$CI$21)/(6*$FX$28*$FZ$28)*($EU57-$CJ$21)^3,IF($EU57>=$CH$21,-1/(24*$FX$28*$FZ$28)*($CK$21-$CI$21)/($CJ$21-$CH$21)*($EU57-$CH$21)^4,0))))) -> --- | CR57: =IF($CH$21=$CJ$21,"---",IF(AND($CH$21="",$CI$21="",$CJ$21="",$CK$21=""),"---",(IF($EU57>=$CJ$21,$CI$21/(24*$FX$28*$FZ$28)*(($EU57-$CH$21)^4-($EU57-$CJ$21)^4),IF($EU57>=$CH$21,$CI$21/(24*$FX$28*$FZ$28)*($EU57-$CH$21)^4,0)))+(IF($EU57>=$CJ$21,1/(120*$FX$28*$FZ$28)*($CK$21-$CI$21)/($CJ$21-$CH$21)*(($EU57-$CH$21)^5-($EU57-$CJ$21)^5)-($CK$21-$CI$21)/(24*$FX$28*$FZ$28)*($EU57-$CJ$21)^4,IF($EU57>=$CH$21,1/(120*$FX$28*$FZ$28)*($CK$21-$CI$21)/($CJ$21-$CH$21)*($EU57-$CH$21)^5,0))))) -> --- | CS57: =IF($CL$21=$CN$21,"---",IF(AND($CL$21="",$CM$21="",$CN$21="",$CO$21=""),"---",(-$CM$21*($GA$28-$CL$21-($GA$28-$CN$21)))+(-1/2*($CO$21-$CM$21)/($CN$21-$CL$21)*(($GA$28-$CL$21)^2-($GA$28-$CN$21)^2)+($CO$21-$CM$21)*($GA$28-$CN$21)))) -> --- | CT57: =IF($CL$21=$CN$21,"---",IF(AND($CL$21="",$CM$21="",$CN$21="",$CO$21=""),"---",(-$CM$21/2*(($GA$28-$CL$21)^2-($GA$28-$CN$21)^2))+(-1/6*($CO$21-$CM$21)/($CN$21-$CL$21)*(($GA$28-$CL$21)^3-($GA$28-$CN$21)^3)+($CO$21-$CM$21)/2*($GA$28-$CN$21)^2))) -> --- | CU57: =IF($CL$21=$CN$21,"---",IF(AND($CL$21="",$CM$21="",$CN$21="",$CO$21=""),"---",(-$CM$21/(6*$FX$28*$FZ$28)*(($GA$28-$CL$21)^3-($GA$28-$CN$21)^3))+(-1/(24*$FX$28*$FZ$28)*($CO$21-$CM$21)/($CN$21-$CL$21)*(($GA$28-$CL$21)^4-($GA$28-$CN$21)^4)+($CO$21-$CM$21)/(6*$FX$28*$FZ$28)*($GA$28-$CN$21)^3))) -> --- | CV57: =IF($CL$21=$CN$21,"---",IF(AND($CL$21="",$CM$21="",$CN$21="",$CO$21=""),"---",($CM$21/(24*$FX$28*$FZ$28)*(($GA$28-$CL$21)^4-($GA$28-$CN$21)^4))+(1/(120*$FX$28*$FZ$28)*($CO$21-$CM$21)/($CN$21-$CL$21)*(($GA$28-$CL$21)^5-($GA$28-$CN$21)^5)-($CO$21-$CM$21)/(24*$FX$28*$FZ$28)*($GA$28-$CN$21)^4))) -> --- | CW57: =IF($CL$21=$CN$21,"---",IF(AND($CL$21="",$CM$21="",$CN$21="",$CO$21=""),"---",(IF($EU57>=$CN$21,-$CM$21*($EU57-$CL$21-($EU57-$CN$21)),IF($EU57>=$CL$21,-$CM$21*($EU57-$CL$21),0)))+(IF($EU57>=$CN$21,-1/2*($CO$21-$CM$21)/($CN$21-$CL$21)*(($EU57-$CL$21)^2-($EU57-$CN$21)^2)+($CO$21-$CM$21)*($EU57-$CN$21),IF($EU57>=$CL$21,-1/2*($CO$21-$CM$21)/($CN$21-$CL$21)*($EU57-$CL$21)^2,0))))) -> --- | CX57: =IF($CL$21=$CN$21,"---",IF(AND($CL$21="",$CM$21="",$CN$21="",$CO$21=""),"---",(IF($EU57>=$CN$21,-$CM$21/2*(($EU57-$CL$21)^2-($EU57-$CN$21)^2),IF($EU57>=$CL$21,-$CM$21/2*($EU57-$CL$21)^2,0)))+(IF($EU57>=$CN$21,-1/6*($CO$21-$CM$21)/($CN$21-$CL$21)*(($EU57-$CL$21)^3-($EU57-$CN$21)^3)+($CO$21-$CM$21)/2*($EU57-$CN$21)^2,IF($EU57>=$CL$21,-1/6*($CO$21-$CM$21)/($CN$21-$CL$21)*($EU57-$CL$21)^3,0))))) -> --- | CY57: =IF($CL$21=$CN$21,"---",IF(AND($CL$21="",$CM$21="",$CN$21="",$CO$21=""),"---",(IF($EU57>=$CN$21,-$CM$21/(6*$FX$28*$FZ$28)*(($EU57-$CL$21)^3-($EU57-$CN$21)^3),IF($EU57>=$CL$21,-$CM$21/(6*$FX$28*$FZ$28)*($EU57-$CL$21)^3,0)))+(IF($EU57>=$CN$21,-1/(24*$FX$28*$FZ$28)*($CO$21-$CM$21)/($CN$21-$CL$21)*(($EU57-$CL$21)^4-($EU57-$CN$21)^4)+($CO$21-$CM$21)/(6*$FX$28*$FZ$28)*($EU57-$CN$21)^3,IF($EU57>=$CL$21,-1/(24*$FX$28*$FZ$28)*($CO$21-$CM$21)/($CN$21-$CL$21)*($EU57-$CL$21)^4,0))))) -> --- | CZ57: =IF($CL$21=$CN$21,"---",IF(AND($CL$21="",$CM$21="",$CN$21="",$CO$21=""),"---",(IF($EU57>=$CN$21,$CM$21/(24*$FX$28*$FZ$28)*(($EU57-$CL$21)^4-($EU57-$CN$21)^4),IF($EU57>=$CL$21,$CM$21/(24*$FX$28*$FZ$28)*($EU57-$CL$21)^4,0)))+(IF($EU57>=$CN$21,1/(120*$FX$28*$FZ$28)*($CO$21-$CM$21)/($CN$21-$CL$21)*(($EU57-$CL$21)^5-($EU57-$CN$21)^5)-($CO$21-$CM$21)/(24*$FX$28*$FZ$28)*($EU57-$CN$21)^4,IF($EU57>=$CL$21,1/(120*$FX$28*$FZ$28)*($CO$21-$CM$21)/($CN$21-$CL$21)*($EU57-$CL$21)^5,0))))) -> --- | DA57: =IF($CP$21=$CR$21,"---",IF(AND($CP$21="",$CQ$21="",$CR$21="",$CS$21=""),"---",(-$CQ$21*($GA$28-$CP$21-($GA$28-$CR$21)))+(-1/2*($CS$21-$CQ$21)/($CR$21-$CP$21)*(($GA$28-$CP$21)^2-($GA$28-$CR$21)^2)+($CS$21-$CQ$21)*($GA$28-$CR$21)))) -> --- | DB57: =IF($CP$21=$CR$21,"---",IF(AND($CP$21="",$CQ$21="",$CR$21="",$CS$21=""),"---",(-$CQ$21/2*(($GA$28-$CP$21)^2-($GA$28-$CR$21)^2))+(-1/6*($CS$21-$CQ$21)/($CR$21-$CP$21)*(($GA$28-$CP$21)^3-($GA$28-$CR$21)^3)+($CS$21-$CQ$21)/2*($GA$28-$CR$21)^2))) -> --- | DC57: =IF($CP$21=$CR$21,"---",IF(AND($CP$21="",$CQ$21="",$CR$21="",$CS$21=""),"---",(-$CQ$21/(6*$FX$28*$FZ$28)*(($GA$28-$CP$21)^3-($GA$28-$CR$21)^3))+(-1/(24*$FX$28*$FZ$28)*($CS$21-$CQ$21)/($CR$21-$CP$21)*(($GA$28-$CP$21)^4-($GA$28-$CR$21)^4)+($CS$21-$CQ$21)/(6*$FX$28*$FZ$28)*($GA$28-$CR$21)^3))) -> --- | DD57: =IF($CP$21=$CR$21,"---",IF(AND($CP$21="",$CQ$21="",$CR$21="",$CS$21=""),"---",($CQ$21/(24*$FX$28*$FZ$28)*(($GA$28-$CP$21)^4-($GA$28-$CR$21)^4))+(1/(120*$FX$28*$FZ$28)*($CS$21-$CQ$21)/($CR$21-$CP$21)*(($GA$28-$CP$21)^5-($GA$28-$CR$21)^5)-($CS$21-$CQ$21)/(24*$FX$28*$FZ$28)*($GA$28-$CR$21)^4))) -> --- | DE57: =IF($CP$21=$CR$21,"---",IF(AND($CP$21="",$CQ$21="",$CR$21="",$CS$21=""),"---",(IF($EU57>=$CR$21,-$CQ$21*($EU57-$CP$21-($EU57-$CR$21)),IF($EU57>=$CP$21,-$CQ$21*($EU57-$CP$21),0)))+(IF($EU57>=$CR$21,-1/2*($CS$21-$CQ$21)/($CR$21-$CP$21)*(($EU57-$CP$21)^2-($EU57-$CR$21)^2)+($CS$21-$CQ$21)*($EU57-$CR$21),IF($EU57>=$CP$21,-1/2*($CS$21-$CQ$21)/($CR$21-$CP$21)*($EU57-$CP$21)^2,0))))) -> --- | DF57: =IF($CP$21=$CR$21,"---",IF(AND($CP$21="",$CQ$21="",$CR$21="",$CS$21=""),"---",(IF($EU57>=$CR$21,-$CQ$21/2*(($EU57-$CP$21)^2-($EU57-$CR$21)^2),IF($EU57>=$CP$21,-$CQ$21/2*($EU57-$CP$21)^2,0)))+(IF($EU57>=$CR$21,-1/6*($CS$21-$CQ$21)/($CR$21-$CP$21)*(($EU57-$CP$21)^3-($EU57-$CR$21)^3)+($CS$21-$CQ$21)/2*($EU57-$CR$21)^2,IF($EU57>=$CP$21,-1/6*($CS$21-$CQ$21)/($CR$21-$CP$21)*($EU57-$CP$21)^3,0))))) -> --- | DG57: =IF($CP$21=$CR$21,"---",IF(AND($CP$21="",$CQ$21="",$CR$21="",$CS$21=""),"---",(IF($EU57>=$CR$21,-$CQ$21/(6*$FX$28*$FZ$28)*(($EU57-$CP$21)^3-($EU57-$CR$21)^3),IF($EU57>=$CP$21,-$CQ$21/(6*$FX$28*$FZ$28)*($EU57-$CP$21)^3,0)))+(IF($EU57>=$CR$21,-1/(24*$FX$28*$FZ$28)*($CS$21-$CQ$21)/($CR$21-$CP$21)*(($EU57-$CP$21)^4-($EU57-$CR$21)^4)+($CS$21-$CQ$21)/(6*$FX$28*$FZ$28)*($EU57-$CR$21)^3,IF($EU57>=$CP$21,-1/(24*$FX$28*$FZ$28)*($CS$21-$CQ$21)/($CR$21-$CP$21)*($EU57-$CP$21)^4,0))))) -> --- | DH57: =IF($CP$21=$CR$21,"---",IF(AND($CP$21="",$CQ$21="",$CR$21="",$CS$21=""),"---",(IF($EU57>=$CR$21,$CQ$21/(24*$FX$28*$FZ$28)*(($EU57-$CP$21)^4-($EU57-$CR$21)^4),IF($EU57>=$CP$21,$CQ$21/(24*$FX$28*$FZ$28)*($EU57-$CP$21)^4,0)))+(IF($EU57>=$CR$21,1/(120*$FX$28*$FZ$28)*($CS$21-$CQ$21)/($CR$21-$CP$21)*(($EU57-$CP$21)^5-($EU57-$CR$21)^5)-($CS$21-$CQ$21)/(24*$FX$28*$FZ$28)*($EU57-$CR$21)^4,IF($EU57>=$CP$21,1/(120*$FX$28*$FZ$28)*($CS$21-$CQ$21)/($CR$21-$CP$21)*($EU57-$CP$21)^5,0))))) -> --- | DI57: =IF($CT$21=$CV$21,"---",IF(AND($CT$21="",$CU$21="",$CV$21="",$CW$21=""),"---",(-$CU$21*($GA$28-$CT$21-($GA$28-$CV$21)))+(-1/2*($CW$21-$CU$21)/($CV$21-$CT$21)*(($GA$28-$CT$21)^2-($GA$28-$CV$21)^2)+($CW$21-$CU$21)*($GA$28-$CV$21)))) -> --- | DJ57: =IF($CT$21=$CV$21,"---",IF(AND($CT$21="",$CU$21="",$CV$21="",$CW$21=""),"---",(-$CU$21/2*(($GA$28-$CT$21)^2-($GA$28-$CV$21)^2))+(-1/6*($CW$21-$CU$21)/($CV$21-$CT$21)*(($GA$28-$CT$21)^3-($GA$28-$CV$21)^3)+($CW$21-$CU$21)/2*($GA$28-$CV$21)^2))) -> --- | DK57: =IF($CT$21=$CV$21,"---",IF(AND($CT$21="",$CU$21="",$CV$21="",$CW$21=""),"---",(-$CU$21/(6*$FX$28*$FZ$28)*(($GA$28-$CT$21)^3-($GA$28-$CV$21)^3))+(-1/(24*$FX$28*$FZ$28)*($CW$21-$CU$21)/($CV$21-$CT$21)*(($GA$28-$CT$21)^4-($GA$28-$CV$21)^4)+($CW$21-$CU$21)/(6*$FX$28*$FZ$28)*($GA$28-$CV$21)^3))) -> --- | DL57: =IF($CT$21=$CV$21,"---",IF(AND($CT$21="",$CU$21="",$CV$21="",$CW$21=""),"---",($CU$21/(24*$FX$28*$FZ$28)*(($GA$28-$CT$21)^4-($GA$28-$CV$21)^4))+(1/(120*$FX$28*$FZ$28)*($CW$21-$CU$21)/($CV$21-$CT$21)*(($GA$28-$CT$21)^5-($GA$28-$CV$21)^5)-($CW$21-$CU$21)/(24*$FX$28*$FZ$28)*($GA$28-$CV$21)^4))) -> --- | DM57: =IF($CT$21=$CV$21,"---",IF(AND($CT$21="",$CU$21="",$CV$21="",$CW$21=""),"---",(IF($EU57>=$CV$21,-$CU$21*($EU57-$CT$21-($EU57-$CV$21)),IF($EU57>=$CT$21,-$CU$21*($EU57-$CT$21),0)))+(IF($EU57>=$CV$21,-1/2*($CW$21-$CU$21)/($CV$21-$CT$21)*(($EU57-$CT$21)^2-($EU57-$CV$21)^2)+($CW$21-$CU$21)*($EU57-$CV$21),IF($EU57>=$CT$21,-1/2*($CW$21-$CU$21)/($CV$21-$CT$21)*($EU57-$CT$21)^2,0))))) -> --- | DN57: =IF($CT$21=$CV$21,"---",IF(AND($CT$21="",$CU$21="",$CV$21="",$CW$21=""),"---",(IF($EU57>=$CV$21,-$CU$21/2*(($EU57-$CT$21)^2-($EU57-$CV$21)^2),IF($EU57>=$CT$21,-$CU$21/2*($EU57-$CT$21)^2,0)))+(IF($EU57>=$CV$21,-1/6*($CW$21-$CU$21)/($CV$21-$CT$21)*(($EU57-$CT$21)^3-($EU57-$CV$21)^3)+($CW$21-$CU$21)/2*($EU57-$CV$21)^2,IF($EU57>=$CT$21,-1/6*($CW$21-$CU$21)/($CV$21-$CT$21)*($EU57-$CT$21)^3,0))))) -> --- | DO57: =IF($CT$21=$CV$21,"---",IF(AND($CT$21="",$CU$21="",$CV$21="",$CW$21=""),"---",(IF($EU57>=$CV$21,-$CU$21/(6*$FX$28*$FZ$28)*(($EU57-$CT$21)^3-($EU57-$CV$21)^3),IF($EU57>=$CT$21,-$CU$21/(6*$FX$28*$FZ$28)*($EU57-$CT$21)^3,0)))+(IF($EU57>=$CV$21,-1/(24*$FX$28*$FZ$28)*($CW$21-$CU$21)/($CV$21-$CT$21)*(($EU57-$CT$21)^4-($EU57-$CV$21)^4)+($CW$21-$CU$21)/(6*$FX$28*$FZ$28)*($EU57-$CV$21)^3,IF($EU57>=$CT$21,-1/(24*$FX$28*$FZ$28)*($CW$21-$CU$21)/($CV$21-$CT$21)*($EU57-$CT$21)^4,0))))) -> --- | DP57: =IF($CT$21=$CV$21,"---",IF(AND($CT$21="",$CU$21="",$CV$21="",$CW$21=""),"---",(IF($EU57>=$CV$21,$CU$21/(24*$FX$28*$FZ$28)*(($EU57-$CT$21)^4-($EU57-$CV$21)^4),IF($EU57>=$CT$21,$CU$21/(24*$FX$28*$FZ$28)*($EU57-$CT$21)^4,0)))+(IF($EU57>=$CV$21,1/(120*$FX$28*$FZ$28)*($CW$21-$CU$21)/($CV$21-$CT$21)*(($EU57-$CT$21)^5-($EU57-$CV$21)^5)-($CW$21-$CU$21)/(24*$FX$28*$FZ$28)*($EU57-$CV$21)^4,IF($EU57>=$CT$21,1/(120*$FX$28*$FZ$28)*($CW$21-$CU$21)/($CV$21-$CT$21)*($EU57-$CT$21)^5,0))))) -> --- | DQ57: =-$CE$32+-$CG$32+-$CI$32+-$CK$32+-$CM$32+-$CO$32+-$CQ$32+-$CS$32+-$CU$32+-$CW$32 -> 0 | DR57: =-$CE$32*($GA$28-$CD$32)+-$CG$32*($GA$28-$CF$32)+-$CI$32*($GA$28-$CH$32)+-$CK$32*($GA$28-$CJ$32)+-$CM$32*($GA$28-$CL$32)+-$CO$32*($GA$28-$CN$32)+-$CQ$32*($GA$28-$CP$32)+-$CS$32*($GA$28-$CR$32)+-$CU$32*($GA$28-$CT$32)+-$CW$32*($GA$28-$CV$32) -> 0 | DS57: =-$CE$32*($GA$28-$CD$32)^2/(2*$FX$28*$FZ$28)+-$CG$32*($GA$28-$CF$32)^2/(2*$FX$28*$FZ$28)+-$CI$32*($GA$28-$CH$32)^2/(2*$FX$28*$FZ$28)+-$CK$32*($GA$28-$CJ$32)^2/(2*$FX$28*$FZ$28)+-$CM$32*($GA$28-$CL$32)^2/(2*$FX$28*$FZ$28)+-$CO$32*($GA$28-$CN$32)^2/(2*$FX$28*$FZ$28)+-$CQ$32*($GA$28-$CP$32)^2/(2*$FX$28*$FZ$28)+-$CS$32*($GA$28-$CR$32)^2/(2*$FX$28*$FZ$28)+-$CU$32*($GA$28-$CT$32)^2/(2*$FX$28*$FZ$28)+-$CW$32*($GA$28-$CV$32)^2/(2*$FX$28*$FZ$28) -> 0 | DT57: =$CE$32*($GA$28-$CD$32)^3/(6*$FX$28*$FZ$28)+$CG$32*($GA$28-$CF$32)^3/(6*$FX$28*$FZ$28)+$CI$32*($GA$28-$CH$32)^3/(6*$FX$28*$FZ$28)+$CK$32*($GA$28-$CJ$32)^3/(6*$FX$28*$FZ$28)+$CM$32*($GA$28-$CL$32)^3/(6*$FX$28*$FZ$28)+$CO$32*($GA$28-$CN$32)^3/(6*$FX$28*$FZ$28)+$CQ$32*($GA$28-$CP$32)^3/(6*$FX$28*$FZ$28)+$CS$32*($GA$28-$CR$32)^3/(6*$FX$28*$FZ$28)+$CU$32*($GA$28-$CT$32)^3/(6*$FX$28*$FZ$28)+$CW$32*($GA$28-$CV$32)^3/(6*$FX$28*$FZ$28) -> 0 | DU57: =IF($EU57>$CD$32,-$CE$32,0)+IF($EU57>$CF$32,-$CG$32,0)+IF($EU57>$CH$32,-$CI$32,0)+IF($EU57>$CJ$32,-$CK$32,0)+IF($EU57>$CL$32,-$CM$32,0)+IF($EU57>$CN$32,-$CO$32,0)+IF($EU57>$CP$32,-$CQ$32,0)+IF($EU57>$CR$32,-$CS$32,0)+IF($EU57>$CT$32,-$CU$32,0)+IF($EU57>$CV$32,-$CW$32,0) -> 0 | DV57: =IF($EU57>$CD$32,-$CE$32*($EU57-$CD$32),0)+IF($EU57>$CF$32,-$CG$32*($EU57-$CF$32),0)+IF($EU57>$CH$32,-$CI$32*($EU57-$CH$32),0)+IF($EU57>$CJ$32,-$CK$32*($EU57-$CJ$32),0)+IF($EU57>$CL$32,-$CM$32*($EU57-$CL$32),0)+IF($EU57>$CN$32,-$CO$32*($EU57-$CN$32),0)+IF($EU57>$CP$32,-$CQ$32*($EU57-$CP$32),0)+IF($EU57>$CR$32,-$CS$32*($EU57-$CR$32),0)+IF($EU57>$CT$32,-$CU$32*($EU57-$CT$32),0)+IF($EU57>$CV$32,-$CW$32*($EU57-$CV$32),0) -> 0 | DW57: =IF($EU57>$CD$32,-$CE$32*($EU57-$CD$32)^2/(2*$FX$28*$FZ$28),0)+IF($EU57>$CF$32,-$CG$32*($EU57-$CF$32)^2/(2*$FX$28*$FZ$28),0)+IF($EU57>$CH$32,-$CI$32*($EU57-$CH$32)^2/(2*$FX$28*$FZ$28),0)+IF($EU57>$CJ$32,-$CK$32*($EU57-$CJ$32)^2/(2*$FX$28*$FZ$28),0)+IF($EU57>$CL$32,-$CM$32*($EU57-$CL$32)^2/(2*$FX$28*$FZ$28),0)+IF($EU57>$CN$32,-$CO$32*($EU57-$CN$32)^2/(2*$FX$28*$FZ$28),0)+IF($EU57>$CP$32,-$CQ$32*($EU57-$CP$32)^2/(2*$FX$28*$FZ$28),0)+IF($EU57>$CR$32,-$CS$32*($EU57-$CR$32)^2/(2*$FX$28*$FZ$28),0)+IF($EU57>$CT$32,-$CU$32*($EU57-$CT$32)^2/(2*$FX$28*$FZ$28),0)+IF($EU57>$CV$32,-$CW$32*($EU57-$CV$32)^2/(2*$FX$28*$FZ$28),0) -> 0 | DX57: =IF($EU57>$CD$32,$CE$32*($EU57-$CD$32)^3/(6*$FX$28*$FZ$28),0)+IF($EU57>$CF$32,$CG$32*($EU57-$CF$32)^3/(6*$FX$28*$FZ$28),0)+IF($EU57>$CH$32,$CI$32*($EU57-$CH$32)^3/(6*$FX$28*$FZ$28),0)+IF($EU57>$CJ$32,$CK$32*($EU57-$CJ$32)^3/(6*$FX$28*$FZ$28),0)+IF($EU57>$CL$32,$CM$32*($EU57-$CL$32)^3/(6*$FX$28*$FZ$28),0)+IF($EU57>$CN$32,$CO$32*($EU57-$CN$32)^3/(6*$FX$28*$FZ$28),0)+IF($EU57>$CP$32,$CQ$32*($EU57-$CP$32)^3/(6*$FX$28*$FZ$28),0)+IF($EU57>$CR$32,$CS$32*($EU57-$CR$32)^3/(6*$FX$28*$FZ$28),0)+IF($EU57>$CT$32,$CU$32*($EU57-$CT$32)^3/(6*$FX$28*$FZ$28),0)+IF($EU57>$CV$32,$CW$32*($EU57-$CV$32)^3/(6*$FX$28*$FZ$28),0) -> 0 | DY57: =0+0+0+0 -> 0 | DZ57: =-$CE$40+-$CG$40+-$CI$40+-$CK$40+-CM40 -> 0 | EA57: =-$CE$40*($GA$28-$CD$40)/($FX$28*$FZ$28)+-$CG$40*($GA$28-$CF$40)/($FX$28*$FZ$28)+-$CI$40*($GA$28-$CH$40)/($FX$28*$FZ$28)+-$CK$40*($GA$28-$CJ$40)/($FX$28*$FZ$28)+-$CM$40*($GA$28-$CL$40)/($FX$28*$FZ$28) -> 0 | EB57: =$CE$40*($GA$28-$CD$40)^2/(2*$FX$28*$FZ$28)+$CG$40*($GA$28-$CF$40)^2/(2*$FX$28*$FZ$28)+$CI$40*($GA$28-$CH$40)^2/(2*$FX$28*$FZ$28)+$CK$40*($GA$28-$CJ$40)^2/(2*$FX$28*$FZ$28)+$CM$40*($GA$28-$CL$40)^2/(2*$FX$28*$FZ$28) -> 0 | EC57: =IF($EU57>=IF($CD$40=$GA$28,$CD$40+0.000000001,$CD$40),0,0)+IF($EU57>=IF($CF$40=$GA$28,$CF$40+0.000000001,$CF$40),0,0)+IF($EU57>=IF($CH$40=$GA$28,$CH$40+0.000000001,$CH$40),0,0)+IF($EU57>=IF($CJ$40=$GA$28,$CJ$40+0.000000001,$CJ$40),0,0)+IF($EU57>=IF($CL$40=$GA$28,$CL$40+0.000000001,$CL$40),0,0) -> 0 | ED57: =IF($EU57>=IF($CD$40=$GA$28,$CD$40+0.000000001,$CD$40),-$CE$40,0)+IF($EU57>=IF($CF$40=$GA$28,$CF$40+0.000000001,$CF$40),-$CG$40,0)+IF($EU57>=IF($CH$40=$GA$28,$CH$40+0.000000001,$CH$40),-$CI$40,0)+IF($EU57>=IF($CJ$40=$GA$28,$CJ$40+0.000000001,$CJ$40),-$CK$40,0)+IF($EU57>=IF($CL$40=$GA$28,$CL$40+0.000000001,$CL$40),-$CM$40,0) -> 0 | EE57: =IF($EU57>=IF($CD$40=$GA$28,$CD$40+0.000000001,$CD$40),-$CE$40*($EU57-$CD$40)/($FX$28*$FZ$28),0)+IF($EU57>=IF($CF$40=$GA$28,$CF$40+0.000000001,$CF$40),-$CG$40*($EU57-$CF$40)/($FX$28*$FZ$28),0)+IF($EU57>=IF($CH$40=$GA$28,$CH$40+0.000000001,$CH$40),-$CI$40*($EU57-$CH$40)/($FX$28*$FZ$28),0)+IF($EU57>=IF($CJ$40=$GA$28,$CJ$40+0.000000001,$CJ$40),-$CK$40*($EU57-$CJ$40)/($FX$28*$FZ$28),0)+IF($EU57>=IF($CL$40=$GA$28,$CL$40+0.000000001,$CL$40),-$CM$40*($EU57-$CL$40)/($FX$28*$FZ$28),0) -> 0 | EF57: =IF($EU57>=IF($CD$40=$GA$28,$CD$40+0.000000001,$CD$40),$CE$40*($EU57-$CD$40)^2/(2*$FX$28*$FZ$28),0)+IF($EU57>=IF($CF$40=$GA$28,$CF$40+0.000000001,$CF$40),$CG$40*($EU57-$CF$40)^2/(2*$FX$28*$FZ$28),0)+IF($EU57>=IF($CH$40=$GA$28,$CH$40+0.000000001,$CH$40),$CI$40*($EU57-$CH$40)^2/(2*$FX$28*$FZ$28),0)+IF($EU57>=IF($CJ$40=$GA$28,$CJ$40+0.000000001,$CJ$40),$CK$40*($EU57-$CJ$40)^2/(2*$FX$28*$FZ$28),0)+IF($EU57>=IF($CL$40=$GA$28,$CL$40+0.000000001,$CL$40),$CM$40*($EU57-$CL$40)^2/(2*$FX$28*$FZ$28),0) -> 0 | EG57: 0 | EH57: 0 | EI57: 0 | EJ57: 0 | EK57: 0 | EL57: 0 | EM57: 0 | EN57: 0 | EO57: =-12*$FX$28*$FZ$28/$GA$28^3*$EJ57-6*$FX$28*$FZ$28/$GA$28^2*$EI57 -> 0 | EP57: =6*$FX$28*$FZ$28/$GA$28^2*$EJ57+2*$FX$28*$FZ$28/$GA$28*$EI57 -> 0 | EQ57: =0 -> 0 | ER57: =0 -> 0 | ES57: =$EO57+$EK57 -> 0 | ET57: 0 | EU57: =0 -> 0 | EV57: Member #3 FEM(L):
BD58: Applied Moments: | CB58: Member #3(X) FEM(R): | CC58: =$CC$57 -> --- | CD58: =$CD$57 -> --- | CE58: =$CE$57 -> --- | CF58: =$CF$57 -> --- | CG58: =IF($CD$21=$CF$21,"---",IF(AND($CD$21="",$CE$21="",$CF$21="",$CG$21=""),"---",(IF($EU58>=$CF$21,-$CE$21*($EU58-$CD$21-($EU58-$CF$21)),IF($EU58>=$CD$21,-$CE$21*($EU58-$CD$21),0)))+(IF($EU58>=$CF$21,-1/2*($CG$21-$CE$21)/($CF$21-$CD$21)*(($EU58-$CD$21)^2-($EU58-$CF$21)^2)+($CG$21-$CE$21)*($EU58-$CF$21),IF($EU58>=$CD$21,-1/2*($CG$21-$CE$21)/($CF$21-$CD$21)*($EU58-$CD$21)^2,0))))) -> --- | CH58: =IF($CD$21=$CF$21,"---",IF(AND($CD$21="",$CE$21="",$CF$21="",$CG$21=""),"---",(IF($EU58>=$CF$21,-$CE$21/2*(($EU58-$CD$21)^2-($EU58-$CF$21)^2),IF($EU58>=$CD$21,-$CE$21/2*($EU58-$CD$21)^2,0)))+(IF($EU58>=$CF$21,-1/6*($CG$21-$CE$21)/($CF$21-$CD$21)*(($EU58-$CD$21)^3-($EU58-$CF$21)^3)+($CG$21-$CE$21)/2*($EU58-$CF$21)^2,IF($EU58>=$CD$21,-1/6*($CG$21-$CE$21)/($CF$21-$CD$21)*($EU58-$CD$21)^3,0))))) -> --- | CI58: =IF($CD$21=$CF$21,"---",IF(AND($CD$21="",$CE$21="",$CF$21="",$CG$21=""),"---",(IF($EU58>=$CF$21,-$CE$21/(6*$FX$28*$FZ$28)*(($EU58-$CD$21)^3-($EU58-$CF$21)^3),IF($EU58>=$CD$21,-$CE$21/(6*$FX$28*$FZ$28)*($EU58-$CD$21)^3,0)))+(IF($EU58>=$CF$21,-1/(24*$FX$28*$FZ$28)*($CG$21-$CE$21)/($CF$21-$CD$21)*(($EU58-$CD$21)^4-($EU58-$CF$21)^4)+($CG$21-$CE$21)/(6*$FX$28*$FZ$28)*($EU58-$CF$21)^3,IF($EU58>=$CD$21,-1/(24*$FX$28*$FZ$28)*($CG$21-$CE$21)/($CF$21-$CD$21)*($EU58-$CD$21)^4,0))))) -> --- | CJ58: =IF($CD$21=$CF$21,"---",IF(AND($CD$21="",$CE$21="",$CF$21="",$CG$21=""),"---",(IF($EU58>=$CF$21,$CE$21/(24*$FX$28*$FZ$28)*(($EU58-$CD$21)^4-($EU58-$CF$21)^4),IF($EU58>=$CD$21,$CE$21/(24*$FX$28*$FZ$28)*($EU58-$CD$21)^4,0)))+(IF($EU58>=$CF$21,1/(120*$FX$28*$FZ$28)*($CG$21-$CE$21)/($CF$21-$CD$21)*(($EU58-$CD$21)^5-($EU58-$CF$21)^5)-($CG$21-$CE$21)/(24*$FX$28*$FZ$28)*($EU58-$CF$21)^4,IF($EU58>=$CD$21,1/(120*$FX$28*$FZ$28)*($CG$21-$CE$21)/($CF$21-$CD$21)*($EU58-$CD$21)^5,0))))) -> --- | CK58: =$CK$57 -> --- | CL58: =$CL$57 -> --- | CM58: =$CM$57 -> --- | CN58: =$CN$57 -> --- | CO58: =IF($CH$21=$CJ$21,"---",IF(AND($CH$21="",$CI$21="",$CJ$21="",$CK$21=""),"---",(IF($EU58>=$CJ$21,-$CI$21*($EU58-$CH$21-($EU58-$CJ$21)),IF($EU58>=$CH$21,-$CI$21*($EU58-$CH$21),0)))+(IF($EU58>=$CJ$21,-1/2*($CK$21-$CI$21)/($CJ$21-$CH$21)*(($EU58-$CH$21)^2-($EU58-$CJ$21)^2)+($CK$21-$CI$21)*($EU58-$CJ$21),IF($EU58>=$CH$21,-1/2*($CK$21-$CI$21)/($CJ$21-$CH$21)*($EU58-$CH$21)^2,0))))) -> --- | CP58: =IF($CH$21=$CJ$21,"---",IF(AND($CH$21="",$CI$21="",$CJ$21="",$CK$21=""),"---",(IF($EU58>=$CJ$21,-$CI$21/2*(($EU58-$CH$21)^2-($EU58-$CJ$21)^2),IF($EU58>=$CH$21,-$CI$21/2*($EU58-$CH$21)^2,0)))+(IF($EU58>=$CJ$21,-1/6*($CK$21-$CI$21)/($CJ$21-$CH$21)*(($EU58-$CH$21)^3-($EU58-$CJ$21)^3)+($CK$21-$CI$21)/2*($EU58-$CJ$21)^2,IF($EU58>=$CH$21,-1/6*($CK$21-$CI$21)/($CJ$21-$CH$21)*($EU58-$CH$21)^3,0))))) -> --- | CQ58: =IF($CH$21=$CJ$21,"---",IF(AND($CH$21="",$CI$21="",$CJ$21="",$CK$21=""),"---",(IF($EU58>=$CJ$21,-$CI$21/(6*$FX$28*$FZ$28)*(($EU58-$CH$21)^3-($EU58-$CJ$21)^3),IF($EU58>=$CH$21,-$CI$21/(6*$FX$28*$FZ$28)*($EU58-$CH$21)^3,0)))+(IF($EU58>=$CJ$21,-1/(24*$FX$28*$FZ$28)*($CK$21-$CI$21)/($CJ$21-$CH$21)*(($EU58-$CH$21)^4-($EU58-$CJ$21)^4)+($CK$21-$CI$21)/(6*$FX$28*$FZ$28)*($EU58-$CJ$21)^3,IF($EU58>=$CH$21,-1/(24*$FX$28*$FZ$28)*($CK$21-$CI$21)/($CJ$21-$CH$21)*($EU58-$CH$21)^4,0))))) -> --- | CR58: =IF($CH$21=$CJ$21,"---",IF(AND($CH$21="",$CI$21="",$CJ$21="",$CK$21=""),"---",(IF($EU58>=$CJ$21,$CI$21/(24*$FX$28*$FZ$28)*(($EU58-$CH$21)^4-($EU58-$CJ$21)^4),IF($EU58>=$CH$21,$CI$21/(24*$FX$28*$FZ$28)*($EU58-$CH$21)^4,0)))+(IF($EU58>=$CJ$21,1/(120*$FX$28*$FZ$28)*($CK$21-$CI$21)/($CJ$21-$CH$21)*(($EU58-$CH$21)^5-($EU58-$CJ$21)^5)-($CK$21-$CI$21)/(24*$FX$28*$FZ$28)*($EU58-$CJ$21)^4,IF($EU58>=$CH$21,1/(120*$FX$28*$FZ$28)*($CK$21-$CI$21)/($CJ$21-$CH$21)*($EU58-$CH$21)^5,0))))) -> --- | CS58: =$CS$57 -> --- | CT58: =$CT$57 -> --- | CU58: =$CU$57 -> --- | CV58: =$CV$57 -> --- | CW58: =IF($CL$21=$CN$21,"---",IF(AND($CL$21="",$CM$21="",$CN$21="",$CO$21=""),"---",(IF($EU58>=$CN$21,-$CM$21*($EU58-$CL$21-($EU58-$CN$21)),IF($EU58>=$CL$21,-$CM$21*($EU58-$CL$21),0)))+(IF($EU58>=$CN$21,-1/2*($CO$21-$CM$21)/($CN$21-$CL$21)*(($EU58-$CL$21)^2-($EU58-$CN$21)^2)+($CO$21-$CM$21)*($EU58-$CN$21),IF($EU58>=$CL$21,-1/2*($CO$21-$CM$21)/($CN$21-$CL$21)*($EU58-$CL$21)^2,0))))) -> --- | CX58: =IF($CL$21=$CN$21,"---",IF(AND($CL$21="",$CM$21="",$CN$21="",$CO$21=""),"---",(IF($EU58>=$CN$21,-$CM$21/2*(($EU58-$CL$21)^2-($EU58-$CN$21)^2),IF($EU58>=$CL$21,-$CM$21/2*($EU58-$CL$21)^2,0)))+(IF($EU58>=$CN$21,-1/6*($CO$21-$CM$21)/($CN$21-$CL$21)*(($EU58-$CL$21)^3-($EU58-$CN$21)^3)+($CO$21-$CM$21)/2*($EU58-$CN$21)^2,IF($EU58>=$CL$21,-1/6*($CO$21-$CM$21)/($CN$21-$CL$21)*($EU58-$CL$21)^3,0))))) -> --- | CY58: =IF($CL$21=$CN$21,"---",IF(AND($CL$21="",$CM$21="",$CN$21="",$CO$21=""),"---",(IF($EU58>=$CN$21,-$CM$21/(6*$FX$28*$FZ$28)*(($EU58-$CL$21)^3-($EU58-$CN$21)^3),IF($EU58>=$CL$21,-$CM$21/(6*$FX$28*$FZ$28)*($EU58-$CL$21)^3,0)))+(IF($EU58>=$CN$21,-1/(24*$FX$28*$FZ$28)*($CO$21-$CM$21)/($CN$21-$CL$21)*(($EU58-$CL$21)^4-($EU58-$CN$21)^4)+($CO$21-$CM$21)/(6*$FX$28*$FZ$28)*($EU58-$CN$21)^3,IF($EU58>=$CL$21,-1/(24*$FX$28*$FZ$28)*($CO$21-$CM$21)/($CN$21-$CL$21)*($EU58-$CL$21)^4,0))))) -> --- | CZ58: =IF($CL$21=$CN$21,"---",IF(AND($CL$21="",$CM$21="",$CN$21="",$CO$21=""),"---",(IF($EU58>=$CN$21,$CM$21/(24*$FX$28*$FZ$28)*(($EU58-$CL$21)^4-($EU58-$CN$21)^4),IF($EU58>=$CL$21,$CM$21/(24*$FX$28*$FZ$28)*($EU58-$CL$21)^4,0)))+(IF($EU58>=$CN$21,1/(120*$FX$28*$FZ$28)*($CO$21-$CM$21)/($CN$21-$CL$21)*(($EU58-$CL$21)^5-($EU58-$CN$21)^5)-($CO$21-$CM$21)/(24*$FX$28*$FZ$28)*($EU58-$CN$21)^4,IF($EU58>=$CL$21,1/(120*$FX$28*$FZ$28)*($CO$21-$CM$21)/($CN$21-$CL$21)*($EU58-$CL$21)^5,0))))) -> --- | DA58: =$DA$57 -> --- | DB58: =$DB$57 -> --- | DC58: =$DC$57 -> --- | DD58: =$DD$57 -> --- | DE58: =IF($CP$21=$CR$21,"---",IF(AND($CP$21="",$CQ$21="",$CR$21="",$CS$21=""),"---",(IF($EU58>=$CR$21,-$CQ$21*($EU58-$CP$21-($EU58-$CR$21)),IF($EU58>=$CP$21,-$CQ$21*($EU58-$CP$21),0)))+(IF($EU58>=$CR$21,-1/2*($CS$21-$CQ$21)/($CR$21-$CP$21)*(($EU58-$CP$21)^2-($EU58-$CR$21)^2)+($CS$21-$CQ$21)*($EU58-$CR$21),IF($EU58>=$CP$21,-1/2*($CS$21-$CQ$21)/($CR$21-$CP$21)*($EU58-$CP$21)^2,0))))) -> --- | DF58: =IF($CP$21=$CR$21,"---",IF(AND($CP$21="",$CQ$21="",$CR$21="",$CS$21=""),"---",(IF($EU58>=$CR$21,-$CQ$21/2*(($EU58-$CP$21)^2-($EU58-$CR$21)^2),IF($EU58>=$CP$21,-$CQ$21/2*($EU58-$CP$21)^2,0)))+(IF($EU58>=$CR$21,-1/6*($CS$21-$CQ$21)/($CR$21-$CP$21)*(($EU58-$CP$21)^3-($EU58-$CR$21)^3)+($CS$21-$CQ$21)/2*($EU58-$CR$21)^2,IF($EU58>=$CP$21,-1/6*($CS$21-$CQ$21)/($CR$21-$CP$21)*($EU58-$CP$21)^3,0))))) -> --- | DG58: =IF($CP$21=$CR$21,"---",IF(AND($CP$21="",$CQ$21="",$CR$21="",$CS$21=""),"---",(IF($EU58>=$CR$21,-$CQ$21/(6*$FX$28*$FZ$28)*(($EU58-$CP$21)^3-($EU58-$CR$21)^3),IF($EU58>=$CP$21,-$CQ$21/(6*$FX$28*$FZ$28)*($EU58-$CP$21)^3,0)))+(IF($EU58>=$CR$21,-1/(24*$FX$28*$FZ$28)*($CS$21-$CQ$21)/($CR$21-$CP$21)*(($EU58-$CP$21)^4-($EU58-$CR$21)^4)+($CS$21-$CQ$21)/(6*$FX$28*$FZ$28)*($EU58-$CR$21)^3,IF($EU58>=$CP$21,-1/(24*$FX$28*$FZ$28)*($CS$21-$CQ$21)/($CR$21-$CP$21)*($EU58-$CP$21)^4,0))))) -> --- | DH58: =IF($CP$21=$CR$21,"---",IF(AND($CP$21="",$CQ$21="",$CR$21="",$CS$21=""),"---",(IF($EU58>=$CR$21,$CQ$21/(24*$FX$28*$FZ$28)*(($EU58-$CP$21)^4-($EU58-$CR$21)^4),IF($EU58>=$CP$21,$CQ$21/(24*$FX$28*$FZ$28)*($EU58-$CP$21)^4,0)))+(IF($EU58>=$CR$21,1/(120*$FX$28*$FZ$28)*($CS$21-$CQ$21)/($CR$21-$CP$21)*(($EU58-$CP$21)^5-($EU58-$CR$21)^5)-($CS$21-$CQ$21)/(24*$FX$28*$FZ$28)*($EU58-$CR$21)^4,IF($EU58>=$CP$21,1/(120*$FX$28*$FZ$28)*($CS$21-$CQ$21)/($CR$21-$CP$21)*($EU58-$CP$21)^5,0))))) -> --- | DI58: =$DI$57 -> --- | DJ58: =$DJ$57 -> --- | DK58: =$DK$57 -> --- | DL58: =$DL$57 -> --- | DM58: =IF($CT$21=$CV$21,"---",IF(AND($CT$21="",$CU$21="",$CV$21="",$CW$21=""),"---",(IF($EU58>=$CV$21,-$CU$21*($EU58-$CT$21-($EU58-$CV$21)),IF($EU58>=$CT$21,-$CU$21*($EU58-$CT$21),0)))+(IF($EU58>=$CV$21,-1/2*($CW$21-$CU$21)/($CV$21-$CT$21)*(($EU58-$CT$21)^2-($EU58-$CV$21)^2)+($CW$21-$CU$21)*($EU58-$CV$21),IF($EU58>=$CT$21,-1/2*($CW$21-$CU$21)/($CV$21-$CT$21)*($EU58-$CT$21)^2,0))))) -> --- | DN58: =IF($CT$21=$CV$21,"---",IF(AND($CT$21="",$CU$21="",$CV$21="",$CW$21=""),"---",(IF($EU58>=$CV$21,-$CU$21/2*(($EU58-$CT$21)^2-($EU58-$CV$21)^2),IF($EU58>=$CT$21,-$CU$21/2*($EU58-$CT$21)^2,0)))+(IF($EU58>=$CV$21,-1/6*($CW$21-$CU$21)/($CV$21-$CT$21)*(($EU58-$CT$21)^3-($EU58-$CV$21)^3)+($CW$21-$CU$21)/2*($EU58-$CV$21)^2,IF($EU58>=$CT$21,-1/6*($CW$21-$CU$21)/($CV$21-$CT$21)*($EU58-$CT$21)^3,0))))) -> --- | DO58: =IF($CT$21=$CV$21,"---",IF(AND($CT$21="",$CU$21="",$CV$21="",$CW$21=""),"---",(IF($EU58>=$CV$21,-$CU$21/(6*$FX$28*$FZ$28)*(($EU58-$CT$21)^3-($EU58-$CV$21)^3),IF($EU58>=$CT$21,-$CU$21/(6*$FX$28*$FZ$28)*($EU58-$CT$21)^3,0)))+(IF($EU58>=$CV$21,-1/(24*$FX$28*$FZ$28)*($CW$21-$CU$21)/($CV$21-$CT$21)*(($EU58-$CT$21)^4-($EU58-$CV$21)^4)+($CW$21-$CU$21)/(6*$FX$28*$FZ$28)*($EU58-$CV$21)^3,IF($EU58>=$CT$21,-1/(24*$FX$28*$FZ$28)*($CW$21-$CU$21)/($CV$21-$CT$21)*($EU58-$CT$21)^4,0))))) -> --- | DP58: =IF($CT$21=$CV$21,"---",IF(AND($CT$21="",$CU$21="",$CV$21="",$CW$21=""),"---",(IF($EU58>=$CV$21,$CU$21/(24*$FX$28*$FZ$28)*(($EU58-$CT$21)^4-($EU58-$CV$21)^4),IF($EU58>=$CT$21,$CU$21/(24*$FX$28*$FZ$28)*($EU58-$CT$21)^4,0)))+(IF($EU58>=$CV$21,1/(120*$FX$28*$FZ$28)*($CW$21-$CU$21)/($CV$21-$CT$21)*(($EU58-$CT$21)^5-($EU58-$CV$21)^5)-($CW$21-$CU$21)/(24*$FX$28*$FZ$28)*($EU58-$CV$21)^4,IF($EU58>=$CT$21,1/(120*$FX$28*$FZ$28)*($CW$21-$CU$21)/($CV$21-$CT$21)*($EU58-$CT$21)^5,0))))) -> --- | DQ58: =$DQ$57 -> 0 | DR58: =$DR$57 -> 0 | DS58: =$DS$57 -> 0 | DT58: =$DT$57 -> 0 | DU58: =IF($EU58>$CD$32,-$CE$32,0)+IF($EU58>$CF$32,-$CG$32,0)+IF($EU58>$CH$32,-$CI$32,0)+IF($EU58>$CJ$32,-$CK$32,0)+IF($EU58>$CL$32,-$CM$32,0)+IF($EU58>$CN$32,-$CO$32,0)+IF($EU58>$CP$32,-$CQ$32,0)+IF($EU58>$CR$32,-$CS$32,0)+IF($EU58>$CT$32,-$CU$32,0)+IF($EU58>$CV$32,-$CW$32,0) -> 0 | DV58: =IF($EU58>$CD$32,-$CE$32*($EU58-$CD$32),0)+IF($EU58>$CF$32,-$CG$32*($EU58-$CF$32),0)+IF($EU58>$CH$32,-$CI$32*($EU58-$CH$32),0)+IF($EU58>$CJ$32,-$CK$32*($EU58-$CJ$32),0)+IF($EU58>$CL$32,-$CM$32*($EU58-$CL$32),0)+IF($EU58>$CN$32,-$CO$32*($EU58-$CN$32),0)+IF($EU58>$CP$32,-$CQ$32*($EU58-$CP$32),0)+IF($EU58>$CR$32,-$CS$32*($EU58-$CR$32),0)+IF($EU58>$CT$32,-$CU$32*($EU58-$CT$32),0)+IF($EU58>$CV$32,-$CW$32*($EU58-$CV$32),0) -> 0 | DW58: =IF($EU58>$CD$32,-$CE$32*($EU58-$CD$32)^2/(2*$FX$28*$FZ$28),0)+IF($EU58>$CF$32,-$CG$32*($EU58-$CF$32)^2/(2*$FX$28*$FZ$28),0)+IF($EU58>$CH$32,-$CI$32*($EU58-$CH$32)^2/(2*$FX$28*$FZ$28),0)+IF($EU58>$CJ$32,-$CK$32*($EU58-$CJ$32)^2/(2*$FX$28*$FZ$28),0)+IF($EU58>$CL$32,-$CM$32*($EU58-$CL$32)^2/(2*$FX$28*$FZ$28),0)+IF($EU58>$CN$32,-$CO$32*($EU58-$CN$32)^2/(2*$FX$28*$FZ$28),0)+IF($EU58>$CP$32,-$CQ$32*($EU58-$CP$32)^2/(2*$FX$28*$FZ$28),0)+IF($EU58>$CR$32,-$CS$32*($EU58-$CR$32)^2/(2*$FX$28*$FZ$28),0)+IF($EU58>$CT$32,-$CU$32*($EU58-$CT$32)^2/(2*$FX$28*$FZ$28),0)+IF($EU58>$CV$32,-$CW$32*($EU58-$CV$32)^2/(2*$FX$28*$FZ$28),0) -> 0 | DX58: =IF($EU58>$CD$32,$CE$32*($EU58-$CD$32)^3/(6*$FX$28*$FZ$28),0)+IF($EU58>$CF$32,$CG$32*($EU58-$CF$32)^3/(6*$FX$28*$FZ$28),0)+IF($EU58>$CH$32,$CI$32*($EU58-$CH$32)^3/(6*$FX$28*$FZ$28),0)+IF($EU58>$CJ$32,$CK$32*($EU58-$CJ$32)^3/(6*$FX$28*$FZ$28),0)+IF($EU58>$CL$32,$CM$32*($EU58-$CL$32)^3/(6*$FX$28*$FZ$28),0)+IF($EU58>$CN$32,$CO$32*($EU58-$CN$32)^3/(6*$FX$28*$FZ$28),0)+IF($EU58>$CP$32,$CQ$32*($EU58-$CP$32)^3/(6*$FX$28*$FZ$28),0)+IF($EU58>$CR$32,$CS$32*($EU58-$CR$32)^3/(6*$FX$28*$FZ$28),0)+IF($EU58>$CT$32,$CU$32*($EU58-$CT$32)^3/(6*$FX$28*$FZ$28),0)+IF($EU58>$CV$32,$CW$32*($EU58-$CV$32)^3/(6*$FX$28*$FZ$28),0) -> 0 | DY58: =$DY$57 -> 0 | DZ58: =$DZ$57 -> 0 | EA58: =$EA$57 -> 0 | EB58: =$EB$57 -> 0 | EC58: =IF($EU58>=IF($CD$40=$GA$28,$CD$40+0.000000001,$CD$40),0,0)+IF($EU58>=IF($CF$40=$GA$28,$CF$40+0.000000001,$CF$40),0,0)+IF($EU58>=IF($CH$40=$GA$28,$CH$40+0.000000001,$CH$40),0,0)+IF($EU58>=IF($CJ$40=$GA$28,$CJ$40+0.000000001,$CJ$40),0,0)+IF($EU58>=IF($CL$40=$GA$28,$CL$40+0.000000001,$CL$40),0,0) -> 0 | ED58: =IF($EU58>=IF($CD$40=$GA$28,$CD$40+0.000000001,$CD$40),-$CE$40,0)+IF($EU58>=IF($CF$40=$GA$28,$CF$40+0.000000001,$CF$40),-$CG$40,0)+IF($EU58>=IF($CH$40=$GA$28,$CH$40+0.000000001,$CH$40),-$CI$40,0)+IF($EU58>=IF($CJ$40=$GA$28,$CJ$40+0.000000001,$CJ$40),-$CK$40,0)+IF($EU58>=IF($CL$40=$GA$28,$CL$40+0.000000001,$CL$40),-$CM$40,0) -> 0 | EE58: =IF($EU58>=IF($CD$40=$GA$28,$CD$40+0.000000001,$CD$40),-$CE$40*($EU58-$CD$40)/($FX$28*$FZ$28),0)+IF($EU58>=IF($CF$40=$GA$28,$CF$40+0.000000001,$CF$40),-$CG$40*($EU58-$CF$40)/($FX$28*$FZ$28),0)+IF($EU58>=IF($CH$40=$GA$28,$CH$40+0.000000001,$CH$40),-$CI$40*($EU58-$CH$40)/($FX$28*$FZ$28),0)+IF($EU58>=IF($CJ$40=$GA$28,$CJ$40+0.000000001,$CJ$40),-$CK$40*($EU58-$CJ$40)/($FX$28*$FZ$28),0)+IF($EU58>=IF($CL$40=$GA$28,$CL$40+0.000000001,$CL$40),-$CM$40*($EU58-$CL$40)/($FX$28*$FZ$28),0) -> 0 | EF58: =IF($EU58>=IF($CD$40=$GA$28,$CD$40+0.000000001,$CD$40),$CE$40*($EU58-$CD$40)^2/(2*$FX$28*$FZ$28),0)+IF($EU58>=IF($CF$40=$GA$28,$CF$40+0.000000001,$CF$40),$CG$40*($EU58-$CF$40)^2/(2*$FX$28*$FZ$28),0)+IF($EU58>=IF($CH$40=$GA$28,$CH$40+0.000000001,$CH$40),$CI$40*($EU58-$CH$40)^2/(2*$FX$28*$FZ$28),0)+IF($EU58>=IF($CJ$40=$GA$28,$CJ$40+0.000000001,$CJ$40),$CK$40*($EU58-$CJ$40)^2/(2*$FX$28*$FZ$28),0)+IF($EU58>=IF($CL$40=$GA$28,$CL$40+0.000000001,$CL$40),$CM$40*($EU58-$CL$40)^2/(2*$FX$28*$FZ$28),0) -> 0 | EG58: 0 | EH58: 0 | EI58: 0 | EJ58: 0 | EK58: 0 | EL58: 0 | EM58: 0 | EN58: 0 | EO58: =$EO$57 -> 0 | EP58: =$EP$57 -> 0 | EQ58: =$EQ$57 -> 0 | ER58: =$ER$57 -> 0 | ES58: =-($EO58+$EK58) -> 0 | ET58: 0 | EU58: =$GA$28+0.0000000001 -> 19.68498 | EV58: Member #3 FEM(R): | FV58: Applied Moments:
H59: Loading Details
BD60: Member No. | BF60: Moment #1 | BH60: Moment #2 | BJ60: Moment #3 | BL60: Moment #4 | BN60: Moment #5 | CC60: Portal Frame Case #1 - Joint 1 Fixed and Joint 4 Fixed: | FV60: Member No. | FX60: Moment #1 | FZ60: Moment #2 | GB60: Moment #3 | GD60: Moment #4 | GF60: Moment #5
H61: Factor of Safety | BF61: c/L | BG61: M (kN-m) | BH61: c/L | BI61: M (kN-m) | BJ61: c/L | BK61: M (kN-m) | BL61: c/L | BM61: M (kN-m) | BN61: c/L | BO61: M (kN-m) | CC61: Member Stiffness Matrices: | FX61: c/L | FY61: M (ft-kips) | FZ61: c/L | GA61: M (ft-kips) | GB61: c/L | GC61: M (ft-kips) | GD61: c/L | GE61: M (ft-kips) | GF61: c/L | GG61: M (ft-kips)
H62: Factor of Safety (Dead) | S62: 1.4 | BD62: 1 | BF62: =P137/AB23 -> 0 | BG62: =IF($P$135="Dead",R137*$S$62,R137*$S$63) -> 0 | BH62: =T137/AB23 -> 0 | BI62: =IF($T$135="Dead",V137*$S$62,V137*$S$63) -> 0 | BJ62: =X137/AB23 -> 0 | BK62: =IF($X$135="Dead",Z137*$S$62,Z137*$S$63) -> 0 | BL62: =P144/AB23 -> 0 | BM62: =IF($P$142="Dead",R144*$S$62,R144*$S$63) -> 0 | BN62: =T144/AB23 -> 0 | BO62: =IF($T$142="Dead",V144*$S$62,V144*$S$63) -> 0 | CD62: Member #1: | CE62: 7 | CF62: 8 | CG62: 9 | CH62: 1 | CI62: 2 | CJ62: 3 | FV62: 1 | FX62: =BF62 -> 0 | FY62: =BG62*0.737562 -> 0 | FZ62: =BH62 -> 0 | GA62: =BI62*0.737562 -> 0 | GB62: =BJ62 -> 0 | GC62: =BK62*0.737562 -> 0 | GD62: =BL62 -> 0 | GE62: =BM62*0.737562 -> 0 | GF62: =BN62 -> 0 | GG62: =BO62*0.737562 -> 0
H63: Factor of Safety (Imposed) | S63: 1.6 | BD63: 2 | BF63: =P138/AB24 -> 0 | BG63: =IF($P$135="Dead",R138*$S$62,R138*$S$63) -> 0 | BH63: =T138/AB24 -> 0 | BI63: =IF($T$135="Dead",V138*$S$62,V138*$S$63) -> 0 | BJ63: =X138/AB24 -> 0 | BK63: =IF($X$135="Dead",Z138*$S$62,Z138*$S$63) -> 0 | BL63: =P145/AB24 -> 0 | BM63: =IF($P$142="Dead",R145*$S$62,R145*$S$63) -> 0 | BN63: =T145/AB24 -> 0 | BO63: =IF($T$142="Dead",V145*$S$62,V145*$S$63) -> 0 | CE63: =($FY$26*$FX$26/($GA$26*12)*$CF$5^2+12*$FX$26*$FZ$26/($GA$26*12)^3*$CG$5^2) -> 19.03391498 | CF63: =($FY$26*$FX$26/($GA$26*12)-12*$FX$26*$FZ$26/($GA$26*12)^3)*$CF$5*$CG$5 -> 0 | CG63: =-6*$FX$26*$FZ$26/($GA$26*12)^2*$CG$5 -> -2248.093414 | CH63: =-($FY$26*$FX$26/($GA$26*12)*$CF$5^2+12*$FX$26*$FZ$26/($GA$26*12)^3*$CG$5^2) -> -19.03391498 | CI63: =-($FY$26*$FX$26/($GA$26*12)-12*$FX$26*$FZ$26/($GA$26*12)^3)*$CF$5*$CG$5 -> 0 | CJ63: =-6*$FX$26*$FZ$26/($GA$26*12)^2*$CG$5 -> -2248.093414 | CK63: 7 | FV63: 2 | FX63: =BF63 -> 0 | FY63: =BG63*0.737562 -> 0 | FZ63: =BH63 -> 0 | GA63: =BI63*0.737562 -> 0 | GB63: =BJ63 -> 0 | GC63: =BK63*0.737562 -> 0 | GD63: =BL63 -> 0 | GE63: =BM63*0.737562 -> 0 | GF63: =BN63 -> 0 | GG63: =BO63*0.737562 -> 0
BD64: 3 | BF64: 0 | BG64: 0 | BH64: 0 | BI64: 0 | BJ64: 0 | BK64: 0 | BL64: 0 | BM64: 0 | BN64: 0 | BO64: 0 | CE64: =($FY$26*$FX$26/($GA$26*12)-12*$FX$26*$FZ$26/($GA$26*12)^3)*$CF$5*$CG$5 -> 0 | CF64: =($FY$26*$FX$26/($GA$26*12)*$CG$5^2+12*$FX$26*$FZ$26/($GA$26*12)^3*$CF$5^2) -> 1903.387508 | CG64: =6*$FX$26*$FZ$26/($GA$26*12)^2*$CF$5 -> 0 | CH64: =-($FY$26*$FX$26/($GA$26*12)-12*$FX$26*$FZ$26/($GA$26*12)^3)*$CF$5*$CG$5 -> 0 | CI64: =-($FY$26*$FX$26/($GA$26*12)*$CG$5^2+12*$FX$26*$FZ$26/($GA$26*12)^3*$CF$5^2) -> -1903.387508 | CJ64: =6*$FX$26*$FZ$26/($GA$26*12)^2*$CF$5 -> 0 | CK64: 8 | FV64: 3 | FX64: =BF64 -> 0 | FY64: =BG64*0.737562 -> 0 | FZ64: =BH64 -> 0 | GA64: =BI64*0.737562 -> 0 | GB64: =BJ64 -> 0 | GC64: =BK64*0.737562 -> 0 | GD64: =BL64 -> 0 | GE64: =BM64*0.737562 -> 0 | GF64: =BN64 -> 0 | GG64: =BO64*0.737562 -> 0
H65: Joint Loads | O65: Point-X (kN) | T65: Point-Y (kN) | Y65: Moment (kNm) | CD65: k' 1 = | CE65: =-6*$FX$26*$FZ$26/($GA$26*12)^2*$CG$5 -> -2248.093414 | CF65: =6*$FX$26*$FZ$26/($GA$26*12)^2*$CF$5 -> 0 | CG65: =4*$FX$26*$FZ$26/($GA$26*12) -> 354029.3912 | CH65: =6*$FX$26*$FZ$26/($GA$26*12)^2*$CG$5 -> 2248.093414 | CI65: =-6*$FX$26*$FZ$26/($GA$26*12)^2*$CF$5 -> 0 | CJ65: =2*$FX$26*$FZ$26/($GA$26*12) -> 177014.6956 | CK65: 9
H66: Joint 1 - Dead | CE66: =-($FY$26*$FX$26/($GA$26*12)*$CF$5^2+12*$FX$26*$FZ$26/($GA$26*12)^3*$CG$5^2) -> -19.03391498 | CF66: =-($FY$26*$FX$26/($GA$26*12)-12*$FX$26*$FZ$26/($GA$26*12)^3)*$CF$5*$CG$5 -> 0 | CG66: =6*$FX$26*$FZ$26/($GA$26*12)^2*$CG$5 -> 2248.093414 | CH66: =($FY$26*$FX$26/($GA$26*12)*$CF$5^2+12*$FX$26*$FZ$26/($GA$26*12)^3*$CG$5^2) -> 19.03391498 | CI66: =($FY$26*$FX$26/($GA$26*12)-12*$FX$26*$FZ$26/($GA$26*12)^3)*$CF$5*$CG$5 -> 0 | CJ66: =6*$FX$26*$FZ$26/($GA$26*12)^2*$CG$5 -> 2248.093414 | CK66: 1
H67: Joint 1 - Imposed | CE67: =-($FY$26*$FX$26/($GA$26*12)-12*$FX$26*$FZ$26/($GA$26*12)^3)*$CF$5*$CG$5 -> 0 | CF67: =-($FY$26*$FX$26/($GA$26*12)*$CG$5^2+12*$FX$26*$FZ$26/($GA$26*12)^3*$CF$5^2) -> -1903.387508 | CG67: =-6*$FX$26*$FZ$26/($GA$26*12)^2*$CF$5 -> 0 | CH67: =($FY$26*$FX$26/($GA$26*12)-12*$FX$26*$FZ$26/($GA$26*12)^3)*$CF$5*$CG$5 -> 0 | CI67: =($FY$26*$FX$26/($GA$26*12)*$CG$5^2+12*$FX$26*$FZ$26/($GA$26*12)^3*$CF$5^2) -> 1903.387508 | CJ67: =-6*$FX$26*$FZ$26/($GA$26*12)^2*$CF$5 -> 0 | CK67: 2
H68: Joint 2 - Dead | CE68: =-6*$FX$26*$FZ$26/($GA$26*12)^2*$CG$5 -> -2248.093414 | CF68: =6*$FX$26*$FZ$26/($GA$26*12)^2*$CF$5 -> 0 | CG68: =2*$FX$26*$FZ$26/($GA$26*12) -> 177014.6956 | CH68: =6*$FX$26*$FZ$26/($GA$26*12)^2*$CG$5 -> 2248.093414 | CI68: =-6*$FX$26*$FZ$26/($GA$26*12)^2*$CF$5 -> 0 | CJ68: =4*$FX$26*$FZ$26/($GA$26*12) -> 354029.3912 | CK68: 3
H69: Joint 2 - Imposed | O69: 20
H70: Joint 3 - Dead | CD70: Member #2: | CE70: 1 | CF70: 2 | CG70: 3 | CH70: 4 | CI70: 5 | CJ70: 6
H71: Joint 3 - Imposed | O71: -20 | CE71: =($FY$27*$FX$27/($GA$27*12)*$CF$6^2+12*$FX$27*$FZ$27/($GA$27*12)^3*$CG$6^2) -> 913.6260036 | CF71: =($FY$27*$FX$27/($GA$27*12)-12*$FX$27*$FZ$27/($GA$27*12)^3)*$CF$6*$CG$6 -> 0 | CG71: =-6*$FX$27*$FZ$27/($GA$27*12)^2*$CG$6 -> 0 | CH71: =-($FY$27*$FX$27/($GA$27*12)*$CF$6^2+12*$FX$27*$FZ$27/($GA$27*12)^3*$CG$6^2) -> -913.6260036 | CI71: =-($FY$27*$FX$27/($GA$27*12)-12*$FX$27*$FZ$27/($GA$27*12)^3)*$CF$6*$CG$6 -> 0 | CJ71: =-6*$FX$27*$FZ$27/($GA$27*12)^2*$CG$6 -> 0 | CK71: 1
H72: Joint 4 - Dead | CE72: =($FY$27*$FX$27/($GA$27*12)-12*$FX$27*$FZ$27/($GA$27*12)^3)*$CF$6*$CG$6 -> 0 | CF72: =($FY$27*$FX$27/($GA$27*12)*$CG$6^2+12*$FX$27*$FZ$27/($GA$27*12)^3*$CF$6^2) -> 3.426104697 | CG72: =6*$FX$27*$FZ$27/($GA$27*12)^2*$CF$6 -> 674.4280243 | CH72: =-($FY$27*$FX$27/($GA$27*12)-12*$FX$27*$FZ$27/($GA$27*12)^3)*$CF$6*$CG$6 -> 0 | CI72: =-($FY$27*$FX$27/($GA$27*12)*$CG$6^2+12*$FX$27*$FZ$27/($GA$27*12)^3*$CF$6^2) -> -3.426104697 | CJ72: =6*$FX$27*$FZ$27/($GA$27*12)^2*$CF$6 -> 674.4280243 | CK72: 2
H73: Joint 4 - Imposed | CD73: k' 2 = | CE73: =-6*$FX$27*$FZ$27/($GA$27*12)^2*$CG$6 -> 0 | CF73: =6*$FX$27*$FZ$27/($GA$27*12)^2*$CF$6 -> 674.4280243 | CG73: =4*$FX$27*$FZ$27/($GA$27*12) -> 177014.6956 | CH73: =6*$FX$27*$FZ$27/($GA$27*12)^2*$CG$6 -> 0 | CI73: =-6*$FX$27*$FZ$27/($GA$27*12)^2*$CF$6 -> -674.4280243 | CJ73: =2*$FX$27*$FZ$27/($GA$27*12) -> 88507.3478 | CK73: 3
CE74: =-($FY$27*$FX$27/($GA$27*12)*$CF$6^2+12*$FX$27*$FZ$27/($GA$27*12)^3*$CG$6^2) -> -913.6260036 | CF74: =-($FY$27*$FX$27/($GA$27*12)-12*$FX$27*$FZ$27/($GA$27*12)^3)*$CF$6*$CG$6 -> 0 | CG74: =6*$FX$27*$FZ$27/($GA$27*12)^2*$CG$6 -> 0 | CH74: =($FY$27*$FX$27/($GA$27*12)*$CF$6^2+12*$FX$27*$FZ$27/($GA$27*12)^3*$CG$6^2) -> 913.6260036 | CI74: =($FY$27*$FX$27/($GA$27*12)-12*$FX$27*$FZ$27/($GA$27*12)^3)*$CF$6*$CG$6 -> 0 | CJ74: =6*$FX$27*$FZ$27/($GA$27*12)^2*$CG$6 -> 0 | CK74: 4
H75: Member Loads | CE75: =-($FY$27*$FX$27/($GA$27*12)-12*$FX$27*$FZ$27/($GA$27*12)^3)*$CF$6*$CG$6 -> 0 | CF75: =-($FY$27*$FX$27/($GA$27*12)*$CG$6^2+12*$FX$27*$FZ$27/($GA$27*12)^3*$CF$6^2) -> -3.426104697 | CG75: =-6*$FX$27*$FZ$27/($GA$27*12)^2*$CF$6 -> -674.4280243 | CH75: =($FY$27*$FX$27/($GA$27*12)-12*$FX$27*$FZ$27/($GA$27*12)^3)*$CF$6*$CG$6 -> 0 | CI75: =($FY$27*$FX$27/($GA$27*12)*$CG$6^2+12*$FX$27*$FZ$27/($GA$27*12)^3*$CF$6^2) -> 3.426104697 | CJ75: =-6*$FX$27*$FZ$27/($GA$27*12)^2*$CF$6 -> -674.4280243 | CK75: 5
CE76: =-6*$FX$27*$FZ$27/($GA$27*12)^2*$CG$6 -> 0 | CF76: =6*$FX$27*$FZ$27/($GA$27*12)^2*$CF$6 -> 674.4280243 | CG76: =2*$FX$27*$FZ$27/($GA$27*12) -> 88507.3478 | CH76: =6*$FX$27*$FZ$27/($GA$27*12)^2*$CG$6 -> 0 | CI76: =-6*$FX$27*$FZ$27/($GA$27*12)^2*$CF$6 -> -674.4280243 | CJ76: =4*$FX$27*$FZ$27/($GA$27*12) -> 177014.6956 | CK76: 6
H77: Point Loads | P77: Load 1 | T77: Load 2 | X77: Load 3
H78: Member | P78: Dead | T78: Imposed | X78: Dead | CD78: Member #3: | CE78: 10 | CF78: 11 | CG78: 12 | CH78: 4 | CI78: 5 | CJ78: 6
H79: No. | J79: Load Direction | P79: Pos | R79: kN | T79: Pos | V79: kN | X79: Pos | Z79: kN | CE79: =($FY$28*$FX$28/($GA$28*12)*$CF$7^2+12*$FX$28*$FZ$28/($GA$28*12)^3*$CG$7^2) -> 19.03391498 | CF79: =($FY$28*$FX$28/($GA$28*12)-12*$FX$28*$FZ$28/($GA$28*12)^3)*$CF$7*$CG$7 -> 0 | CG79: =-6*$FX$28*$FZ$28/($GA$28*12)^2*$CG$7 -> -2248.093414 | CH79: =-($FY$28*$FX$28/($GA$28*12)*$CF$7^2+12*$FX$28*$FZ$28/($GA$28*12)^3*$CG$7^2) -> -19.03391498 | CI79: =-($FY$28*$FX$28/($GA$28*12)-12*$FX$28*$FZ$28/($GA$28*12)^3)*$CF$7*$CG$7 -> 0 | CJ79: =-6*$FX$28*$FZ$28/($GA$28*12)^2*$CG$7 -> -2248.093414 | CK79: 10
H80: 1 | J80: Horizontal | CE80: =($FY$28*$FX$28/($GA$28*12)-12*$FX$28*$FZ$28/($GA$28*12)^3)*$CF$7*$CG$7 -> 0 | CF80: =($FY$28*$FX$28/($GA$28*12)*$CG$7^2+12*$FX$28*$FZ$28/($GA$28*12)^3*$CF$7^2) -> 1903.387508 | CG80: =6*$FX$28*$FZ$28/($GA$28*12)^2*$CF$7 -> 0 | CH80: =-($FY$28*$FX$28/($GA$28*12)-12*$FX$28*$FZ$28/($GA$28*12)^3)*$CF$7*$CG$7 -> 0 | CI80: =-($FY$28*$FX$28/($GA$28*12)*$CG$7^2+12*$FX$28*$FZ$28/($GA$28*12)^3*$CF$7^2) -> -1903.387508 | CJ80: =6*$FX$28*$FZ$28/($GA$28*12)^2*$CF$7 -> 0 | CK80: 11
H81: 2 | J81: Vertical | CD81: k' 3 = | CE81: =-6*$FX$28*$FZ$28/($GA$28*12)^2*$CG$7 -> -2248.093414 | CF81: =6*$FX$28*$FZ$28/($GA$28*12)^2*$CF$7 -> 0 | CG81: =4*$FX$28*$FZ$28/($GA$28*12) -> 354029.3912 | CH81: =6*$FX$28*$FZ$28/($GA$28*12)^2*$CG$7 -> 2248.093414 | CI81: =-6*$FX$28*$FZ$28/($GA$28*12)^2*$CF$7 -> 0 | CJ81: =2*$FX$28*$FZ$28/($GA$28*12) -> 177014.6956 | CK81: 12
H82: 2 | J82: Horizontal | CE82: =-($FY$28*$FX$28/($GA$28*12)*$CF$7^2+12*$FX$28*$FZ$28/($GA$28*12)^3*$CG$7^2) -> -19.03391498 | CF82: =-($FY$28*$FX$28/($GA$28*12)-12*$FX$28*$FZ$28/($GA$28*12)^3)*$CF$7*$CG$7 -> 0 | CG82: =6*$FX$28*$FZ$28/($GA$28*12)^2*$CG$7 -> 2248.093414 | CH82: =($FY$28*$FX$28/($GA$28*12)*$CF$7^2+12*$FX$28*$FZ$28/($GA$28*12)^3*$CG$7^2) -> 19.03391498 | CI82: =($FY$28*$FX$28/($GA$28*12)-12*$FX$28*$FZ$28/($GA$28*12)^3)*$CF$7*$CG$7 -> 0 | CJ82: =6*$FX$28*$FZ$28/($GA$28*12)^2*$CG$7 -> 2248.093414 | CK82: 4
H83: 3 | J83: Horizontal | CE83: =-($FY$28*$FX$28/($GA$28*12)-12*$FX$28*$FZ$28/($GA$28*12)^3)*$CF$7*$CG$7 -> 0 | CF83: =-($FY$28*$FX$28/($GA$28*12)*$CG$7^2+12*$FX$28*$FZ$28/($GA$28*12)^3*$CF$7^2) -> -1903.387508 | CG83: =-6*$FX$28*$FZ$28/($GA$28*12)^2*$CF$7 -> 0 | CH83: =($FY$28*$FX$28/($GA$28*12)-12*$FX$28*$FZ$28/($GA$28*12)^3)*$CF$7*$CG$7 -> 0 | CI83: =($FY$28*$FX$28/($GA$28*12)*$CG$7^2+12*$FX$28*$FZ$28/($GA$28*12)^3*$CF$7^2) -> 1903.387508 | CJ83: =-6*$FX$28*$FZ$28/($GA$28*12)^2*$CF$7 -> 0 | CK83: 5
CE84: =-6*$FX$28*$FZ$28/($GA$28*12)^2*$CG$7 -> -2248.093414 | CF84: =6*$FX$28*$FZ$28/($GA$28*12)^2*$CF$7 -> 0 | CG84: =2*$FX$28*$FZ$28/($GA$28*12) -> 177014.6956 | CH84: =6*$FX$28*$FZ$28/($GA$28*12)^2*$CG$7 -> 2248.093414 | CI84: =-6*$FX$28*$FZ$28/($GA$28*12)^2*$CF$7 -> 0 | CJ84: =4*$FX$28*$FZ$28/($GA$28*12) -> 354029.3912 | CK84: 6
H85: Point Loads | P85: Load 4 | T85: Load 5 | CC85: Q = K * D
H86: Member | P86: Dead | T86: Dead | CE86: 12x12 Structure Stiffness Matrix, K:
H87: No. | J87: Load Direction | P87: Pos | R87: kN | T87: Pos | V87: kN | CC87: End Forces Vector, Q: | CE87: 1 | CF87: 2 | CG87: 3 | CH87: 4 | CI87: 5 | CJ87: 6 | CK87: 7 | CL87: 8 | CM87: 9 | CN87: 10 | CO87: 11 | CP87: 12 | CR87: Displacements Vector, D:
H88: 1 | J88: Horizontal | CC88: =$FX$34 + ($ES$48) + ($ES$49*$CG$6) + (-$ES$51*$CF$6) + ($ES$53*$CG$6) + ($ES$55*$CF$6) -> 7.1938848 | CD88: Fx1 | CE88: =$CH$66+$CE$71 -> 932.6599186 | CF88: =$CI$66+$CF$71 -> 0 | CG88: =$CJ$66+$CG$71 -> 2248.093414 | CH88: =$CH$71 -> -913.6260036 | CI88: =$CI$71 -> 0 | CJ88: =$CJ$71 -> 0 | CK88: =$CE$66 -> -19.03391498 | CL88: =$CF$66 -> 0 | CM88: =$CG$66 -> 2248.093414 | CN88: 0 | CO88: 0 | CP88: 0 | CQ88: 1 | CS88: Dx1 = ?
H89: 2 | J89: Vertical | CC89: =$FY$34 + (-$ES$49*$CF$6) + (-$ES$51*$CG$6) + (-$ES$53*$CF$6) + ($ES$55*$CG$6) -> 18.09712718 | CD89: Fy2 | CE89: =$CH$67+$CE$72 -> 0 | CF89: =$CI$67+$CF$72 -> 1906.813612 | CG89: =$CJ$67+$CG$72 -> 674.4280243 | CH89: =$CH$72 -> 0 | CI89: =$CI$72 -> -3.426104697 | CJ89: =$CJ$72 -> 674.4280243 | CK89: =$CE$67 -> 0 | CL89: =$CF$67 -> -1903.387508 | CM89: =$CG$67 -> 0 | CN89: 0 | CO89: 0 | CP89: 0 | CQ89: 2 | CS89: Dy2 = ?
H90: 2 | J90: Horizontal | CB90: Qk = | CC90: =$FZ$34*12 + (-$ET$48*12) + ($ET$49*12) + ($ET$53*12) -> 1239.101171 | CD90: Mz3 | CE90: =$CH$68+$CE$73 -> 2248.093414 | CF90: =$CI$68+$CF$73 -> 674.4280243 | CG90: =$CJ$68+$CG$73 -> 531044.0868 | CH90: =$CH$73 -> 0 | CI90: =$CI$73 -> -674.4280243 | CJ90: =$CJ$73 -> 88507.3478 | CK90: =$CE$68 -> -2248.093414 | CL90: =$CF$68 -> 0 | CM90: =$CG$68 -> 177014.6956 | CN90: 0 | CO90: 0 | CP90: 0 | CQ90: 3 | CS90: qz3 = ? | CT90: = Du
H91: 3 | J91: Horizontal | CC91: =$FX$35 + ($ES$58) + ($ES$50*$CG$6) + (-$ES$52*$CF$6) + ($ES$54*$CG$6) + ($ES$56*$CF$6) -> -7.1938848 | CD91: Fx4 | CE91: =$CE$74 -> -913.6260036 | CF91: =$CF$74 -> 0 | CG91: =$CG$74 -> 0 | CH91: =$CH$74+$CH$82 -> 932.6599186 | CI91: =$CI$74+$CI$82 -> 0 | CJ91: =$CJ$74+$CJ$82 -> 2248.093414 | CK91: 0 | CL91: 0 | CM91: 0 | CN91: =$CE$82 -> -19.03391498 | CO91: =$CF$82 -> 0 | CP91: =$CG$82 -> 2248.093414 | CQ91: 4 | CS91: Dx4 = ?
CC92: =$FY$35 + (-$ES$50*$CF$6) + (-$ES$52*$CG$6) + (-$ES$54*$CF$6) + ($ES$56*$CG$6) -> 21.24445364 | CD92: Fy5 | CE92: =$CE$75 -> 0 | CF92: =$CF$75 -> -3.426104697 | CG92: =$CG$75 -> -674.4280243 | CH92: =$CH$75+$CH$83 -> 0 | CI92: =$CI$75+$CI$83 -> 1906.813612 | CJ92: =$CJ$75+$CJ$83 -> -674.4280243 | CK92: 0 | CL92: 0 | CM92: 0 | CN92: =$CE$83 -> 0 | CO92: =$CF$83 -> -1903.387508 | CP92: =$CG$83 -> 0 | CQ92: 5 | CS92: Dy5 = ?
CC93: =$FZ$35*12 + (-$ET$58*12) + (-$ET$50*12) + (-$ET$54*12) -> -1342.359602 | CD93: Mz6 | CE93: =$CE$76 -> 0 | CF93: =$CF$76 -> 674.4280243 | CG93: =$CG$76 -> 88507.3478 | CH93: =$CH$76+$CH$84 -> 2248.093414 | CI93: =$CI$76+$CI$84 -> -674.4280243 | CJ93: =$CJ$76+$CJ$84 -> 531044.0868 | CK93: 0 | CL93: 0 | CM93: 0 | CN93: =$CE$84 -> -2248.093414 | CO93: =$CF$84 -> 0 | CP93: =$CG$84 -> 177014.6956 | CQ93: 6 | CS93: qz6 = ?
CD94: Rx7 = ? | CE94: =$CH$63 -> -19.03391498 | CF94: =$CI$63 -> 0 | CG94: =$CJ$63 -> -2248.093414 | CH94: 0 | CI94: 0 | CJ94: 0 | CK94: =$CE$63 -> 19.03391498 | CL94: =$CF$63 -> 0 | CM94: =$CG$63 -> -2248.093414 | CN94: 0 | CO94: 0 | CP94: 0 | CQ94: 7 | CR94: 0 | CS94: Dx7 = 0
CD95: Ry8 = ? | CE95: =$CH$64 -> 0 | CF95: =$CI$64 -> -1903.387508 | CG95: =$CJ$64 -> 0 | CH95: 0 | CI95: 0 | CJ95: 0 | CK95: =$CE$64 -> 0 | CL95: =$CF$64 -> 1903.387508 | CM95: =$CG$64 -> 0 | CN95: 0 | CO95: 0 | CP95: 0 | CQ95: 8 | CR95: 0 | CS95: Dy8 = 0
CB96: Qu = | CD96: Mz9 = ? | CE96: =$CH$65 -> 2248.093414 | CF96: =$CI$65 -> 0 | CG96: =$CJ$65 -> 177014.6956 | CH96: 0 | CI96: 0 | CJ96: 0 | CK96: =$CE$65 -> -2248.093414 | CL96: =$CF$65 -> 0 | CM96: =$CG$65 -> 354029.3912 | CN96: 0 | CO96: 0 | CP96: 0 | CQ96: 9 | CR96: 0 | CS96: qz9 = 0 | CT96: = Dk
CD97: Rx10 = ? | CE97: 0 | CF97: 0 | CG97: 0 | CH97: =$CH$79 -> -19.03391498 | CI97: =$CI$79 -> 0 | CJ97: =$CJ$79 -> -2248.093414 | CK97: 0 | CL97: 0 | CM97: 0 | CN97: =$CE$79 -> 19.03391498 | CO97: =$CF$79 -> 0 | CP97: =$CG$79 -> -2248.093414 | CQ97: 10 | CR97: 0 | CS97: Dx10 = 0
CD98: Ry11 = ? | CE98: 0 | CF98: 0 | CG98: 0 | CH98: =$CH$80 -> 0 | CI98: =$CI$80 -> -1903.387508 | CJ98: =$CJ$80 -> 0 | CK98: 0 | CL98: 0 | CM98: 0 | CN98: =$CE$80 -> 0 | CO98: =$CF$80 -> 1903.387508 | CP98: =$CG$80 -> 0 | CQ98: 11 | CR98: 0 | CS98: Dy11 = 0
CD99: Mz12 = ? | CE99: 0 | CF99: 0 | CG99: 0 | CH99: =$CH$81 -> 2248.093414 | CI99: =$CI$81 -> 0 | CJ99: =$CJ$81 -> 177014.6956 | CK99: 0 | CL99: 0 | CM99: 0 | CN99: =$CE$81 -> -2248.093414 | CO99: =$CF$81 -> 0 | CP99: =$CG$81 -> 354029.3912 | CQ99: 12 | CR99: 0 | CS99: qz12 = 0
CE101: Inverse of 6x6 Partitioned Submatrix, K11 = 1 / K11:
CE102: 1 | CF102: 2 | CG102: 3 | CH102: 4 | CI102: 5 | CJ102: 6
CE103: =INDEX(MINVERSE($CE$88:$CJ$93),$CK103,CE$102) -> 0.04629622048 | CF103: 0.0001181040018 | CG103: -0.0001686422944 | CH103: 0.04575122142 | CI103: -0.0001181040018 | CJ103: -0.0001658736908 | CK103: 1
BE104: Shears and Moments for Member #1 | BM104: Shears and Moments for Member #2 | BU104: Shears and Moments for Member #3 | CE104: 0.0001181040018 | CF104: 0.0005251428833 | CG104: -9.999502313e-07 | CH104: 0.0001181040018 | CI104: 2.362084989e-07 | CJ104: -9.999502313e-07 | CK104: 2
B105: Your Logo / Company Details Here | G105: Project: | M105: =IF(M53="","",M53) ->  | AF105: By: | BE105: Point # | BF105: Dist. y | BG105: Shear | BH105: Moment | BM105: Point # | BN105: Dist. x | BO105: Shear | BP105: Moment | BU105: Point # | BV105: Dist. y | BW105: Shear | BX105: Moment | CD105: 1 / K11 = | CE105: -0.0001686422944 | CF105: -9.999502313e-07 | CG105: 2.553003912e-06 | CH105: -0.0001658736908 | CI105: 9.999502313e-07 | CJ105: 2.792399717e-07 | CK105: 3
G106: Calculation: | M106: =M55 -> Portal Frame Analysis | BF106: (m) | BG106: (kN) | BH106: (kN-m) | BN106: (m) | BO106: (kN) | BP106: (kN-m) | BV106: (m) | BW106: (kN) | BX106: (kN-m) | CE106: 0.04575122142 | CF106: 0.0001181040018 | CG106: -0.0001658736908 | CH106: 0.04629622048 | CI106: -0.0001181040018 | CJ106: -0.0001686422944 | CK106: 4
AF107: Approved: | BD107: Joint 1: | BE107: 1 | BF107: =0*0.3048 -> 0 | BG107: =IF(ABS($ES$413)<0.00001,0,$ES413)*4.448222 -> 29.17843741 | BH107: =IF(ABS($ET$413)<0.00001,0,$ET413)*1.355818 -> -59.81687908 | BL107: Joint 2: | BM107: 1 | BN107: =0*0.3048 -> 0 | BO107: =IF(ABS($ES$583)<0.00001,0,$ES583)*4.448222 -> -81.38054723 | BP107: =IF(ABS($ET$583)<0.00001,0,$ET583)*1.355818 -> 115.2532089 | BT107: Joint 4: | BU107: 1 | BV107: =0*0.3048 -> 0 | BW107: =IF(ABS($ES$753)<0.00001,0,$ES753)*4.448222 -> -29.17843741 | BX107: =IF(ABS($ET$753)<0.00001,0,$ET753)*1.355818 -> 56.95529533 | CE107: -0.0001181040018 | CF107: 2.362084989e-07 | CG107: 9.999502313e-07 | CH107: -0.0001181040018 | CI107: 0.0005251428833 | CJ107: 9.999502313e-07 | CK107: 5
G108: Sheet Number: | M108: 3 | T108: Date: | BE108: 2 | BF108: =$EW414*0.3048 -> 0.1199996381 | BG108: =$ES414*4.448222 -> 29.17843741 | BH108: =$ET414*1.355818 -> -56.31547732 | BM108: 2 | BN108: =$EW584*0.3048 -> 0.1999993968 | BO108: =$ES584*4.448222 -> -78.56654586 | BP108: =$ET584*1.355818 -> 99.25808193 | BU108: 2 | BV108: =$EW754*0.3048 -> 0.1199996381 | BW108: =$ES754*4.448222 -> -29.17843741 | BX108: =$ET754*1.355818 -> 53.45389357 | CE108: -0.0001658736908 | CF108: -9.999502313e-07 | CG108: 2.792399717e-07 | CH108: -0.0001686422944 | CI108: 9.999502313e-07 | CJ108: 2.553003912e-06 | CK108: 6
BE109: 3 | BF109: 0.2399992762 | BG109: 29.17843741 | BH109: -52.81407556 | BM109: 3 | BN109: 0.3999987936 | BO109: -75.72454447 | BP109: 83.82855351 | BU109: 3 | BV109: 0.2399992762 | BW109: -29.17843741 | BX109: 49.95249181
H110: Distributed Loads | P110: Load 1 | X110: Load 2 | BE110: 4 | BF110: 0.3599989142 | BG110: 29.17843741 | BH110: -49.3126738 | BM110: 4 | BN110: 0.5999981904 | BO110: -72.85454307 | BP110: 68.97022362 | BU110: 4 | BV110: 0.3599989142 | BW110: -29.17843741 | BX110: 46.45109005 | CE110: Displacements Solution: | CF110: Du = Qk / K11 | CH110: Reactions Solution: | CI110: Qu = K21 * Du
H111: Member | P111: Dead | X111: Dead | BE111: 5 | BF111: 0.4799985523 | BG111: 29.17843741 | BH111: -45.81127204 | BM111: 5 | BN111: 0.7999975872 | BO111: -69.95654166 | BP111: 54.68869225 | BU111: 5 | BV111: 0.4799985523 | BW111: -29.17843741 | BX111: 42.94968829 | CD111: Dx1 | CE111: =INDEX(MMULT($CE$103:$CJ$108,$CC$88:$CC$93),1,1) -> 0.01724622571 | CF111: in. | CG111: Rx7 | CH111: =INDEX(MMULT($CE$94:$CJ$99,$CE$111:$CE$116),1,1) + (-$FX$33) + (-$ES$47) -> -6.559573108 | CI111: kips
H112: No. | J112: Load Direction | P112: Start | R112: kN | T112: End | V112: kN | X112: Start | Z112: kN | AB112: End | AD112: kN | BE112: 6 | BF112: 0.5999981904 | BG112: 29.17843741 | BH112: -42.30987028 | BM112: 6 | BN112: 0.999996984 | BO112: -67.03054024 | BP112: 40.98955937 | BU112: 6 | BV112: 0.5999981904 | BW112: -29.17843741 | BX112: 39.44828653 | CD112: Dy2 | CE112: =INDEX(MMULT($CE$103:$CJ$108,$CC$88:$CC$93),2,1) -> 0.009611848957 | CF112: in. | CG112: Ry8 | CH112: =INDEX(MMULT($CE$94:$CJ$99,$CE$111:$CE$116),2,1) + (-$FY$33) -> -18.29507323 | CI112: kips
H113: 1 | J113: Horizontal | BE113: 7 | BF113: 0.7199978285 | BG113: 29.17843741 | BH113: -38.80846852 | BM113: 7 | BN113: 1.199996381 | BO113: -64.07653879 | BP113: 27.87842498 | BU113: 7 | BV113: 0.7199978285 | BW113: -29.17843741 | BX113: 35.94688477 | CD113: qz3 | CE113: =INDEX(MMULT($CE$103:$CJ$108,$CC$88:$CC$93),3,1) -> 0.002771819834 | CF113: rad. | CG113: Mz9 | CH113: =INDEX(MMULT($CE$94:$CJ$99,$CE$111:$CE$116),3,1) + (-$FZ$33*12) + (-$ET$47*12) -> 529.4239706 | CI113: in-kips | CJ113: =$CH$113/12 -> 44.11866421
H114: 2 | J114: Vertical | P114: 0 | R114: 10 | T114: 10 | V114: 15 | BE114: 8 | BF114: 0.8399974666 | BG114: 29.17843741 | BH114: -35.30706676 | BM114: 8 | BN114: 1.399995778 | BO114: -61.09453734 | BP114: 15.36088906 | BU114: 8 | BV114: 0.8399974666 | BW114: -29.17843741 | BX114: 32.44548301 | CD114: Dx4 | CE114: =INDEX(MMULT($CE$103:$CJ$108,$CC$88:$CC$93),4,1) -> 0.01655194634 | CF114: in. | CG114: Rx10 | CH114: =INDEX(MMULT($CE$94:$CJ$99,$CE$111:$CE$116),4,1) + (-$FX$36) + (-$ES$57) -> 6.559573108 | CI114: kips
H115: 2 | J115: Horizontal | BE115: 9 | BF115: 0.9599971046 | BG115: 29.17843741 | BH115: -31.805665 | BM115: 9 | BN115: 1.599995174 | BO115: -58.08453587 | BP115: 3.44255159 | BU115: 9 | BV115: 0.9599971046 | BW115: -29.17843741 | BX115: 28.94408125 | CD115: Dy5 | CE115: =INDEX(MMULT($CE$103:$CJ$108,$CC$88:$CC$93),5,1) -> 0.01105739504 | CF115: in. | CG115: Ry11 | CH115: =INDEX(MMULT($CE$94:$CJ$99,$CE$111:$CE$116),5,1) + (-$FY$36) -> -21.04650759 | CI115: kips
H116: 3 | J116: Horizontal | BE116: 10 | BF116: 1.079996743 | BG116: 29.17843741 | BH116: -28.30426324 | BM116: 10 | BN116: 1.799994571 | BO116: -55.04653439 | BP116: -7.870987435 | BU116: 10 | BV116: 1.079996743 | BW116: -29.17843741 | BX116: 25.4426795 | CD116: qz6 | CE116: =INDEX(MMULT($CE$103:$CJ$108,$CC$88:$CC$93),6,1) -> -0.003057978553 | CF116: rad. | CG116: Mz12 | CH116: =INDEX(MMULT($CE$94:$CJ$99,$CE$111:$CE$116),6,1) + (-$FZ$36*12) + (-$ET$57*12) -> -504.0968212 | CI116: in-kips | CJ116: =$CH$116/12 -> -42.00806844
BE117: 11 | BF117: 1.199996381 | BG117: 29.17843741 | BH117: -24.80286148 | BM117: 11 | BN117: 1.999993968 | BO117: -51.9805329 | BP117: -18.57412803 | BU117: 11 | BV117: 1.199996381 | BW117: -29.17843741 | BX117: 21.94127774
H118: Distributed Loads | P118: Load 3 | X118: Load 4 | BE118: 12 | BF118: 1.319996019 | BG118: 29.17843741 | BH118: -21.30145972 | BM118: 12 | BN118: 2.199993365 | BO118: -48.88653139 | BP118: -28.66127022 | BU118: 12 | BV118: 1.319996019 | BW118: -29.17843741 | BX118: 18.43987598 | CD118: Member End Forces Solution: | CG118: q = k' * D * T | CL118: D | CO118: k' * D | CP118: k' * D * T
H119: Member | P119: Dead | X119: Dead | BE119: 13 | BF119: 1.439995657 | BG119: 29.17843741 | BH119: -17.80005796 | BM119: 13 | BN119: 2.399992762 | BO119: -45.76452987 | BP119: -38.126814 | BU119: 13 | BV119: 1.439995657 | BW119: -29.17843741 | BX119: 14.93847422 | CD119: Member #1: | CE119: 1 | CF119: 2 | CG119: 3 | CH119: 4 | CI119: 5 | CJ119: 6 | CL119: Member #1: | CO119: Member #1 End Forces:
H120: No. | J120: Load Direction | P120: Start | R120: kN | T120: End | V120: kN | X120: Start | Z120: kN | AB120: End | AD120: kN | BE120: 14 | BF120: 1.559995295 | BG120: 29.17843741 | BH120: -14.2986562 | BM120: 14 | BN120: 2.599992158 | BO120: -42.61452833 | BP120: -46.96515941 | BU120: 14 | BV120: 1.559995295 | BW120: -29.17843741 | BX120: 11.43707246 | CE120: =$CF$5 -> 0 | CF120: =$CG$5 -> 1 | CG120: 0 | CH120: 0 | CI120: 0 | CJ120: 0 | CK120: 1 | CL120: =$CR$94 -> 0 | CM120: Dx7 | CN120: Start Jt. 1 Axial: | CO120: =INDEX(MMULT($CE$63:$CJ$68,$CL$120:$CL$125),1,1) -> -6.559573108 | CP120: =INDEX(MMULT($CE$120:$CJ$125,$CO$120:$CO$125),1,1) -> -18.29507323 | CQ120: kips
H121: 1 | J121: Horizontal | BE121: 15 | BF121: 1.679994933 | BG121: 29.17843741 | BH121: -10.79725444 | BM121: 15 | BN121: 2.799991555 | BO121: -39.43652678 | BP121: -55.17070644 | BU121: 15 | BV121: 1.679994933 | BW121: -29.17843741 | BX121: 7.935670699 | CE121: =-$CG$5 -> -1 | CF121: =$CF$5 -> 0 | CG121: 0 | CH121: 0 | CI121: 0 | CJ121: 0 | CK121: 2 | CL121: =$CR$95 -> 0 | CM121: Dy8 | CN121: Start Jt. 1 Shear: | CO121: =INDEX(MMULT($CE$63:$CJ$68,$CL$120:$CL$125),2,1) -> -18.29507323 | CP121: =INDEX(MMULT($CE$120:$CJ$125,$CO$120:$CO$125),2,1) + ($ES$47) -> 6.559573108 | CQ121: kips
H122: 2 | J122: Vertical | BE122: 16 | BF122: 1.799994571 | BG122: 29.17843741 | BH122: -7.295852685 | BM122: 16 | BN122: 2.999990952 | BO122: -36.23052522 | BP122: -62.73785512 | BU122: 16 | BV122: 1.799994571 | BW122: -29.17843741 | BX122: 4.434268939 | CD122: T1 = | CE122: 0 | CF122: 0 | CG122: 1 | CH122: 0 | CI122: 0 | CJ122: 0 | CK122: 3 | CL122: =$CR$96 -> 0 | CM122: qz9 | CN122: Start Jt. 1 Moment: | CO122: =INDEX(MMULT($CE$63:$CJ$68,$CL$120:$CL$125),3,1) -> 529.4239706 | CP122: =INDEX(MMULT($CE$120:$CJ$125,$CO$120:$CO$125),3,1) + (-$ET$47*12) -> 529.4239706 | CQ122: in-kips | CR122: =$CP$122/12 -> 44.11866421
H123: 2 | J123: Horizontal | BE123: 17 | BF123: 1.919994209 | BG123: 29.17843741 | BH123: -3.794450926 | BM123: 17 | BN123: 3.199990349 | BO123: -32.99652364 | BP123: -69.66100545 | BU123: 17 | BV123: 1.919994209 | BW123: -29.17843741 | BX123: 0.93286718 | CE123: 0 | CF123: 0 | CG123: 0 | CH123: =$CF$5 -> 0 | CI123: =$CG$5 -> 1 | CJ123: 0 | CK123: 4 | CL123: =$CE$111 -> 0.01724622571 | CM123: Dx1 | CN123: End Jt. 2 Axial : | CO123: =INDEX(MMULT($CE$63:$CJ$68,$CL$120:$CL$125),4,1) -> 6.559573108 | CP123: =INDEX(MMULT($CE$120:$CJ$125,$CO$120:$CO$125),4,1) -> 18.29507323 | CQ123: kips
H124: 3 | J124: Horizontal | BE124: 18 | BF124: 2.039993847 | BG124: 29.17843741 | BH124: -0.2930491667 | BM124: 18 | BN124: 3.399989746 | BO124: -29.73452205 | BP124: -75.93455747 | BU124: 18 | BV124: 2.039993847 | BW124: -29.17843741 | BX124: -2.568534579 | CE124: 0 | CF124: 0 | CG124: 0 | CH124: =-$CG$5 -> -1 | CI124: =$CF$5 -> 0 | CJ124: 0 | CK124: 5 | CL124: =$CE$112 -> 0.009611848957 | CM124: Dy2 | CN124: End Jt. 2 Shear: | CO124: =INDEX(MMULT($CE$63:$CJ$68,$CL$120:$CL$125),5,1) -> 18.29507323 | CP124: =INDEX(MMULT($CE$120:$CJ$125,$CO$120:$CO$125),5,1) + ($ES$48) -> -6.559573108 | CQ124: kips
BE125: 19 | BF125: 2.159993485 | BG125: 29.17843741 | BH125: 3.208352593 | BM125: 19 | BN125: 3.599989142 | BO125: -26.44452045 | BP125: -81.55291117 | BU125: 19 | BV125: 2.159993485 | BW125: -29.17843741 | BX125: -6.069936339 | CE125: 0 | CF125: 0 | CG125: 0 | CH125: 0 | CI125: 0 | CJ125: 1 | CK125: 6 | CL125: =$CE$113 -> 0.002771819834 | CM125: qz3 | CN125: End Jt. 2 Moment: | CO125: =INDEX(MMULT($CE$63:$CJ$68,$CL$120:$CL$125),6,1) -> 1020.076815 | CP125: =INDEX(MMULT($CE$120:$CJ$125,$CO$120:$CO$125),6,1) + ($ET$48*12) -> 1020.076815 | CQ125: in-kips | CR125: =$CP$125/12 -> 85.00640122
H126: Distributed Loads | P126: Load 5 | BE126: 20 | BF126: 2.279993124 | BG126: 29.17843741 | BH126: 6.709754352 | BM126: 20 | BN126: 3.799988539 | BO126: -23.12651883 | BP126: -86.51046657 | BU126: 20 | BV126: 2.279993124 | BW126: -29.17843741 | BX126: -9.571338098
H127: Member | P127: Dead | BE127: 21 | BF127: 2.399992762 | BG127: 29.17843741 | BH127: 10.21115611 | BM127: 21 | BN127: 3.999987936 | BO127: -19.7805172 | BP127: -90.80162369 | BU127: 21 | BV127: 2.399992762 | BW127: -29.17843741 | BX127: -13.07273986 | CD127: Member #2: | CE127: 1 | CF127: 2 | CG127: 3 | CH127: 4 | CI127: 5 | CJ127: 6 | CL127: Member #2: | CO127: Member #2 End Forces:
H128: No. | J128: Load Direction | P128: Start | R128: kN | T128: End | V128: kN | BE128: 22 | BF128: 2.5199924 | BG128: 29.17843741 | BH128: 13.71255787 | BM128: 22 | BN128: 4.199987333 | BO128: -16.40651555 | BP128: -94.42078254 | BU128: 22 | BV128: 2.5199924 | BW128: -29.17843741 | BX128: -16.57414162 | CE128: =$CF$6 -> 1 | CF128: =$CG$6 -> 0 | CG128: 0 | CH128: 0 | CI128: 0 | CJ128: 0 | CK128: 1 | CL128: =$CE$111 -> 0.01724622571 | CM128: Dx1 | CN128: Start Jt. 2 Axial: | CO128: =INDEX(MMULT($CE$71:$CJ$76,$CL$128:$CL$133),1,1) -> 0.6343116923 | CP128: =INDEX(MMULT($CE$128:$CJ$133,$CO$128:$CO$133),1,1) + ($ES$51) + (-$ES$55) -> 0.6343116923 | CQ128: kips
H129: 1 | J129: Horizontal | BE129: 23 | BF129: 2.639992038 | BG129: 29.17843741 | BH129: 17.21395963 | BM129: 23 | BN129: 4.39998673 | BO129: -13.00451389 | BP129: -97.36234314 | BU129: 23 | BV129: 2.639992038 | BW129: -29.17843741 | BX129: -20.07554338 | CE129: =-$CG$6 -> 0 | CF129: =$CF$6 -> 1 | CG129: 0 | CH129: 0 | CI129: 0 | CJ129: 0 | CK129: 2 | CL129: =$CE$112 -> 0.009611848957 | CM129: Dy2 | CN129: Start Jt. 2 Shear: | CO129: =INDEX(MMULT($CE$71:$CJ$76,$CL$128:$CL$133),2,1) -> -0.1979460522 | CP129: =INDEX(MMULT($CE$128:$CJ$133,$CO$128:$CO$133),2,1) + ($ES$49) + ($ES$53) -> -18.29507323 | CQ129: kips
H130: 2 | J130: Vertical | BE130: 24 | BF130: 2.759991676 | BG130: 29.17843741 | BH130: 20.71536139 | BM130: 24 | BN130: 4.599986126 | BO130: -9.574512223 | BP130: -99.6207055 | BU130: 24 | BV130: 2.759991676 | BW130: -29.17843741 | BX130: -23.57694514 | CD130: T2 = | CE130: 0 | CF130: 0 | CG130: 1 | CH130: 0 | CI130: 0 | CJ130: 0 | CK130: 3 | CL130: =$CE$113 -> 0.002771819834 | CM130: qz3 | CN130: Start Jt. 2 Moment: | CO130: =INDEX(MMULT($CE$71:$CJ$76,$CL$128:$CL$133),3,1) -> 219.0243559 | CP130: =INDEX(MMULT($CE$128:$CJ$133,$CO$128:$CO$133),3,1) + (-$ET$49*12) + (-$ET$53*12) -> -1020.076815 | CQ130: in-kips | CR130: =$CP$130/12 -> -85.00640122
H131: 2 | J131: Horizontal | BE131: 25 | BF131: 2.879991314 | BG131: 29.17843741 | BH131: 24.21676315 | BM131: 25 | BN131: 4.799985523 | BO131: -6.116510537 | BP131: -101.1902696 | BU131: 25 | BV131: 2.879991314 | BW131: -29.17843741 | BX131: -27.07834689 | CE131: 0 | CF131: 0 | CG131: 0 | CH131: =$CF$6 -> 1 | CI131: =$CG$6 -> 0 | CJ131: 0 | CK131: 4 | CL131: =$CE$114 -> 0.01655194634 | CM131: Dx4 | CN131: End Jt. 3 Axial: | CO131: =INDEX(MMULT($CE$71:$CJ$76,$CL$128:$CL$133),4,1) -> -0.6343116923 | CP131: =INDEX(MMULT($CE$128:$CJ$133,$CO$128:$CO$133),4,1) + ($ES$52) + (-$ES$56) -> -0.6343116923 | CQ131: kips
H132: 3 | J132: Horizontal | BE132: 26 | BF132: 2.999990952 | BG132: 29.17843741 | BH132: 27.71816491 | BM132: 26 | BN132: 4.99998492 | BO132: -2.630508837 | BP132: -102.0654356 | BU132: 26 | BV132: 2.999990952 | BW132: -29.17843741 | BX132: -30.57974865 | CE132: 0 | CF132: 0 | CG132: 0 | CH132: =-$CG$6 -> 0 | CI132: =$CF$6 -> 1 | CJ132: 0 | CK132: 5 | CL132: =$CE$115 -> 0.01105739504 | CM132: Dy5 | CN132: End Jt. 3 Shear: | CO132: =INDEX(MMULT($CE$71:$CJ$76,$CL$128:$CL$133),5,1) -> 0.1979460522 | CP132: =INDEX(MMULT($CE$128:$CJ$133,$CO$128:$CO$133),5,1) + ($ES$50) + ($ES$54) -> -21.04650759 | CQ132: kips
BE133: 27 | BF133: 3.11999059 | BG133: 29.17843741 | BH133: 31.21956667 | BM133: 27 | BN133: 5.199984317 | BO133: 0.8834928761 | BP133: -102.2406033 | BU133: 27 | BV133: 3.11999059 | BW133: -29.17843741 | BX133: -34.08115041 | CE133: 0 | CF133: 0 | CG133: 0 | CH133: 0 | CI133: 0 | CJ133: 1 | CK133: 6 | CL133: =$CE$116 -> -0.003057978553 | CM133: qz6 | CN133: End Jt. 3 Moment: | CO133: =INDEX(MMULT($CE$71:$CJ$76,$CL$128:$CL$133),6,1) -> -296.9556375 | CP133: =INDEX(MMULT($CE$128:$CJ$133,$CO$128:$CO$133),6,1) + ($ET$50*12) + ($ET$54*12) -> 1045.403964 | CQ133: in-kips | CR133: =$CP$133/12 -> 87.116997
H134: Moments | P134: Moment 1 | T134: Moment 2 | X134: Moment 3 | BE134: 28 | BF134: 3.239990228 | BG134: 29.17843741 | BH134: 34.72096843 | BM134: 28 | BN134: 5.399983714 | BO134: 4.425494603 | BP134: -101.7101728 | BU134: 28 | BV134: 3.239990228 | BW134: -29.17843741 | BX134: -37.58255217
H135: Member | P135: Dead | T135: Dead | X135: Dead | BE135: 29 | BF135: 3.359989866 | BG135: 29.17843741 | BH135: 38.22237019 | BM135: 29 | BN135: 5.59998311 | BO135: 7.995496343 | BP135: -100.4685442 | BU135: 29 | BV135: 3.359989866 | BW135: -29.17843741 | BX135: -41.08395393 | CD135: Member #3: | CE135: 1 | CF135: 2 | CG135: 3 | CH135: 4 | CI135: 5 | CJ135: 6 | CL135: Member #3: | CO135: Member #3 End Forces:
H136: No. | P136: Pos | R136: kNm | T136: Pos | V136: kNm | X136: Pos | Z136: kNm | BE136: 30 | BF136: 3.479989504 | BG136: 29.17843741 | BH136: 41.72377195 | BM136: 30 | BN136: 5.799982507 | BO136: 11.5934981 | BP136: -98.51011742 | BU136: 30 | BV136: 3.479989504 | BW136: -29.17843741 | BX136: -44.58535569 | CE136: =$CF$7 -> 0 | CF136: =$CG$7 -> 1 | CG136: 0 | CH136: 0 | CI136: 0 | CJ136: 0 | CK136: 1 | CL136: =$CR$97 -> 0 | CM136: Dx10 | CN136: Start Jt. 4 Axial: | CO136: =INDEX(MMULT($CE$79:$CJ$84,$CL$136:$CL$141),1,1) -> 6.559573108 | CP136: =INDEX(MMULT($CE$136:$CJ$141,$CO$136:$CO$141),1,1) -> -21.04650759 | CQ136: kips
H137: 1 | BE137: 31 | BF137: 3.599989142 | BG137: 29.17843741 | BH137: 45.2251737 | BM137: 31 | BN137: 5.999981904 | BO137: 15.21949987 | BP137: -95.82929251 | BU137: 31 | BV137: 3.599989142 | BW137: -29.17843741 | BX137: -48.08675745 | CE137: =-$CG$7 -> -1 | CF137: =$CF$7 -> 0 | CG137: 0 | CH137: 0 | CI137: 0 | CJ137: 0 | CK137: 2 | CL137: =$CR$98 -> 0 | CM137: Dy11 | CN137: Start Jt. 4 Shear: | CO137: =INDEX(MMULT($CE$79:$CJ$84,$CL$136:$CL$141),2,1) -> -21.04650759 | CP137: =INDEX(MMULT($CE$136:$CJ$141,$CO$136:$CO$141),2,1) + ($ES$57) -> -6.559573108 | CQ137: kips
H138: 2 | BE138: 32 | BF138: 3.71998878 | BG138: 29.17843741 | BH138: 48.72657546 | BM138: 32 | BN138: 6.199981301 | BO138: 18.87350165 | BP138: -92.42046947 | BU138: 32 | BV138: 3.71998878 | BW138: -29.17843741 | BX138: -51.58815921 | CD138: T3 = | CE138: 0 | CF138: 0 | CG138: 1 | CH138: 0 | CI138: 0 | CJ138: 0 | CK138: 3 | CL138: =$CR$99 -> 0 | CM138: qz12 | CN138: Start Jt. 4 Moment: | CO138: =INDEX(MMULT($CE$79:$CJ$84,$CL$136:$CL$141),3,1) -> -504.0968212 | CP138: =INDEX(MMULT($CE$136:$CJ$141,$CO$136:$CO$141),3,1) + (-$ET$57*12) -> -504.0968212 | CQ138: in-kips | CR138: =$CP$138/12 -> -42.00806844
H139: 3 | BE139: 33 | BF139: 3.839988419 | BG139: 29.17843741 | BH139: 52.22797722 | BM139: 33 | BN139: 6.399980698 | BO139: 22.55550344 | BP139: -88.27804832 | BU139: 33 | BV139: 3.839988419 | BW139: -29.17843741 | BX139: -55.08956097 | CE139: 0 | CF139: 0 | CG139: 0 | CH139: =$CF$7 -> 0 | CI139: =$CG$7 -> 1 | CJ139: 0 | CK139: 4 | CL139: =$CE$114 -> 0.01655194634 | CM139: Dx4 | CN139: End Jt. 3 Axial: | CO139: =INDEX(MMULT($CE$79:$CJ$84,$CL$136:$CL$141),4,1) -> -6.559573108 | CP139: =INDEX(MMULT($CE$136:$CJ$141,$CO$136:$CO$141),4,1) -> 21.04650759 | CQ139: kips
BE140: 34 | BF140: 3.959988057 | BG140: 29.17843741 | BH140: 55.72937898 | BM140: 34 | BN140: 6.599980094 | BO140: 26.26550525 | BP140: -83.39642908 | BU140: 34 | BV140: 3.959988057 | BW140: -29.17843741 | BX140: -58.59096273 | CE140: 0 | CF140: 0 | CG140: 0 | CH140: =-$CG$7 -> -1 | CI140: =$CF$7 -> 0 | CJ140: 0 | CK140: 5 | CL140: =$CE$115 -> 0.01105739504 | CM140: Dy5 | CN140: End Jt. 3 Shear: | CO140: =INDEX(MMULT($CE$79:$CJ$84,$CL$136:$CL$141),5,1) -> 21.04650759 | CP140: =INDEX(MMULT($CE$136:$CJ$141,$CO$136:$CO$141),5,1) + ($ES$58) -> 6.559573108 | CQ140: kips
H141: Moments | P141: Moment 4 | T141: Moment 5 | BE141: 35 | BF141: 4.079987695 | BG141: 29.17843741 | BH141: 59.23078074 | BM141: 35 | BN141: 6.799979491 | BO141: 30.00350707 | BP141: -77.77001176 | BU141: 35 | BV141: 4.079987695 | BW141: -29.17843741 | BX141: -62.09236449 | CE141: 0 | CF141: 0 | CG141: 0 | CH141: 0 | CI141: 0 | CJ141: 1 | CK141: 6 | CL141: =$CE$116 -> -0.003057978553 | CM141: qz6 | CN141: End Jt. 3 Moment: | CO141: =INDEX(MMULT($CE$79:$CJ$84,$CL$136:$CL$141),6,1) -> -1045.403964 | CP141: =INDEX(MMULT($CE$136:$CJ$141,$CO$136:$CO$141),6,1) + ($ET$58*12) -> -1045.403964 | CQ141: in-kips | CR141: =$CP$141/12 -> -87.116997
H142: Member | P142: Dead | T142: Dead | BE142: 36 | BF142: 4.199987333 | BG142: 29.17843741 | BH142: 62.7321825 | BM142: 36 | BN142: 6.999978888 | BO142: 33.76950891 | BP142: -71.39319637 | BU142: 36 | BV142: 4.199987333 | BW142: -29.17843741 | BX142: -65.59376625
H143: No. | P143: Pos | R143: kNm | T143: Pos | V143: kNm | BE143: 37 | BF143: 4.319986971 | BG143: 29.17843741 | BH143: 66.23358426 | BM143: 37 | BN143: 7.199978285 | BO143: 37.56351076 | BP143: -64.26038292 | BU143: 37 | BV143: 4.319986971 | BW143: -29.17843741 | BX143: -69.09516801
H144: 1 | BE144: 38 | BF144: 4.439986609 | BG144: 29.17843741 | BH144: 69.73498602 | BM144: 38 | BN144: 7.399977682 | BO144: 41.38551262 | BP144: -56.36597144 | BU144: 38 | BV144: 4.439986609 | BW144: -29.17843741 | BX144: -72.59656977 | CC144: Portal Frame Case #2 - Joint 1 Pinned and Joint 4 Pinned:
H145: 2 | BE145: 39 | BF145: 4.559986247 | BG145: 29.17843741 | BH145: 73.23638778 | BM145: 39 | BN145: 7.599977078 | BO145: 45.2355145 | BP145: -47.70436194 | BU145: 39 | BV145: 4.559986247 | BW145: -29.17843741 | BX145: -76.09797153 | CC145: Member Stiffness Matrices:
H146: 3 | BE146: 40 | BF146: 4.679985885 | BG146: 29.17843741 | BH146: 76.73778954 | BM146: 40 | BN146: 7.799976475 | BO146: 49.11351639 | BP146: -38.26995443 | BU146: 40 | BV146: 4.679985885 | BW146: -29.17843741 | BX146: -79.59937328 | CD146: Member #1: | CE146: 9 | CF146: 10 | CG146: 7 | CH146: 1 | CI146: 2 | CJ146: 3
BE147: 41 | BF147: 4.799985523 | BG147: 29.17843741 | BH147: 80.2391913 | BM147: 41 | BN147: 7.999975872 | BO147: 53.01951829 | BP147: -28.05714892 | BU147: 41 | BV147: 4.799985523 | BW147: -29.17843741 | BX147: -83.10077504 | CE147: =($FY$26*$FX$26/($GA$26*12)*$CF$5^2+12*$FX$26*$FZ$26/($GA$26*12)^3*$CG$5^2) -> 19.03391498 | CF147: =($FY$26*$FX$26/($GA$26*12)-12*$FX$26*$FZ$26/($GA$26*12)^3)*$CF$5*$CG$5 -> 0 | CG147: =-6*$FX$26*$FZ$26/($GA$26*12)^2*$CG$5 -> -2248.093414 | CH147: =-($FY$26*$FX$26/($GA$26*12)*$CF$5^2+12*$FX$26*$FZ$26/($GA$26*12)^3*$CG$5^2) -> -19.03391498 | CI147: =-($FY$26*$FX$26/($GA$26*12)-12*$FX$26*$FZ$26/($GA$26*12)^3)*$CF$5*$CG$5 -> 0 | CJ147: =-6*$FX$26*$FZ$26/($GA$26*12)^2*$CG$5 -> -2248.093414 | CK147: 9
BE148: 42 | BF148: 4.919985161 | BG148: 29.17843741 | BH148: 83.74059306 | BM148: 42 | BN148: 8.199975269 | BO148: 56.95352021 | BP148: -17.06034544 | BU148: 42 | BV148: 4.919985161 | BW148: -29.17843741 | BX148: -86.6021768 | CE148: =($FY$26*$FX$26/($GA$26*12)-12*$FX$26*$FZ$26/($GA$26*12)^3)*$CF$5*$CG$5 -> 0 | CF148: =($FY$26*$FX$26/($GA$26*12)*$CG$5^2+12*$FX$26*$FZ$26/($GA$26*12)^3*$CF$5^2) -> 1903.387508 | CG148: =6*$FX$26*$FZ$26/($GA$26*12)^2*$CF$5 -> 0 | CH148: =-($FY$26*$FX$26/($GA$26*12)-12*$FX$26*$FZ$26/($GA$26*12)^3)*$CF$5*$CG$5 -> 0 | CI148: =-($FY$26*$FX$26/($GA$26*12)*$CG$5^2+12*$FX$26*$FZ$26/($GA$26*12)^3*$CF$5^2) -> -1903.387508 | CJ148: =6*$FX$26*$FZ$26/($GA$26*12)^2*$CF$5 -> 0 | CK148: 10
BE149: 43 | BF149: 5.039984799 | BG149: 29.17843741 | BH149: 87.24199482 | BM149: 43 | BN149: 8.399974666 | BO149: 60.91552214 | BP149: -5.273943988 | BU149: 43 | BV149: 5.039984799 | BW149: -29.17843741 | BX149: -90.10357856 | CD149: k' 1 = | CE149: =-6*$FX$26*$FZ$26/($GA$26*12)^2*$CG$5 -> -2248.093414 | CF149: =6*$FX$26*$FZ$26/($GA$26*12)^2*$CF$5 -> 0 | CG149: =4*$FX$26*$FZ$26/($GA$26*12) -> 354029.3912 | CH149: =6*$FX$26*$FZ$26/($GA$26*12)^2*$CG$5 -> 2248.093414 | CI149: =-6*$FX$26*$FZ$26/($GA$26*12)^2*$CF$5 -> 0 | CJ149: =2*$FX$26*$FZ$26/($GA$26*12) -> 177014.6956 | CK149: 7
BE150: 44 | BF150: 5.159984437 | BG150: 29.17843741 | BH150: 90.74339658 | BM150: 44 | BN150: 8.599974062 | BO150: 64.90552409 | BP150: 7.307655414 | BU150: 44 | BV150: 5.159984437 | BW150: -29.17843741 | BX150: -93.60498032 | CE150: =-($FY$26*$FX$26/($GA$26*12)*$CF$5^2+12*$FX$26*$FZ$26/($GA$26*12)^3*$CG$5^2) -> -19.03391498 | CF150: =-($FY$26*$FX$26/($GA$26*12)-12*$FX$26*$FZ$26/($GA$26*12)^3)*$CF$5*$CG$5 -> 0 | CG150: =6*$FX$26*$FZ$26/($GA$26*12)^2*$CG$5 -> 2248.093414 | CH150: =($FY$26*$FX$26/($GA$26*12)*$CF$5^2+12*$FX$26*$FZ$26/($GA$26*12)^3*$CG$5^2) -> 19.03391498 | CI150: =($FY$26*$FX$26/($GA$26*12)-12*$FX$26*$FZ$26/($GA$26*12)^3)*$CF$5*$CG$5 -> 0 | CJ150: =6*$FX$26*$FZ$26/($GA$26*12)^2*$CG$5 -> 2248.093414 | CK150: 1
BE151: 45 | BF151: 5.279984076 | BG151: 29.17843741 | BH151: 94.24479834 | BM151: 45 | BN151: 8.799973459 | BO151: 68.92352605 | BP151: 20.69005275 | BU151: 45 | BV151: 5.279984076 | BW151: -29.17843741 | BX151: -97.10638208 | CE151: =-($FY$26*$FX$26/($GA$26*12)-12*$FX$26*$FZ$26/($GA$26*12)^3)*$CF$5*$CG$5 -> 0 | CF151: =-($FY$26*$FX$26/($GA$26*12)*$CG$5^2+12*$FX$26*$FZ$26/($GA$26*12)^3*$CF$5^2) -> -1903.387508 | CG151: =-6*$FX$26*$FZ$26/($GA$26*12)^2*$CF$5 -> 0 | CH151: =($FY$26*$FX$26/($GA$26*12)-12*$FX$26*$FZ$26/($GA$26*12)^3)*$CF$5*$CG$5 -> 0 | CI151: =($FY$26*$FX$26/($GA$26*12)*$CG$5^2+12*$FX$26*$FZ$26/($GA$26*12)^3*$CF$5^2) -> 1903.387508 | CJ151: =-6*$FX$26*$FZ$26/($GA$26*12)^2*$CF$5 -> 0 | CK151: 2
BE152: 46 | BF152: 5.399983714 | BG152: 29.17843741 | BH152: 97.74620009 | BM152: 46 | BN152: 8.999972856 | BO152: 72.96952802 | BP152: 34.87884801 | BU152: 46 | BV152: 5.399983714 | BW152: -29.17843741 | BX152: -100.6077838 | CE152: =-6*$FX$26*$FZ$26/($GA$26*12)^2*$CG$5 -> -2248.093414 | CF152: =6*$FX$26*$FZ$26/($GA$26*12)^2*$CF$5 -> 0 | CG152: =2*$FX$26*$FZ$26/($GA$26*12) -> 177014.6956 | CH152: =6*$FX$26*$FZ$26/($GA$26*12)^2*$CG$5 -> 2248.093414 | CI152: =-6*$FX$26*$FZ$26/($GA$26*12)^2*$CF$5 -> 0 | CJ152: =4*$FX$26*$FZ$26/($GA$26*12) -> 354029.3912 | CK152: 3
BE153: 47 | BF153: 5.519983352 | BG153: 29.17843741 | BH153: 101.2476019 | BM153: 47 | BN153: 9.199972253 | BO153: 77.04353001 | BP153: 49.87964118 | BU153: 47 | BV153: 5.519983352 | BW153: -29.17843741 | BX153: -104.1091856
BE154: 48 | BF154: 5.63998299 | BG154: 29.17843741 | BH154: 104.7490036 | BM154: 48 | BN154: 9.39997165 | BO154: 81.14553201 | BP154: 65.69803224 | BU154: 48 | BV154: 5.63998299 | BW154: -29.17843741 | BX154: -107.6105874 | CD154: Member #2: | CE154: 1 | CF154: 2 | CG154: 3 | CH154: 4 | CI154: 5 | CJ154: 6
BE155: 49 | BF155: 5.759982628 | BG155: 29.17843741 | BH155: 108.2504054 | BM155: 49 | BN155: 9.599971046 | BO155: 85.27553402 | BP155: 82.33962118 | BU155: 49 | BV155: 5.759982628 | BW155: -29.17843741 | BX155: -111.1119891 | CE155: =($FY$27*$FX$27/($GA$27*12)*$CF$6^2+12*$FX$27*$FZ$27/($GA$27*12)^3*$CG$6^2) -> 913.6260036 | CF155: =($FY$27*$FX$27/($GA$27*12)-12*$FX$27*$FZ$27/($GA$27*12)^3)*$CF$6*$CG$6 -> 0 | CG155: =-6*$FX$27*$FZ$27/($GA$27*12)^2*$CG$6 -> 0 | CH155: =-($FY$27*$FX$27/($GA$27*12)*$CF$6^2+12*$FX$27*$FZ$27/($GA$27*12)^3*$CG$6^2) -> -913.6260036 | CI155: =-($FY$27*$FX$27/($GA$27*12)-12*$FX$27*$FZ$27/($GA$27*12)^3)*$CF$6*$CG$6 -> 0 | CJ155: =-6*$FX$27*$FZ$27/($GA$27*12)^2*$CG$6 -> 0 | CK155: 1
B156: Your Logo / Company Details Here | G156: Project: | M156: =IF(M104="","",M104) ->  | AF156: By: | BE156: 50 | BF156: 5.879982266 | BG156: 29.17843741 | BH156: 111.7518071 | BM156: 50 | BN156: 9.799970443 | BO156: 89.43353605 | BP156: 99.81000798 | BU156: 50 | BV156: 5.879982266 | BW156: -29.17843741 | BX156: -114.6133909 | CE156: =($FY$27*$FX$27/($GA$27*12)-12*$FX$27*$FZ$27/($GA$27*12)^3)*$CF$6*$CG$6 -> 0 | CF156: =($FY$27*$FX$27/($GA$27*12)*$CG$6^2+12*$FX$27*$FZ$27/($GA$27*12)^3*$CF$6^2) -> 3.426104697 | CG156: =6*$FX$27*$FZ$27/($GA$27*12)^2*$CF$6 -> 674.4280243 | CH156: =-($FY$27*$FX$27/($GA$27*12)-12*$FX$27*$FZ$27/($GA$27*12)^3)*$CF$6*$CG$6 -> 0 | CI156: =-($FY$27*$FX$27/($GA$27*12)*$CG$6^2+12*$FX$27*$FZ$27/($GA$27*12)^3*$CF$6^2) -> -3.426104697 | CJ156: =6*$FX$27*$FZ$27/($GA$27*12)^2*$CF$6 -> 674.4280243 | CK156: 2
G157: Calculation: | M157: =M106 -> Portal Frame Analysis | BD157: Joint 2: | BE157: 51 | BF157: =$GA$26*0.3048 -> 5.999981904 | BG157: =IF(ABS($ES$463)<0.00001,0,$ES463)*4.448222 -> 29.17843741 | BH157: =IF(ABS($ET$463)<0.00001,0,$ET463)*1.355818 -> 115.2532089 | BL157: Joint 3: | BM157: 51 | BN157: =$GA$27*0.3048 -> 9.99996984 | BO157: =IF(ABS($ES$633)<0.00001,0,$ES633)*4.448222 -> 93.61953809 | BP157: =IF(ABS($ET$633)<0.00001,0,$ET633)*1.355818 -> 118.1147926 | BT157: Joint 3: | BU157: 51 | BV157: =$GA$28*0.3048 -> 5.999981904 | BW157: =IF(ABS($ES$803)<0.00001,0,$ES803)*4.448222 -> -29.17843741 | BX157: =IF(ABS($ET$803)<0.00001,0,$ET803)*1.355818 -> -118.1147926 | CD157: k' 2 = | CE157: =-6*$FX$27*$FZ$27/($GA$27*12)^2*$CG$6 -> 0 | CF157: =6*$FX$27*$FZ$27/($GA$27*12)^2*$CF$6 -> 674.4280243 | CG157: =4*$FX$27*$FZ$27/($GA$27*12) -> 177014.6956 | CH157: =6*$FX$27*$FZ$27/($GA$27*12)^2*$CG$6 -> 0 | CI157: =-6*$FX$27*$FZ$27/($GA$27*12)^2*$CF$6 -> -674.4280243 | CJ157: =2*$FX$27*$FZ$27/($GA$27*12) -> 88507.3478 | CK157: 3
AF158: Approved: | CE158: =-($FY$27*$FX$27/($GA$27*12)*$CF$6^2+12*$FX$27*$FZ$27/($GA$27*12)^3*$CG$6^2) -> -913.6260036 | CF158: =-($FY$27*$FX$27/($GA$27*12)-12*$FX$27*$FZ$27/($GA$27*12)^3)*$CF$6*$CG$6 -> 0 | CG158: =6*$FX$27*$FZ$27/($GA$27*12)^2*$CG$6 -> 0 | CH158: =($FY$27*$FX$27/($GA$27*12)*$CF$6^2+12*$FX$27*$FZ$27/($GA$27*12)^3*$CG$6^2) -> 913.6260036 | CI158: =($FY$27*$FX$27/($GA$27*12)-12*$FX$27*$FZ$27/($GA$27*12)^3)*$CF$6*$CG$6 -> 0 | CJ158: =6*$FX$27*$FZ$27/($GA$27*12)^2*$CG$6 -> 0 | CK158: 4
G159: Sheet Number: | M159: 4 | T159: Date: | BE159: Point # | BF159: Dist. y | BG159: Disp | BH159: Rot | BM159: Point # | BN159: Dist. x | BO159: Disp | BP159: Rot | BU159: Point # | BV159: Dist. y | BW159: Disp | BX159: Rot | CE159: =-($FY$27*$FX$27/($GA$27*12)-12*$FX$27*$FZ$27/($GA$27*12)^3)*$CF$6*$CG$6 -> 0 | CF159: =-($FY$27*$FX$27/($GA$27*12)*$CG$6^2+12*$FX$27*$FZ$27/($GA$27*12)^3*$CF$6^2) -> -3.426104697 | CG159: =-6*$FX$27*$FZ$27/($GA$27*12)^2*$CF$6 -> -674.4280243 | CH159: =($FY$27*$FX$27/($GA$27*12)-12*$FX$27*$FZ$27/($GA$27*12)^3)*$CF$6*$CG$6 -> 0 | CI159: =($FY$27*$FX$27/($GA$27*12)*$CG$6^2+12*$FX$27*$FZ$27/($GA$27*12)^3*$CF$6^2) -> 3.426104697 | CJ159: =-6*$FX$27*$FZ$27/($GA$27*12)^2*$CF$6 -> -674.4280243 | CK159: 5
BF160: (m) | BG160: mm | BH160: deg | BN160: (m) | BO160: mm | BP160: deg | BV160: (m) | BW160: mm | BX160: deg | CE160: =-6*$FX$27*$FZ$27/($GA$27*12)^2*$CG$6 -> 0 | CF160: =6*$FX$27*$FZ$27/($GA$27*12)^2*$CF$6 -> 674.4280243 | CG160: =2*$FX$27*$FZ$27/($GA$27*12) -> 88507.3478 | CH160: =6*$FX$27*$FZ$27/($GA$27*12)^2*$CG$6 -> 0 | CI160: =-6*$FX$27*$FZ$27/($GA$27*12)^2*$CF$6 -> -674.4280243 | CJ160: =4*$FX$27*$FZ$27/($GA$27*12) -> 177014.6956 | CK160: 6
H161: Results Summary | BD161: Joint 1: | BE161: 1 | BF161: =0*0.3048 -> 0 | BG161: =IF(ABS($EV413)<0.00001,0,$EV413)*25.4 -> 0 | BH161: =$EU413 -> 0.004183121454 | BL161: Joint 2: | BM161: 1 | BN161: =0*0.3048 -> 0 | BO161: =IF(ABS($EV583)<0.00001,0,$EV583)*25.4 -> 0 | BP161: =$EU583 -> 0.1586032052 | BT161: Joint 4: | BU161: 1 | BV161: =0*0.3048 -> 0 | BW161: =IF(ABS($EV753)<0.00001,0,$EV753)*25.4 -> 0 | BX161: =$EU753 -> 0.004014722002
BE162: 2 | BF162: =$EW414*0.3048 -> 0.1199996381 | BG162: =$EV414*25.4 -> -0.001723125981 | BH162: =$EU414 -> -0.002470780457 | BM162: 2 | BN162: =$EW584*0.3048 -> 0.1999993968 | BO162: =$EV584*25.4 -> -0.597577724 | BP162: =$EU584 -> 0.1831736694 | BU162: 2 | BV162: =$EW754*0.3048 -> 0.1199996381 | BW162: =$EV754*25.4 -> -0.01510295599 | BX162: =$EU754 -> 0.01034071017 | CD162: Member #3: | CE162: 11 | CF162: 12 | CG162: 8 | CH162: 4 | CI162: 5 | CJ162: 6
G163: Support Reactions | O163: Horizontal (kN) | U163: Vertical (kN) | Z163: Moment (kNm) | BE163: 3 | BF163: =$EW415*0.3048 -> 0.2399992762 | BG163: =$EV415*25.4 -> 0.01006943813 | BH163: -0.008723450798 | BM163: 3 | BN163: =$EW585*0.3048 -> 0.3999987936 | BO163: =$EV585*25.4 -> -1.274599476 | BP163: 0.2041430221 | BU163: 3 | BV163: =$EW755*0.3048 -> 0.2399992762 | BW163: =$EV755*25.4 -> -0.04303482322 | BX163: 0.01626546678 | CE163: =($FY$28*$FX$28/($GA$28*12)*$CF$7^2+12*$FX$28*$FZ$28/($GA$28*12)^3*$CG$7^2) -> 19.03391498 | CF163: =($FY$28*$FX$28/($GA$28*12)-12*$FX$28*$FZ$28/($GA$28*12)^3)*$CF$7*$CG$7 -> 0 | CG163: =-6*$FX$28*$FZ$28/($GA$28*12)^2*$CG$7 -> -2248.093414 | CH163: =-($FY$28*$FX$28/($GA$28*12)*$CF$7^2+12*$FX$28*$FZ$28/($GA$28*12)^3*$CG$7^2) -> -19.03391498 | CI163: =-($FY$28*$FX$28/($GA$28*12)-12*$FX$28*$FZ$28/($GA$28*12)^3)*$CF$7*$CG$7 -> 0 | CJ163: =-6*$FX$28*$FZ$28/($GA$28*12)^2*$CG$7 -> -2248.093414 | CK163: 11
G164: Joint 1 | O164: =IF(BU10<0,MIN(BU10,BU924,BU1838),MAX(BU10,BU924,BU1838)) -> -29.17843741 | U164: =IF(BV10<0,MIN(BV10,BV924,BV1838),MAX(BV10,BV924,BV1838)) -> -81.38054723 | Z164: =IF(BW10<0,MIN(BW10,BW924,BW1838),MAX(BW10,BW924,BW1838)) -> 59.81687908 | BE164: 4 | BF164: 0.3599989142 | BG164: 0.03453735743 | BH164: -0.01457488957 | BM164: 4 | BN164: 0.5999981904 | BO164: -2.01872203 | BP164: 0.2216415307 | BU164: 4 | BV164: 0.3599989142 | BW164: -0.08295526678 | BX164: 0.02178899181 | CE164: =($FY$28*$FX$28/($GA$28*12)-12*$FX$28*$FZ$28/($GA$28*12)^3)*$CF$7*$CG$7 -> 0 | CF164: =($FY$28*$FX$28/($GA$28*12)*$CG$7^2+12*$FX$28*$FZ$28/($GA$28*12)^3*$CF$7^2) -> 1903.387508 | CG164: =6*$FX$28*$FZ$28/($GA$28*12)^2*$CF$7 -> 0 | CH164: =-($FY$28*$FX$28/($GA$28*12)-12*$FX$28*$FZ$28/($GA$28*12)^3)*$CF$7*$CG$7 -> 0 | CI164: =-($FY$28*$FX$28/($GA$28*12)*$CG$7^2+12*$FX$28*$FZ$28/($GA$28*12)^3*$CF$7^2) -> -1903.387508 | CJ164: =6*$FX$28*$FZ$28/($GA$28*12)^2*$CF$7 -> 0 | CK164: 12
G165: Joint 5 | O165: =IF(BU11<0,MIN(BU11,BU925,BU1839),MAX(BU11,BU925,BU1839)) -> 29.17843741 | U165: =IF(BV11<0,MIN(BV11,BV925,BV1839),MAX(BV11,BV925,BV1839)) -> -93.61953809 | Z165: =IF(BW11<0,MIN(BW11,BW925,BW1839),MAX(BW11,BW925,BW1839)) -> -56.95529533 | BE165: 5 | BF165: 0.4799985523 | BG165: 0.07084029703 | BH165: -0.02002509677 | BM165: 5 | BN165: 0.7999975872 | BO165: -2.818059116 | BP165: 0.2358007463 | BU165: 5 | BV165: 0.4799985523 | BW165: -0.1340239518 | BX165: 0.02691128527 | CD165: k' 3 = | CE165: =-6*$FX$28*$FZ$28/($GA$28*12)^2*$CG$7 -> -2248.093414 | CF165: =6*$FX$28*$FZ$28/($GA$28*12)^2*$CF$7 -> 0 | CG165: =4*$FX$28*$FZ$28/($GA$28*12) -> 354029.3912 | CH165: =6*$FX$28*$FZ$28/($GA$28*12)^2*$CG$7 -> 2248.093414 | CI165: =-6*$FX$28*$FZ$28/($GA$28*12)^2*$CF$7 -> 0 | CJ165: =2*$FX$28*$FZ$28/($GA$28*12) -> 177014.6956 | CK165: 8
BE166: 6 | BF166: 0.5999981904 | BG166: 0.118137922 | BH166: -0.0250740724 | BM166: 6 | BN166: 0.999996984 | BO166: -3.661185903 | BP166: 0.246753503 | BU166: 6 | BV166: 0.5999981904 | BW166: -0.1954005433 | BX166: 0.03163234716 | CE166: =-($FY$28*$FX$28/($GA$28*12)*$CF$7^2+12*$FX$28*$FZ$28/($GA$28*12)^3*$CG$7^2) -> -19.03391498 | CF166: =-($FY$28*$FX$28/($GA$28*12)-12*$FX$28*$FZ$28/($GA$28*12)^3)*$CF$7*$CG$7 -> 0 | CG166: =6*$FX$28*$FZ$28/($GA$28*12)^2*$CG$7 -> 2248.093414 | CH166: =($FY$28*$FX$28/($GA$28*12)*$CF$7^2+12*$FX$28*$FZ$28/($GA$28*12)^3*$CG$7^2) -> 19.03391498 | CI166: =($FY$28*$FX$28/($GA$28*12)-12*$FX$28*$FZ$28/($GA$28*12)^3)*$CF$7*$CG$7 -> 0 | CJ166: =6*$FX$28*$FZ$28/($GA$28*12)^2*$CG$7 -> 2248.093414 | CK166: 4
G167: Joint Displacements | O167: Hoizontal (mm) | U167: Vertical (mm) | Z167: Rotation (Rads) | BE167: 7 | BF167: 0.7199978285 | BG167: 0.1755898975 | BH167: -0.02972181646 | BM167: 7 | BN167: 1.199996381 | BO167: -4.537143478 | BP167: 0.2546339188 | BU167: 7 | BV167: 0.7199978285 | BW167: -0.2662447065 | BX167: 0.03595217748 | CE167: =-($FY$28*$FX$28/($GA$28*12)-12*$FX$28*$FZ$28/($GA$28*12)^3)*$CF$7*$CG$7 -> 0 | CF167: =-($FY$28*$FX$28/($GA$28*12)*$CG$7^2+12*$FX$28*$FZ$28/($GA$28*12)^3*$CF$7^2) -> -1903.387508 | CG167: =-6*$FX$28*$FZ$28/($GA$28*12)^2*$CF$7 -> 0 | CH167: =($FY$28*$FX$28/($GA$28*12)-12*$FX$28*$FZ$28/($GA$28*12)^3)*$CF$7*$CG$7 -> 0 | CI167: =($FY$28*$FX$28/($GA$28*12)*$CG$7^2+12*$FX$28*$FZ$28/($GA$28*12)^3*$CF$7^2) -> 1903.387508 | CJ167: =-6*$FX$28*$FZ$28/($GA$28*12)^2*$CF$7 -> 0 | CK167: 5
G168: Joint 1 | O168: =IF(BU36<0,MIN(BU36,BU950,BU1864),MAX(BU36,BU950,BU1864)) -> 0 | U168: =IF(BV36<0,MIN(BV36,BV950,BV1864),MAX(BV36,BV950,BV1864)) -> 0 | Z168: =IF(BW36<0,MIN(BW36,BW950,BW1864),MAX(BW36,BW950,BW1864)) -> 0 | BE168: 8 | BF168: 0.8399974666 | BG168: 0.2423558885 | BH168: -0.03396832895 | BM168: 8 | BN168: 1.399995778 | BO168: -5.435443325 | BP168: 0.2595773948 | BU168: 8 | BV168: 0.8399974666 | BW168: -0.3457161064 | BX168: 0.03987077624 | CE168: =-6*$FX$28*$FZ$28/($GA$28*12)^2*$CG$7 -> -2248.093414 | CF168: =6*$FX$28*$FZ$28/($GA$28*12)^2*$CF$7 -> 0 | CG168: =2*$FX$28*$FZ$28/($GA$28*12) -> 177014.6956 | CH168: =6*$FX$28*$FZ$28/($GA$28*12)^2*$CG$7 -> 2248.093414 | CI168: =-6*$FX$28*$FZ$28/($GA$28*12)^2*$CF$7 -> 0 | CJ168: =4*$FX$28*$FZ$28/($GA$28*12) -> 354029.3912 | CK168: 6
G169: Joint 2 | O169: =IF(BU37<0,MIN(BU37,BU951,BU1865),MAX(BU37,BU951,BU1865)) -> 0.4380541331 | U169: =IF(BV37<0,MIN(BV37,BV951,BV1865),MAX(BV37,BV951,BV1865)) -> 0.2441409635 | Z169: =IF(BW37<0,MIN(BW37,BW951,BW1865),MAX(BW37,BW951,BW1865)) -> 0.002771819834 | BE169: 9 | BF169: 0.9599971046 | BG169: 0.3175955603 | BH169: -0.03781360987 | BM169: 9 | BN169: 1.599995174 | BO169: -6.346071808 | BP169: 0.2617206156 | BU169: 9 | BV169: 0.9599971046 | BW169: -0.4329744081 | BX169: 0.04338814342 | CC169: Q = K * D
G170: Joint 3 | O170: 0.4204194369 | U170: 0.2808578341 | Z170: -0.003057978553 | BE170: 10 | BF170: 1.079996743 | BG170: 0.4004685778 | BH170: -0.04125765922 | BM170: 10 | BN170: 1.799994571 | BO170: -7.259494648 | BP170: 0.2612015494 | BU170: 10 | BV170: 1.079996743 | BW170: -0.5271792767 | BX170: 0.04650427903 | CE170: 12x12 Structure Stiffness Matrix, K:
G171: Joint 4 | O171: =IF(BU39<0,MIN(BU39,BU953,BU1867),MAX(BU39,BU953,BU1867)) -> 0 | U171: =IF(BV39<0,MIN(BV39,BV953,BV1867),MAX(BV39,BV953,BV1867)) -> 0 | Z171: 0 | BE171: 11 | BF171: 1.199996381 | BG171: 0.4901346062 | BH171: -0.04430047699 | BM171: 11 | BN171: 1.999993968 | BO171: -8.166661402 | BP171: 0.2581594475 | BU171: 11 | BV171: 1.199996381 | BW171: -0.6274903774 | BX171: 0.04921918307 | CC171: End Forces Vector, Q: | CE171: 1 | CF171: 2 | CG171: 3 | CH171: 4 | CI171: 5 | CJ171: 6 | CK171: 7 | CL171: 8 | CM171: 9 | CN171: 10 | CO171: 11 | CP171: 12 | CR171: Displacements Vector, D:
BE172: 12 | BF172: 1.319996019 | BG172: 0.5857533106 | BH172: -0.0469420632 | BM172: 12 | BN172: 2.199993365 | BO172: -9.059009946 | BP172: 0.2527348448 | BU172: 12 | BV172: 1.319996019 | BW172: -0.7330673752 | BX172: 0.05153285554 | CC172: =$FX$34 + ($ES$48) + ($ES$49*$CG$6) + (-$ES$51*$CF$6) + ($ES$53*$CG$6) + ($ES$55*$CF$6) -> 7.1938848 | CD172: Fx1 | CE172: =$CH$150+$CE$155 -> 932.6599186 | CF172: =$CI$150+$CF$155 -> 0 | CG172: =$CJ$150+$CG$155 -> 2248.093414 | CH172: =$CH$155 -> -913.6260036 | CI172: =$CI$155 -> 0 | CJ172: =$CJ$155 -> 0 | CK172: =$CG$150 -> 2248.093414 | CL172: 0 | CM172: =$CE$150 -> -19.03391498 | CN172: =$CF$150 -> 0 | CO172: 0 | CP172: 0 | CQ172: 1 | CS172: Dx1 = ?
H173: Member End Forces | BE173: 13 | BF173: 1.439995657 | BG173: 0.6864843561 | BH173: -0.04918241784 | BM173: 13 | BN173: 2.399992762 | BO173: -9.928470956 | BP173: 0.2450695597 | BU173: 13 | BV173: 1.439995657 | BW173: -0.8430699352 | BX173: 0.05344529644 | CC173: =$FY$34 + (-$ES$49*$CF$6) + (-$ES$51*$CG$6) + (-$ES$53*$CF$6) + ($ES$55*$CG$6) -> 18.09712718 | CD173: Fy2 | CE173: =$CH$151+$CE$156 -> 0 | CF173: =$CI$151+$CF$156 -> 1906.813612 | CG173: =$CJ$151+$CG$156 -> 674.4280243 | CH173: =$CH$156 -> 0 | CI173: =$CI$156 -> -3.426104697 | CJ173: =$CJ$156 -> 674.4280243 | CK173: =$CG$151 -> 0 | CL173: 0 | CM173: =$CE$151 -> 0 | CN173: =$CF$151 -> -1903.387508 | CO173: 0 | CP173: 0 | CQ173: 2 | CS173: Dy2 = ?
H174: Member | K174: Joint | M174: Axial (kN) | R174: Shear (kN) | W174: Moment (kNm) | BE174: 14 | BF174: 1.559995295 | BG174: 0.7914874077 | BH174: -0.05102154091 | BM174: 14 | BN174: 2.599992158 | BO174: -10.76747238 | BP174: 0.235306694 | BU174: 14 | BV174: 1.559995295 | BW174: -0.9566577226 | BX174: 0.05495650577 | CC174: =$FZ$34*12 + (-$ET$48*12) + ($ET$49*12) + ($ET$53*12) -> 1239.101171 | CD174: Mz3 | CE174: =$CH$152+$CE$157 -> 2248.093414 | CF174: =$CI$152+$CF$157 -> 674.4280243 | CG174: =$CJ$152+$CG$157 -> 531044.0868 | CH174: =$CH$157 -> 0 | CI174: =$CI$157 -> -674.4280243 | CJ174: =$CJ$157 -> 88507.3478 | CK174: =$CG$152 -> 177014.6956 | CL174: 0 | CM174: =$CE$152 -> -2248.093414 | CN174: =$CF$152 -> 0 | CO174: 0 | CP174: 0 | CQ174: 3 | CS174: qz3 = ?
H175: 1 | K175: 1 | M175: =IF(BV16<0,MIN(BV16,BV930,BV1844),MAX(BV16,BV930,BV1844)) -> -81.38054723 | R175: =IF(BW16<0,MIN(BW16,BW930,BW1844),MAX(BW16,BW930,BW1844)) -> 29.17843741 | W175: =IF(BX16<0,MIN(BX16,BX930,BX1844),MAX(BX16,BX930,BX1844)) -> 59.81687908 | BE175: 15 | BF175: 1.679994933 | BG175: 0.8999221306 | BH175: -0.0524594324 | BM175: 15 | BN175: 2.799991555 | BO175: -11.56894394 | BP175: 0.2235906327 | BU175: 15 | BV175: 1.679994933 | BW175: -1.072990402 | BX175: 0.05606648353 | CB175: Qk = | CC175: =$FX$35 + ($ES$58) + ($ES$50*$CG$6) + (-$ES$52*$CF$6) + ($ES$54*$CG$6) + ($ES$56*$CF$6) -> -7.1938848 | CD175: Fx4 | CE175: =$CE$158 -> -913.6260036 | CF175: =$CF$158 -> 0 | CG175: =$CG$158 -> 0 | CH175: =$CH$158+$CH$166 -> 932.6599186 | CI175: =$CI$158+$CI$166 -> 0 | CJ175: =$CJ$158+$CJ$166 -> 2248.093414 | CK175: 0 | CL175: =$CG$166 -> 2248.093414 | CM175: 0 | CN175: 0 | CO175: =$CE$166 -> -19.03391498 | CP175: =$CF$166 -> 0 | CQ175: 4 | CS175: Dx4 = ? | CT175: = Du
K176: 2 | M176: =IF(BV17<0,MIN(BV17,BV931,BV1845),MAX(BV17,BV931,BV1845)) -> 81.38054723 | R176: =IF(BW17<0,MIN(BW17,BW931,BW1845),MAX(BW17,BW931,BW1845)) -> -29.17843741 | W176: =IF(BX17<0,MIN(BX17,BX931,BX1845),MAX(BX17,BX931,BX1845)) -> 115.2532089 | BE176: 16 | BF176: 1.799994571 | BG176: 1.01094819 | BH176: -0.05349609233 | BM176: 16 | BN176: 2.999990952 | BO176: -12.32632157 | BP176: 0.2100670445 | BU176: 16 | BV176: 1.799994571 | BW176: -1.19122764 | BX176: 0.05677522971 | CC176: =$FY$35 + (-$ES$50*$CF$6) + (-$ES$52*$CG$6) + (-$ES$54*$CF$6) + ($ES$56*$CG$6) -> 21.24445364 | CD176: Fy5 | CE176: =$CE$159 -> 0 | CF176: =$CF$159 -> -3.426104697 | CG176: =$CG$159 -> -674.4280243 | CH176: =$CH$159+$CH$167 -> 0 | CI176: =$CI$159+$CI$167 -> 1906.813612 | CJ176: =$CJ$159+$CJ$167 -> -674.4280243 | CK176: 0 | CL176: =$CG$167 -> 0 | CM176: 0 | CN176: 0 | CO176: =$CE$167 -> 0 | CP176: =$CF$167 -> -1903.387508 | CQ176: 5 | CS176: Dy5 = ?
H177: 2 | K177: 2 | M177: 2.821559224 | R177: -81.38054723 | W177: -115.2532089 | BE177: 17 | BF177: 1.919994209 | BG177: 1.123725251 | BH177: -0.05413152069 | BM177: 17 | BN177: 3.199990349 | BO177: -13.03355193 | BP177: 0.1948828814 | BU177: 17 | BV177: 1.919994209 | BW177: -1.3105291 | BX177: 0.05708274433 | CC177: =$FZ$35*12 + (-$ET$58*12) + (-$ET$50*12) + (-$ET$54*12) -> -1342.359602 | CD177: Mz6 | CE177: =$CE$160 -> 0 | CF177: =$CF$160 -> 674.4280243 | CG177: =$CG$160 -> 88507.3478 | CH177: =$CH$160+$CH$168 -> 2248.093414 | CI177: =$CI$160+$CI$168 -> -674.4280243 | CJ177: =$CJ$160+$CJ$168 -> 531044.0868 | CK177: 0 | CL177: =$CG$168 -> 177014.6956 | CM177: 0 | CN177: 0 | CO177: =$CE$168 -> -2248.093414 | CP177: =$CF$168 -> 0 | CQ177: 6 | CS177: qz6 = ?
K178: 3 | M178: -2.821559224 | R178: -93.61953809 | W178: 118.1147926 | BE178: 18 | BF178: 2.039993847 | BG178: 1.237412978 | BH178: -0.05436571748 | BM178: 18 | BN178: 3.399989746 | BO178: -13.68509691 | BP178: 0.1781863789 | BU178: 18 | BV178: 2.039993847 | BW178: -1.430054447 | BX178: 0.05698902738 | CC178: =$FZ$33*12 + ($ET$47*12) -> 0 | CD178: Mz7 | CE178: =$CH$149 -> 2248.093414 | CF178: =$CI$149 -> 0 | CG178: =$CJ$149 -> 177014.6956 | CH178: 0 | CI178: 0 | CJ178: 0 | CK178: =$CG$149 -> 354029.3912 | CL178: 0 | CM178: =$CE$149 -> -2248.093414 | CN178: =$CF$149 -> 0 | CO178: 0 | CP178: 0 | CQ178: 7 | CS178: qz7 = ?
H179: 3 | K179: 3 | M179: =IF(BV21<0,MIN(BV21,BV934,BV1848),MAX(BV21,BV934,BV1848)) -> 93.61953809 | R179: =IF(BW21<0,MIN(BW21,BW934,BW1848),MAX(BW21,BW934,BW1848)) -> 29.17843741 | W179: =IF(BX20<0,MIN(BX20,BX934,BX1848),MAX(BX20,BX934,BX1848)) -> -56.95529533 | BE179: 19 | BF179: 2.159993485 | BG179: 1.351171037 | BH179: -0.05419868269 | BM179: 19 | BN179: 3.599989142 | BO179: -14.27593802 | BP179: 0.1601270557 | BU179: 19 | BV179: 2.159993485 | BW179: -1.548963348 | BX179: 0.05649407886 | CC179: =$FZ$36*12 + ($ET$57*12) -> 0 | CD179: Mz8 | CE179: 0 | CF179: 0 | CG179: 0 | CH179: =$CH$165 -> 2248.093414 | CI179: =$CI$165 -> 0 | CJ179: =$CJ$165 -> 177014.6956 | CK179: 0 | CL179: =$CG$165 -> 354029.3912 | CM179: 0 | CN179: 0 | CO179: =$CE$165 -> -2248.093414 | CP179: =$CF$165 -> 0 | CQ179: 8 | CS179: qz8 = ?
K180: 4 | M180: =IF(BV20<0,MIN(BV20,BV935,BV1849),MAX(BV20,BV935,BV1849)) -> -93.61953809 | R180: =IF(BW20<0,MIN(BW20,BW935,BW1849),MAX(BW20,BW935,BW1849)) -> -29.17843741 | W180: =IF(BX20<0,MIN(BX20,BX935,BX1849),MAX(BX20,BX935,BX1849)) -> -118.1147926 | BE180: 20 | BF180: 2.279993124 | BG180: 1.464159093 | BH180: -0.05363041634 | BM180: 20 | BN180: 3.799988539 | BO180: -14.80158098 | BP180: 0.1408557142 | BU180: 20 | BV180: 2.279993124 | BW180: -1.666415466 | BX180: 0.05559789877 | CD180: Rx9 = ? | CE180: =$CH$147 -> -19.03391498 | CF180: =$CI$147 -> 0 | CG180: =$CJ$147 -> -2248.093414 | CH180: 0 | CI180: 0 | CJ180: 0 | CK180: =$CG$147 -> -2248.093414 | CL180: 0 | CM180: =$CE$147 -> 19.03391498 | CN180: =$CF$147 -> 0 | CO180: 0 | CP180: 0 | CQ180: 9 | CR180: 0 | CS180: Dx9 = 0
BE181: 21 | BF181: 2.399992762 | BG181: 1.575536811 | BH181: -0.05266091841 | BM181: 21 | BN181: 3.999987936 | BO181: -15.25806012 | BP181: 0.1205244401 | BU181: 21 | BV181: 2.399992762 | BW181: -1.781570467 | BX181: 0.0543004871 | CB181: Qu = | CD181: Ry10 = ? | CE181: =$CH$148 -> 0 | CF181: =$CI$148 -> -1903.387508 | CG181: =$CJ$148 -> 0 | CH181: 0 | CI181: 0 | CJ181: 0 | CK181: =$CG$148 -> 0 | CL181: 0 | CM181: =$CE$148 -> 0 | CN181: =$CF$148 -> 1903.387508 | CO181: 0 | CP181: 0 | CQ181: 10 | CR181: 0 | CS181: Dy10 = 0 | CT181: = Dk
H182: Maximum Moments | V182: Minimum Moments | BE182: 22 | BF182: 2.5199924 | BG182: 1.684463855 | BH182: -0.05129018892 | BM182: 22 | BN182: 4.199987333 | BO182: -15.64194288 | BP182: 0.09928660246 | BU182: 22 | BV182: 2.5199924 | BW182: -1.893588017 | BX182: 0.05260184387 | CD182: Rx11 = ? | CE182: 0 | CF182: 0 | CG182: 0 | CH182: =$CH$163 -> -19.03391498 | CI182: =$CI$163 -> 0 | CJ182: =$CJ$163 -> -2248.093414 | CK182: 0 | CL182: =$CG$163 -> -2248.093414 | CM182: 0 | CN182: 0 | CO182: =$CE$163 -> 19.03391498 | CP182: =$CF$163 -> 0 | CQ182: 11 | CR182: 0 | CS182: Dx11 = 0
H183: Member 1 | L183: =MAX(EU489,EU1403,EU2317)*1.355818 -> 115.2532089 | O183: kNm | V183: Member 1 | Z183: =MIN(EU490,EU1404,EU2318)*1.355818 -> -59.81687908 | AC183: kNm | BE183: 23 | BF183: 2.639992038 | BG183: 1.790099892 | BH183: -0.04951822785 | BM183: 23 | BN183: 4.39998673 | BO183: -15.95033434 | BP183: 0.07729685392 | BU183: 23 | BV183: 2.639992038 | BW183: -2.00162778 | BX183: 0.05050196907 | CD183: Ry12 = ? | CE183: 0 | CF183: 0 | CG183: 0 | CH183: =$CH$164 -> 0 | CI183: =$CI$164 -> -1903.387508 | CJ183: =$CJ$164 -> 0 | CK183: 0 | CL183: =$CG$164 -> 0 | CM183: 0 | CN183: 0 | CO183: =$CE$164 -> 0 | CP183: =$CF$164 -> 1903.387508 | CQ183: 12 | CR183: 0 | CS183: Dy12 = 0
H184: Member 2 | L184: =MAX(EU659,EU1573,EU2487)*1.355818 -> 118.1147926 | O184: kNm | V184: Member 2 | Z184: =MIN(EU660,EU1574,EU2488)*1.355818 -> -102.2406033 | AC184: kNm | BE184: 24 | BF184: 2.759991676 | BG184: 1.891604586 | BH184: -0.04734503522 | BM184: 24 | BN184: 4.599986126 | BO184: -16.1808816 | BP184: 0.05471113044 | BU184: 24 | BV184: 2.759991676 | BW184: -2.104849421 | BX184: 0.04800086269
H185: Member 3 | L185: =MAX(EU829,EU2657,EU1743)*1.355818 -> 56.95529533 | O185: kNm | V185: Member 3 | Z185: =MIN(EU830,EU2658,EU1744)*1.355818 -> -118.1147926 | AC185: kNm | BE185: 25 | BF185: 2.879991314 | BG185: 1.988137602 | BH185: -0.04477061101 | BM185: 25 | BN185: 4.799985523 | BO185: -16.33177837 | BP185: 0.03168665141 | BU185: 25 | BV185: 2.879991314 | BW185: -2.202412605 | BX185: 0.04509852475 | CE185: Inverse of 8x8 Partitioned Submatrix, K11 = 1 / K11:
BE186: 26 | BF186: 2.999990952 | BG186: 2.078858605 | BH186: -0.04179495524 | BM186: 26 | BN186: 4.99998492 | BO186: -16.40176935 | BP186: 0.008381919659 | BU186: 26 | BV186: 2.999990952 | BW186: -2.293476998 | BX186: 0.04179495524 | CE186: 1 | CF186: 2 | CG186: 3 | CH186: 4 | CI186: 5 | CJ186: 6 | CK186: 7 | CL186: 8
H187: Maximum Shear | V187: Minimum Shear | BE187: 27 | BF187: 3.11999059 | BG187: 2.162927261 | BH187: -0.03841806789 | BM187: 27 | BN187: 5.199984317 | BO187: -16.39015481 | BP187: -0.01504327856 | BU187: 27 | BV187: 3.11999059 | BW187: -2.377202264 | BX187: 0.03809015415 | CE187: =INDEX(MINVERSE($CE$172:$CL$179),$CM187,CE$186) -> 0.210802926 | CF187: 0.0003152274551 | CG187: -0.000447290962 | CH187: 0.2102560122 | CI187: -0.0003152274551 | CJ187: -0.0004455545054 | CK187: -0.001114957136 | CL187: -0.001112352451 | CM187: 1
H188: Member 1 | L188: =MAX(ES413:ES463,ES1327:ES1377,ES2241:ES2291)*4.448222 -> 29.17843741 | O188: kN | V188: Member 1 | Z188: =MIN(ES413:ES463,ES1327:ES1377,ES2241:ES2291)*4.448222 -> 29.17843741 | AC188: kN | BE188: 28 | BF188: 3.239990228 | BG188: 2.239503235 | BH188: -0.03463994898 | BM188: 28 | BN188: 5.399983714 | BO188: -16.29679497 | BP188: -0.03842787357 | BU188: 28 | BV188: 3.239990228 | BW188: -2.45274807 | BX188: 0.0339841215 | CE188: 0.0003152274551 | CF188: 0.0005253790918 | CG188: -1.334466918e-06 | CH188: 0.0003152274551 | CI188: -7.124478834e-20 | CJ188: -1.334466918e-06 | CK188: -1.334466918e-06 | CL188: -1.334466918e-06 | CM188: 2
H189: Member 2 | L189: =MAX(ES583:ES633,ES1497:ES1547,ES2411:ES2461)*4.448222 -> 93.61953809 | O189: kN | V189: Member 2 | Z189: =MIN(ES583:ES633,ES1497:ES1547,ES2411:ES2461)*4.448222 -> -81.38054723 | AC189: kN | BE189: 29 | BF189: 3.359989866 | BG189: 2.307746191 | BH189: -0.03046059849 | BM189: 29 | BN189: 5.59998311 | BO189: -16.12211455 | BP189: -0.06160951227 | BU189: 29 | BV189: 3.359989866 | BW189: -2.519274079 | BX189: 0.02947685727 | CE189: -0.000447290962 | CF189: -1.334466918e-06 | CG189: 3.304930692e-06 | CH189: -0.0004455545054 | CI189: 1.334466918e-06 | CJ189: 4.747931858e-07 | CK189: 1.187840829e-06 | CL189: 2.591883049e-06 | CM189: 3
H190: Member 3 | L190: =MAX(ES753:ES803,ES1667:ES1717,ES2581:ES2631)*4.448222 -> -29.17843741 | O190: kN | V190: Member 3 | Z190: =MIN(ES753:ES803,ES1667:ES1717,ES2581:ES2631)*4.448222 -> -29.17843741 | AC190: kN | BE190: 30 | BF190: 3.479989504 | BG190: 2.366815795 | BH190: -0.02588001643 | BM190: 30 | BN190: 5.799982507 | BO190: -15.86710723 | BP190: -0.08442455815 | BU190: 30 | BV190: 3.479989504 | BW190: -2.575939957 | BX190: 0.02456836148 | CD190: 1 / K11 = | CE190: 0.2102560122 | CF190: 0.0003152274551 | CG190: -0.0004455545054 | CH190: 0.210802926 | CI190: -0.0003152274551 | CJ190: -0.000447290962 | CK190: -0.001112352451 | CL190: -0.001114957136 | CM190: 4
BE191: 31 | BF191: 3.599989142 | BG191: 2.415871712 | BH191: -0.0208982028 | BM191: 31 | BN191: 5.999981904 | BO191: -15.53334012 | BP191: -0.1067080912 | BU191: 31 | BV191: 3.599989142 | BW191: -2.621905369 | BX191: 0.01925863411 | CE191: -0.0003152274551 | CF191: -7.994137677e-20 | CG191: 1.334466918e-06 | CH191: -0.0003152274551 | CI191: 0.0005253790918 | CJ191: 1.334466918e-06 | CK191: 1.334466918e-06 | CL191: 1.334466918e-06 | CM191: 5
H192: Maximum Deflection | V192: Minimum Deflection | BE192: 32 | BF192: 3.71998878 | BG192: 2.454073607 | BH192: -0.01551515761 | BM192: 32 | BN192: 6.199981301 | BO192: -15.12295824 | BP192: -0.1282939082 | BU192: 32 | BV192: 3.71998878 | BW192: -2.65632998 | BX192: 0.01354767518 | CE192: -0.0004455545054 | CF192: -1.334466918e-06 | CG192: 4.747931858e-07 | CH192: -0.000447290962 | CI192: 1.334466918e-06 | CJ192: 3.304930692e-06 | CK192: 2.591883049e-06 | CL192: 1.187840829e-06 | CM192: 6
H193: Member 1 | L193: =MAX(EU493,EU1407,EU2321)*25.4 -> 2.49515181 | O193: mm | V193: Member 1 | Z193: =MIN(EU492,EU1406,EU2320)*25.4 -> -0.001723125981 | AC193: mm | BE193: 33 | BF193: 3.839988419 | BG193: 2.480581144 | BH193: -0.00973088084 | BM193: 33 | BN193: 6.399980698 | BO193: -14.63868903 | BP193: -0.1490145222 | BU193: 33 | BV193: 3.839988419 | BW193: -2.678373455 | BX193: 0.007435484672 | CE193: -0.001114957136 | CF193: -1.334466918e-06 | CG193: 1.187840829e-06 | CH193: -0.001112352451 | CI193: 1.334466918e-06 | CJ193: 2.591883049e-06 | CK193: 9.310702993e-06 | CL193: 5.767517844e-06 | CM193: 7
H194: Member 2 | L194: =MAX(EU663,EU1577,EU2491)*25.4 -> 9.330846096e-11 | O194: mm | V194: Member 2 | Z194: =MIN(EU662,EU1576,EU2490)*25.4 -> -16.40176935 | AC194: mm | BE194: 34 | BF194: 3.959988057 | BG194: 2.49455399 | BH194: -0.003545372502 | BM194: 34 | BN194: 6.599980094 | BO194: -14.08384679 | BP194: -0.1687011631 | BU194: 34 | BV194: 3.959988057 | BW194: -2.687195459 | BX194: 0.0009220625959 | CE194: -0.001112352451 | CF194: -1.334466918e-06 | CG194: 2.591883049e-06 | CH194: -0.001114957136 | CI194: 1.334466918e-06 | CJ194: 1.187840829e-06 | CK194: 5.767517844e-06 | CL194: 9.310702993e-06 | CM194: 8
H195: Member 3 | L195: =MAX(EU833,EU1747,EU2661)*25.4 -> 9.106949569e-11 | O195: mm | V195: Member 3 | Z195: =MIN(EU832,EU1746,EU2660)*25.4 -> -2.687195459 | AC195: mm | BE195: 35 | BF195: 4.079987695 | BG195: 2.49515181 | BH195: 0.003041367407 | BM195: 35 | BN195: 6.799979491 | BO195: -13.46233718 | BP195: -0.1871837772 | BU195: 35 | BV195: 4.079987695 | BW195: -2.681955658 | BX195: -0.00599259105
